Workbook

Sheet 注意事項
B2: 本ソフトウェアの取り扱い

Sheet 地位指数
B1: 道南スギ地位指数判定シート
L2: 入力セル
K4: ●樹高データがないとき | Q4: 厚沢部
K5: 旧市町村名 | L5: 函館 | Q5: 恵山
K6: 標高 | L6: 200 | M6: m | Q6: 福島
K7: ※旧市町村名をリストから選択します。標高が不明のときは空欄にします。 | Q7: 函館
Q8: 江差
K9: 地位指数 | L9: =+IF(AND(L6="",Sheet2!B38=""),VLOOKUP(L5,Sheet2!A6:E32,5,FALSE),IF(L6="",Sheet2!D4,IF(Sheet2!B38="",Sheet2!C4,Sheet2!B4))) -> 18 | Q9: 今金
K10: ※黄色のセルに地位指数（40年生時の上層高）が表示されます。 | Q10: 上磯
Q11: 上ノ国
Q12: 木古内
Q13: 北桧山
Q14: 熊石
K15: ●樹高データがあるとき | Q15: 松前
K16: 調査時林齢 | L16: 12 | M16: 年生 | Q16: 南茅部
K17: 上層高 | L17: 10 | M17: m | N17: ※推奨 | Q17: 森
K18: 平均樹高 | M18: m | N18: ※上層高のデータがわからない場合にのみお使いください | Q18: 七飯
K19: ※上層高（ha当たり上位100本の平均樹高）もしくは平均樹高を入力します。 | Q19: 大野
Q20: 奥尻
K21: 地位指数 | L21: =+Sheet2!B43 -> 21 | Q21: 長万部
K22: ※黄色のセルに地位指数（40年生時の上層高）が表示されます。 | Q22: 乙部
Q23: 砂原
Q24: 瀬棚
Q25: 鹿部
Q26: 知内
Q27: 大成
Q28: 椴法華
Q29: 戸井
Q30: 八雲
K32: 地位指数（SI） | L32: 21
K33: ※地位指数を入力すると左グラフに赤破線で上層高の変化が表示されます。
K35: ※下記表には，図の赤破線に対応した上層高を出力します。
A53: 地位指数 | B53: =L32 -> 21
A54: 林齢 | B54: 上層高 | C54: 林齢 | D54: 上層高 | E54: 林齢 | F54: 上層高 | G54: 林齢 | H54: 上層高 | I54: 林齢 | J54: 上層高
A55: =Sheet2!J3 -> 1 | B55: =Sheet2!$W3 -> 1.97695728 | C55: =Sheet2!J23 -> 21 | D55: =Sheet2!$W23 -> 14.48314636 | E55: =Sheet2!J43 -> 41 | F55: =Sheet2!$W43 -> 21.28270613 | G55: =Sheet2!J63 -> 61 | H55: =Sheet2!$W63 -> 26.08273974 | I55: =Sheet2!J83 -> 81 | J55: =Sheet2!$W83 -> 29.66989081
A56: =Sheet2!J4 -> 2 | B56: =Sheet2!$W4 -> 3.150226249 | C56: =Sheet2!J24 -> 22 | D56: =Sheet2!$W24 -> 14.89494584 | E56: =Sheet2!J44 -> 42 | F56: =Sheet2!$W44 -> 21.56066297 | G56: =Sheet2!J64 -> 62 | H56: =Sheet2!$W64 -> 26.28681301 | I56: =Sheet2!J84 -> 82 | J56: =Sheet2!$W84 -> 29.82503609
A57: =Sheet2!J5 -> 3 | B57: =Sheet2!$W5 -> 4.131035656 | C57: =Sheet2!J25 -> 23 | D57: =Sheet2!$W25 -> 15.29710623 | E57: =Sheet2!J45 -> 43 | F57: =Sheet2!$W45 -> 21.83400071 | G57: =Sheet2!J65 -> 63 | H57: =Sheet2!$W65 -> 26.48798089 | I57: =Sheet2!J85 -> 83 | J57: =Sheet2!$W85 -> 29.97815771
A58: =Sheet2!J6 -> 4 | B58: =Sheet2!$W6 -> 5.001838019 | C58: =Sheet2!J26 -> 24 | D58: =Sheet2!$W26 -> 15.69010275 | E58: =Sheet2!J46 -> 44 | F58: =Sheet2!$W46 -> 22.10284333 | G58: =Sheet2!J66 -> 64 | H58: =Sheet2!$W66 -> 26.68630052 | I58: =Sheet2!J86 -> 84 | J58: =Sheet2!$W86 -> 30.12928881
A59: =Sheet2!J7 -> 5 | B59: =Sheet2!$W7 -> 5.797185651 | C59: =Sheet2!J27 -> 25 | D59: =Sheet2!$W27 -> 16.07436784 | E59: =Sheet2!J47 -> 45 | F59: =Sheet2!$W47 -> 22.36730906 | G59: =Sheet2!J67 -> 65 | H59: =Sheet2!$W67 -> 26.8818273 | I59: =Sheet2!J87 -> 85 | J59: =Sheet2!$W87 -> 30.2784617
A60: =Sheet2!J8 -> 6 | B60: =Sheet2!$W8 -> 6.53579777 | C60: =Sheet2!J28 -> 26 | D60: =Sheet2!$W28 -> 16.45029662 | E60: =Sheet2!J48 -> 46 | F60: =Sheet2!$W48 -> 22.62751079 | G60: =Sheet2!J68 -> 66 | H60: =Sheet2!$W68 -> 27.07461493 | I60: =Sheet2!J88 -> 86 | J60: =Sheet2!$W88 -> 30.42570799
A61: =Sheet2!J9 -> 7 | B61: =Sheet2!$W9 -> 7.229287711 | C61: =Sheet2!J29 -> 27 | D61: =Sheet2!$W29 -> 16.8182516 | E61: =Sheet2!J49 -> 47 | F61: =Sheet2!$W49 -> 22.88355639 | G61: =Sheet2!J69 -> 67 | H61: =Sheet2!$W69 -> 27.26471551 | I61: =Sheet2!J89 -> 87 | J61: =Sheet2!$W89 -> 30.57105856
A62: =Sheet2!J10 -> 8 | B62: =Sheet2!$W10 -> 7.885503669 | C62: =Sheet2!J30 -> 28 | D62: =Sheet2!$W30 -> 17.17856651 | E62: =Sheet2!J50 -> 48 | F62: =Sheet2!$W50 -> 23.13554912 | G62: =Sheet2!J70 -> 68 | H62: =Sheet2!$W70 -> 27.45217963 | I62: =Sheet2!J90 -> 88 | J62: =Sheet2!$W90 -> 30.71454356
A63: =Sheet2!J11 -> 9 | B63: =Sheet2!$W11 -> 8.510073649 | C63: =Sheet2!J31 -> 29 | D63: =Sheet2!$W31 -> 17.53154963 | E63: =Sheet2!J51 -> 49 | F63: =Sheet2!$W51 -> 23.38358785 | G63: =Sheet2!J71 -> 69 | H63: =Sheet2!$W71 -> 27.63705637 | I63: =Sheet2!J91 -> 89 | J63: =Sheet2!$W91 -> 30.8561925
A64: =Sheet2!J12 -> 10 | B64: =Sheet2!$W12 -> 9.107214005 | C64: =Sheet2!J32 -> 30 | D64: =Sheet2!$W32 -> 17.87748664 | E64: =Sheet2!J52 -> 50 | F64: =Sheet2!$W52 -> 23.62776738 | G64: =Sheet2!J72 -> 70 | H64: =Sheet2!$W72 -> 27.81939346 | I64: =Sheet2!J92 -> 90 | J64: =Sheet2!$W92 -> 30.99603423
A65: =Sheet2!J13 -> 11 | B65: =Sheet2!$W13 -> 9.68019163 | C65: =Sheet2!J33 -> 31 | D65: =Sheet2!$W33 -> 18.21664298 | E65: =Sheet2!J53 -> 51 | F65: =Sheet2!$W53 -> 23.86817871 | G65: =Sheet2!J73 -> 71 | H65: =Sheet2!$W73 -> 27.99923726 | I65: =Sheet2!J93 -> 91 | J65: =Sheet2!$W93 -> 31.13409697
A66: =Sheet2!J14 -> 12 | B66: =Sheet2!$W14 -> 10.23160631 | C66: =Sheet2!J34 -> 32 | D66: =Sheet2!$W34 -> 18.54926601 | E66: =Sheet2!J54 -> 52 | F66: =Sheet2!$W54 -> 24.10490922 | G66: =Sheet2!J74 -> 72 | H66: =Sheet2!$W74 -> 28.17663284 | I66: =Sheet2!J94 -> 92 | J66: =Sheet2!$W94 -> 31.27040831
A67: =Sheet2!J15 -> 13 | B67: =Sheet2!$W15 -> 10.76357245 | C67: =Sheet2!J35 -> 33 | D67: =Sheet2!$W35 -> 18.87558677 | E67: =Sheet2!J55 -> 53 | F67: =Sheet2!$W55 -> 24.33804294 | G67: =Sheet2!J75 -> 73 | H67: =Sheet2!$W75 -> 28.35162407 | I67: =Sheet2!J95 -> 93 | J67: =Sheet2!$W95 -> 31.40499526
A68: =Sheet2!J16 -> 14 | B68: =Sheet2!$W16 -> 11.27784101 | C68: =Sheet2!J36 -> 34 | D68: =Sheet2!$W36 -> 19.19582156 | E68: =Sheet2!J56 -> 54 | F68: =Sheet2!$W56 -> 24.5676607 | G68: =Sheet2!J76 -> 74 | H68: =Sheet2!$W76 -> 28.52425361 | I68: =Sheet2!J96 -> 94 | J68: =Sheet2!$W96 -> 31.53788427
A69: =Sheet2!J17 -> 15 | B69: =Sheet2!$W17 -> 11.77588425 | C69: =Sheet2!J37 -> 35 | D69: =Sheet2!$W37 -> 19.51017338 | E69: =Sheet2!J57 -> 55 | F69: =Sheet2!$W57 -> 24.79384036 | G69: =Sheet2!J77 -> 75 | H69: =Sheet2!$W77 -> 28.69456301 | I69: =Sheet2!J97 -> 95 | J69: =Sheet2!$W97 -> 31.66910121
A70: =Sheet2!J18 -> 16 | B70: =Sheet2!$W18 -> 12.25895633 | C70: =Sheet2!J38 -> 36 | D70: =Sheet2!$W38 -> 19.81883307 | E70: =Sheet2!J58 -> 56 | F70: =Sheet2!$W58 -> 25.01665692 | G70: =Sheet2!J78 -> 76 | H70: =Sheet2!$W78 -> 28.86259272 | I70: =Sheet2!J98 -> 96 | J70: =Sheet2!$W98 -> 31.79867143
A71: =Sheet2!J19 -> 17 | B71: =Sheet2!$W19 -> 12.72813774 | C71: =Sheet2!J39 -> 37 | D71: =Sheet2!$W39 -> 20.12198043 | E71: =Sheet2!J59 -> 57 | F71: =Sheet2!$W59 -> 25.23618274 | G71: =Sheet2!J79 -> 77 | H71: =Sheet2!$W79 -> 29.02838214 | I71: =Sheet2!J99 -> 97 | J71: =Sheet2!$W99 -> 31.92661975
A72: =Sheet2!J20 -> 18 | B72: =Sheet2!$W20 -> 13.18436854 | C72: =Sheet2!J40 -> 38 | D72: =Sheet2!$W40 -> 20.41978517 | E72: =Sheet2!J60 -> 58 | F72: =Sheet2!$W60 -> 25.45248764 | G72: =Sheet2!J80 -> 78 | H72: =Sheet2!$W80 -> 29.19196968 | I72: =Sheet2!J100 -> 98 | J72: =Sheet2!$W100 -> 32.05297049
A73: =Sheet2!J21 -> 19 | B73: =Sheet2!$W21 -> 13.62847376 | C73: =Sheet2!J41 -> 39 | D73: =Sheet2!$W41 -> 20.71240771 | E73: =Sheet2!J61 -> 59 | F73: =Sheet2!$W61 -> 25.66563903 | G73: =Sheet2!J81 -> 79 | H73: =Sheet2!$W81 -> 29.35339278 | I73: =Sheet2!J101 -> 99 | J73: =Sheet2!$W101 -> 32.17774745
A74: =Sheet2!J22 -> 20 | B74: =Sheet2!$W22 -> 14.0611831 | C74: =Sheet2!J42 -> 40 | D74: =Sheet2!$W42 -> 21 | E74: =Sheet2!J62 -> 60 | F74: =Sheet2!$W62 -> 25.87570206 | G74: =Sheet2!J82 -> 80 | H74: =Sheet2!$W82 -> 29.51268796 | I74: =Sheet2!J102 -> 100 | J74: =Sheet2!$W102 -> 32.30097399

Sheet Sheet2 (hidden)
B1: 旧市町村名 | C1: 旧市町村名 | D1: 旧市町村名 | E1: 旧市町村名 | G1: 旧市町村名 | J1: age | K1: guide | L1: SI10 | M1: SI12 | N1: SI14 | O1: SI16 | P1: SI18 | Q1: SI20 | R1: SI22 | S1: SI24 | T1: SI26 | U1: SI28 | V1: SI30 | W1: =+地位指数!L32 -> 21
B2: 標高 | C2: 標高 | E2: データ平均 | G2: GLM | J2: 0
B3: 傾斜 | D3: 傾斜 | H3: 18 | J3: 1 | K3: 1.836037678 | L3: 0.9414082287 | M3: 1.129689874 | N3: 1.31797152 | O3: 1.506253166 | P3: 1.694534812 | Q3: 1.882816457 | R3: 2.071098103 | S3: 2.259379749 | T3: 2.447661395 | U3: 2.63594304 | V3: 2.824224686 | W3: =+IF(地位指数!L$32="","",W$1*K3/$K$42) -> 1.97695728
A4: SI | B4: =+VLOOKUP(地位指数!$L5,A6:B32,2,FALSE)+B5+B34*地位指数!$L6+B35*$B38 -> 18.0047331 | C4: =+VLOOKUP(地位指数!$L5,A6:C32,3,FALSE)+C5+C34*地位指数!$L6+C35*$B38 -> 17.949247 | D4: =+VLOOKUP(地位指数!$L5,A6:D32,4,FALSE)+D5+D34*地位指数!$L6+D35*$B38 -> 18.94118 | H4: 20 | J4: 2 | K4: 2.925674795 | L4: 1.500107738 | M4: 1.800129285 | N4: 2.100150833 | O4: 2.40017238 | P4: 2.700193928 | Q4: 3.000215475 | R4: 3.300237023 | S4: 3.60025857 | T4: 3.900280118 | U4: 4.200301665 | V4: 4.500323213 | W4: =+IF(地位指数!L$32="","",W$1*K4/$K$42) -> 3.150226249
A5: 切片 | B5: 21.9468657 | C5: 21.912398 | D5: 21.54118 | G5: 21.36701 | J5: 3 | K5: 3.836571072 | L5: 1.967159836 | M5: 2.360591803 | N5: 2.75402377 | O5: 3.147455738 | P5: 3.540887705 | Q5: 3.934319672 | R5: 4.327751639 | S5: 4.721183607 | T5: 5.114615574 | U5: 5.508047541 | V5: 5.901479508 | W5: =+IF(地位指数!L$32="","",W$1*K5/$K$42) -> 4.131035656
A6: 厚沢部 | B6: 0 | C6: 0 | D6: 0 | E6: 21.4 | F6: =+G6+G$5 -> 21.4 | G6: 0 | H6: =+IF(E6<H$3,3,IF(E6>=H$4,1,2)) -> 1 | J6: 4 | K6: 4.645301723 | L6: 2.381827628 | M6: 2.858193154 | N6: 3.334558679 | O6: 3.810924205 | P6: 4.28728973 | Q6: 4.763655256 | R6: 5.240020781 | S6: 5.716386307 | T6: 6.192751833 | U6: 6.669117358 | V6: 7.145482884 | W6: =+IF(地位指数!L$32="","",W$1*K6/$K$42) -> 5.001838019
A7: 恵山 | B7: -2.196632 | C7: -1.364562 | D7: -2.00375 | E7: 20.0 | F7: 20.0 | G7: -1.34933 | H7: 1 | J7: 5 | K7: 5.383956136 | L7: 2.760564596 | M7: 3.312677515 | N7: 3.864790434 | O7: 4.416903353 | P7: 4.969016273 | Q7: 5.521129192 | R7: 6.073242111 | S7: 6.62535503 | T7: 7.177467949 | U7: 7.729580869 | V7: 8.281693788 | W7: =+IF(地位指数!L$32="","",W$1*K7/$K$42) -> 5.797185651
A8: 福島 | B8: -2.5279758 | C8: -2.543527 | D8: -2.52426 | E8: 18.6 | F8: 18.6 | G8: -2.731 | H8: 2 | J8: 6 | K8: 6.069919203 | L8: 3.112284652 | M8: 3.734741583 | N8: 4.357198513 | O8: 4.979655444 | P8: 5.602112374 | Q8: 6.224569305 | R8: 6.847026235 | S8: 7.469483166 | T8: 8.091940096 | U8: 8.714397027 | V8: 9.336853957 | W8: =+IF(地位指数!L$32="","",W$1*K8/$K$42) -> 6.53579777
A9: 函館 | B9: -2.3235526 | C9: -2.339951 | D9: -2.6 | E9: 18.7 | F9: 18.7 | G9: -2.62559 | H9: 2 | J9: 7 | K9: 6.713976449 | L9: 3.442517958 | M9: 4.131021549 | N9: 4.819525141 | O9: 5.508028732 | P9: 6.196532324 | Q9: 6.885035915 | R9: 7.573539507 | S9: 8.262043098 | T9: 8.95054669 | U9: 9.639050281 | V9: 10.32755387 | W9: =+IF(地位指数!L$32="","",W$1*K9/$K$42) -> 7.229287711
A10: 江差 | B10: -2.8618134 | C10: -2.870767 | D10: -2.77923 | E10: 18.4 | F10: 18.4 | G10: -2.95347 | H10: 2 | J10: 8 | K10: 7.323416641 | L10: 3.755001747 | M10: 4.506002097 | N10: 5.257002446 | O10: 6.008002796 | P10: 6.759003145 | Q10: 7.510003495 | R10: 8.261003844 | S10: 9.012004194 | T10: 9.763004543 | U10: 10.51400489 | V10: 11.26500524 | W10: =+IF(地位指数!L$32="","",W$1*K10/$K$42) -> 7.885503669
A11: 今金 | B11: -3.3676527 | C11: -3.640954 | D11: -3.34506 | E11: 17.8 | F11: 17.8 | G11: -3.54252 | H11: 3 | J11: 9 | K11: 7.903466612 | L11: 4.052416023 | M11: 4.862899228 | N11: 5.673382432 | O11: 6.483865637 | P11: 7.294348842 | Q11: 8.104832046 | R11: 8.915315251 | S11: 9.725798455 | T11: 10.53628166 | U11: 11.34676486 | V11: 12.15724807 | W11: =+IF(地位指数!L$32="","",W$1*K11/$K$42) -> 8.510073649
A12: 上磯 | B12: -2.542296 | C12: -2.542354 | D12: -2.39845 | E12: 18.9 | F12: 18.9 | G12: -2.49793 | H12: 2 | J12: 10 | K12: 8.458042173 | L12: 4.336768574 | M12: 5.204122288 | N12: 6.071476003 | O12: 6.938829718 | P12: 7.806183432 | Q12: 8.673537147 | R12: 9.540890862 | S12: 10.40824458 | T12: 11.27559829 | U12: 12.14295201 | V12: 13.01030572 | W12: =+IF(地位指数!L$32="","",W$1*K12/$K$42) -> 9.107214005
A13: 上ノ国 | B13: -0.1697401 | C13: -0.203627 | D13: -0.55667 | E13: 20.6 | F13: 20.6 | G13: -0.73608 | H13: 1 | J13: 11 | K13: 8.990177349 | L13: 4.609615062 | M13: 5.531538075 | N13: 6.453461087 | O13: 7.375384099 | P13: 8.297307112 | Q13: 9.219230124 | R13: 10.14115314 | S13: 11.06307615 | T13: 11.98499916 | U13: 12.90692217 | V13: 13.82884519 | W13: =+IF(地位指数!L$32="","",W$1*K13/$K$42) -> 9.68019163
A14: 木古内 | B14: -0.3907684 | C14: -0.393392 | D14: -0.36159 | E14: 21.0 | F14: 21.0 | G14: -0.41606 | H14: 1 | J14: 12 | K14: 9.502286611 | L14: 4.872193483 | M14: 5.846632179 | N14: 6.821070876 | O14: 7.795509572 | P14: 8.769948269 | Q14: 9.744386965 | R14: 10.71882566 | S14: 11.69326436 | T14: 12.66770305 | U14: 13.64214175 | V14: 14.61658045 | W14: =+IF(地位指数!L$32="","",W$1*K14/$K$42) -> 10.23160631
A15: 北桧山 | B15: -3.5780752 | C15: -3.899822 | D15: -3.67209 | E15: 17.1 | F15: 17.1 | G15: -4.22443 | H15: 3 | J15: 13 | K15: 9.99633364 | L15: 5.125510691 | M15: 6.150612829 | N15: 7.175714967 | O15: 8.200817105 | P15: 9.225919244 | Q15: 10.25102138 | R15: 11.27612352 | S15: 12.30122566 | T15: 13.3263278 | U15: 14.35142993 | V15: 15.37653207 | W15: =+IF(地位指数!L$32="","",W$1*K15/$K$42) -> 10.76357245
A16: 熊石 | B16: -0.5254341 | C16: -0.535202 | D16: -0.49218 | E16: 20.7 | F16: 20.7 | G16: -0.64325 | H16: 1 | J16: 14 | K16: 10.47394459 | L16: 5.37040048 | M16: 6.444480576 | N16: 7.518560672 | O16: 8.592640768 | P16: 9.666720864 | Q16: 10.74080096 | R16: 11.81488106 | S16: 12.88896115 | T16: 13.96304125 | U16: 15.03712134 | V16: 16.11120144 | W16: =+IF(地位指数!L$32="","",W$1*K16/$K$42) -> 11.27784101
A17: 松前 | B17: -1.5201895 | C17: -1.56336 | D17: -1.9299 | E17: 19.2 | F17: 19.2 | G17: -2.21558 | H17: 2 | J17: 15 | K17: 10.93648678 | L17: 5.607563928 | M17: 6.729076713 | N17: 7.850589499 | O17: 8.972102284 | P17: 10.09361507 | Q17: 11.21512786 | R17: 12.33664064 | S17: 13.45815343 | T17: 14.57966621 | U17: 15.701179 | V17: 16.82269178 | W17: =+IF(地位指数!L$32="","",W$1*K17/$K$42) -> 11.77588425
A18: 南茅部 | B18: -1.5702881 | C18: -2.200766 | D18: -1.9741 | E18: 18.8 | F18: 18.8 | G18: -2.51809 | H18: 2 | J18: 16 | K18: 11.38512498 | L18: 5.837598253 | M18: 7.005117904 | N18: 8.172637554 | O18: 9.340157205 | P18: 10.50767686 | Q18: 11.67519651 | R18: 12.84271616 | S18: 14.01023581 | T18: 15.17775546 | U18: 16.34527511 | V18: 17.51279476 | W18: =+IF(地位指数!L$32="","",W$1*K18/$K$42) -> 12.25895633
A19: 森 | B19: -1.1252936 | C19: -1.829299 | D19: -1.7936 | E19: 18.7 | F19: 18.7 | G19: -2.67673 | H19: 2 | J19: 17 | K19: 11.82086264 | L19: 6.06101797 | M19: 7.273221564 | N19: 8.485425158 | O19: 9.697628752 | P19: 10.90983235 | Q19: 12.12203594 | R19: 13.33423953 | S19: 14.54644313 | T19: 15.75864672 | U19: 16.97085032 | V19: 18.18305391 | W19: =+IF(地位指数!L$32="","",W$1*K19/$K$42) -> 12.72813774
A20: 七飯 | B20: -0.4968897 | C20: -0.560882 | D20: -1.55847 | E20: 19.7 | F20: 19.7 | G20: -1.67018 | H20: 2 | J20: 18 | K20: 12.24457282 | L20: 6.278270731 | M20: 7.533924878 | N20: 8.789579024 | O20: 10.04523317 | P20: 11.30088732 | Q20: 12.55654146 | R20: 13.81219561 | S20: 15.06784976 | T20: 16.3235039 | U20: 17.57915805 | V20: 18.83481219 | W20: =+IF(地位指数!L$32="","",W$1*K20/$K$42) -> 13.18436854
A21: 大野 | B21: -1.2418416 | C21: -1.256728 | D21: -1.52894 | E21: 19.8 | F21: 19.8 | G21: -1.52737 | H21: 2 | J21: 19 | K21: 12.65702176 | L21: 6.48974941 | M21: 7.787699293 | N21: 9.085649175 | O21: 10.38359906 | P21: 11.68154894 | Q21: 12.97949882 | R21: 14.2774487 | S21: 15.57539859 | T21: 16.87334847 | U21: 18.17129835 | V21: 19.46924823 | W21: =+IF(地位指数!L$32="","",W$1*K21/$K$42) -> 13.62847376
A22: 奥尻 | B22: -5.6638891 | C22: -5.670972 | D22: -5.54534 | E22: 15.6 | F22: 15.6 | G22: -5.71969 | H22: 3 | J22: 20 | K22: 13.05888712 | L22: 6.695801476 | M22: 8.034961771 | N22: 9.374122067 | O22: 10.71328236 | P22: 12.05244266 | Q22: 13.39160295 | R22: 14.73076325 | S22: 16.06992354 | T22: 17.40908384 | U22: 18.74824413 | V22: 20.08740443 | W22: =+IF(地位指数!L$32="","",W$1*K22/$K$42) -> 14.0611831
A23: 長万部 | B23: -4.2952846 | C23: -3.640954 | D23: -3.945 | E23: 17.8 | F23: 17.8 | G23: -3.54252 | H23: 3 | J23: 21 | K23: 13.4507724 | L23: 6.896736364 | M23: 8.276083637 | N23: 9.655430909 | O23: 11.03477818 | P23: 12.41412545 | Q23: 13.79347273 | R23: 15.17282 | S23: 16.55216727 | T23: 17.93151455 | U23: 19.31086182 | V23: 20.69020909 | W23: =+IF(地位指数!L$32="","",W$1*K23/$K$42) -> 14.48314636
A24: 乙部 | B24: 0.4201878 | C24: 0.398711 | D24: 0.12631 | E24: 21.4 | F24: 21.4 | G24: 0.04599 | H24: 1 | J24: 22 | K24: 13.83321837 | L24: 7.092831352 | M24: 8.511397622 | N24: 9.929963892 | O24: 11.34853016 | P24: 12.76709643 | Q24: 14.1856627 | R24: 15.60422897 | S24: 17.02279524 | T24: 18.44136151 | U24: 19.85992778 | V24: 21.27849405 | W24: =+IF(地位指数!L$32="","",W$1*K24/$K$42) -> 14.89494584
A25: 砂原 | B25: -5.5192073 | C25: -1.829299 | D25: -6.6165 | E25: 18.7 | F25: 18.7 | G25: -2.67673 | H25: 2 | J25: 23 | K25: 14.20671234 | L25: 7.284336298 | M25: 8.741203558 | N25: 10.19807082 | O25: 11.65493808 | P25: 13.11180534 | Q25: 14.5686726 | R25: 16.02553986 | S25: 17.48240712 | T25: 18.93927437 | U25: 20.39614163 | V25: 21.85300889 | W25: =+IF(地位指数!L$32="","",W$1*K25/$K$42) -> 15.29710623
A26: 瀬棚 | B26: -4.6855882 | C26: -3.899822 | D26: -5.43612 | E26: 17.1 | F26: 17.1 | G26: -4.22443 | H26: 3 | J26: 24 | K26: 14.57169566 | L26: 7.471477501 | M26: 8.965773002 | N26: 10.4600685 | O26: 11.954364 | P26: 13.4486595 | Q26: 14.942955 | R26: 16.4372505 | S26: 17.931546 | T26: 19.4258415 | U26: 20.920137 | V26: 22.4144325 | W26: =+IF(地位指数!L$32="","",W$1*K26/$K$42) -> 15.69010275
A27: 鹿部 | B27: -2.4993826 | C27: -1.829299 | D27: -3.63803 | E27: 18.7 | F27: 18.7 | G27: -2.67673 | H27: 2 | J27: 25 | K27: 14.92856992 | L27: 7.654460876 | M27: 9.185353051 | N27: 10.71624523 | O27: 12.2471374 | P27: 13.77802958 | Q27: 15.30892175 | R27: 16.83981393 | S27: 18.3707061 | T27: 19.90159828 | U27: 21.43249045 | V27: 22.96338263 | W27: =+IF(地位指数!L$32="","",W$1*K27/$K$42) -> 16.07436784
A28: 知内 | B28: =-2.92509601111134-2.6330008802 -> -5.558096891 | C28: -2.911835 | D28: -2.60562 | E28: 18.7 | F28: 18.7 | G28: -2.65075 | H28: 2 | J28: 26 | K28: 15.27770211 | L28: 7.833474583 | M28: 9.4001695 | N28: 10.96686442 | O28: 12.53355933 | P28: 14.10025425 | Q28: 15.66694917 | R28: 17.23364408 | S28: 18.800339 | T28: 20.36703392 | U28: 21.93372883 | V28: 23.50042375 | W28: =+IF(地位指数!L$32="","",W$1*K28/$K$42) -> 16.45029662
A29: 大成 | B29: -2.0412118 | C29: -2.057271 | D29: -2.12238 | E29: 19.1 | F29: 19.1 | G29: -2.27753 | H29: 2 | J29: 27 | K29: 15.61942887 | L29: 8.008691239 | M29: 9.610429487 | N29: 11.21216773 | O29: 12.81390598 | P29: 14.41564423 | Q29: 16.01738248 | R29: 17.61912073 | S29: 19.22085897 | T29: 20.82259722 | U29: 22.42433547 | V29: 24.02607372 | W29: =+IF(地位指数!L$32="","",W$1*K29/$K$42) -> 16.8182516
A30: 椴法華 | B30: -3.2473936 | C30: -2.200766 | D30: -3.12963 | E30: 18.8 | F30: 18.8 | G30: -2.51809 | H30: 2 | J30: 28 | K30: 15.95406015 | L30: 8.180269765 | M30: 9.816323718 | N30: 11.45237767 | O30: 13.08843162 | P30: 14.72448558 | Q30: 16.36053953 | R30: 17.99659348 | S30: 19.63264744 | T30: 21.26870139 | U30: 22.90475534 | V30: 24.5408093 | W30: =+IF(地位指数!L$32="","",W$1*K30/$K$42) -> 17.17856651
A31: 戸井 | B31: 1.3475711 | C31: -1.364562 | D31: 1.23271 | E31: 20.0 | F31: 20.0 | G31: -1.34933 | H31: 1 | J31: 29 | K31: 16.28188226 | L31: 8.348356967 | M31: 10.01802836 | N31: 11.68769975 | O31: 13.35737115 | P31: 15.02704254 | Q31: 16.69671393 | R31: 18.36638533 | S31: 20.03605672 | T31: 21.70572811 | U31: 23.37539951 | V31: 25.0450709 | W31: =+IF(地位指数!L$32="","",W$1*K31/$K$42) -> 17.53154963
A32: 八雲 | B32: -1.7747692 | C32: -1.783371 | D32: -1.91738 | E32: 19.4 | F32: 19.4 | G32: -1.93245 | H32: 2 | J32: 30 | K32: 16.60316051 | L32: 8.513088875 | M32: 10.21570665 | N32: 11.91832442 | O32: 13.6209422 | P32: 15.32355997 | Q32: 17.02617775 | R32: 18.72879552 | S32: 20.4314133 | T32: 22.13403107 | U32: 23.83664885 | V32: 25.53926662 | W32: =+IF(地位指数!L$32="","",W$1*K32/$K$42) -> 17.87748664
E33: =AVERAGE(E6:E32) -> 19.1 | J33: 31 | K33: 16.91814143 | L33: 8.674591897 | M33: 10.40951028 | N33: 12.14442866 | O33: 13.87934704 | P33: 15.61426541 | Q33: 17.34918379 | R33: 19.08410217 | S33: 20.81902055 | T33: 22.55393893 | U33: 24.28885731 | V33: 26.02377569 | W33: =+IF(地位指数!L$32="","",W$1*K33/$K$42) -> 18.21664298
A34: 標高 | B34: -0.0080929 | C34: -0.008116 | E34: =MIN(E6:E32) -> 15.6 | J34: 32 | K34: 17.22705474 | L34: 8.832983816 | M34: 10.59958058 | N34: 12.36617734 | O34: 14.13277411 | P34: 15.89937087 | Q34: 17.66596763 | R34: 19.4325644 | S34: 21.19916116 | T34: 22.96575792 | U34: 24.73235469 | V34: 26.49895145 | W34: =+IF(地位指数!L$32="","",W$1*K34/$K$42) -> 18.54926601
A35: 傾斜 | B35: -0.0004924 | D35: -0.01953 | E35: =MAX(E6:E33) -> 21.4 | J35: 33 | K35: 17.53011501 | L35: 8.988374651 | M35: 10.78604958 | N35: 12.58372451 | O35: 14.38139944 | P35: 16.17907437 | Q35: 17.9767493 | R35: 19.77442423 | S35: 21.57209916 | T35: 23.36977409 | U35: 25.16744902 | V35: 26.96512395 | W35: =+IF(地位指数!L$32="","",W$1*K35/$K$42) -> 18.87558677
J36: 34 | K36: 17.82752313 | L36: 9.140867412 | M36: 10.96904089 | N36: 12.79721438 | O36: 14.62538786 | P36: 16.45356134 | Q36: 18.28173482 | R36: 20.10990831 | S36: 21.93808179 | T36: 23.76625527 | U36: 25.59442875 | V36: 27.42260223 | W36: =+IF(地位指数!L$32="","",W$1*K36/$K$42) -> 19.19582156
J37: 35 | K37: 18.11946762 | L37: 9.290558753 | M37: 11.1486705 | N37: 13.00678225 | O37: 14.864894 | P37: 16.72300575 | Q37: 18.58111751 | R37: 20.43922926 | S37: 22.29734101 | T37: 24.15545276 | U37: 26.01356451 | V37: 27.87167626 | W37: =+IF(地位指数!L$32="","",W$1*K37/$K$42) -> 19.51017338
A38: 傾斜 | C38: 度 | J38: 36 | K38: 18.40612572 | L38: 9.437539557 | M38: 11.32504747 | N38: 13.21255538 | O38: 15.10006329 | P38: 16.9875712 | Q38: 18.87507911 | R38: 20.76258703 | S38: 22.65009494 | T38: 24.53760285 | U38: 26.42511076 | V38: 28.31261867 | W38: =+IF(地位指数!L$32="","",W$1*K38/$K$42) -> 19.81883307
J39: 37 | K39: 18.68766442 | L39: 9.581895444 | M39: 11.49827453 | N39: 13.41465362 | O39: 15.33103271 | P39: 17.2474118 | Q39: 19.16379089 | R39: 21.08016998 | S39: 22.99654907 | T39: 24.91292815 | U39: 26.82930724 | V39: 28.74568633 | W39: =+IF(地位指数!L$32="","",W$1*K39/$K$42) -> 20.12198043
A40: 推定上層高 | B40: =1.0382*地位指数!L18+2.2511 -> 2.2511 | J40: 38 | K40: 18.96424132 | L40: 9.723707222 | M40: 11.66844867 | N40: 13.61319011 | O40: 15.55793156 | P40: 17.502673 | Q40: 19.44741444 | R40: 21.39215589 | S40: 23.33689733 | T40: 25.28163878 | U40: 27.22638022 | V40: 29.17112167 | W40: =+IF(地位指数!L$32="","",W$1*K40/$K$42) -> 20.41978517
A41: 上層高 | B41: =+IF(地位指数!L17="",B40,地位指数!L17) -> 10 | E41: age | F41: guide | J41: 39 | K41: 19.23600542 | L41: 9.863051291 | M41: 11.83566155 | N41: 13.80827181 | O41: 15.78088207 | P41: 17.75349232 | Q41: 19.72610258 | R41: 21.69871284 | S41: 23.6713231 | T41: 25.64393336 | U41: 27.61654362 | V41: 29.58915387 | W41: =+IF(地位指数!L$32="","",W$1*K41/$K$42) -> 20.71240771
A42: ガイド樹高 | B42: =+VLOOKUP(地位指数!L16,E42:F141,2,FALSE) -> 9.502286611 | E42: 1 | F42: 1.836037678 | J42: 40 | K42: 19.50309782 | L42: 10 | M42: 12 | N42: 14 | O42: 16 | P42: 18 | Q42: 20 | R42: 22 | S42: 24 | T42: 26 | U42: 28 | V42: 30 | W42: =+IF(地位指数!L$32="","",W$1*K42/$K$42) -> 21
A43: 地位指数 | B43: =+IF(AND(地位指数!L17,地位指数!L18)="","",B41*$F$81/B42) -> 20.5 | E43: 2 | F43: 2.925674795 | J43: 41 | K43: 19.76565236 | L43: 10.13462197 | M43: 12.16154636 | N43: 14.18847075 | O43: 16.21539515 | P43: 18.24231954 | Q43: 20.26924393 | R43: 22.29616833 | S43: 24.32309272 | T43: 26.35001711 | U43: 28.37694151 | V43: 30.4038659 | W43: =+IF(地位指数!L$32="","",W$1*K43/$K$42) -> 21.28270613
E44: 3 | F44: 3.836571072 | J44: 42 | K44: 20.02379615 | L44: 10.26698237 | M44: 12.32037884 | N44: 14.37377532 | O44: 16.42717179 | P44: 18.48056826 | Q44: 20.53396474 | R44: 22.58736121 | S44: 24.64075768 | T44: 26.69415416 | U44: 28.74755063 | V44: 30.8009471 | W44: =+IF(地位指数!L$32="","",W$1*K44/$K$42) -> 21.56066297
E45: 4 | F45: 4.645301723 | J45: 43 | K45: 20.27765008 | L45: 10.3971432 | M45: 12.47657183 | N45: 14.55600047 | O45: 16.63542911 | P45: 18.71485775 | Q45: 20.79428639 | R45: 22.87371503 | S45: 24.95314367 | T45: 27.03257231 | U45: 29.11200095 | V45: 31.19142959 | W45: =+IF(地位指数!L$32="","",W$1*K45/$K$42) -> 21.83400071
E46: 5 | F46: 5.383956136 | J46: 44 | K46: 20.52732932 | L46: 10.52516349 | M46: 12.63019619 | N46: 14.73522889 | O46: 16.84026158 | P46: 18.94529428 | Q46: 21.05032698 | R46: 23.15535968 | S46: 25.26039238 | T46: 27.36542508 | U46: 29.47045777 | V46: 31.57549047 | W46: =+IF(地位指数!L$32="","",W$1*K46/$K$42) -> 22.10284333
E47: 6 | F47: 6.069919203 | J47: 45 | K47: 20.77294365 | L47: 10.65109955 | M47: 12.78131946 | N47: 14.91153937 | O47: 17.04175929 | P47: 19.1719792 | Q47: 21.30219911 | R47: 23.43241902 | S47: 25.56263893 | T47: 27.69285884 | U47: 29.82307875 | V47: 31.95329866 | W47: =+IF(地位指数!L$32="","",W$1*K47/$K$42) -> 22.36730906
E48: 7 | F48: 6.713976449 | J48: 46 | K48: 21.01459792 | L48: 10.77500514 | M48: 12.93000616 | N48: 15.08500719 | O48: 17.24000822 | P48: 19.39500925 | Q48: 21.55001027 | R48: 23.7050113 | S48: 25.86001233 | T48: 28.01501335 | U48: 30.17001438 | V48: 32.32501541 | W48: =+IF(地位指数!L$32="","",W$1*K48/$K$42) -> 22.62751079
E49: 8 | F49: 7.323416641 | J49: 47 | K49: 21.25239233 | L49: 10.89693162 | M49: 13.07631794 | N49: 15.25570426 | O49: 17.43509059 | P49: 19.61447691 | Q49: 21.79386323 | R49: 23.97324956 | S49: 26.15263588 | T49: 28.3320222 | U49: 30.51140852 | V49: 32.69079485 | W49: =+IF(地位指数!L$32="","",W$1*K49/$K$42) -> 22.88355639
E50: 9 | F50: 7.903466612 | J50: 48 | K50: 21.48642275 | L50: 11.01692815 | M50: 13.22031378 | N50: 15.42369941 | O50: 17.62708504 | P50: 19.83047067 | Q50: 22.0338563 | R50: 24.23724194 | S50: 26.44062757 | T50: 28.6440132 | U50: 30.84739883 | V50: 33.05078446 | W50: =+IF(地位指数!L$32="","",W$1*K50/$K$42) -> 23.13554912
E51: 10 | F51: 8.458042173 | J51: 49 | K51: 21.71678101 | L51: 11.13504183 | M51: 13.3620502 | N51: 15.58905856 | O51: 17.81606693 | P51: 20.0430753 | Q51: 22.27008366 | R51: 24.49709203 | S51: 26.7241004 | T51: 28.95110876 | U51: 31.17811713 | V51: 33.4051255 | W51: =+IF(地位指数!L$32="","",W$1*K51/$K$42) -> 23.38358785
E52: 11 | F52: 8.990177349 | J52: 50 | K52: 21.94355517 | L52: 11.2513178 | M52: 13.50158136 | N52: 15.75184492 | O52: 18.00210848 | P52: 20.25237204 | Q52: 22.5026356 | R52: 24.75289916 | S52: 27.00316272 | T52: 29.25342628 | U52: 31.50368984 | V52: 33.7539534 | W52: =+IF(地位指数!L$32="","",W$1*K52/$K$42) -> 23.62776738
E53: 12 | F53: 9.502286611 | J53: 51 | K53: 22.16682972 | L53: 11.36579938 | M53: 13.63895926 | N53: 15.91211914 | O53: 18.18527901 | P53: 20.45843889 | Q53: 22.73159877 | R53: 25.00475865 | S53: 27.27791852 | T53: 29.5510784 | U53: 31.82423828 | V53: 34.09739815 | W53: =+IF(地位指数!L$32="","",W$1*K53/$K$42) -> 23.86817871
E54: 13 | F54: 9.99633364 | J54: 52 | K54: 22.38668583 | L54: 11.4785282 | M54: 13.77423384 | N54: 16.06993948 | O54: 18.36564512 | P54: 20.66135076 | Q54: 22.9570564 | R54: 25.25276204 | S54: 27.54846768 | T54: 29.84417332 | U54: 32.13987896 | V54: 34.4355846 | W54: =+IF(地位指数!L$32="","",W$1*K54/$K$42) -> 24.10490922
E55: 14 | F55: 10.47394459 | J55: 53 | K55: 22.60320153 | L55: 11.58954426 | M55: 13.90745311 | N55: 16.22536196 | O55: 18.54327081 | P55: 20.86117966 | Q55: 23.17908851 | R55: 25.49699736 | S55: 27.81490621 | T55: 30.13281506 | U55: 32.45072391 | V55: 34.76863277 | W55: =+IF(地位指数!L$32="","",W$1*K55/$K$42) -> 24.33804294
E56: 15 | F56: 10.93648678 | J56: 54 | K56: 22.8164519 | L56: 11.69888605 | M56: 14.03866326 | N56: 16.37844047 | O56: 18.71821768 | P56: 21.05799489 | Q56: 23.3977721 | R56: 25.7375493 | S56: 28.07732651 | T56: 30.41710372 | U56: 32.75688093 | V56: 35.09665814 | W56: =+IF(地位指数!L$32="","",W$1*K56/$K$42) -> 24.5676607
E57: 16 | F57: 11.38512498 | J57: 55 | K57: 23.02650923 | L57: 11.80659065 | M57: 14.16790878 | N57: 16.5292269 | O57: 18.89054503 | P57: 21.25186316 | Q57: 23.61318129 | R57: 25.97449942 | S57: 28.33581755 | T57: 30.69713568 | U57: 33.05845381 | V57: 35.41977194 | W57: =+IF(地位指数!L$32="","",W$1*K57/$K$42) -> 24.79384036
E58: 17 | F58: 11.82086264 | J58: 56 | K58: 23.2334432 | L58: 11.91269377 | M58: 14.29523253 | N58: 16.67777128 | O58: 19.06031004 | P58: 21.44284879 | Q58: 23.82538755 | R58: 26.2079263 | S58: 28.59046505 | T58: 30.97300381 | U58: 33.35554256 | V58: 35.73808132 | W58: =+IF(地位指数!L$32="","",W$1*K58/$K$42) -> 25.01665692
E59: 18 | F59: 12.24457282 | J59: 57 | K59: 23.43732099 | L59: 12.01722988 | M59: 14.42067585 | N59: 16.82412183 | O59: 19.22756781 | P59: 21.63101378 | Q59: 24.03445976 | R59: 26.43790573 | S59: 28.84135171 | T59: 31.24479768 | U59: 33.64824366 | V59: 36.05168964 | W59: =+IF(地位指数!L$32="","",W$1*K59/$K$42) -> 25.23618274
E60: 19 | F60: 12.65702176 | J60: 58 | K60: 23.63820744 | L60: 12.12023221 | M60: 14.54427865 | N60: 16.96832509 | O60: 19.39237153 | P60: 21.81641798 | Q60: 24.24046442 | R60: 26.66451086 | S60: 29.0885573 | T60: 31.51260374 | U60: 33.93665018 | V60: 36.36069663 | W60: =+IF(地位指数!L$32="","",W$1*K60/$K$42) -> 25.45248764
E61: 20 | F61: 13.05888712 | J61: 59 | K61: 23.83616517 | L61: 12.22173287 | M61: 14.66607944 | N61: 17.11042602 | O61: 19.55477259 | P61: 21.99911916 | Q61: 24.44346574 | R61: 26.88781231 | S61: 29.33215889 | T61: 31.77650546 | U61: 34.22085203 | V61: 36.66519861 | W61: =+IF(地位指数!L$32="","",W$1*K61/$K$42) -> 25.66563903
E62: 21 | F62: 13.4507724 | J62: 60 | K62: 24.03125469 | L62: 12.32176289 | M62: 14.78611546 | N62: 17.25046804 | O62: 19.71482062 | P62: 22.17917319 | Q62: 24.64352577 | R62: 27.10787835 | S62: 29.57223093 | T62: 32.0365835 | U62: 34.50093608 | V62: 36.96528866 | W62: =+IF(地位指数!L$32="","",W$1*K62/$K$42) -> 25.87570206
E63: 22 | F63: 13.83321837 | J63: 61 | K63: 24.22353451 | L63: 12.42035226 | M63: 14.90442271 | N63: 17.38849316 | O63: 19.87256361 | P63: 22.35663406 | Q63: 24.84070451 | R63: 27.32477496 | S63: 29.80884541 | T63: 32.29291587 | U63: 34.77698632 | V63: 37.26105677 | W63: =+IF(地位指数!L$32="","",W$1*K63/$K$42) -> 26.08273974
E64: 23 | F64: 14.20671234 | J64: 62 | K64: 24.41306122 | L64: 12.51753001 | M64: 15.02103601 | N64: 17.52454201 | O64: 20.02804801 | P64: 22.53155401 | Q64: 25.03506001 | R64: 27.53856601 | S64: 30.04207201 | T64: 32.54557802 | U64: 35.04908402 | V64: 37.55259002 | W64: =+IF(地位指数!L$32="","",W$1*K64/$K$42) -> 26.28681301
E65: 24 | F65: 14.57169566 | J65: 63 | K65: 24.59988964 | L65: 12.61332423 | M65: 15.13598908 | N65: 17.65865393 | O65: 20.18131877 | P65: 22.70398362 | Q65: 25.22664847 | R65: 27.74931331 | S65: 30.27197816 | T65: 32.79464301 | U65: 35.31730785 | V65: 37.8399727 | W65: =+IF(地位指数!L$32="","",W$1*K65/$K$42) -> 26.48798089
E66: 25 | F66: 14.92856992 | J66: 64 | K66: 24.78407284 | L66: 12.70776215 | M66: 15.24931458 | N66: 17.79086701 | O66: 20.33241944 | P66: 22.87397187 | Q66: 25.41552431 | R66: 27.95707674 | S66: 30.49862917 | T66: 33.0401816 | U66: 35.58173403 | V66: 38.12328646 | W66: =+IF(地位指数!L$32="","",W$1*K66/$K$42) -> 26.68630052
E67: 26 | F67: 15.27770211 | J67: 65 | K67: 24.96566226 | L67: 12.80087014 | M67: 15.36104417 | N67: 17.9212182 | O67: 20.48139223 | P67: 23.04156625 | Q67: 25.60174028 | R67: 28.16191431 | S67: 30.72208834 | T67: 33.28226237 | U67: 35.8424364 | V67: 38.40261042 | W67: =+IF(地位指数!L$32="","",W$1*K67/$K$42) -> 26.8818273
E68: 27 | F68: 15.61942887 | J68: 66 | K68: 25.14470778 | L68: 12.89267377 | M68: 15.47120853 | N68: 18.04974328 | O68: 20.62827804 | P68: 23.20681279 | Q68: 25.78534755 | R68: 28.3638823 | S68: 30.94241706 | T68: 33.52095181 | U68: 36.09948657 | V68: 38.67802132 | W68: =+IF(地位指数!L$32="","",W$1*K68/$K$42) -> 27.07461493
E69: 28 | F69: 15.95406015 | J69: 67 | K69: 25.3212578 | L69: 12.98319786 | M69: 15.57983744 | N69: 18.17647701 | O69: 20.77311658 | P69: 23.36975615 | Q69: 25.96639573 | R69: 28.5630353 | S69: 31.15967487 | T69: 33.75631444 | U69: 36.35295402 | V69: 38.94959359 | W69: =+IF(地位指数!L$32="","",W$1*K69/$K$42) -> 27.26471551
E70: 29 | F70: 16.28188226 | J70: 68 | K70: 25.49535927 | L70: 13.07246649 | M70: 15.68695979 | N70: 18.30145308 | O70: 20.91594638 | P70: 23.53043968 | Q70: 26.14493298 | R70: 28.75942628 | S70: 31.37391957 | T70: 33.98841287 | U70: 36.60290617 | V70: 39.21739947 | W70: =+IF(地位指数!L$32="","",W$1*K70/$K$42) -> 27.45217963
E71: 30 | F71: 16.60316051 | J71: 69 | K71: 25.66705781 | L71: 13.16050304 | M71: 15.79260364 | N71: 18.42470425 | O71: 21.05680486 | P71: 23.68890546 | Q71: 26.32100607 | R71: 28.95310668 | S71: 31.58520728 | T71: 34.21730789 | U71: 36.8494085 | V71: 39.48150911 | W71: =+IF(地位指数!L$32="","",W$1*K71/$K$42) -> 27.63705637
E72: 31 | F72: 16.91814143 | J72: 70 | K72: 25.83639772 | L72: 13.24733022 | M72: 15.89679626 | N72: 18.54626231 | O72: 21.19572835 | P72: 23.8451944 | Q72: 26.49466044 | R72: 29.14412648 | S72: 31.79359253 | T72: 34.44305857 | U72: 37.09252462 | V72: 39.74199066 | W72: =+IF(地位指数!L$32="","",W$1*K72/$K$42) -> 27.81939346
E73: 32 | F73: 17.22705474 | J73: 71 | K73: 26.00342206 | L73: 13.33297012 | M73: 15.99956415 | N73: 18.66615817 | O73: 21.3327522 | P73: 23.99934622 | Q73: 26.66594025 | R73: 29.33253427 | S73: 31.9991283 | T73: 34.66572232 | U73: 37.33231634 | V73: 39.99891037 | W73: =+IF(地位指数!L$32="","",W$1*K73/$K$42) -> 27.99923726
E74: 33 | F74: 17.53011501 | J74: 72 | K74: 26.1681727 | L74: 13.41744421 | M74: 16.10093305 | N74: 18.7844219 | O74: 21.46791074 | P74: 24.15139958 | Q74: 26.83488842 | R74: 29.51837726 | S74: 32.20186611 | T74: 34.88535495 | U74: 37.56884379 | V74: 40.25233263 | W74: =+IF(地位指数!L$32="","",W$1*K74/$K$42) -> 28.17663284
E75: 34 | F75: 17.82752313 | J75: 73 | K75: 26.33069037 | L75: 13.50077337 | M75: 16.20092804 | N75: 18.90108271 | O75: 21.60123739 | P75: 24.30139206 | Q75: 27.00154673 | R75: 29.70170141 | S75: 32.40185608 | T75: 35.10201075 | U75: 37.80216543 | V75: 40.5023201 | W75: =+IF(地位指数!L$32="","",W$1*K75/$K$42) -> 28.35162407
E76: 35 | F76: 18.11946762 | J76: 74 | K76: 26.49101469 | L76: 13.58297791 | M76: 16.29957349 | N76: 19.01616908 | O76: 21.73276466 | P76: 24.44936024 | Q76: 27.16595582 | R76: 29.8825514 | S76: 32.59914699 | T76: 35.31574257 | U76: 38.03233815 | V76: 40.74893373 | W76: =+IF(地位指数!L$32="","",W$1*K76/$K$42) -> 28.52425361
E77: 36 | F77: 18.40612572 | J77: 75 | K77: 26.64918426 | L77: 13.66407762 | M77: 16.39689315 | N77: 19.12970867 | O77: 21.8625242 | P77: 24.59533972 | Q77: 27.32815525 | R77: 30.06097077 | S77: 32.7937863 | T77: 35.52660182 | U77: 38.25941735 | V77: 40.99223287 | W77: =+IF(地位指数!L$32="","",W$1*K77/$K$42) -> 28.69456301
E78: 37 | F78: 18.68766442 | J78: 76 | K78: 26.80523663 | L78: 13.74409177 | M78: 16.49291012 | N78: 19.24172848 | O78: 21.99054683 | P78: 24.73936518 | Q78: 27.48818354 | R78: 30.23700189 | S78: 32.98582025 | T78: 35.7346386 | U78: 38.48345695 | V78: 41.23227531 | W78: =+IF(地位指数!L$32="","",W$1*K78/$K$42) -> 28.86259272
E79: 38 | F79: 18.96424132 | J79: 77 | K79: 26.95920841 | L79: 13.82303911 | M79: 16.58764694 | N79: 19.35225476 | O79: 22.11686258 | P79: 24.8814704 | Q79: 27.64607823 | R79: 30.41068605 | S79: 33.17529387 | T79: 35.93990169 | U79: 38.70450952 | V79: 41.46911734 | W79: =+IF(地位指数!L$32="","",W$1*K79/$K$42) -> 29.02838214
E80: 39 | F80: 19.23600542 | J80: 78 | K80: 27.11113526 | L80: 13.90093794 | M80: 16.68112553 | N80: 19.46131312 | O80: 22.24150071 | P80: 25.0216883 | Q80: 27.80187589 | R80: 30.58206348 | S80: 33.36225106 | T80: 36.14243865 | U80: 38.92262624 | V80: 41.70281383 | W80: =+IF(地位指数!L$32="","",W$1*K80/$K$42) -> 29.19196968
E81: 40 | F81: 19.50309782 | J81: 79 | K81: 27.26105195 | L81: 13.97780609 | M81: 16.77336731 | N81: 19.56892852 | O81: 22.36448974 | P81: 25.16005096 | Q81: 27.95561218 | R81: 30.75117339 | S81: 33.54673461 | T81: 36.34229583 | U81: 39.13785705 | V81: 41.93341826 | W81: =+IF(地位指数!L$32="","",W$1*K81/$K$42) -> 29.35339278
E82: 41 | F82: 19.76565236 | J82: 80 | K82: 27.40899239 | L82: 14.05366093 | M82: 16.86439312 | N82: 19.6751253 | O82: 22.48585749 | P82: 25.29658968 | Q82: 28.10732186 | R82: 30.91805405 | S82: 33.72878623 | T82: 36.53951842 | U82: 39.35025061 | V82: 42.16098279 | W82: =+IF(地位指数!L$32="","",W$1*K82/$K$42) -> 29.51268796
E83: 42 | F83: 20.02379615 | J83: 81 | K83: 27.55498966 | L83: 14.12851943 | M83: 16.95422332 | N83: 19.7799272 | O83: 22.60563109 | P83: 25.43133498 | Q83: 28.25703886 | R83: 31.08274275 | S83: 33.90844664 | T83: 36.73415052 | U83: 39.55985441 | V83: 42.38555829 | W83: =+IF(地位指数!L$32="","",W$1*K83/$K$42) -> 29.66989081
E84: 43 | F84: 20.27765008 | J84: 82 | K84: 27.69907602 | L84: 14.20239814 | M84: 17.04287776 | N84: 19.88335739 | O84: 22.72383702 | P84: 25.56431665 | Q84: 28.40479627 | R84: 31.2452759 | S84: 34.08575553 | T84: 36.92623515 | U84: 39.76671478 | V84: 42.60719441 | W84: =+IF(地位指数!L$32="","",W$1*K84/$K$42) -> 29.82503609
E85: 44 | F85: 20.52732932 | J85: 83 | K85: 27.84128298 | L85: 14.2753132 | M85: 17.13037584 | N85: 19.98543848 | O85: 22.84050112 | P85: 25.69556376 | Q85: 28.55062639 | R85: 31.40568903 | S85: 34.26075167 | T85: 37.11581431 | U85: 39.97087695 | V85: 42.82593959 | W85: =+IF(地位指数!L$32="","",W$1*K85/$K$42) -> 29.97815771
E86: 45 | F86: 20.77294365 | J86: 84 | K86: 27.98164128 | L86: 14.34728038 | M86: 17.21673646 | N86: 20.08619254 | O86: 22.95564861 | P86: 25.82510469 | Q86: 28.69456077 | R86: 31.56401684 | S86: 34.43347292 | T86: 37.302929 | U86: 40.17238507 | V86: 43.04184115 | W86: =+IF(地位指数!L$32="","",W$1*K86/$K$42) -> 30.12928881
E87: 46 | F87: 21.01459792 | J87: 85 | K87: 28.12018098 | L87: 14.4183151 | M87: 17.30197811 | N87: 20.18564113 | O87: 23.06930415 | P87: 25.95296717 | Q87: 28.83663019 | R87: 31.72029321 | S87: 34.60395623 | T87: 37.48761925 | U87: 40.37128227 | V87: 43.25494529 | W87: =+IF(地位指数!L$32="","",W$1*K87/$K$42) -> 30.2784617
E88: 47 | F88: 21.25239233 | J88: 86 | K88: 28.2569314 | L88: 14.48843238 | M88: 17.38611885 | N88: 20.28380533 | O88: 23.1814918 | P88: 26.07917828 | Q88: 28.97686476 | R88: 31.87455123 | S88: 34.77223771 | T88: 37.66992418 | U88: 40.56761066 | V88: 43.46529713 | W88: =+IF(地位指数!L$32="","",W$1*K88/$K$42) -> 30.42570799
E89: 48 | F89: 21.48642275 | J89: 87 | K89: 28.39192122 | L89: 14.55764693 | M89: 17.46917632 | N89: 20.3807057 | O89: 23.29223509 | P89: 26.20376448 | Q89: 29.11529386 | R89: 32.02682325 | S89: 34.93835263 | T89: 37.84988202 | U89: 40.76141141 | V89: 43.67294079 | W89: =+IF(地位指数!L$32="","",W$1*K89/$K$42) -> 30.57105856
E90: 49 | F90: 21.71678101 | J90: 88 | K90: 28.52517846 | L90: 14.62597312 | M90: 17.55116775 | N90: 20.47636237 | O90: 23.401557 | P90: 26.32675162 | Q90: 29.25194625 | R90: 32.17714087 | S90: 35.1023355 | T90: 38.02753012 | U90: 40.95272475 | V90: 43.87791937 | W90: =+IF(地位指数!L$32="","",W$1*K90/$K$42) -> 30.71454356
E91: 50 | F91: 21.94355517 | J91: 89 | K91: 28.65673052 | L91: 14.693425 | M91: 17.63211 | N91: 20.570795 | O91: 23.50948 | P91: 26.448165 | Q91: 29.38685 | R91: 32.325535 | S91: 35.26422 | T91: 38.202905 | U91: 41.14159 | V91: 44.08027501 | W91: =+IF(地位指数!L$32="","",W$1*K91/$K$42) -> 30.8561925
E92: 51 | F92: 22.16682972 | J92: 90 | K92: 28.78660418 | L92: 14.7600163 | M92: 17.71201956 | N92: 20.66402282 | O92: 23.61602608 | P92: 26.56802934 | Q92: 29.5200326 | R92: 32.47203587 | S92: 35.42403913 | T92: 38.37604239 | U92: 41.32804565 | V92: 44.28004891 | W92: =+IF(地位指数!L$32="","",W$1*K92/$K$42) -> 30.99603423
E93: 52 | F93: 22.38668583 | J93: 91 | K93: 28.91482566 | L93: 14.82576046 | M93: 17.79091255 | N93: 20.75606465 | O93: 23.72121674 | P93: 26.68636883 | Q93: 29.65152092 | R93: 32.61667301 | S93: 35.58182511 | T93: 38.5469772 | U93: 41.51212929 | V93: 44.47728138 | W93: =+IF(地位指数!L$32="","",W$1*K93/$K$42) -> 31.13409697
E94: 53 | F94: 22.60320153 | J94: 92 | K94: 29.04142058 | L94: 14.89067062 | M94: 17.86880475 | N94: 20.84693887 | O94: 23.82507299 | P94: 26.80320712 | Q94: 29.78134124 | R94: 32.75947537 | S94: 35.73760949 | T94: 38.71574362 | U94: 41.69387774 | V94: 44.67201186 | W94: =+IF(地位指数!L$32="","",W$1*K94/$K$42) -> 31.27040831
E95: 54 | F95: 22.8164519 | J95: 93 | K95: 29.16641403 | L95: 14.95475965 | M95: 17.94571158 | N95: 20.93666351 | O95: 23.92761544 | P95: 26.91856736 | Q95: 29.90951929 | R95: 32.90047122 | S95: 35.89142315 | T95: 38.88237508 | U95: 41.87332701 | V95: 44.86427894 | W95: =+IF(地位指数!L$32="","",W$1*K95/$K$42) -> 31.40499526
E96: 55 | F96: 23.02650923 | J96: 94 | K96: 29.28983057 | L96: 15.01804013 | M96: 18.02164815 | N96: 21.02525618 | O96: 24.0288642 | P96: 27.03247223 | Q96: 30.03608025 | R96: 33.03968828 | S96: 36.0432963 | T96: 39.04690433 | U96: 42.05051236 | V96: 45.05412038 | W96: =+IF(地位指数!L$32="","",W$1*K96/$K$42) -> 31.53788427
E97: 56 | F97: 23.2334432 | J97: 95 | K97: 29.41169423 | L97: 15.08052439 | M97: 18.09662926 | N97: 21.11273414 | O97: 24.12883902 | P97: 27.14494389 | Q97: 30.16104877 | R97: 33.17715365 | S97: 36.19325853 | T97: 39.2093634 | U97: 42.22546828 | V97: 45.24157316 | W97: =+IF(地位指数!L$32="","",W$1*K97/$K$42) -> 31.66910121
E98: 57 | F98: 23.43732099 | J98: 96 | K98: 29.53202855 | L98: 15.14222449 | M98: 18.17066939 | N98: 21.19911429 | O98: 24.22755919 | P98: 27.25600408 | Q98: 30.28444898 | R98: 33.31289388 | S98: 36.34133878 | T98: 39.36978368 | U98: 42.39822858 | V98: 45.42667347 | W98: =+IF(地位指数!L$32="","",W$1*K98/$K$42) -> 31.79867143
E99: 58 | F99: 23.63820744 | J99: 97 | K99: 29.65085658 | L99: 15.20315226 | M99: 18.24378272 | N99: 21.28441317 | O99: 24.32504362 | P99: 27.36567407 | Q99: 30.40630453 | R99: 33.44693498 | S99: 36.48756543 | T99: 39.52819588 | U99: 42.56882634 | V99: 45.60945679 | W99: =+IF(地位指数!L$32="","",W$1*K99/$K$42) -> 31.92661975
E100: 59 | F100: 23.83616517 | J100: 98 | K100: 29.7682009 | L100: 15.26331928 | M100: 18.31598313 | N100: 21.36864699 | O100: 24.42131085 | P100: 27.4739747 | Q100: 30.52663856 | R100: 33.57930241 | S100: 36.63196627 | T100: 39.68463013 | U100: 42.73729398 | V100: 45.78995784 | W100: =+IF(地位指数!L$32="","",W$1*K100/$K$42) -> 32.05297049
E101: 60 | F101: 24.03125469 | J101: 99 | K101: 29.88408363 | L101: 15.32273688 | M101: 18.38728426 | N101: 21.45183163 | O101: 24.51637901 | P101: 27.58092639 | Q101: 30.64547376 | R101: 33.71002114 | S101: 36.77456852 | T101: 39.83911589 | U101: 42.90366327 | V101: 45.96821065 | W101: =+IF(地位指数!L$32="","",W$1*K101/$K$42) -> 32.17774745
E102: 61 | F102: 24.22353451 | J102: 100 | K102: 29.99852646 | L102: 15.38141619 | M102: 18.45769943 | N102: 21.53398266 | O102: 24.6102659 | P102: 27.68654914 | Q102: 30.76283238 | R102: 33.83911561 | S102: 36.91539885 | T102: 39.99168209 | U102: 43.06796533 | V102: 46.14424856 | W102: =+IF(地位指数!L$32="","",W$1*K102/$K$42) -> 32.30097399
E103: 62 | F103: 24.41306122
E104: 63 | F104: 24.59988964
E105: 64 | F105: 24.78407284
E106: 65 | F106: 24.96566226
E107: 66 | F107: 25.14470778
E108: 67 | F108: 25.3212578
E109: 68 | F109: 25.49535927
E110: 69 | F110: 25.66705781
E111: 70 | F111: 25.83639772
E112: 71 | F112: 26.00342206
E113: 72 | F113: 26.1681727
E114: 73 | F114: 26.33069037
E115: 74 | F115: 26.49101469
E116: 75 | F116: 26.64918426
E117: 76 | F117: 26.80523663
E118: 77 | F118: 26.95920841
E119: 78 | F119: 27.11113526
E120: 79 | F120: 27.26105195
E121: 80 | F121: 27.40899239
E122: 81 | F122: 27.55498966
E123: 82 | F123: 27.69907602
E124: 83 | F124: 27.84128298
E125: 84 | F125: 27.98164128
E126: 85 | F126: 28.12018098
E127: 86 | F127: 28.2569314
E128: 87 | F128: 28.39192122
E129: 88 | F129: 28.52517846
E130: 89 | F130: 28.65673052
E131: 90 | F131: 28.78660418
E132: 91 | F132: 28.91482566
E133: 92 | F133: 29.04142058
E134: 93 | F134: 29.16641403
E135: 94 | F135: 29.28983057
E136: 95 | F136: 29.41169423
E137: 96 | F137: 29.53202855
E138: 97 | F138: 29.65085658
E139: 98 | F139: 29.7682009
E140: 99 | F140: 29.88408363
E141: 100 | F141: 29.99852646

Sheet 1.収穫を予測する
B1: 立木データ | F1: 林分データ | R1: 地位指数 | T1: =G3 -> 19 | V1: 植栽本数 | X1: =G4 -> 2500 | Y1: 本/ha | AA1: 所有者 | AC1: =+G2 -> 杉 高太郎
B2: 胸高 直径 | C2: あり | F2: 所有者名 | G2: 杉 高太郎 | O2: 収穫予測
B3: 樹高 | C3: あり | F3: 地位指数 | G3: 19 | J3: ※主伐の場合は100を入力 | P3: 主副林木（間伐前） | V3: 主林木（間伐後） | Y3: 副林木(間伐木） | AD3: 総収穫 | AF3: 連年 成長量 | AG3: 年平均成長量
B4: 入力 方法 | C4: 入力方法1 | F4: 植栽本数 | G4: 2500 | H4: 本/ha | J4: 間伐率入力 | P4: 平均 | R4: /ha | U4: 形状比 | V4: /ha | Y4: /ha | AD4: /ha | AF4: /ha | AG4: /ha
B5: 直径階 cm | C5: 2 | F5: 林齢 | G5: 20 | H5: 年 | J5: 林齢 | K5: 本数 間伐率 | M5: 推奨 間伐 | N5: 林齢 | O5: 上層高 | P5: 幹材積 | Q5: 胸高 直径 | R5: 立木 本数 | S5: 幹材積 | T5: 収量 比数 | V5: 立木 本数 | W5: 幹材積 | X5: 収量 比数 | Y5: 立木 本数 | Z5: 本数 比率 | AA5: 幹材積 | AB5: 材積 比率 | AC5: 胸高 直径 | AD5: 副林木 | AE5: 主副 林木 | AF5: 主副 合計 | AG5: 主林木 | AH5: 主副 合計 | AI5: 総収量
F6: 調査面積 | G6: 0.1 | H6: ha | J6: 年 | K6: 全層 | M6: 回 | N6: 年 | O6: m | P6: m3 | Q6: cm | R6: 本 | S6: m3 | U6: % | V6: 本 | W6: m3 | Y6: 本 | Z6: % | AA6: m3 | AB6: % | AC6: cm | AD6: m3 | AE6: m3 | AF6: m3 | AG6: m3 | AH6: m3 | AI6: m3
B7: ※直径の大きい順に入力 | J7: =出力前!J12 -> 20 | M7: =IF(ISERROR(出力前!M12),"",出力前!M12) -> 1 | N7: =IF(J7>100,"",出力前!N12) -> 20 | O7: =IF(J7>100,"",出力前!O12) -> 12.7 | P7: =IF(J7>100,"",IF(ISERROR(出力前!P12),"",IF(AND($C$2="あり",出力前!$AK$14=1),出力前1!Q12,出力前!P12))) -> 0.10 | Q7: =IF(J7>100,"",IF(ISERROR(出力前!Q12),"",IF(AND($C$2="あり",出力前!$AK$14=1),出力前1!R12,出力前!Q12))) -> 13.1 | R7: =IF(J7>100,"",IF(ISERROR(出力前!R12),"",IF(出力前!R12=0,"",IF(AND($C$2="あり",出力前!$AK$14=1),出力前1!S12,出力前!R12)))) -> 2100 | S7: =IF(J7>100,"",IF(ISERROR(出力前!S12),"",IF(出力前!R12=0,"",出力前!S12))) -> 213 | T7: =IF(J7>100,"",IF(ISERROR(出力前!T12),"",IF(AND($C$2="あり",出力前!$AK$14=1),出力前1!U12,出力前!T12))) -> 0.49 | U7: =IF(N7>100,"",100*(0.9127*O7- 1.2251)/Q7) -> 79.1 | V7: =IF(ISERROR(出力前!U12),"",IF(AND($C$2="あり",出力前!$AK$14=1),出力前1!V12,出力前!U12)) ->  | W7: =IF(ISERROR(出力前!V12),"",IF(AND($C$2="あり",出力前!$AK$14=1),出力前1!W12,出力前!V12)) ->  | X7: =IF(ISERROR(出力前!W12),"",IF(AND($C$2="あり",出力前!$AK$14=1),出力前1!X12,出力前!W12)) ->  | Y7: =IF(ISERROR(出力前!X12),"",IF(AND($C$2="あり",出力前!$AK$14=1),出力前1!Y12,出力前!X12)) ->  | Z7: =IF(ISERROR(出力前!Y12),"",IF(AND($C$2="あり",出力前!$AK$14=1),出力前1!Z12,出力前!Y12)) ->  | AA7: =IF(ISERROR(出力前!Z12),"",IF(AND($C$2="あり",出力前!$AK$14=1),出力前1!AA12,出力前!Z12)) ->  | AB7: =IF(ISERROR(出力前!AA12),"",IF(AND($C$2="あり",出力前!$AK$14=1),出力前1!AB12,出力前!AA12)) ->  | AC7: =IF(ISERROR(出力前!AB12),"",IF(AND($C$2="あり",出力前!$AK$14=1),出力前1!AC12,出力前!AB12)) ->  | AD7: =IF(ISERROR(出力前!AC12),"",IF(AND($C$2="あり",出力前!$AK$14=1),出力前1!AD12,出力前!AC12)) ->  | AE7: =IF(J7>100,"",IF(ISERROR(出力前!AD12),"",IF(AND($C$2="あり",出力前!$AK$14=1),出力前1!AE12,出力前!AD12))) -> 213 | AF7: =IF(J7>100,"",IF(ISERROR(出力前!AE12),"",IF(AND($C$2="あり",出力前!$AK$14=1),出力前1!AF12,出力前!AE12))) -> 16.7 | AG7: =IF(ISERROR(出力前!AF12),"",IF(AND($C$2="あり",出力前!$AK$14=1),出力前1!AG12,出力前!AF12)) ->  | AH7: =IF(ISERROR(出力前!AG12),"",IF(AND($C$2="あり",出力前!$AK$14=1),出力前1!AH12,出力前!AG12)) ->  | AI7: =IF(J7>100,"",IF(ISERROR(出力前!AH12),"",IF(AND($C$2="あり",出力前!$AK$14=1),出力前1!AI12,出力前!AH12))) -> 11
B8: 直径と樹高，または直径の | F8: 直径階ごとの本数が | J8: =出力前!J13 -> 21 | M8: =IF(ISERROR(出力前!M13),"",出力前!M13) ->  | N8: =IF(J8>100,"",出力前!N13) -> 21 | O8: =IF(J8>100,"",出力前!O13) -> 13.1 | P8: =IF(J8>100,"",IF(ISERROR(出力前!P13),"",IF(AND($C$2="あり",出力前!$AK$14=1),出力前1!Q13,出力前!P13))) -> 0.11 | Q8: =IF(J8>100,"",IF(ISERROR(出力前!Q13),"",IF(AND($C$2="あり",出力前!$AK$14=1),出力前1!R13,出力前!Q13))) -> 13.6 | R8: =IF(J8>100,"",IF(ISERROR(出力前!R13),"",IF(出力前!R13=0,"",IF(AND($C$2="あり",出力前!$AK$14=1),出力前1!S13,出力前!R13)))) -> 2082 | S8: =IF(J8>100,"",IF(ISERROR(出力前!S13),"",IF(出力前!R13=0,"",出力前!S13))) -> 229 | T8: =IF(J8>100,"",IF(ISERROR(出力前!T13),"",IF(AND($C$2="あり",出力前!$AK$14=1),出力前1!U13,出力前!T13))) -> 0.51 | U8: =IF(N8>100,"",100*(0.9127*O8- 1.2251)/Q8) -> 79.1 | V8: =IF(ISERROR(出力前!U13),"",IF(AND($C$2="あり",出力前!$AK$14=1),出力前1!V13,出力前!U13)) ->  | W8: =IF(ISERROR(出力前!V13),"",IF(AND($C$2="あり",出力前!$AK$14=1),出力前1!W13,出力前!V13)) ->  | X8: =IF(ISERROR(出力前!W13),"",IF(AND($C$2="あり",出力前!$AK$14=1),出力前1!X13,出力前!W13)) ->  | Y8: =IF(ISERROR(出力前!X13),"",IF(AND($C$2="あり",出力前!$AK$14=1),出力前1!Y13,出力前!X13)) ->  | Z8: =IF(ISERROR(出力前!Y13),"",IF(AND($C$2="あり",出力前!$AK$14=1),出力前1!Z13,出力前!Y13)) ->  | AA8: =IF(ISERROR(出力前!Z13),"",IF(AND($C$2="あり",出力前!$AK$14=1),出力前1!AA13,出力前!Z13)) ->  | AB8: =IF(ISERROR(出力前!AA13),"",IF(AND($C$2="あり",出力前!$AK$14=1),出力前1!AB13,出力前!AA13)) ->  | AC8: =IF(ISERROR(出力前!AB13),"",IF(AND($C$2="あり",出力前!$AK$14=1),出力前1!AC13,出力前!AB13)) ->  | AD8: =IF(ISERROR(出力前!AC13),"",IF(AND($C$2="あり",出力前!$AK$14=1),出力前1!AD13,出力前!AC13)) ->  | AE8: =IF(J8>100,"",IF(ISERROR(出力前!AD13),"",IF(AND($C$2="あり",出力前!$AK$14=1),出力前1!AE13,出力前!AD13))) -> 229 | AF8: =IF(J8>100,"",IF(ISERROR(出力前!AE13),"",IF(AND($C$2="あり",出力前!$AK$14=1),出力前1!AF13,出力前!AE13))) -> 16.6 | AG8: =IF(ISERROR(出力前!AF13),"",IF(AND($C$2="あり",出力前!$AK$14=1),出力前1!AG13,出力前!AF13)) ->  | AH8: =IF(ISERROR(出力前!AG13),"",IF(AND($C$2="あり",出力前!$AK$14=1),出力前1!AH13,出力前!AG13)) ->  | AI8: =IF(J8>100,"",IF(ISERROR(出力前!AH13),"",IF(AND($C$2="あり",出力前!$AK$14=1),出力前1!AI13,出力前!AH13))) -> 11
B9: データがあるとき | F9: わかっているとき | J9: =出力前!J14 -> 22 | M9: =IF(ISERROR(出力前!M14),"",出力前!M14) ->  | N9: =IF(J9>100,"",出力前!N14) -> 22 | O9: =IF(J9>100,"",出力前!O14) -> 13.5 | P9: =IF(J9>100,"",IF(ISERROR(出力前!P14),"",IF(AND($C$2="あり",出力前!$AK$14=1),出力前1!Q14,出力前!P14))) -> 0.12 | Q9: =IF(J9>100,"",IF(ISERROR(出力前!Q14),"",IF(AND($C$2="あり",出力前!$AK$14=1),出力前1!R14,出力前!Q14))) -> 14.0 | R9: =IF(J9>100,"",IF(ISERROR(出力前!R14),"",IF(出力前!R14=0,"",IF(AND($C$2="あり",出力前!$AK$14=1),出力前1!S14,出力前!R14)))) -> 2064 | S9: =IF(J9>100,"",IF(ISERROR(出力前!S14),"",IF(出力前!R14=0,"",出力前!S14))) -> 246 | T9: =IF(J9>100,"",IF(ISERROR(出力前!T14),"",IF(AND($C$2="あり",出力前!$AK$14=1),出力前1!U14,出力前!T14))) -> 0.53 | U9: 79.1 | V9: =IF(ISERROR(出力前!U14),"",IF(AND($C$2="あり",出力前!$AK$14=1),出力前1!V14,出力前!U14)) ->  | W9: =IF(ISERROR(出力前!V14),"",IF(AND($C$2="あり",出力前!$AK$14=1),出力前1!W14,出力前!V14)) ->  | X9: =IF(ISERROR(出力前!W14),"",IF(AND($C$2="あり",出力前!$AK$14=1),出力前1!X14,出力前!W14)) ->  | Y9: =IF(ISERROR(出力前!X14),"",IF(AND($C$2="あり",出力前!$AK$14=1),出力前1!Y14,出力前!X14)) ->  | Z9: =IF(ISERROR(出力前!Y14),"",IF(AND($C$2="あり",出力前!$AK$14=1),出力前1!Z14,出力前!Y14)) ->  | AA9: =IF(ISERROR(出力前!Z14),"",IF(AND($C$2="あり",出力前!$AK$14=1),出力前1!AA14,出力前!Z14)) ->  | AB9: =IF(ISERROR(出力前!AA14),"",IF(AND($C$2="あり",出力前!$AK$14=1),出力前1!AB14,出力前!AA14)) ->  | AC9: =IF(ISERROR(出力前!AB14),"",IF(AND($C$2="あり",出力前!$AK$14=1),出力前1!AC14,出力前!AB14)) ->  | AD9: =IF(ISERROR(出力前!AC14),"",IF(AND($C$2="あり",出力前!$AK$14=1),出力前1!AD14,出力前!AC14)) ->  | AE9: =IF(J9>100,"",IF(ISERROR(出力前!AD14),"",IF(AND($C$2="あり",出力前!$AK$14=1),出力前1!AE14,出力前!AD14))) -> 246 | AF9: =IF(J9>100,"",IF(ISERROR(出力前!AE14),"",IF(AND($C$2="あり",出力前!$AK$14=1),出力前1!AF14,出力前!AE14))) -> 16.5 | AG9: =IF(ISERROR(出力前!AF14),"",IF(AND($C$2="あり",出力前!$AK$14=1),出力前1!AG14,出力前!AF14)) ->  | AH9: =IF(ISERROR(出力前!AG14),"",IF(AND($C$2="あり",出力前!$AK$14=1),出力前1!AH14,出力前!AG14)) ->  | AI9: =IF(J9>100,"",IF(ISERROR(出力前!AH14),"",IF(AND($C$2="あり",出力前!$AK$14=1),出力前1!AI14,出力前!AH14))) -> 11
B10: 入力方法1 | F10: 入力方法2 | J10: =出力前!J15 -> 23 | M10: =IF(ISERROR(出力前!M15),"",出力前!M15) ->  | N10: =IF(J10>100,"",出力前!N15) -> 23 | O10: =IF(J10>100,"",出力前!O15) -> 13.8 | P10: =IF(J10>100,"",IF(ISERROR(出力前!P15),"",IF(AND($C$2="あり",出力前!$AK$14=1),出力前1!Q15,出力前!P15))) -> 0.13 | Q10: =IF(J10>100,"",IF(ISERROR(出力前!Q15),"",IF(AND($C$2="あり",出力前!$AK$14=1),出力前1!R15,出力前!Q15))) -> 14.4 | R10: =IF(J10>100,"",IF(ISERROR(出力前!R15),"",IF(出力前!R15=0,"",IF(AND($C$2="あり",出力前!$AK$14=1),出力前1!S15,出力前!R15)))) -> 2046 | S10: =IF(J10>100,"",IF(ISERROR(出力前!S15),"",IF(出力前!R15=0,"",出力前!S15))) -> 262 | T10: =IF(J10>100,"",IF(ISERROR(出力前!T15),"",IF(AND($C$2="あり",出力前!$AK$14=1),出力前1!U15,出力前!T15))) -> 0.55 | U10: 79.2 | V10: =IF(ISERROR(出力前!U15),"",IF(AND($C$2="あり",出力前!$AK$14=1),出力前1!V15,出力前!U15)) ->  | W10: =IF(ISERROR(出力前!V15),"",IF(AND($C$2="あり",出力前!$AK$14=1),出力前1!W15,出力前!V15)) ->  | X10: =IF(ISERROR(出力前!W15),"",IF(AND($C$2="あり",出力前!$AK$14=1),出力前1!X15,出力前!W15)) ->  | Y10: =IF(ISERROR(出力前!X15),"",IF(AND($C$2="あり",出力前!$AK$14=1),出力前1!Y15,出力前!X15)) ->  | Z10: =IF(ISERROR(出力前!Y15),"",IF(AND($C$2="あり",出力前!$AK$14=1),出力前1!Z15,出力前!Y15)) ->  | AA10: =IF(ISERROR(出力前!Z15),"",IF(AND($C$2="あり",出力前!$AK$14=1),出力前1!AA15,出力前!Z15)) ->  | AB10: =IF(ISERROR(出力前!AA15),"",IF(AND($C$2="あり",出力前!$AK$14=1),出力前1!AB15,出力前!AA15)) ->  | AC10: =IF(ISERROR(出力前!AB15),"",IF(AND($C$2="あり",出力前!$AK$14=1),出力前1!AC15,出力前!AB15)) ->  | AD10: =IF(ISERROR(出力前!AC15),"",IF(AND($C$2="あり",出力前!$AK$14=1),出力前1!AD15,出力前!AC15)) ->  | AE10: =IF(J10>100,"",IF(ISERROR(出力前!AD15),"",IF(AND($C$2="あり",出力前!$AK$14=1),出力前1!AE15,出力前!AD15))) -> 262 | AF10: =IF(J10>100,"",IF(ISERROR(出力前!AE15),"",IF(AND($C$2="あり",出力前!$AK$14=1),出力前1!AF15,出力前!AE15))) -> 16.3 | AG10: =IF(ISERROR(出力前!AF15),"",IF(AND($C$2="あり",出力前!$AK$14=1),出力前1!AG15,出力前!AF15)) ->  | AH10: =IF(ISERROR(出力前!AG15),"",IF(AND($C$2="あり",出力前!$AK$14=1),出力前1!AH15,出力前!AG15)) ->  | AI10: =IF(J10>100,"",IF(ISERROR(出力前!AH15),"",IF(AND($C$2="あり",出力前!$AK$14=1),出力前1!AI15,出力前!AH15))) -> 11
B11: 立木 | C11: 胸高直径 | D11: 樹高 | F11: 胸高直径階 | H11: 立木 | J11: =出力前!J16 -> 24 | M11: =IF(ISERROR(出力前!M16),"",出力前!M16) ->  | N11: =IF(J11>100,"",出力前!N16) -> 24 | O11: =IF(J11>100,"",出力前!O16) -> 14.2 | P11: =IF(J11>100,"",IF(ISERROR(出力前!P16),"",IF(AND($C$2="あり",出力前!$AK$14=1),出力前1!Q16,出力前!P16))) -> 0.14 | Q11: =IF(J11>100,"",IF(ISERROR(出力前!Q16),"",IF(AND($C$2="あり",出力前!$AK$14=1),出力前1!R16,出力前!Q16))) -> 14.8 | R11: =IF(J11>100,"",IF(ISERROR(出力前!R16),"",IF(出力前!R16=0,"",IF(AND($C$2="あり",出力前!$AK$14=1),出力前1!S16,出力前!R16)))) -> 2029 | S11: =IF(J11>100,"",IF(ISERROR(出力前!S16),"",IF(出力前!R16=0,"",出力前!S16))) -> 279 | T11: =IF(J11>100,"",IF(ISERROR(出力前!T16),"",IF(AND($C$2="あり",出力前!$AK$14=1),出力前1!U16,出力前!T16))) -> 0.57 | U11: 79.3 | V11: =IF(ISERROR(出力前!U16),"",IF(AND($C$2="あり",出力前!$AK$14=1),出力前1!V16,出力前!U16)) ->  | W11: =IF(ISERROR(出力前!V16),"",IF(AND($C$2="あり",出力前!$AK$14=1),出力前1!W16,出力前!V16)) ->  | X11: =IF(ISERROR(出力前!W16),"",IF(AND($C$2="あり",出力前!$AK$14=1),出力前1!X16,出力前!W16)) ->  | Y11: =IF(ISERROR(出力前!X16),"",IF(AND($C$2="あり",出力前!$AK$14=1),出力前1!Y16,出力前!X16)) ->  | Z11: =IF(ISERROR(出力前!Y16),"",IF(AND($C$2="あり",出力前!$AK$14=1),出力前1!Z16,出力前!Y16)) ->  | AA11: =IF(ISERROR(出力前!Z16),"",IF(AND($C$2="あり",出力前!$AK$14=1),出力前1!AA16,出力前!Z16)) ->  | AB11: =IF(ISERROR(出力前!AA16),"",IF(AND($C$2="あり",出力前!$AK$14=1),出力前1!AB16,出力前!AA16)) ->  | AC11: =IF(ISERROR(出力前!AB16),"",IF(AND($C$2="あり",出力前!$AK$14=1),出力前1!AC16,出力前!AB16)) ->  | AD11: =IF(ISERROR(出力前!AC16),"",IF(AND($C$2="あり",出力前!$AK$14=1),出力前1!AD16,出力前!AC16)) ->  | AE11: =IF(J11>100,"",IF(ISERROR(出力前!AD16),"",IF(AND($C$2="あり",出力前!$AK$14=1),出力前1!AE16,出力前!AD16))) -> 279 | AF11: =IF(J11>100,"",IF(ISERROR(出力前!AE16),"",IF(AND($C$2="あり",出力前!$AK$14=1),出力前1!AF16,出力前!AE16))) -> 16.1 | AG11: =IF(ISERROR(出力前!AF16),"",IF(AND($C$2="あり",出力前!$AK$14=1),出力前1!AG16,出力前!AF16)) ->  | AH11: =IF(ISERROR(出力前!AG16),"",IF(AND($C$2="あり",出力前!$AK$14=1),出力前1!AH16,出力前!AG16)) ->  | AI11: =IF(J11>100,"",IF(ISERROR(出力前!AH16),"",IF(AND($C$2="あり",出力前!$AK$14=1),出力前1!AI16,出力前!AH16))) -> 12
B12: No. | C12: cm | D12: m | F12: cm以上 | G12: cm未満 | H12: 本数 | J12: =出力前!J17 -> 25 | M12: =IF(ISERROR(出力前!M17),"",出力前!M17) ->  | N12: =IF(J12>100,"",出力前!N17) -> 25 | O12: =IF(J12>100,"",出力前!O17) -> 14.5 | P12: =IF(J12>100,"",IF(ISERROR(出力前!P17),"",IF(AND($C$2="あり",出力前!$AK$14=1),出力前1!Q17,出力前!P17))) -> 0.15 | Q12: =IF(J12>100,"",IF(ISERROR(出力前!Q17),"",IF(AND($C$2="あり",出力前!$AK$14=1),出力前1!R17,出力前!Q17))) -> 15.2 | R12: =IF(J12>100,"",IF(ISERROR(出力前!R17),"",IF(出力前!R17=0,"",IF(AND($C$2="あり",出力前!$AK$14=1),出力前1!S17,出力前!R17)))) -> 2012 | S12: =IF(J12>100,"",IF(ISERROR(出力前!S17),"",IF(出力前!R17=0,"",出力前!S17))) -> 295 | T12: =IF(J12>100,"",IF(ISERROR(出力前!T17),"",IF(AND($C$2="あり",出力前!$AK$14=1),出力前1!U17,出力前!T17))) -> 0.59 | U12: 79.3 | V12: =IF(ISERROR(出力前!U17),"",IF(AND($C$2="あり",出力前!$AK$14=1),出力前1!V17,出力前!U17)) ->  | W12: =IF(ISERROR(出力前!V17),"",IF(AND($C$2="あり",出力前!$AK$14=1),出力前1!W17,出力前!V17)) ->  | X12: =IF(ISERROR(出力前!W17),"",IF(AND($C$2="あり",出力前!$AK$14=1),出力前1!X17,出力前!W17)) ->  | Y12: =IF(ISERROR(出力前!X17),"",IF(AND($C$2="あり",出力前!$AK$14=1),出力前1!Y17,出力前!X17)) ->  | Z12: =IF(ISERROR(出力前!Y17),"",IF(AND($C$2="あり",出力前!$AK$14=1),出力前1!Z17,出力前!Y17)) ->  | AA12: =IF(ISERROR(出力前!Z17),"",IF(AND($C$2="あり",出力前!$AK$14=1),出力前1!AA17,出力前!Z17)) ->  | AB12: =IF(ISERROR(出力前!AA17),"",IF(AND($C$2="あり",出力前!$AK$14=1),出力前1!AB17,出力前!AA17)) ->  | AC12: =IF(ISERROR(出力前!AB17),"",IF(AND($C$2="あり",出力前!$AK$14=1),出力前1!AC17,出力前!AB17)) ->  | AD12: =IF(ISERROR(出力前!AC17),"",IF(AND($C$2="あり",出力前!$AK$14=1),出力前1!AD17,出力前!AC17)) ->  | AE12: =IF(J12>100,"",IF(ISERROR(出力前!AD17),"",IF(AND($C$2="あり",出力前!$AK$14=1),出力前1!AE17,出力前!AD17))) -> 295 | AF12: =IF(J12>100,"",IF(ISERROR(出力前!AE17),"",IF(AND($C$2="あり",出力前!$AK$14=1),出力前1!AF17,出力前!AE17))) -> 15.9 | AG12: =IF(ISERROR(出力前!AF17),"",IF(AND($C$2="あり",出力前!$AK$14=1),出力前1!AG17,出力前!AF17)) ->  | AH12: =IF(ISERROR(出力前!AG17),"",IF(AND($C$2="あり",出力前!$AK$14=1),出力前1!AH17,出力前!AG17)) ->  | AI12: =IF(J12>100,"",IF(ISERROR(出力前!AH17),"",IF(AND($C$2="あり",出力前!$AK$14=1),出力前1!AI17,出力前!AH17))) -> 12
B13: 1 | C13: 21.6 | D13: 14.5 | F13: 0 | G13: =F13+$C$5 -> 2 | J13: =出力前!J18 -> 26 | M13: =IF(ISERROR(出力前!M18),"",出力前!M18) ->  | N13: =IF(J13>100,"",出力前!N18) -> 26 | O13: =IF(J13>100,"",出力前!O18) -> 14.9 | P13: =IF(J13>100,"",IF(ISERROR(出力前!P18),"",IF(AND($C$2="あり",出力前!$AK$14=1),出力前1!Q18,出力前!P18))) -> 0.16 | Q13: =IF(J13>100,"",IF(ISERROR(出力前!Q18),"",IF(AND($C$2="あり",出力前!$AK$14=1),出力前1!R18,出力前!Q18))) -> 15.6 | R13: =IF(J13>100,"",IF(ISERROR(出力前!R18),"",IF(出力前!R18=0,"",IF(AND($C$2="あり",出力前!$AK$14=1),出力前1!S18,出力前!R18)))) -> 1995 | S13: =IF(J13>100,"",IF(ISERROR(出力前!S18),"",IF(出力前!R18=0,"",出力前!S18))) -> 311 | T13: =IF(J13>100,"",IF(ISERROR(出力前!T18),"",IF(AND($C$2="あり",出力前!$AK$14=1),出力前1!U18,出力前!T18))) -> 0.60 | U13: 79.4 | V13: =IF(ISERROR(出力前!U18),"",IF(AND($C$2="あり",出力前!$AK$14=1),出力前1!V18,出力前!U18)) ->  | W13: =IF(ISERROR(出力前!V18),"",IF(AND($C$2="あり",出力前!$AK$14=1),出力前1!W18,出力前!V18)) ->  | X13: =IF(ISERROR(出力前!W18),"",IF(AND($C$2="あり",出力前!$AK$14=1),出力前1!X18,出力前!W18)) ->  | Y13: =IF(ISERROR(出力前!X18),"",IF(AND($C$2="あり",出力前!$AK$14=1),出力前1!Y18,出力前!X18)) ->  | Z13: =IF(ISERROR(出力前!Y18),"",IF(AND($C$2="あり",出力前!$AK$14=1),出力前1!Z18,出力前!Y18)) ->  | AA13: =IF(ISERROR(出力前!Z18),"",IF(AND($C$2="あり",出力前!$AK$14=1),出力前1!AA18,出力前!Z18)) ->  | AB13: =IF(ISERROR(出力前!AA18),"",IF(AND($C$2="あり",出力前!$AK$14=1),出力前1!AB18,出力前!AA18)) ->  | AC13: =IF(ISERROR(出力前!AB18),"",IF(AND($C$2="あり",出力前!$AK$14=1),出力前1!AC18,出力前!AB18)) ->  | AD13: =IF(ISERROR(出力前!AC18),"",IF(AND($C$2="あり",出力前!$AK$14=1),出力前1!AD18,出力前!AC18)) ->  | AE13: =IF(J13>100,"",IF(ISERROR(出力前!AD18),"",IF(AND($C$2="あり",出力前!$AK$14=1),出力前1!AE18,出力前!AD18))) -> 311 | AF13: =IF(J13>100,"",IF(ISERROR(出力前!AE18),"",IF(AND($C$2="あり",出力前!$AK$14=1),出力前1!AF18,出力前!AE18))) -> 15.7 | AG13: =IF(ISERROR(出力前!AF18),"",IF(AND($C$2="あり",出力前!$AK$14=1),出力前1!AG18,出力前!AF18)) ->  | AH13: =IF(ISERROR(出力前!AG18),"",IF(AND($C$2="あり",出力前!$AK$14=1),出力前1!AH18,出力前!AG18)) ->  | AI13: =IF(J13>100,"",IF(ISERROR(出力前!AH18),"",IF(AND($C$2="あり",出力前!$AK$14=1),出力前1!AI18,出力前!AH18))) -> 12
B14: 2 | C14: 18.8 | D14: 14.6 | F14: =G13 -> 2 | G14: 4 | H14: 2 | J14: =出力前!J19 -> 27 | M14: =IF(ISERROR(出力前!M19),"",出力前!M19) -> 2 | N14: =IF(J14>100,"",出力前!N19) -> 27 | O14: =IF(J14>100,"",出力前!O19) -> 15.2 | P14: =IF(J14>100,"",IF(ISERROR(出力前!P19),"",IF(AND($C$2="あり",出力前!$AK$14=1),出力前1!Q19,出力前!P19))) -> 0.17 | Q14: =IF(J14>100,"",IF(ISERROR(出力前!Q19),"",IF(AND($C$2="あり",出力前!$AK$14=1),出力前1!R19,出力前!Q19))) -> 15.9 | R14: =IF(J14>100,"",IF(ISERROR(出力前!R19),"",IF(出力前!R19=0,"",IF(AND($C$2="あり",出力前!$AK$14=1),出力前1!S19,出力前!R19)))) -> 1978 | S14: =IF(J14>100,"",IF(ISERROR(出力前!S19),"",IF(出力前!R19=0,"",出力前!S19))) -> 326 | T14: =IF(J14>100,"",IF(ISERROR(出力前!T19),"",IF(AND($C$2="あり",出力前!$AK$14=1),出力前1!U19,出力前!T19))) -> 0.62 | U14: 79.5 | V14: =IF(ISERROR(出力前!U19),"",IF(AND($C$2="あり",出力前!$AK$14=1),出力前1!V19,出力前!U19)) ->  | W14: =IF(ISERROR(出力前!V19),"",IF(AND($C$2="あり",出力前!$AK$14=1),出力前1!W19,出力前!V19)) ->  | X14: =IF(ISERROR(出力前!W19),"",IF(AND($C$2="あり",出力前!$AK$14=1),出力前1!X19,出力前!W19)) ->  | Y14: =IF(ISERROR(出力前!X19),"",IF(AND($C$2="あり",出力前!$AK$14=1),出力前1!Y19,出力前!X19)) ->  | Z14: =IF(ISERROR(出力前!Y19),"",IF(AND($C$2="あり",出力前!$AK$14=1),出力前1!Z19,出力前!Y19)) ->  | AA14: =IF(ISERROR(出力前!Z19),"",IF(AND($C$2="あり",出力前!$AK$14=1),出力前1!AA19,出力前!Z19)) ->  | AB14: =IF(ISERROR(出力前!AA19),"",IF(AND($C$2="あり",出力前!$AK$14=1),出力前1!AB19,出力前!AA19)) ->  | AC14: =IF(ISERROR(出力前!AB19),"",IF(AND($C$2="あり",出力前!$AK$14=1),出力前1!AC19,出力前!AB19)) ->  | AD14: =IF(ISERROR(出力前!AC19),"",IF(AND($C$2="あり",出力前!$AK$14=1),出力前1!AD19,出力前!AC19)) ->  | AE14: =IF(J14>100,"",IF(ISERROR(出力前!AD19),"",IF(AND($C$2="あり",出力前!$AK$14=1),出力前1!AE19,出力前!AD19))) -> 326 | AF14: =IF(J14>100,"",IF(ISERROR(出力前!AE19),"",IF(AND($C$2="あり",出力前!$AK$14=1),出力前1!AF19,出力前!AE19))) -> 15.5 | AG14: =IF(ISERROR(出力前!AF19),"",IF(AND($C$2="あり",出力前!$AK$14=1),出力前1!AG19,出力前!AF19)) ->  | AH14: =IF(ISERROR(出力前!AG19),"",IF(AND($C$2="あり",出力前!$AK$14=1),出力前1!AH19,出力前!AG19)) ->  | AI14: =IF(J14>100,"",IF(ISERROR(出力前!AH19),"",IF(AND($C$2="あり",出力前!$AK$14=1),出力前1!AI19,出力前!AH19))) -> 12
B15: 3 | C15: 18.5 | D15: 14 | F15: =G14 -> 4 | G15: 6 | H15: 41 | J15: =出力前!J20 -> 28 | M15: =IF(ISERROR(出力前!M20),"",出力前!M20) ->  | N15: =IF(J15>100,"",出力前!N20) -> 28 | O15: =IF(J15>100,"",出力前!O20) -> 15.5 | P15: =IF(J15>100,"",IF(ISERROR(出力前!P20),"",IF(AND($C$2="あり",出力前!$AK$14=1),出力前1!Q20,出力前!P20))) -> 0.17 | Q15: =IF(J15>100,"",IF(ISERROR(出力前!Q20),"",IF(AND($C$2="あり",出力前!$AK$14=1),出力前1!R20,出力前!Q20))) -> 16.3 | R15: =IF(J15>100,"",IF(ISERROR(出力前!R20),"",IF(出力前!R20=0,"",IF(AND($C$2="あり",出力前!$AK$14=1),出力前1!S20,出力前!R20)))) -> 1961 | S15: =IF(J15>100,"",IF(ISERROR(出力前!S20),"",IF(出力前!R20=0,"",出力前!S20))) -> 342 | T15: =IF(J15>100,"",IF(ISERROR(出力前!T20),"",IF(AND($C$2="あり",出力前!$AK$14=1),出力前1!U20,出力前!T20))) -> 0.63 | U15: 79.6 | V15: =IF(ISERROR(出力前!U20),"",IF(AND($C$2="あり",出力前!$AK$14=1),出力前1!V20,出力前!U20)) ->  | W15: =IF(ISERROR(出力前!V20),"",IF(AND($C$2="あり",出力前!$AK$14=1),出力前1!W20,出力前!V20)) ->  | X15: =IF(ISERROR(出力前!W20),"",IF(AND($C$2="あり",出力前!$AK$14=1),出力前1!X20,出力前!W20)) ->  | Y15: =IF(ISERROR(出力前!X20),"",IF(AND($C$2="あり",出力前!$AK$14=1),出力前1!Y20,出力前!X20)) ->  | Z15: =IF(ISERROR(出力前!Y20),"",IF(AND($C$2="あり",出力前!$AK$14=1),出力前1!Z20,出力前!Y20)) ->  | AA15: =IF(ISERROR(出力前!Z20),"",IF(AND($C$2="あり",出力前!$AK$14=1),出力前1!AA20,出力前!Z20)) ->  | AB15: =IF(ISERROR(出力前!AA20),"",IF(AND($C$2="あり",出力前!$AK$14=1),出力前1!AB20,出力前!AA20)) ->  | AC15: =IF(ISERROR(出力前!AB20),"",IF(AND($C$2="あり",出力前!$AK$14=1),出力前1!AC20,出力前!AB20)) ->  | AD15: =IF(ISERROR(出力前!AC20),"",IF(AND($C$2="あり",出力前!$AK$14=1),出力前1!AD20,出力前!AC20)) ->  | AE15: =IF(J15>100,"",IF(ISERROR(出力前!AD20),"",IF(AND($C$2="あり",出力前!$AK$14=1),出力前1!AE20,出力前!AD20))) -> 342 | AF15: =IF(J15>100,"",IF(ISERROR(出力前!AE20),"",IF(AND($C$2="あり",出力前!$AK$14=1),出力前1!AF20,出力前!AE20))) -> 15.3 | AG15: =IF(ISERROR(出力前!AF20),"",IF(AND($C$2="あり",出力前!$AK$14=1),出力前1!AG20,出力前!AF20)) ->  | AH15: =IF(ISERROR(出力前!AG20),"",IF(AND($C$2="あり",出力前!$AK$14=1),出力前1!AH20,出力前!AG20)) ->  | AI15: =IF(J15>100,"",IF(ISERROR(出力前!AH20),"",IF(AND($C$2="あり",出力前!$AK$14=1),出力前1!AI20,出力前!AH20))) -> 12
B16: 4 | C16: 18.3 | D16: 14.6 | F16: 6 | G16: 8 | H16: 59 | J16: =出力前!J21 -> 29 | M16: =IF(ISERROR(出力前!M21),"",出力前!M21) ->  | N16: =IF(J16>100,"",出力前!N21) -> 29 | O16: =IF(J16>100,"",出力前!O21) -> 15.9 | P16: =IF(J16>100,"",IF(ISERROR(出力前!P21),"",IF(AND($C$2="あり",出力前!$AK$14=1),出力前1!Q21,出力前!P21))) -> 0.18 | Q16: =IF(J16>100,"",IF(ISERROR(出力前!Q21),"",IF(AND($C$2="あり",出力前!$AK$14=1),出力前1!R21,出力前!Q21))) -> 16.6 | R16: =IF(J16>100,"",IF(ISERROR(出力前!R21),"",IF(出力前!R21=0,"",IF(AND($C$2="あり",出力前!$AK$14=1),出力前1!S21,出力前!R21)))) -> 1945 | S16: =IF(J16>100,"",IF(ISERROR(出力前!S21),"",IF(出力前!R21=0,"",出力前!S21))) -> 357 | T16: =IF(J16>100,"",IF(ISERROR(出力前!T21),"",IF(AND($C$2="あり",出力前!$AK$14=1),出力前1!U21,出力前!T21))) -> 0.65 | U16: 79.8 | V16: =IF(ISERROR(出力前!U21),"",IF(AND($C$2="あり",出力前!$AK$14=1),出力前1!V21,出力前!U21)) ->  | W16: =IF(ISERROR(出力前!V21),"",IF(AND($C$2="あり",出力前!$AK$14=1),出力前1!W21,出力前!V21)) ->  | X16: =IF(ISERROR(出力前!W21),"",IF(AND($C$2="あり",出力前!$AK$14=1),出力前1!X21,出力前!W21)) ->  | Y16: =IF(ISERROR(出力前!X21),"",IF(AND($C$2="あり",出力前!$AK$14=1),出力前1!Y21,出力前!X21)) ->  | Z16: =IF(ISERROR(出力前!Y21),"",IF(AND($C$2="あり",出力前!$AK$14=1),出力前1!Z21,出力前!Y21)) ->  | AA16: =IF(ISERROR(出力前!Z21),"",IF(AND($C$2="あり",出力前!$AK$14=1),出力前1!AA21,出力前!Z21)) ->  | AB16: =IF(ISERROR(出力前!AA21),"",IF(AND($C$2="あり",出力前!$AK$14=1),出力前1!AB21,出力前!AA21)) ->  | AC16: =IF(ISERROR(出力前!AB21),"",IF(AND($C$2="あり",出力前!$AK$14=1),出力前1!AC21,出力前!AB21)) ->  | AD16: =IF(ISERROR(出力前!AC21),"",IF(AND($C$2="あり",出力前!$AK$14=1),出力前1!AD21,出力前!AC21)) ->  | AE16: =IF(J16>100,"",IF(ISERROR(出力前!AD21),"",IF(AND($C$2="あり",出力前!$AK$14=1),出力前1!AE21,出力前!AD21))) -> 357 | AF16: =IF(J16>100,"",IF(ISERROR(出力前!AE21),"",IF(AND($C$2="あり",出力前!$AK$14=1),出力前1!AF21,出力前!AE21))) -> 15.0 | AG16: =IF(ISERROR(出力前!AF21),"",IF(AND($C$2="あり",出力前!$AK$14=1),出力前1!AG21,出力前!AF21)) ->  | AH16: =IF(ISERROR(出力前!AG21),"",IF(AND($C$2="あり",出力前!$AK$14=1),出力前1!AH21,出力前!AG21)) ->  | AI16: =IF(J16>100,"",IF(ISERROR(出力前!AH21),"",IF(AND($C$2="あり",出力前!$AK$14=1),出力前1!AI21,出力前!AH21))) -> 12
B17: 5 | C17: 18.1 | D17: 14.5 | F17: 8 | G17: 10 | H17: 64 | J17: =出力前!J22 -> 30 | K17: 30 | M17: =IF(ISERROR(出力前!M22),"",出力前!M22) ->  | N17: =IF(J17>100,"",出力前!N22) -> 30 | O17: =IF(J17>100,"",出力前!O22) -> 16.2 | P17: =IF(J17>100,"",IF(ISERROR(出力前!P22),"",IF(AND($C$2="あり",出力前!$AK$14=1),出力前1!Q22,出力前!P22))) -> 0.19 | Q17: =IF(J17>100,"",IF(ISERROR(出力前!Q22),"",IF(AND($C$2="あり",出力前!$AK$14=1),出力前1!R22,出力前!Q22))) -> 16.9 | R17: =IF(J17>100,"",IF(ISERROR(出力前!R22),"",IF(出力前!R22=0,"",IF(AND($C$2="あり",出力前!$AK$14=1),出力前1!S22,出力前!R22)))) -> 1929 | S17: =IF(J17>100,"",IF(ISERROR(出力前!S22),"",IF(出力前!R22=0,"",出力前!S22))) -> 372 | T17: =IF(J17>100,"",IF(ISERROR(出力前!T22),"",IF(AND($C$2="あり",出力前!$AK$14=1),出力前1!U22,出力前!T22))) -> 0.66 | U17: 79.9 | V17: =IF(ISERROR(出力前!U22),"",IF(AND($C$2="あり",出力前!$AK$14=1),出力前1!V22,出力前!U22)) -> 1350 | W17: =IF(ISERROR(出力前!V22),"",IF(AND($C$2="あり",出力前!$AK$14=1),出力前1!W22,出力前!V22)) -> 260 | X17: =IF(ISERROR(出力前!W22),"",IF(AND($C$2="あり",出力前!$AK$14=1),出力前1!X22,出力前!W22)) -> 0.49 | Y17: =IF(ISERROR(出力前!X22),"",IF(AND($C$2="あり",出力前!$AK$14=1),出力前1!Y22,出力前!X22)) -> 579 | Z17: =IF(ISERROR(出力前!Y22),"",IF(AND($C$2="あり",出力前!$AK$14=1),出力前1!Z22,出力前!Y22)) -> 30 | AA17: =IF(ISERROR(出力前!Z22),"",IF(AND($C$2="あり",出力前!$AK$14=1),出力前1!AA22,出力前!Z22)) -> 112 | AB17: =IF(ISERROR(出力前!AA22),"",IF(AND($C$2="あり",出力前!$AK$14=1),出力前1!AB22,出力前!AA22)) -> 30 | AC17: =IF(ISERROR(出力前!AB22),"",IF(AND($C$2="あり",出力前!$AK$14=1),出力前1!AC22,出力前!AB22)) -> 16.9 | AD17: =IF(ISERROR(出力前!AC22),"",IF(AND($C$2="あり",出力前!$AK$14=1),出力前1!AD22,出力前!AC22)) -> 112 | AE17: =IF(J17>100,"",IF(ISERROR(出力前!AD22),"",IF(AND($C$2="あり",出力前!$AK$14=1),出力前1!AE22,出力前!AD22))) -> 372 | AF17: =IF(J17>100,"",IF(ISERROR(出力前!AE22),"",IF(AND($C$2="あり",出力前!$AK$14=1),出力前1!AF22,出力前!AE22))) -> 14.8 | AG17: =IF(ISERROR(出力前!AF22),"",IF(AND($C$2="あり",出力前!$AK$14=1),出力前1!AG22,出力前!AF22)) -> 9 | AH17: =IF(ISERROR(出力前!AG22),"",IF(AND($C$2="あり",出力前!$AK$14=1),出力前1!AH22,出力前!AG22)) -> 12 | AI17: =IF(J17>100,"",IF(ISERROR(出力前!AH22),"",IF(AND($C$2="あり",出力前!$AK$14=1),出力前1!AI22,出力前!AH22))) -> 12
B18: 6 | C18: 18 | D18: 14 | F18: 10 | G18: 12 | H18: 50 | J18: =出力前!J23 -> 31 | M18: =IF(ISERROR(出力前!M23),"",出力前!M23) ->  | N18: =IF(J18>100,"",出力前!N23) -> 31 | O18: =IF(J18>100,"",出力前!O23) -> 16.5 | P18: =IF(J18>100,"",IF(ISERROR(出力前!P23),"",IF(AND($C$2="あり",出力前!$AK$14=1),出力前1!Q23,出力前!P23))) -> 0.20 | Q18: =IF(J18>100,"",IF(ISERROR(出力前!Q23),"",IF(AND($C$2="あり",出力前!$AK$14=1),出力前1!R23,出力前!Q23))) -> 17.3 | R18: =IF(J18>100,"",IF(ISERROR(出力前!R23),"",IF(出力前!R23=0,"",IF(AND($C$2="あり",出力前!$AK$14=1),出力前1!S23,出力前!R23)))) -> 1350 | S18: =IF(J18>100,"",IF(ISERROR(出力前!S23),"",IF(出力前!R23=0,"",出力前!S23))) -> 275 | T18: =IF(J18>100,"",IF(ISERROR(出力前!T23),"",IF(AND($C$2="あり",出力前!$AK$14=1),出力前1!U23,出力前!T23))) -> 0.51 | U18: 79.9 | V18: =IF(ISERROR(出力前!U23),"",IF(AND($C$2="あり",出力前!$AK$14=1),出力前1!V23,出力前!U23)) ->  | W18: =IF(ISERROR(出力前!V23),"",IF(AND($C$2="あり",出力前!$AK$14=1),出力前1!W23,出力前!V23)) ->  | X18: =IF(ISERROR(出力前!W23),"",IF(AND($C$2="あり",出力前!$AK$14=1),出力前1!X23,出力前!W23)) ->  | Y18: =IF(ISERROR(出力前!X23),"",IF(AND($C$2="あり",出力前!$AK$14=1),出力前1!Y23,出力前!X23)) ->  | Z18: =IF(ISERROR(出力前!Y23),"",IF(AND($C$2="あり",出力前!$AK$14=1),出力前1!Z23,出力前!Y23)) ->  | AA18: =IF(ISERROR(出力前!Z23),"",IF(AND($C$2="あり",出力前!$AK$14=1),出力前1!AA23,出力前!Z23)) ->  | AB18: =IF(ISERROR(出力前!AA23),"",IF(AND($C$2="あり",出力前!$AK$14=1),出力前1!AB23,出力前!AA23)) ->  | AC18: =IF(ISERROR(出力前!AB23),"",IF(AND($C$2="あり",出力前!$AK$14=1),出力前1!AC23,出力前!AB23)) ->  | AD18: =IF(ISERROR(出力前!AC23),"",IF(AND($C$2="あり",出力前!$AK$14=1),出力前1!AD23,出力前!AC23)) ->  | AE18: =IF(J18>100,"",IF(ISERROR(出力前!AD23),"",IF(AND($C$2="あり",出力前!$AK$14=1),出力前1!AE23,出力前!AD23))) -> 387 | AF18: =IF(J18>100,"",IF(ISERROR(出力前!AE23),"",IF(AND($C$2="あり",出力前!$AK$14=1),出力前1!AF23,出力前!AE23))) -> 14.6 | AG18: =IF(ISERROR(出力前!AF23),"",IF(AND($C$2="あり",出力前!$AK$14=1),出力前1!AG23,出力前!AF23)) ->  | AH18: =IF(ISERROR(出力前!AG23),"",IF(AND($C$2="あり",出力前!$AK$14=1),出力前1!AH23,出力前!AG23)) ->  | AI18: =IF(J18>100,"",IF(ISERROR(出力前!AH23),"",IF(AND($C$2="あり",出力前!$AK$14=1),出力前1!AI23,出力前!AH23))) -> 12
B19: 7 | C19: 17.9 | D19: 15 | F19: 12 | G19: 14 | H19: 21 | J19: =出力前!J24 -> 32 | M19: =IF(ISERROR(出力前!M24),"",出力前!M24) ->  | N19: =IF(J19>100,"",出力前!N24) -> 32 | O19: =IF(J19>100,"",出力前!O24) -> 16.8 | P19: =IF(J19>100,"",IF(ISERROR(出力前!P24),"",IF(AND($C$2="あり",出力前!$AK$14=1),出力前1!Q24,出力前!P24))) -> 0.22 | Q19: =IF(J19>100,"",IF(ISERROR(出力前!Q24),"",IF(AND($C$2="あり",出力前!$AK$14=1),出力前1!R24,出力前!Q24))) -> 17.7 | R19: =IF(J19>100,"",IF(ISERROR(出力前!R24),"",IF(出力前!R24=0,"",IF(AND($C$2="あり",出力前!$AK$14=1),出力前1!S24,出力前!R24)))) -> 1339 | S19: =IF(J19>100,"",IF(ISERROR(出力前!S24),"",IF(出力前!R24=0,"",出力前!S24))) -> 290 | T19: =IF(J19>100,"",IF(ISERROR(出力前!T24),"",IF(AND($C$2="あり",出力前!$AK$14=1),出力前1!U24,出力前!T24))) -> 0.53 | U19: 79.5 | V19: =IF(ISERROR(出力前!U24),"",IF(AND($C$2="あり",出力前!$AK$14=1),出力前1!V24,出力前!U24)) ->  | W19: =IF(ISERROR(出力前!V24),"",IF(AND($C$2="あり",出力前!$AK$14=1),出力前1!W24,出力前!V24)) ->  | X19: =IF(ISERROR(出力前!W24),"",IF(AND($C$2="あり",出力前!$AK$14=1),出力前1!X24,出力前!W24)) ->  | Y19: =IF(ISERROR(出力前!X24),"",IF(AND($C$2="あり",出力前!$AK$14=1),出力前1!Y24,出力前!X24)) ->  | Z19: =IF(ISERROR(出力前!Y24),"",IF(AND($C$2="あり",出力前!$AK$14=1),出力前1!Z24,出力前!Y24)) ->  | AA19: =IF(ISERROR(出力前!Z24),"",IF(AND($C$2="あり",出力前!$AK$14=1),出力前1!AA24,出力前!Z24)) ->  | AB19: =IF(ISERROR(出力前!AA24),"",IF(AND($C$2="あり",出力前!$AK$14=1),出力前1!AB24,出力前!AA24)) ->  | AC19: =IF(ISERROR(出力前!AB24),"",IF(AND($C$2="あり",出力前!$AK$14=1),出力前1!AC24,出力前!AB24)) ->  | AD19: =IF(ISERROR(出力前!AC24),"",IF(AND($C$2="あり",出力前!$AK$14=1),出力前1!AD24,出力前!AC24)) ->  | AE19: =IF(J19>100,"",IF(ISERROR(出力前!AD24),"",IF(AND($C$2="あり",出力前!$AK$14=1),出力前1!AE24,出力前!AD24))) -> 401 | AF19: =IF(J19>100,"",IF(ISERROR(出力前!AE24),"",IF(AND($C$2="あり",出力前!$AK$14=1),出力前1!AF24,出力前!AE24))) -> 14.3 | AG19: =IF(ISERROR(出力前!AF24),"",IF(AND($C$2="あり",出力前!$AK$14=1),出力前1!AG24,出力前!AF24)) ->  | AH19: =IF(ISERROR(出力前!AG24),"",IF(AND($C$2="あり",出力前!$AK$14=1),出力前1!AH24,出力前!AG24)) ->  | AI19: =IF(J19>100,"",IF(ISERROR(出力前!AH24),"",IF(AND($C$2="あり",出力前!$AK$14=1),出力前1!AI24,出力前!AH24))) -> 13
B20: 8 | C20: 17.9 | D20: 12.5 | F20: 14 | G20: 16 | H20: 16 | J20: =出力前!J25 -> 33 | M20: =IF(ISERROR(出力前!M25),"",出力前!M25) ->  | N20: =IF(J20>100,"",出力前!N25) -> 33 | O20: =IF(J20>100,"",出力前!O25) -> 17.1 | P20: =IF(J20>100,"",IF(ISERROR(出力前!P25),"",IF(AND($C$2="あり",出力前!$AK$14=1),出力前1!Q25,出力前!P25))) -> 0.23 | Q20: =IF(J20>100,"",IF(ISERROR(出力前!Q25),"",IF(AND($C$2="あり",出力前!$AK$14=1),出力前1!R25,出力前!Q25))) -> 18.1 | R20: =IF(J20>100,"",IF(ISERROR(出力前!R25),"",IF(出力前!R25=0,"",IF(AND($C$2="あり",出力前!$AK$14=1),出力前1!S25,出力前!R25)))) -> 1328 | S20: =IF(J20>100,"",IF(ISERROR(出力前!S25),"",IF(出力前!R25=0,"",出力前!S25))) -> 304 | T20: =IF(J20>100,"",IF(ISERROR(出力前!T25),"",IF(AND($C$2="あり",出力前!$AK$14=1),出力前1!U25,出力前!T25))) -> 0.54 | U20: 79.2 | V20: =IF(ISERROR(出力前!U25),"",IF(AND($C$2="あり",出力前!$AK$14=1),出力前1!V25,出力前!U25)) ->  | W20: =IF(ISERROR(出力前!V25),"",IF(AND($C$2="あり",出力前!$AK$14=1),出力前1!W25,出力前!V25)) ->  | X20: =IF(ISERROR(出力前!W25),"",IF(AND($C$2="あり",出力前!$AK$14=1),出力前1!X25,出力前!W25)) ->  | Y20: =IF(ISERROR(出力前!X25),"",IF(AND($C$2="あり",出力前!$AK$14=1),出力前1!Y25,出力前!X25)) ->  | Z20: =IF(ISERROR(出力前!Y25),"",IF(AND($C$2="あり",出力前!$AK$14=1),出力前1!Z25,出力前!Y25)) ->  | AA20: =IF(ISERROR(出力前!Z25),"",IF(AND($C$2="あり",出力前!$AK$14=1),出力前1!AA25,出力前!Z25)) ->  | AB20: =IF(ISERROR(出力前!AA25),"",IF(AND($C$2="あり",出力前!$AK$14=1),出力前1!AB25,出力前!AA25)) ->  | AC20: =IF(ISERROR(出力前!AB25),"",IF(AND($C$2="あり",出力前!$AK$14=1),出力前1!AC25,出力前!AB25)) ->  | AD20: =IF(ISERROR(出力前!AC25),"",IF(AND($C$2="あり",出力前!$AK$14=1),出力前1!AD25,出力前!AC25)) ->  | AE20: =IF(J20>100,"",IF(ISERROR(出力前!AD25),"",IF(AND($C$2="あり",出力前!$AK$14=1),出力前1!AE25,出力前!AD25))) -> 416 | AF20: =IF(J20>100,"",IF(ISERROR(出力前!AE25),"",IF(AND($C$2="あり",出力前!$AK$14=1),出力前1!AF25,出力前!AE25))) -> 14.1 | AG20: =IF(ISERROR(出力前!AF25),"",IF(AND($C$2="あり",出力前!$AK$14=1),出力前1!AG25,出力前!AF25)) ->  | AH20: =IF(ISERROR(出力前!AG25),"",IF(AND($C$2="あり",出力前!$AK$14=1),出力前1!AH25,出力前!AG25)) ->  | AI20: =IF(J20>100,"",IF(ISERROR(出力前!AH25),"",IF(AND($C$2="あり",出力前!$AK$14=1),出力前1!AI25,出力前!AH25))) -> 13
B21: 9 | C21: 17.8 | D21: 13.8 | F21: 16 | G21: 18 | J21: =出力前!J26 -> 34 | M21: =IF(ISERROR(出力前!M26),"",出力前!M26) ->  | N21: =IF(J21>100,"",出力前!N26) -> 34 | O21: =IF(J21>100,"",出力前!O26) -> 17.4 | P21: =IF(J21>100,"",IF(ISERROR(出力前!P26),"",IF(AND($C$2="あり",出力前!$AK$14=1),出力前1!Q26,出力前!P26))) -> 0.24 | Q21: =IF(J21>100,"",IF(ISERROR(出力前!Q26),"",IF(AND($C$2="あり",出力前!$AK$14=1),出力前1!R26,出力前!Q26))) -> 18.5 | R21: =IF(J21>100,"",IF(ISERROR(出力前!R26),"",IF(出力前!R26=0,"",IF(AND($C$2="あり",出力前!$AK$14=1),出力前1!S26,出力前!R26)))) -> 1318 | S21: =IF(J21>100,"",IF(ISERROR(出力前!S26),"",IF(出力前!R26=0,"",出力前!S26))) -> 318 | T21: =IF(J21>100,"",IF(ISERROR(出力前!T26),"",IF(AND($C$2="あり",出力前!$AK$14=1),出力前1!U26,出力前!T26))) -> 0.55 | U21: 78.9 | V21: =IF(ISERROR(出力前!U26),"",IF(AND($C$2="あり",出力前!$AK$14=1),出力前1!V26,出力前!U26)) ->  | W21: =IF(ISERROR(出力前!V26),"",IF(AND($C$2="あり",出力前!$AK$14=1),出力前1!W26,出力前!V26)) ->  | X21: =IF(ISERROR(出力前!W26),"",IF(AND($C$2="あり",出力前!$AK$14=1),出力前1!X26,出力前!W26)) ->  | Y21: =IF(ISERROR(出力前!X26),"",IF(AND($C$2="あり",出力前!$AK$14=1),出力前1!Y26,出力前!X26)) ->  | Z21: =IF(ISERROR(出力前!Y26),"",IF(AND($C$2="あり",出力前!$AK$14=1),出力前1!Z26,出力前!Y26)) ->  | AA21: =IF(ISERROR(出力前!Z26),"",IF(AND($C$2="あり",出力前!$AK$14=1),出力前1!AA26,出力前!Z26)) ->  | AB21: =IF(ISERROR(出力前!AA26),"",IF(AND($C$2="あり",出力前!$AK$14=1),出力前1!AB26,出力前!AA26)) ->  | AC21: =IF(ISERROR(出力前!AB26),"",IF(AND($C$2="あり",出力前!$AK$14=1),出力前1!AC26,出力前!AB26)) ->  | AD21: =IF(ISERROR(出力前!AC26),"",IF(AND($C$2="あり",出力前!$AK$14=1),出力前1!AD26,出力前!AC26)) ->  | AE21: =IF(J21>100,"",IF(ISERROR(出力前!AD26),"",IF(AND($C$2="あり",出力前!$AK$14=1),出力前1!AE26,出力前!AD26))) -> 430 | AF21: =IF(J21>100,"",IF(ISERROR(出力前!AE26),"",IF(AND($C$2="あり",出力前!$AK$14=1),出力前1!AF26,出力前!AE26))) -> 13.9 | AG21: =IF(ISERROR(出力前!AF26),"",IF(AND($C$2="あり",出力前!$AK$14=1),出力前1!AG26,出力前!AF26)) ->  | AH21: =IF(ISERROR(出力前!AG26),"",IF(AND($C$2="あり",出力前!$AK$14=1),出力前1!AH26,出力前!AG26)) ->  | AI21: =IF(J21>100,"",IF(ISERROR(出力前!AH26),"",IF(AND($C$2="あり",出力前!$AK$14=1),出力前1!AI26,出力前!AH26))) -> 13
B22: 10 | C22: 17.7 | D22: 14.3 | F22: 18 | G22: 20 | J22: =出力前!J27 -> 35 | M22: =IF(ISERROR(出力前!M27),"",出力前!M27) ->  | N22: =IF(J22>100,"",出力前!N27) -> 35 | O22: =IF(J22>100,"",出力前!O27) -> 17.7 | P22: =IF(J22>100,"",IF(ISERROR(出力前!P27),"",IF(AND($C$2="あり",出力前!$AK$14=1),出力前1!Q27,出力前!P27))) -> 0.25 | Q22: =IF(J22>100,"",IF(ISERROR(出力前!Q27),"",IF(AND($C$2="あり",出力前!$AK$14=1),出力前1!R27,出力前!Q27))) -> 18.9 | R22: =IF(J22>100,"",IF(ISERROR(出力前!R27),"",IF(出力前!R27=0,"",IF(AND($C$2="あり",出力前!$AK$14=1),出力前1!S27,出力前!R27)))) -> 1307 | S22: =IF(J22>100,"",IF(ISERROR(出力前!S27),"",IF(出力前!R27=0,"",出力前!S27))) -> 332 | T22: =IF(J22>100,"",IF(ISERROR(出力前!T27),"",IF(AND($C$2="あり",出力前!$AK$14=1),出力前1!U27,出力前!T27))) -> 0.57 | U22: =IF(N22>100,"",100*(0.9127*O22- 1.2251)/Q22) -> 78.7 | V22: =IF(ISERROR(出力前!U27),"",IF(AND($C$2="あり",出力前!$AK$14=1),出力前1!V27,出力前!U27)) ->  | W22: =IF(ISERROR(出力前!V27),"",IF(AND($C$2="あり",出力前!$AK$14=1),出力前1!W27,出力前!V27)) ->  | X22: =IF(ISERROR(出力前!W27),"",IF(AND($C$2="あり",出力前!$AK$14=1),出力前1!X27,出力前!W27)) ->  | Y22: =IF(ISERROR(出力前!X27),"",IF(AND($C$2="あり",出力前!$AK$14=1),出力前1!Y27,出力前!X27)) ->  | Z22: =IF(ISERROR(出力前!Y27),"",IF(AND($C$2="あり",出力前!$AK$14=1),出力前1!Z27,出力前!Y27)) ->  | AA22: =IF(ISERROR(出力前!Z27),"",IF(AND($C$2="あり",出力前!$AK$14=1),出力前1!AA27,出力前!Z27)) ->  | AB22: =IF(ISERROR(出力前!AA27),"",IF(AND($C$2="あり",出力前!$AK$14=1),出力前1!AB27,出力前!AA27)) ->  | AC22: =IF(ISERROR(出力前!AB27),"",IF(AND($C$2="あり",出力前!$AK$14=1),出力前1!AC27,出力前!AB27)) ->  | AD22: =IF(ISERROR(出力前!AC27),"",IF(AND($C$2="あり",出力前!$AK$14=1),出力前1!AD27,出力前!AC27)) ->  | AE22: =IF(J22>100,"",IF(ISERROR(出力前!AD27),"",IF(AND($C$2="あり",出力前!$AK$14=1),出力前1!AE27,出力前!AD27))) -> 444 | AF22: =IF(J22>100,"",IF(ISERROR(出力前!AE27),"",IF(AND($C$2="あり",出力前!$AK$14=1),出力前1!AF27,出力前!AE27))) -> 13.7 | AG22: =IF(ISERROR(出力前!AF27),"",IF(AND($C$2="あり",出力前!$AK$14=1),出力前1!AG27,出力前!AF27)) ->  | AH22: =IF(ISERROR(出力前!AG27),"",IF(AND($C$2="あり",出力前!$AK$14=1),出力前1!AH27,出力前!AG27)) ->  | AI22: =IF(J22>100,"",IF(ISERROR(出力前!AH27),"",IF(AND($C$2="あり",出力前!$AK$14=1),出力前1!AI27,出力前!AH27))) -> 13
B23: 11 | C23: 17.7 | D23: 14 | F23: 20 | G23: 22 | J23: =出力前!J28 -> 36 | K23: 30 | M23: =IF(ISERROR(出力前!M28),"",出力前!M28) ->  | N23: =IF(J23>100,"",出力前!N28) -> 36 | O23: =IF(J23>100,"",出力前!O28) -> 17.9 | P23: =IF(J23>100,"",IF(ISERROR(出力前!P28),"",IF(AND($C$2="あり",出力前!$AK$14=1),出力前1!Q28,出力前!P28))) -> 0.27 | Q23: =IF(J23>100,"",IF(ISERROR(出力前!Q28),"",IF(AND($C$2="あり",出力前!$AK$14=1),出力前1!R28,出力前!Q28))) -> 19.3 | R23: =IF(J23>100,"",IF(ISERROR(出力前!R28),"",IF(出力前!R28=0,"",IF(AND($C$2="あり",出力前!$AK$14=1),出力前1!S28,出力前!R28)))) -> 1297 | S23: =IF(J23>100,"",IF(ISERROR(出力前!S28),"",IF(出力前!R28=0,"",出力前!S28))) -> 346 | T23: =IF(J23>100,"",IF(ISERROR(出力前!T28),"",IF(AND($C$2="あり",出力前!$AK$14=1),出力前1!U28,出力前!T28))) -> 0.58 | U23: 78.5 | V23: =IF(ISERROR(出力前!U28),"",IF(AND($C$2="あり",出力前!$AK$14=1),出力前1!V28,出力前!U28)) -> 908 | W23: =IF(ISERROR(出力前!V28),"",IF(AND($C$2="あり",出力前!$AK$14=1),出力前1!W28,出力前!V28)) -> 242 | X23: =IF(ISERROR(出力前!W28),"",IF(AND($C$2="あり",出力前!$AK$14=1),出力前1!X28,出力前!W28)) -> 0.42 | Y23: =IF(ISERROR(出力前!X28),"",IF(AND($C$2="あり",出力前!$AK$14=1),出力前1!Y28,出力前!X28)) -> 389 | Z23: =IF(ISERROR(出力前!Y28),"",IF(AND($C$2="あり",出力前!$AK$14=1),出力前1!Z28,出力前!Y28)) -> 30 | AA23: =IF(ISERROR(出力前!Z28),"",IF(AND($C$2="あり",出力前!$AK$14=1),出力前1!AA28,出力前!Z28)) -> 104 | AB23: =IF(ISERROR(出力前!AA28),"",IF(AND($C$2="あり",出力前!$AK$14=1),出力前1!AB28,出力前!AA28)) -> 30 | AC23: =IF(ISERROR(出力前!AB28),"",IF(AND($C$2="あり",出力前!$AK$14=1),出力前1!AC28,出力前!AB28)) -> 19.3 | AD23: =IF(ISERROR(出力前!AC28),"",IF(AND($C$2="あり",出力前!$AK$14=1),出力前1!AD28,出力前!AC28)) -> 215 | AE23: =IF(J23>100,"",IF(ISERROR(出力前!AD28),"",IF(AND($C$2="あり",出力前!$AK$14=1),出力前1!AE28,出力前!AD28))) -> 457 | AF23: =IF(J23>100,"",IF(ISERROR(出力前!AE28),"",IF(AND($C$2="あり",出力前!$AK$14=1),出力前1!AF28,出力前!AE28))) -> 13.4 | AG23: =IF(ISERROR(出力前!AF28),"",IF(AND($C$2="あり",出力前!$AK$14=1),出力前1!AG28,出力前!AF28)) -> 7 | AH23: =IF(ISERROR(出力前!AG28),"",IF(AND($C$2="あり",出力前!$AK$14=1),出力前1!AH28,出力前!AG28)) -> 10 | AI23: =IF(J23>100,"",IF(ISERROR(出力前!AH28),"",IF(AND($C$2="あり",出力前!$AK$14=1),出力前1!AI28,出力前!AH28))) -> 13
B24: 12 | C24: 17.6 | D24: 14.5 | F24: 22 | G24: 24 | J24: =出力前!J29 -> 37 | M24: =IF(ISERROR(出力前!M29),"",出力前!M29) -> 3 | N24: =IF(J24>100,"",出力前!N29) -> 37 | O24: =IF(J24>100,"",出力前!O29) -> 18.2 | P24: =IF(J24>100,"",IF(ISERROR(出力前!P29),"",IF(AND($C$2="あり",出力前!$AK$14=1),出力前1!Q29,出力前!P29))) -> 0.28 | Q24: =IF(J24>100,"",IF(ISERROR(出力前!Q29),"",IF(AND($C$2="あり",出力前!$AK$14=1),出力前1!R29,出力前!Q29))) -> 19.7 | R24: =IF(J24>100,"",IF(ISERROR(出力前!R29),"",IF(出力前!R29=0,"",IF(AND($C$2="あり",出力前!$AK$14=1),出力前1!S29,出力前!R29)))) -> 908 | S24: =IF(J24>100,"",IF(ISERROR(出力前!S29),"",IF(出力前!R29=0,"",出力前!S29))) -> 256 | T24: =IF(J24>100,"",IF(ISERROR(出力前!T29),"",IF(AND($C$2="あり",出力前!$AK$14=1),出力前1!U29,出力前!T29))) -> 0.44 | U24: 78.2 | V24: =IF(ISERROR(出力前!U29),"",IF(AND($C$2="あり",出力前!$AK$14=1),出力前1!V29,出力前!U29)) ->  | W24: =IF(ISERROR(出力前!V29),"",IF(AND($C$2="あり",出力前!$AK$14=1),出力前1!W29,出力前!V29)) ->  | X24: =IF(ISERROR(出力前!W29),"",IF(AND($C$2="あり",出力前!$AK$14=1),出力前1!X29,出力前!W29)) ->  | Y24: =IF(ISERROR(出力前!X29),"",IF(AND($C$2="あり",出力前!$AK$14=1),出力前1!Y29,出力前!X29)) ->  | Z24: =IF(ISERROR(出力前!Y29),"",IF(AND($C$2="あり",出力前!$AK$14=1),出力前1!Z29,出力前!Y29)) ->  | AA24: =IF(ISERROR(出力前!Z29),"",IF(AND($C$2="あり",出力前!$AK$14=1),出力前1!AA29,出力前!Z29)) ->  | AB24: =IF(ISERROR(出力前!AA29),"",IF(AND($C$2="あり",出力前!$AK$14=1),出力前1!AB29,出力前!AA29)) ->  | AC24: =IF(ISERROR(出力前!AB29),"",IF(AND($C$2="あり",出力前!$AK$14=1),出力前1!AC29,出力前!AB29)) ->  | AD24: =IF(ISERROR(出力前!AC29),"",IF(AND($C$2="あり",出力前!$AK$14=1),出力前1!AD29,出力前!AC29)) ->  | AE24: =IF(J24>100,"",IF(ISERROR(出力前!AD29),"",IF(AND($C$2="あり",出力前!$AK$14=1),出力前1!AE29,出力前!AD29))) -> 471 | AF24: =IF(J24>100,"",IF(ISERROR(出力前!AE29),"",IF(AND($C$2="あり",出力前!$AK$14=1),出力前1!AF29,出力前!AE29))) -> 13.2 | AG24: =IF(ISERROR(出力前!AF29),"",IF(AND($C$2="あり",出力前!$AK$14=1),出力前1!AG29,出力前!AF29)) ->  | AH24: =IF(ISERROR(出力前!AG29),"",IF(AND($C$2="あり",出力前!$AK$14=1),出力前1!AH29,出力前!AG29)) ->  | AI24: =IF(J24>100,"",IF(ISERROR(出力前!AH29),"",IF(AND($C$2="あり",出力前!$AK$14=1),出力前1!AI29,出力前!AH29))) -> 13
B25: 13 | C25: 17.6 | D25: 14 | F25: 24 | G25: 26 | J25: =出力前!J30 -> 38 | M25: =IF(ISERROR(出力前!M30),"",出力前!M30) ->  | N25: =IF(J25>100,"",出力前!N30) -> 38 | O25: =IF(J25>100,"",出力前!O30) -> 18.5 | P25: =IF(J25>100,"",IF(ISERROR(出力前!P30),"",IF(AND($C$2="あり",出力前!$AK$14=1),出力前1!Q30,出力前!P30))) -> 0.30 | Q25: =IF(J25>100,"",IF(ISERROR(出力前!Q30),"",IF(AND($C$2="あり",出力前!$AK$14=1),出力前1!R30,出力前!Q30))) -> 20.1 | R25: =IF(J25>100,"",IF(ISERROR(出力前!R30),"",IF(出力前!R30=0,"",IF(AND($C$2="あり",出力前!$AK$14=1),出力前1!S30,出力前!R30)))) -> 901 | S25: =IF(J25>100,"",IF(ISERROR(出力前!S30),"",IF(出力前!R30=0,"",出力前!S30))) -> 269 | T25: =IF(J25>100,"",IF(ISERROR(出力前!T30),"",IF(AND($C$2="あり",出力前!$AK$14=1),出力前1!U30,出力前!T30))) -> 0.45 | U25: 77.6 | V25: =IF(ISERROR(出力前!U30),"",IF(AND($C$2="あり",出力前!$AK$14=1),出力前1!V30,出力前!U30)) ->  | W25: =IF(ISERROR(出力前!V30),"",IF(AND($C$2="あり",出力前!$AK$14=1),出力前1!W30,出力前!V30)) ->  | X25: =IF(ISERROR(出力前!W30),"",IF(AND($C$2="あり",出力前!$AK$14=1),出力前1!X30,出力前!W30)) ->  | Y25: =IF(ISERROR(出力前!X30),"",IF(AND($C$2="あり",出力前!$AK$14=1),出力前1!Y30,出力前!X30)) ->  | Z25: =IF(ISERROR(出力前!Y30),"",IF(AND($C$2="あり",出力前!$AK$14=1),出力前1!Z30,出力前!Y30)) ->  | AA25: =IF(ISERROR(出力前!Z30),"",IF(AND($C$2="あり",出力前!$AK$14=1),出力前1!AA30,出力前!Z30)) ->  | AB25: =IF(ISERROR(出力前!AA30),"",IF(AND($C$2="あり",出力前!$AK$14=1),出力前1!AB30,出力前!AA30)) ->  | AC25: =IF(ISERROR(出力前!AB30),"",IF(AND($C$2="あり",出力前!$AK$14=1),出力前1!AC30,出力前!AB30)) ->  | AD25: =IF(ISERROR(出力前!AC30),"",IF(AND($C$2="あり",出力前!$AK$14=1),出力前1!AD30,出力前!AC30)) ->  | AE25: =IF(J25>100,"",IF(ISERROR(出力前!AD30),"",IF(AND($C$2="あり",出力前!$AK$14=1),出力前1!AE30,出力前!AD30))) -> 484 | AF25: =IF(J25>100,"",IF(ISERROR(出力前!AE30),"",IF(AND($C$2="あり",出力前!$AK$14=1),出力前1!AF30,出力前!AE30))) -> 13.0 | AG25: =IF(ISERROR(出力前!AF30),"",IF(AND($C$2="あり",出力前!$AK$14=1),出力前1!AG30,出力前!AF30)) ->  | AH25: =IF(ISERROR(出力前!AG30),"",IF(AND($C$2="あり",出力前!$AK$14=1),出力前1!AH30,出力前!AG30)) ->  | AI25: =IF(J25>100,"",IF(ISERROR(出力前!AH30),"",IF(AND($C$2="あり",出力前!$AK$14=1),出力前1!AI30,出力前!AH30))) -> 13
B26: 14 | C26: 17.5 | D26: 13.5 | F26: 26 | G26: 28 | J26: =出力前!J31 -> 39 | M26: =IF(ISERROR(出力前!M31),"",出力前!M31) ->  | N26: =IF(J26>100,"",出力前!N31) -> 39 | O26: =IF(J26>100,"",出力前!O31) -> 18.7 | P26: =IF(J26>100,"",IF(ISERROR(出力前!P31),"",IF(AND($C$2="あり",出力前!$AK$14=1),出力前1!Q31,出力前!P31))) -> 0.32 | Q26: =IF(J26>100,"",IF(ISERROR(出力前!Q31),"",IF(AND($C$2="あり",出力前!$AK$14=1),出力前1!R31,出力前!Q31))) -> 20.6 | R26: =IF(J26>100,"",IF(ISERROR(出力前!R31),"",IF(出力前!R31=0,"",IF(AND($C$2="あり",出力前!$AK$14=1),出力前1!S31,出力前!R31)))) -> 894 | S26: =IF(J26>100,"",IF(ISERROR(出力前!S31),"",IF(出力前!R31=0,"",出力前!S31))) -> 282 | T26: =IF(J26>100,"",IF(ISERROR(出力前!T31),"",IF(AND($C$2="あり",出力前!$AK$14=1),出力前1!U31,出力前!T31))) -> 0.46 | U26: 77.1 | V26: =IF(ISERROR(出力前!U31),"",IF(AND($C$2="あり",出力前!$AK$14=1),出力前1!V31,出力前!U31)) ->  | W26: =IF(ISERROR(出力前!V31),"",IF(AND($C$2="あり",出力前!$AK$14=1),出力前1!W31,出力前!V31)) ->  | X26: =IF(ISERROR(出力前!W31),"",IF(AND($C$2="あり",出力前!$AK$14=1),出力前1!X31,出力前!W31)) ->  | Y26: =IF(ISERROR(出力前!X31),"",IF(AND($C$2="あり",出力前!$AK$14=1),出力前1!Y31,出力前!X31)) ->  | Z26: =IF(ISERROR(出力前!Y31),"",IF(AND($C$2="あり",出力前!$AK$14=1),出力前1!Z31,出力前!Y31)) ->  | AA26: =IF(ISERROR(出力前!Z31),"",IF(AND($C$2="あり",出力前!$AK$14=1),出力前1!AA31,出力前!Z31)) ->  | AB26: =IF(ISERROR(出力前!AA31),"",IF(AND($C$2="あり",出力前!$AK$14=1),出力前1!AB31,出力前!AA31)) ->  | AC26: =IF(ISERROR(出力前!AB31),"",IF(AND($C$2="あり",出力前!$AK$14=1),出力前1!AC31,出力前!AB31)) ->  | AD26: =IF(ISERROR(出力前!AC31),"",IF(AND($C$2="あり",出力前!$AK$14=1),出力前1!AD31,出力前!AC31)) ->  | AE26: =IF(J26>100,"",IF(ISERROR(出力前!AD31),"",IF(AND($C$2="あり",出力前!$AK$14=1),出力前1!AE31,出力前!AD31))) -> 497 | AF26: =IF(J26>100,"",IF(ISERROR(出力前!AE31),"",IF(AND($C$2="あり",出力前!$AK$14=1),出力前1!AF31,出力前!AE31))) -> 12.8 | AG26: =IF(ISERROR(出力前!AF31),"",IF(AND($C$2="あり",出力前!$AK$14=1),出力前1!AG31,出力前!AF31)) ->  | AH26: =IF(ISERROR(出力前!AG31),"",IF(AND($C$2="あり",出力前!$AK$14=1),出力前1!AH31,出力前!AG31)) ->  | AI26: =IF(J26>100,"",IF(ISERROR(出力前!AH31),"",IF(AND($C$2="あり",出力前!$AK$14=1),出力前1!AI31,出力前!AH31))) -> 13
B27: 15 | C27: 17.4 | D27: 13.2 | F27: 28 | G27: 30 | J27: =出力前!J32 -> 40 | M27: =IF(ISERROR(出力前!M32),"",出力前!M32) ->  | N27: =IF(J27>100,"",出力前!N32) -> 40 | O27: =IF(J27>100,"",出力前!O32) -> 19.0 | P27: =IF(J27>100,"",IF(ISERROR(出力前!P32),"",IF(AND($C$2="あり",出力前!$AK$14=1),出力前1!Q32,出力前!P32))) -> 0.33 | Q27: =IF(J27>100,"",IF(ISERROR(出力前!Q32),"",IF(AND($C$2="あり",出力前!$AK$14=1),出力前1!R32,出力前!Q32))) -> 21.0 | R27: =IF(J27>100,"",IF(ISERROR(出力前!R32),"",IF(出力前!R32=0,"",IF(AND($C$2="あり",出力前!$AK$14=1),出力前1!S32,出力前!R32)))) -> 887 | S27: =IF(J27>100,"",IF(ISERROR(出力前!S32),"",IF(出力前!R32=0,"",出力前!S32))) -> 295 | T27: =IF(J27>100,"",IF(ISERROR(出力前!T32),"",IF(AND($C$2="あり",出力前!$AK$14=1),出力前1!U32,出力前!T32))) -> 0.48 | U27: 76.6 | V27: =IF(ISERROR(出力前!U32),"",IF(AND($C$2="あり",出力前!$AK$14=1),出力前1!V32,出力前!U32)) ->  | W27: =IF(ISERROR(出力前!V32),"",IF(AND($C$2="あり",出力前!$AK$14=1),出力前1!W32,出力前!V32)) ->  | X27: =IF(ISERROR(出力前!W32),"",IF(AND($C$2="あり",出力前!$AK$14=1),出力前1!X32,出力前!W32)) ->  | Y27: =IF(ISERROR(出力前!X32),"",IF(AND($C$2="あり",出力前!$AK$14=1),出力前1!Y32,出力前!X32)) ->  | Z27: =IF(ISERROR(出力前!Y32),"",IF(AND($C$2="あり",出力前!$AK$14=1),出力前1!Z32,出力前!Y32)) ->  | AA27: =IF(ISERROR(出力前!Z32),"",IF(AND($C$2="あり",出力前!$AK$14=1),出力前1!AA32,出力前!Z32)) ->  | AB27: =IF(ISERROR(出力前!AA32),"",IF(AND($C$2="あり",出力前!$AK$14=1),出力前1!AB32,出力前!AA32)) ->  | AC27: =IF(ISERROR(出力前!AB32),"",IF(AND($C$2="あり",出力前!$AK$14=1),出力前1!AC32,出力前!AB32)) ->  | AD27: =IF(ISERROR(出力前!AC32),"",IF(AND($C$2="あり",出力前!$AK$14=1),出力前1!AD32,出力前!AC32)) ->  | AE27: =IF(J27>100,"",IF(ISERROR(出力前!AD32),"",IF(AND($C$2="あり",出力前!$AK$14=1),出力前1!AE32,出力前!AD32))) -> 510 | AF27: =IF(J27>100,"",IF(ISERROR(出力前!AE32),"",IF(AND($C$2="あり",出力前!$AK$14=1),出力前1!AF32,出力前!AE32))) -> 12.6 | AG27: =IF(ISERROR(出力前!AF32),"",IF(AND($C$2="あり",出力前!$AK$14=1),出力前1!AG32,出力前!AF32)) ->  | AH27: =IF(ISERROR(出力前!AG32),"",IF(AND($C$2="あり",出力前!$AK$14=1),出力前1!AH32,出力前!AG32)) ->  | AI27: =IF(J27>100,"",IF(ISERROR(出力前!AH32),"",IF(AND($C$2="あり",出力前!$AK$14=1),出力前1!AI32,出力前!AH32))) -> 13
B28: 16 | C28: 17.3 | D28: 14 | F28: 30 | G28: 32 | J28: =出力前!J33 -> 41 | M28: =IF(ISERROR(出力前!M33),"",出力前!M33) ->  | N28: =IF(J28>100,"",出力前!N33) -> 41 | O28: =IF(J28>100,"",出力前!O33) -> 19.3 | P28: =IF(J28>100,"",IF(ISERROR(出力前!P33),"",IF(AND($C$2="あり",出力前!$AK$14=1),出力前1!Q33,出力前!P33))) -> 0.35 | Q28: =IF(J28>100,"",IF(ISERROR(出力前!Q33),"",IF(AND($C$2="あり",出力前!$AK$14=1),出力前1!R33,出力前!Q33))) -> 21.5 | R28: =IF(J28>100,"",IF(ISERROR(出力前!R33),"",IF(出力前!R33=0,"",IF(AND($C$2="あり",出力前!$AK$14=1),出力前1!S33,出力前!R33)))) -> 880 | S28: =IF(J28>100,"",IF(ISERROR(出力前!S33),"",IF(出力前!R33=0,"",出力前!S33))) -> 307 | T28: =IF(J28>100,"",IF(ISERROR(出力前!T33),"",IF(AND($C$2="あり",出力前!$AK$14=1),出力前1!U33,出力前!T33))) -> 0.49 | U28: 76.2 | V28: =IF(ISERROR(出力前!U33),"",IF(AND($C$2="あり",出力前!$AK$14=1),出力前1!V33,出力前!U33)) ->  | W28: =IF(ISERROR(出力前!V33),"",IF(AND($C$2="あり",出力前!$AK$14=1),出力前1!W33,出力前!V33)) ->  | X28: =IF(ISERROR(出力前!W33),"",IF(AND($C$2="あり",出力前!$AK$14=1),出力前1!X33,出力前!W33)) ->  | Y28: =IF(ISERROR(出力前!X33),"",IF(AND($C$2="あり",出力前!$AK$14=1),出力前1!Y33,出力前!X33)) ->  | Z28: =IF(ISERROR(出力前!Y33),"",IF(AND($C$2="あり",出力前!$AK$14=1),出力前1!Z33,出力前!Y33)) ->  | AA28: =IF(ISERROR(出力前!Z33),"",IF(AND($C$2="あり",出力前!$AK$14=1),出力前1!AA33,出力前!Z33)) ->  | AB28: =IF(ISERROR(出力前!AA33),"",IF(AND($C$2="あり",出力前!$AK$14=1),出力前1!AB33,出力前!AA33)) ->  | AC28: =IF(ISERROR(出力前!AB33),"",IF(AND($C$2="あり",出力前!$AK$14=1),出力前1!AC33,出力前!AB33)) ->  | AD28: =IF(ISERROR(出力前!AC33),"",IF(AND($C$2="あり",出力前!$AK$14=1),出力前1!AD33,出力前!AC33)) ->  | AE28: =IF(J28>100,"",IF(ISERROR(出力前!AD33),"",IF(AND($C$2="あり",出力前!$AK$14=1),出力前1!AE33,出力前!AD33))) -> 522 | AF28: =IF(J28>100,"",IF(ISERROR(出力前!AE33),"",IF(AND($C$2="あり",出力前!$AK$14=1),出力前1!AF33,出力前!AE33))) -> 12.4 | AG28: =IF(ISERROR(出力前!AF33),"",IF(AND($C$2="あり",出力前!$AK$14=1),出力前1!AG33,出力前!AF33)) ->  | AH28: =IF(ISERROR(出力前!AG33),"",IF(AND($C$2="あり",出力前!$AK$14=1),出力前1!AH33,出力前!AG33)) ->  | AI28: =IF(J28>100,"",IF(ISERROR(出力前!AH33),"",IF(AND($C$2="あり",出力前!$AK$14=1),出力前1!AI33,出力前!AH33))) -> 13
B29: 17 | C29: 17.1 | D29: 13.5 | F29: 32 | G29: 34 | J29: =出力前!J34 -> 42 | M29: =IF(ISERROR(出力前!M34),"",出力前!M34) ->  | N29: =IF(J29>100,"",出力前!N34) -> 42 | O29: =IF(J29>100,"",出力前!O34) -> 19.5 | P29: =IF(J29>100,"",IF(ISERROR(出力前!P34),"",IF(AND($C$2="あり",出力前!$AK$14=1),出力前1!Q34,出力前!P34))) -> 0.37 | Q29: =IF(J29>100,"",IF(ISERROR(出力前!Q34),"",IF(AND($C$2="あり",出力前!$AK$14=1),出力前1!R34,出力前!Q34))) -> 21.9 | R29: =IF(J29>100,"",IF(ISERROR(出力前!R34),"",IF(出力前!R34=0,"",IF(AND($C$2="あり",出力前!$AK$14=1),出力前1!S34,出力前!R34)))) -> 874 | S29: =IF(J29>100,"",IF(ISERROR(出力前!S34),"",IF(出力前!R34=0,"",出力前!S34))) -> 319 | T29: =IF(J29>100,"",IF(ISERROR(出力前!T34),"",IF(AND($C$2="あり",出力前!$AK$14=1),出力前1!U34,出力前!T34))) -> 0.50 | U29: 75.8 | V29: =IF(ISERROR(出力前!U34),"",IF(AND($C$2="あり",出力前!$AK$14=1),出力前1!V34,出力前!U34)) ->  | W29: =IF(ISERROR(出力前!V34),"",IF(AND($C$2="あり",出力前!$AK$14=1),出力前1!W34,出力前!V34)) ->  | X29: =IF(ISERROR(出力前!W34),"",IF(AND($C$2="あり",出力前!$AK$14=1),出力前1!X34,出力前!W34)) ->  | Y29: =IF(ISERROR(出力前!X34),"",IF(AND($C$2="あり",出力前!$AK$14=1),出力前1!Y34,出力前!X34)) ->  | Z29: =IF(ISERROR(出力前!Y34),"",IF(AND($C$2="あり",出力前!$AK$14=1),出力前1!Z34,出力前!Y34)) ->  | AA29: =IF(ISERROR(出力前!Z34),"",IF(AND($C$2="あり",出力前!$AK$14=1),出力前1!AA34,出力前!Z34)) ->  | AB29: =IF(ISERROR(出力前!AA34),"",IF(AND($C$2="あり",出力前!$AK$14=1),出力前1!AB34,出力前!AA34)) ->  | AC29: =IF(ISERROR(出力前!AB34),"",IF(AND($C$2="あり",出力前!$AK$14=1),出力前1!AC34,出力前!AB34)) ->  | AD29: =IF(ISERROR(出力前!AC34),"",IF(AND($C$2="あり",出力前!$AK$14=1),出力前1!AD34,出力前!AC34)) ->  | AE29: =IF(J29>100,"",IF(ISERROR(出力前!AD34),"",IF(AND($C$2="あり",出力前!$AK$14=1),出力前1!AE34,出力前!AD34))) -> 535 | AF29: =IF(J29>100,"",IF(ISERROR(出力前!AE34),"",IF(AND($C$2="あり",出力前!$AK$14=1),出力前1!AF34,出力前!AE34))) -> 12.2 | AG29: =IF(ISERROR(出力前!AF34),"",IF(AND($C$2="あり",出力前!$AK$14=1),出力前1!AG34,出力前!AF34)) ->  | AH29: =IF(ISERROR(出力前!AG34),"",IF(AND($C$2="あり",出力前!$AK$14=1),出力前1!AH34,出力前!AG34)) ->  | AI29: =IF(J29>100,"",IF(ISERROR(出力前!AH34),"",IF(AND($C$2="あり",出力前!$AK$14=1),出力前1!AI34,出力前!AH34))) -> 13
B30: 18 | C30: 17 | D30: 13.4 | F30: 34 | G30: 36 | J30: =出力前!J35 -> 43 | M30: =IF(ISERROR(出力前!M35),"",出力前!M35) ->  | N30: =IF(J30>100,"",出力前!N35) -> 43 | O30: =IF(J30>100,"",出力前!O35) -> 19.8 | P30: =IF(J30>100,"",IF(ISERROR(出力前!P35),"",IF(AND($C$2="あり",出力前!$AK$14=1),出力前1!Q35,出力前!P35))) -> 0.38 | Q30: =IF(J30>100,"",IF(ISERROR(出力前!Q35),"",IF(AND($C$2="あり",出力前!$AK$14=1),出力前1!R35,出力前!Q35))) -> 22.3 | R30: =IF(J30>100,"",IF(ISERROR(出力前!R35),"",IF(出力前!R35=0,"",IF(AND($C$2="あり",出力前!$AK$14=1),出力前1!S35,出力前!R35)))) -> 867 | S30: =IF(J30>100,"",IF(ISERROR(出力前!S35),"",IF(出力前!R35=0,"",出力前!S35))) -> 332 | T30: =IF(J30>100,"",IF(ISERROR(出力前!T35),"",IF(AND($C$2="あり",出力前!$AK$14=1),出力前1!U35,出力前!T35))) -> 0.51 | U30: 75.4 | V30: =IF(ISERROR(出力前!U35),"",IF(AND($C$2="あり",出力前!$AK$14=1),出力前1!V35,出力前!U35)) ->  | W30: =IF(ISERROR(出力前!V35),"",IF(AND($C$2="あり",出力前!$AK$14=1),出力前1!W35,出力前!V35)) ->  | X30: =IF(ISERROR(出力前!W35),"",IF(AND($C$2="あり",出力前!$AK$14=1),出力前1!X35,出力前!W35)) ->  | Y30: =IF(ISERROR(出力前!X35),"",IF(AND($C$2="あり",出力前!$AK$14=1),出力前1!Y35,出力前!X35)) ->  | Z30: =IF(ISERROR(出力前!Y35),"",IF(AND($C$2="あり",出力前!$AK$14=1),出力前1!Z35,出力前!Y35)) ->  | AA30: =IF(ISERROR(出力前!Z35),"",IF(AND($C$2="あり",出力前!$AK$14=1),出力前1!AA35,出力前!Z35)) ->  | AB30: =IF(ISERROR(出力前!AA35),"",IF(AND($C$2="あり",出力前!$AK$14=1),出力前1!AB35,出力前!AA35)) ->  | AC30: =IF(ISERROR(出力前!AB35),"",IF(AND($C$2="あり",出力前!$AK$14=1),出力前1!AC35,出力前!AB35)) ->  | AD30: =IF(ISERROR(出力前!AC35),"",IF(AND($C$2="あり",出力前!$AK$14=1),出力前1!AD35,出力前!AC35)) ->  | AE30: =IF(J30>100,"",IF(ISERROR(出力前!AD35),"",IF(AND($C$2="あり",出力前!$AK$14=1),出力前1!AE35,出力前!AD35))) -> 547 | AF30: =IF(J30>100,"",IF(ISERROR(出力前!AE35),"",IF(AND($C$2="あり",出力前!$AK$14=1),出力前1!AF35,出力前!AE35))) -> 12.0 | AG30: =IF(ISERROR(出力前!AF35),"",IF(AND($C$2="あり",出力前!$AK$14=1),出力前1!AG35,出力前!AF35)) ->  | AH30: =IF(ISERROR(出力前!AG35),"",IF(AND($C$2="あり",出力前!$AK$14=1),出力前1!AH35,出力前!AG35)) ->  | AI30: =IF(J30>100,"",IF(ISERROR(出力前!AH35),"",IF(AND($C$2="あり",出力前!$AK$14=1),出力前1!AI35,出力前!AH35))) -> 13
B31: 19 | C31: 16.9 | D31: 15 | F31: 36 | G31: 38 | J31: =出力前!J36 -> 44 | K31: 30 | M31: =IF(ISERROR(出力前!M36),"",出力前!M36) ->  | N31: =IF(J31>100,"",出力前!N36) -> 44 | O31: =IF(J31>100,"",出力前!O36) -> 20.0 | P31: =IF(J31>100,"",IF(ISERROR(出力前!P36),"",IF(AND($C$2="あり",出力前!$AK$14=1),出力前1!Q36,出力前!P36))) -> 0.40 | Q31: =IF(J31>100,"",IF(ISERROR(出力前!Q36),"",IF(AND($C$2="あり",出力前!$AK$14=1),出力前1!R36,出力前!Q36))) -> 22.7 | R31: =IF(J31>100,"",IF(ISERROR(出力前!R36),"",IF(出力前!R36=0,"",IF(AND($C$2="あり",出力前!$AK$14=1),出力前1!S36,出力前!R36)))) -> 861 | S31: =IF(J31>100,"",IF(ISERROR(出力前!S36),"",IF(出力前!R36=0,"",出力前!S36))) -> 344 | T31: =IF(J31>100,"",IF(ISERROR(出力前!T36),"",IF(AND($C$2="あり",出力前!$AK$14=1),出力前1!U36,出力前!T36))) -> 0.52 | U31: 75.1 | V31: =IF(ISERROR(出力前!U36),"",IF(AND($C$2="あり",出力前!$AK$14=1),出力前1!V36,出力前!U36)) -> 603 | W31: =IF(ISERROR(出力前!V36),"",IF(AND($C$2="あり",出力前!$AK$14=1),出力前1!W36,出力前!V36)) -> 241 | X31: =IF(ISERROR(出力前!W36),"",IF(AND($C$2="あり",出力前!$AK$14=1),出力前1!X36,出力前!W36)) -> 0.38 | Y31: =IF(ISERROR(出力前!X36),"",IF(AND($C$2="あり",出力前!$AK$14=1),出力前1!Y36,出力前!X36)) -> 258 | Z31: =IF(ISERROR(出力前!Y36),"",IF(AND($C$2="あり",出力前!$AK$14=1),出力前1!Z36,出力前!Y36)) -> 30 | AA31: =IF(ISERROR(出力前!Z36),"",IF(AND($C$2="あり",出力前!$AK$14=1),出力前1!AA36,出力前!Z36)) -> 103 | AB31: =IF(ISERROR(出力前!AA36),"",IF(AND($C$2="あり",出力前!$AK$14=1),出力前1!AB36,出力前!AA36)) -> 30 | AC31: =IF(ISERROR(出力前!AB36),"",IF(AND($C$2="あり",出力前!$AK$14=1),出力前1!AC36,出力前!AB36)) -> 22.7 | AD31: =IF(ISERROR(出力前!AC36),"",IF(AND($C$2="あり",出力前!$AK$14=1),出力前1!AD36,出力前!AC36)) -> 318 | AE31: =IF(J31>100,"",IF(ISERROR(出力前!AD36),"",IF(AND($C$2="あり",出力前!$AK$14=1),出力前1!AE36,出力前!AD36))) -> 559 | AF31: =IF(J31>100,"",IF(ISERROR(出力前!AE36),"",IF(AND($C$2="あり",出力前!$AK$14=1),出力前1!AF36,出力前!AE36))) -> 11.8 | AG31: =IF(ISERROR(出力前!AF36),"",IF(AND($C$2="あり",出力前!$AK$14=1),出力前1!AG36,出力前!AF36)) -> 5 | AH31: =IF(ISERROR(出力前!AG36),"",IF(AND($C$2="あり",出力前!$AK$14=1),出力前1!AH36,出力前!AG36)) -> 8 | AI31: =IF(J31>100,"",IF(ISERROR(出力前!AH36),"",IF(AND($C$2="あり",出力前!$AK$14=1),出力前1!AI36,出力前!AH36))) -> 13
B32: 20 | C32: 16.9 | D32: 14.3 | F32: 38 | G32: 40 | J32: =出力前!J37 -> 45 | M32: =IF(ISERROR(出力前!M37),"",出力前!M37) ->  | N32: =IF(J32>100,"",出力前!N37) -> 45 | O32: =IF(J32>100,"",出力前!O37) -> 20.2 | P32: =IF(J32>100,"",IF(ISERROR(出力前!P37),"",IF(AND($C$2="あり",出力前!$AK$14=1),出力前1!Q37,出力前!P37))) -> 0.42 | Q32: =IF(J32>100,"",IF(ISERROR(出力前!Q37),"",IF(AND($C$2="あり",出力前!$AK$14=1),出力前1!R37,出力前!Q37))) -> 23.1 | R32: =IF(J32>100,"",IF(ISERROR(出力前!R37),"",IF(出力前!R37=0,"",IF(AND($C$2="あり",出力前!$AK$14=1),出力前1!S37,出力前!R37)))) -> 603 | S32: =IF(J32>100,"",IF(ISERROR(出力前!S37),"",IF(出力前!R37=0,"",出力前!S37))) -> 252 | T32: =IF(J32>100,"",IF(ISERROR(出力前!T37),"",IF(AND($C$2="あり",出力前!$AK$14=1),出力前1!U37,出力前!T37))) -> 0.39 | U32: 74.7 | V32: =IF(ISERROR(出力前!U37),"",IF(AND($C$2="あり",出力前!$AK$14=1),出力前1!V37,出力前!U37)) ->  | W32: =IF(ISERROR(出力前!V37),"",IF(AND($C$2="あり",出力前!$AK$14=1),出力前1!W37,出力前!V37)) ->  | X32: =IF(ISERROR(出力前!W37),"",IF(AND($C$2="あり",出力前!$AK$14=1),出力前1!X37,出力前!W37)) ->  | Y32: =IF(ISERROR(出力前!X37),"",IF(AND($C$2="あり",出力前!$AK$14=1),出力前1!Y37,出力前!X37)) ->  | Z32: =IF(ISERROR(出力前!Y37),"",IF(AND($C$2="あり",出力前!$AK$14=1),出力前1!Z37,出力前!Y37)) ->  | AA32: =IF(ISERROR(出力前!Z37),"",IF(AND($C$2="あり",出力前!$AK$14=1),出力前1!AA37,出力前!Z37)) ->  | AB32: =IF(ISERROR(出力前!AA37),"",IF(AND($C$2="あり",出力前!$AK$14=1),出力前1!AB37,出力前!AA37)) ->  | AC32: =IF(ISERROR(出力前!AB37),"",IF(AND($C$2="あり",出力前!$AK$14=1),出力前1!AC37,出力前!AB37)) ->  | AD32: =IF(ISERROR(出力前!AC37),"",IF(AND($C$2="あり",出力前!$AK$14=1),出力前1!AD37,出力前!AC37)) ->  | AE32: =IF(J32>100,"",IF(ISERROR(出力前!AD37),"",IF(AND($C$2="あり",出力前!$AK$14=1),出力前1!AE37,出力前!AD37))) -> 571 | AF32: =IF(J32>100,"",IF(ISERROR(出力前!AE37),"",IF(AND($C$2="あり",出力前!$AK$14=1),出力前1!AF37,出力前!AE37))) -> 11.6 | AG32: =IF(ISERROR(出力前!AF37),"",IF(AND($C$2="あり",出力前!$AK$14=1),出力前1!AG37,出力前!AF37)) ->  | AH32: =IF(ISERROR(出力前!AG37),"",IF(AND($C$2="あり",出力前!$AK$14=1),出力前1!AH37,出力前!AG37)) ->  | AI32: =IF(J32>100,"",IF(ISERROR(出力前!AH37),"",IF(AND($C$2="あり",出力前!$AK$14=1),出力前1!AI37,出力前!AH37))) -> 13
B33: 21 | C33: 16.7 | D33: 13.3 | F33: 40 | G33: 42 | J33: =出力前!J38 -> 46 | M33: =IF(ISERROR(出力前!M38),"",出力前!M38) ->  | N33: =IF(J33>100,"",出力前!N38) -> 46 | O33: =IF(J33>100,"",出力前!O38) -> 20.5 | P33: =IF(J33>100,"",IF(ISERROR(出力前!P38),"",IF(AND($C$2="あり",出力前!$AK$14=1),出力前1!Q38,出力前!P38))) -> 0.44 | Q33: =IF(J33>100,"",IF(ISERROR(出力前!Q38),"",IF(AND($C$2="あり",出力前!$AK$14=1),出力前1!R38,出力前!Q38))) -> 23.6 | R33: =IF(J33>100,"",IF(ISERROR(出力前!R38),"",IF(出力前!R38=0,"",IF(AND($C$2="あり",出力前!$AK$14=1),出力前1!S38,出力前!R38)))) -> 598 | S33: =IF(J33>100,"",IF(ISERROR(出力前!S38),"",IF(出力前!R38=0,"",出力前!S38))) -> 264 | T33: =IF(J33>100,"",IF(ISERROR(出力前!T38),"",IF(AND($C$2="あり",出力前!$AK$14=1),出力前1!U38,出力前!T38))) -> 0.40 | U33: 74.0 | V33: =IF(ISERROR(出力前!U38),"",IF(AND($C$2="あり",出力前!$AK$14=1),出力前1!V38,出力前!U38)) ->  | W33: =IF(ISERROR(出力前!V38),"",IF(AND($C$2="あり",出力前!$AK$14=1),出力前1!W38,出力前!V38)) ->  | X33: =IF(ISERROR(出力前!W38),"",IF(AND($C$2="あり",出力前!$AK$14=1),出力前1!X38,出力前!W38)) ->  | Y33: =IF(ISERROR(出力前!X38),"",IF(AND($C$2="あり",出力前!$AK$14=1),出力前1!Y38,出力前!X38)) ->  | Z33: =IF(ISERROR(出力前!Y38),"",IF(AND($C$2="あり",出力前!$AK$14=1),出力前1!Z38,出力前!Y38)) ->  | AA33: =IF(ISERROR(出力前!Z38),"",IF(AND($C$2="あり",出力前!$AK$14=1),出力前1!AA38,出力前!Z38)) ->  | AB33: =IF(ISERROR(出力前!AA38),"",IF(AND($C$2="あり",出力前!$AK$14=1),出力前1!AB38,出力前!AA38)) ->  | AC33: =IF(ISERROR(出力前!AB38),"",IF(AND($C$2="あり",出力前!$AK$14=1),出力前1!AC38,出力前!AB38)) ->  | AD33: =IF(ISERROR(出力前!AC38),"",IF(AND($C$2="あり",出力前!$AK$14=1),出力前1!AD38,出力前!AC38)) ->  | AE33: =IF(J33>100,"",IF(ISERROR(出力前!AD38),"",IF(AND($C$2="あり",出力前!$AK$14=1),出力前1!AE38,出力前!AD38))) -> 582 | AF33: =IF(J33>100,"",IF(ISERROR(出力前!AE38),"",IF(AND($C$2="あり",出力前!$AK$14=1),出力前1!AF38,出力前!AE38))) -> 11.4 | AG33: =IF(ISERROR(出力前!AF38),"",IF(AND($C$2="あり",出力前!$AK$14=1),出力前1!AG38,出力前!AF38)) ->  | AH33: =IF(ISERROR(出力前!AG38),"",IF(AND($C$2="あり",出力前!$AK$14=1),出力前1!AH38,出力前!AG38)) ->  | AI33: =IF(J33>100,"",IF(ISERROR(出力前!AH38),"",IF(AND($C$2="あり",出力前!$AK$14=1),出力前1!AI38,出力前!AH38))) -> 13
B34: 22 | C34: 16.6 | D34: 12.5 | F34: 42 | G34: 44 | J34: =出力前!J39 -> 47 | M34: =IF(ISERROR(出力前!M39),"",出力前!M39) ->  | N34: =IF(J34>100,"",出力前!N39) -> 47 | O34: =IF(J34>100,"",出力前!O39) -> 20.7 | P34: =IF(J34>100,"",IF(ISERROR(出力前!P39),"",IF(AND($C$2="あり",出力前!$AK$14=1),出力前1!Q39,出力前!P39))) -> 0.46 | Q34: =IF(J34>100,"",IF(ISERROR(出力前!Q39),"",IF(AND($C$2="あり",出力前!$AK$14=1),出力前1!R39,出力前!Q39))) -> 24.1 | R34: =IF(J34>100,"",IF(ISERROR(出力前!R39),"",IF(出力前!R39=0,"",IF(AND($C$2="あり",出力前!$AK$14=1),出力前1!S39,出力前!R39)))) -> 594 | S34: =IF(J34>100,"",IF(ISERROR(出力前!S39),"",IF(出力前!R39=0,"",出力前!S39))) -> 275 | T34: =IF(J34>100,"",IF(ISERROR(出力前!T39),"",IF(AND($C$2="あり",出力前!$AK$14=1),出力前1!U39,出力前!T39))) -> 0.41 | U34: 73.4 | V34: =IF(ISERROR(出力前!U39),"",IF(AND($C$2="あり",出力前!$AK$14=1),出力前1!V39,出力前!U39)) ->  | W34: =IF(ISERROR(出力前!V39),"",IF(AND($C$2="あり",出力前!$AK$14=1),出力前1!W39,出力前!V39)) ->  | X34: =IF(ISERROR(出力前!W39),"",IF(AND($C$2="あり",出力前!$AK$14=1),出力前1!X39,出力前!W39)) ->  | Y34: =IF(ISERROR(出力前!X39),"",IF(AND($C$2="あり",出力前!$AK$14=1),出力前1!Y39,出力前!X39)) ->  | Z34: =IF(ISERROR(出力前!Y39),"",IF(AND($C$2="あり",出力前!$AK$14=1),出力前1!Z39,出力前!Y39)) ->  | AA34: =IF(ISERROR(出力前!Z39),"",IF(AND($C$2="あり",出力前!$AK$14=1),出力前1!AA39,出力前!Z39)) ->  | AB34: =IF(ISERROR(出力前!AA39),"",IF(AND($C$2="あり",出力前!$AK$14=1),出力前1!AB39,出力前!AA39)) ->  | AC34: =IF(ISERROR(出力前!AB39),"",IF(AND($C$2="あり",出力前!$AK$14=1),出力前1!AC39,出力前!AB39)) ->  | AD34: =IF(ISERROR(出力前!AC39),"",IF(AND($C$2="あり",出力前!$AK$14=1),出力前1!AD39,出力前!AC39)) ->  | AE34: =IF(J34>100,"",IF(ISERROR(出力前!AD39),"",IF(AND($C$2="あり",出力前!$AK$14=1),出力前1!AE39,出力前!AD39))) -> 594 | AF34: =IF(J34>100,"",IF(ISERROR(出力前!AE39),"",IF(AND($C$2="あり",出力前!$AK$14=1),出力前1!AF39,出力前!AE39))) -> 11.2 | AG34: =IF(ISERROR(出力前!AF39),"",IF(AND($C$2="あり",出力前!$AK$14=1),出力前1!AG39,出力前!AF39)) ->  | AH34: =IF(ISERROR(出力前!AG39),"",IF(AND($C$2="あり",出力前!$AK$14=1),出力前1!AH39,出力前!AG39)) ->  | AI34: =IF(J34>100,"",IF(ISERROR(出力前!AH39),"",IF(AND($C$2="あり",出力前!$AK$14=1),出力前1!AI39,出力前!AH39))) -> 13
B35: 23 | C35: 16.5 | D35: 12.6 | F35: 44 | G35: 46 | J35: =出力前!J40 -> 48 | M35: =IF(ISERROR(出力前!M40),"",出力前!M40) ->  | N35: =IF(J35>100,"",出力前!N40) -> 48 | O35: =IF(J35>100,"",出力前!O40) -> 20.9 | P35: =IF(J35>100,"",IF(ISERROR(出力前!P40),"",IF(AND($C$2="あり",出力前!$AK$14=1),出力前1!Q40,出力前!P40))) -> 0.49 | Q35: =IF(J35>100,"",IF(ISERROR(出力前!Q40),"",IF(AND($C$2="あり",出力前!$AK$14=1),出力前1!R40,出力前!Q40))) -> 24.5 | R35: =IF(J35>100,"",IF(ISERROR(出力前!R40),"",IF(出力前!R40=0,"",IF(AND($C$2="あり",出力前!$AK$14=1),出力前1!S40,出力前!R40)))) -> 590 | S35: =IF(J35>100,"",IF(ISERROR(出力前!S40),"",IF(出力前!R40=0,"",出力前!S40))) -> 286 | T35: =IF(J35>100,"",IF(ISERROR(出力前!T40),"",IF(AND($C$2="あり",出力前!$AK$14=1),出力前1!U40,出力前!T40))) -> 0.42 | U35: 72.9 | V35: =IF(ISERROR(出力前!U40),"",IF(AND($C$2="あり",出力前!$AK$14=1),出力前1!V40,出力前!U40)) ->  | W35: =IF(ISERROR(出力前!V40),"",IF(AND($C$2="あり",出力前!$AK$14=1),出力前1!W40,出力前!V40)) ->  | X35: =IF(ISERROR(出力前!W40),"",IF(AND($C$2="あり",出力前!$AK$14=1),出力前1!X40,出力前!W40)) ->  | Y35: =IF(ISERROR(出力前!X40),"",IF(AND($C$2="あり",出力前!$AK$14=1),出力前1!Y40,出力前!X40)) ->  | Z35: =IF(ISERROR(出力前!Y40),"",IF(AND($C$2="あり",出力前!$AK$14=1),出力前1!Z40,出力前!Y40)) ->  | AA35: =IF(ISERROR(出力前!Z40),"",IF(AND($C$2="あり",出力前!$AK$14=1),出力前1!AA40,出力前!Z40)) ->  | AB35: =IF(ISERROR(出力前!AA40),"",IF(AND($C$2="あり",出力前!$AK$14=1),出力前1!AB40,出力前!AA40)) ->  | AC35: =IF(ISERROR(出力前!AB40),"",IF(AND($C$2="あり",出力前!$AK$14=1),出力前1!AC40,出力前!AB40)) ->  | AD35: =IF(ISERROR(出力前!AC40),"",IF(AND($C$2="あり",出力前!$AK$14=1),出力前1!AD40,出力前!AC40)) ->  | AE35: =IF(J35>100,"",IF(ISERROR(出力前!AD40),"",IF(AND($C$2="あり",出力前!$AK$14=1),出力前1!AE40,出力前!AD40))) -> 605 | AF35: =IF(J35>100,"",IF(ISERROR(出力前!AE40),"",IF(AND($C$2="あり",出力前!$AK$14=1),出力前1!AF40,出力前!AE40))) -> 11.0 | AG35: =IF(ISERROR(出力前!AF40),"",IF(AND($C$2="あり",出力前!$AK$14=1),出力前1!AG40,出力前!AF40)) ->  | AH35: =IF(ISERROR(出力前!AG40),"",IF(AND($C$2="あり",出力前!$AK$14=1),出力前1!AH40,出力前!AG40)) ->  | AI35: =IF(J35>100,"",IF(ISERROR(出力前!AH40),"",IF(AND($C$2="あり",出力前!$AK$14=1),出力前1!AI40,出力前!AH40))) -> 13
B36: 24 | C36: 16.4 | D36: 12.5 | F36: 46 | G36: 48 | J36: =出力前!J41 -> 49 | M36: =IF(ISERROR(出力前!M41),"",出力前!M41) -> 4 | N36: =IF(J36>100,"",出力前!N41) -> 49 | O36: =IF(J36>100,"",出力前!O41) -> 21.2 | P36: =IF(J36>100,"",IF(ISERROR(出力前!P41),"",IF(AND($C$2="あり",出力前!$AK$14=1),出力前1!Q41,出力前!P41))) -> 0.51 | Q36: =IF(J36>100,"",IF(ISERROR(出力前!Q41),"",IF(AND($C$2="あり",出力前!$AK$14=1),出力前1!R41,出力前!Q41))) -> 25.0 | R36: =IF(J36>100,"",IF(ISERROR(出力前!R41),"",IF(出力前!R41=0,"",IF(AND($C$2="あり",出力前!$AK$14=1),出力前1!S41,出力前!R41)))) -> 586 | S36: =IF(J36>100,"",IF(ISERROR(出力前!S41),"",IF(出力前!R41=0,"",出力前!S41))) -> 297 | T36: =IF(J36>100,"",IF(ISERROR(出力前!T41),"",IF(AND($C$2="あり",出力前!$AK$14=1),出力前1!U41,出力前!T41))) -> 0.43 | U36: 72.4 | V36: =IF(ISERROR(出力前!U41),"",IF(AND($C$2="あり",出力前!$AK$14=1),出力前1!V41,出力前!U41)) ->  | W36: =IF(ISERROR(出力前!V41),"",IF(AND($C$2="あり",出力前!$AK$14=1),出力前1!W41,出力前!V41)) ->  | X36: =IF(ISERROR(出力前!W41),"",IF(AND($C$2="あり",出力前!$AK$14=1),出力前1!X41,出力前!W41)) ->  | Y36: =IF(ISERROR(出力前!X41),"",IF(AND($C$2="あり",出力前!$AK$14=1),出力前1!Y41,出力前!X41)) ->  | Z36: =IF(ISERROR(出力前!Y41),"",IF(AND($C$2="あり",出力前!$AK$14=1),出力前1!Z41,出力前!Y41)) ->  | AA36: =IF(ISERROR(出力前!Z41),"",IF(AND($C$2="あり",出力前!$AK$14=1),出力前1!AA41,出力前!Z41)) ->  | AB36: =IF(ISERROR(出力前!AA41),"",IF(AND($C$2="あり",出力前!$AK$14=1),出力前1!AB41,出力前!AA41)) ->  | AC36: =IF(ISERROR(出力前!AB41),"",IF(AND($C$2="あり",出力前!$AK$14=1),出力前1!AC41,出力前!AB41)) ->  | AD36: =IF(ISERROR(出力前!AC41),"",IF(AND($C$2="あり",出力前!$AK$14=1),出力前1!AD41,出力前!AC41)) ->  | AE36: =IF(J36>100,"",IF(ISERROR(出力前!AD41),"",IF(AND($C$2="あり",出力前!$AK$14=1),出力前1!AE41,出力前!AD41))) -> 616 | AF36: =IF(J36>100,"",IF(ISERROR(出力前!AE41),"",IF(AND($C$2="あり",出力前!$AK$14=1),出力前1!AF41,出力前!AE41))) -> 10.9 | AG36: =IF(ISERROR(出力前!AF41),"",IF(AND($C$2="あり",出力前!$AK$14=1),出力前1!AG41,出力前!AF41)) ->  | AH36: =IF(ISERROR(出力前!AG41),"",IF(AND($C$2="あり",出力前!$AK$14=1),出力前1!AH41,出力前!AG41)) ->  | AI36: =IF(J36>100,"",IF(ISERROR(出力前!AH41),"",IF(AND($C$2="あり",出力前!$AK$14=1),出力前1!AI41,出力前!AH41))) -> 13
B37: 25 | C37: 16.4 | D37: 14.8 | F37: 48 | G37: 50 | J37: =出力前!J42 -> 50 | M37: =IF(ISERROR(出力前!M42),"",出力前!M42) ->  | N37: =IF(J37>100,"",出力前!N42) -> 50 | O37: =IF(J37>100,"",出力前!O42) -> 21.4 | P37: =IF(J37>100,"",IF(ISERROR(出力前!P42),"",IF(AND($C$2="あり",出力前!$AK$14=1),出力前1!Q42,出力前!P42))) -> 0.53 | Q37: =IF(J37>100,"",IF(ISERROR(出力前!Q42),"",IF(AND($C$2="あり",出力前!$AK$14=1),出力前1!R42,出力前!Q42))) -> 25.4 | R37: =IF(J37>100,"",IF(ISERROR(出力前!R42),"",IF(出力前!R42=0,"",IF(AND($C$2="あり",出力前!$AK$14=1),出力前1!S42,出力前!R42)))) -> 582 | S37: =IF(J37>100,"",IF(ISERROR(出力前!S42),"",IF(出力前!R42=0,"",出力前!S42))) -> 308 | T37: =IF(J37>100,"",IF(ISERROR(出力前!T42),"",IF(AND($C$2="あり",出力前!$AK$14=1),出力前1!U42,出力前!T42))) -> 0.44 | U37: 71.9 | V37: =IF(ISERROR(出力前!U42),"",IF(AND($C$2="あり",出力前!$AK$14=1),出力前1!V42,出力前!U42)) ->  | W37: =IF(ISERROR(出力前!V42),"",IF(AND($C$2="あり",出力前!$AK$14=1),出力前1!W42,出力前!V42)) ->  | X37: =IF(ISERROR(出力前!W42),"",IF(AND($C$2="あり",出力前!$AK$14=1),出力前1!X42,出力前!W42)) ->  | Y37: =IF(ISERROR(出力前!X42),"",IF(AND($C$2="あり",出力前!$AK$14=1),出力前1!Y42,出力前!X42)) ->  | Z37: =IF(ISERROR(出力前!Y42),"",IF(AND($C$2="あり",出力前!$AK$14=1),出力前1!Z42,出力前!Y42)) ->  | AA37: =IF(ISERROR(出力前!Z42),"",IF(AND($C$2="あり",出力前!$AK$14=1),出力前1!AA42,出力前!Z42)) ->  | AB37: =IF(ISERROR(出力前!AA42),"",IF(AND($C$2="あり",出力前!$AK$14=1),出力前1!AB42,出力前!AA42)) ->  | AC37: =IF(ISERROR(出力前!AB42),"",IF(AND($C$2="あり",出力前!$AK$14=1),出力前1!AC42,出力前!AB42)) ->  | AD37: =IF(ISERROR(出力前!AC42),"",IF(AND($C$2="あり",出力前!$AK$14=1),出力前1!AD42,出力前!AC42)) ->  | AE37: =IF(J37>100,"",IF(ISERROR(出力前!AD42),"",IF(AND($C$2="あり",出力前!$AK$14=1),出力前1!AE42,出力前!AD42))) -> 627 | AF37: =IF(J37>100,"",IF(ISERROR(出力前!AE42),"",IF(AND($C$2="あり",出力前!$AK$14=1),出力前1!AF42,出力前!AE42))) -> 10.7 | AG37: =IF(ISERROR(出力前!AF42),"",IF(AND($C$2="あり",出力前!$AK$14=1),出力前1!AG42,出力前!AF42)) ->  | AH37: =IF(ISERROR(出力前!AG42),"",IF(AND($C$2="あり",出力前!$AK$14=1),出力前1!AH42,出力前!AG42)) ->  | AI37: =IF(J37>100,"",IF(ISERROR(出力前!AH42),"",IF(AND($C$2="あり",出力前!$AK$14=1),出力前1!AI42,出力前!AH42))) -> 13
B38: 26 | C38: 16.3 | D38: 14.6 | F38: 50 | G38: 52 | J38: =出力前!J43 -> 51 | M38: =IF(ISERROR(出力前!M43),"",出力前!M43) ->  | N38: =IF(J38>100,"",出力前!N43) -> 51 | O38: =IF(J38>100,"",出力前!O43) -> 21.6 | P38: =IF(J38>100,"",IF(ISERROR(出力前!P43),"",IF(AND($C$2="あり",出力前!$AK$14=1),出力前1!Q43,出力前!P43))) -> 0.55 | Q38: =IF(J38>100,"",IF(ISERROR(出力前!Q43),"",IF(AND($C$2="あり",出力前!$AK$14=1),出力前1!R43,出力前!Q43))) -> 25.9 | R38: =IF(J38>100,"",IF(ISERROR(出力前!R43),"",IF(出力前!R43=0,"",IF(AND($C$2="あり",出力前!$AK$14=1),出力前1!S43,出力前!R43)))) -> 578 | S38: =IF(J38>100,"",IF(ISERROR(出力前!S43),"",IF(出力前!R43=0,"",出力前!S43))) -> 319 | T38: =IF(J38>100,"",IF(ISERROR(出力前!T43),"",IF(AND($C$2="あり",出力前!$AK$14=1),出力前1!U43,出力前!T43))) -> 0.45 | U38: 71.5 | V38: =IF(ISERROR(出力前!U43),"",IF(AND($C$2="あり",出力前!$AK$14=1),出力前1!V43,出力前!U43)) ->  | W38: =IF(ISERROR(出力前!V43),"",IF(AND($C$2="あり",出力前!$AK$14=1),出力前1!W43,出力前!V43)) ->  | X38: =IF(ISERROR(出力前!W43),"",IF(AND($C$2="あり",出力前!$AK$14=1),出力前1!X43,出力前!W43)) ->  | Y38: =IF(ISERROR(出力前!X43),"",IF(AND($C$2="あり",出力前!$AK$14=1),出力前1!Y43,出力前!X43)) ->  | Z38: =IF(ISERROR(出力前!Y43),"",IF(AND($C$2="あり",出力前!$AK$14=1),出力前1!Z43,出力前!Y43)) ->  | AA38: =IF(ISERROR(出力前!Z43),"",IF(AND($C$2="あり",出力前!$AK$14=1),出力前1!AA43,出力前!Z43)) ->  | AB38: =IF(ISERROR(出力前!AA43),"",IF(AND($C$2="あり",出力前!$AK$14=1),出力前1!AB43,出力前!AA43)) ->  | AC38: =IF(ISERROR(出力前!AB43),"",IF(AND($C$2="あり",出力前!$AK$14=1),出力前1!AC43,出力前!AB43)) ->  | AD38: =IF(ISERROR(出力前!AC43),"",IF(AND($C$2="あり",出力前!$AK$14=1),出力前1!AD43,出力前!AC43)) ->  | AE38: =IF(J38>100,"",IF(ISERROR(出力前!AD43),"",IF(AND($C$2="あり",出力前!$AK$14=1),出力前1!AE43,出力前!AD43))) -> 637 | AF38: =IF(J38>100,"",IF(ISERROR(出力前!AE43),"",IF(AND($C$2="あり",出力前!$AK$14=1),出力前1!AF43,出力前!AE43))) -> 10.5 | AG38: =IF(ISERROR(出力前!AF43),"",IF(AND($C$2="あり",出力前!$AK$14=1),出力前1!AG43,出力前!AF43)) ->  | AH38: =IF(ISERROR(出力前!AG43),"",IF(AND($C$2="あり",出力前!$AK$14=1),出力前1!AH43,出力前!AG43)) ->  | AI38: =IF(J38>100,"",IF(ISERROR(出力前!AH43),"",IF(AND($C$2="あり",出力前!$AK$14=1),出力前1!AI43,出力前!AH43))) -> 12
B39: 27 | C39: 16.3 | D39: 14.3 | F39: 52 | G39: 54 | J39: =出力前!J44 -> 52 | M39: =IF(ISERROR(出力前!M44),"",出力前!M44) ->  | N39: =IF(J39>100,"",出力前!N44) -> 52 | O39: =IF(J39>100,"",出力前!O44) -> 21.8 | P39: =IF(J39>100,"",IF(ISERROR(出力前!P44),"",IF(AND($C$2="あり",出力前!$AK$14=1),出力前1!Q44,出力前!P44))) -> 0.57 | Q39: =IF(J39>100,"",IF(ISERROR(出力前!Q44),"",IF(AND($C$2="あり",出力前!$AK$14=1),出力前1!R44,出力前!Q44))) -> 26.3 | R39: =IF(J39>100,"",IF(ISERROR(出力前!R44),"",IF(出力前!R44=0,"",IF(AND($C$2="あり",出力前!$AK$14=1),出力前1!S44,出力前!R44)))) -> 574 | S39: =IF(J39>100,"",IF(ISERROR(出力前!S44),"",IF(出力前!R44=0,"",出力前!S44))) -> 330 | T39: =IF(J39>100,"",IF(ISERROR(出力前!T44),"",IF(AND($C$2="あり",出力前!$AK$14=1),出力前1!U44,出力前!T44))) -> 0.46 | U39: 71.1 | V39: =IF(ISERROR(出力前!U44),"",IF(AND($C$2="あり",出力前!$AK$14=1),出力前1!V44,出力前!U44)) ->  | W39: =IF(ISERROR(出力前!V44),"",IF(AND($C$2="あり",出力前!$AK$14=1),出力前1!W44,出力前!V44)) ->  | X39: =IF(ISERROR(出力前!W44),"",IF(AND($C$2="あり",出力前!$AK$14=1),出力前1!X44,出力前!W44)) ->  | Y39: =IF(ISERROR(出力前!X44),"",IF(AND($C$2="あり",出力前!$AK$14=1),出力前1!Y44,出力前!X44)) ->  | Z39: =IF(ISERROR(出力前!Y44),"",IF(AND($C$2="あり",出力前!$AK$14=1),出力前1!Z44,出力前!Y44)) ->  | AA39: =IF(ISERROR(出力前!Z44),"",IF(AND($C$2="あり",出力前!$AK$14=1),出力前1!AA44,出力前!Z44)) ->  | AB39: =IF(ISERROR(出力前!AA44),"",IF(AND($C$2="あり",出力前!$AK$14=1),出力前1!AB44,出力前!AA44)) ->  | AC39: =IF(ISERROR(出力前!AB44),"",IF(AND($C$2="あり",出力前!$AK$14=1),出力前1!AC44,出力前!AB44)) ->  | AD39: =IF(ISERROR(出力前!AC44),"",IF(AND($C$2="あり",出力前!$AK$14=1),出力前1!AD44,出力前!AC44)) ->  | AE39: =IF(J39>100,"",IF(ISERROR(出力前!AD44),"",IF(AND($C$2="あり",出力前!$AK$14=1),出力前1!AE44,出力前!AD44))) -> 648 | AF39: =IF(J39>100,"",IF(ISERROR(出力前!AE44),"",IF(AND($C$2="あり",出力前!$AK$14=1),出力前1!AF44,出力前!AE44))) -> 10.3 | AG39: =IF(ISERROR(出力前!AF44),"",IF(AND($C$2="あり",出力前!$AK$14=1),出力前1!AG44,出力前!AF44)) ->  | AH39: =IF(ISERROR(出力前!AG44),"",IF(AND($C$2="あり",出力前!$AK$14=1),出力前1!AH44,出力前!AG44)) ->  | AI39: =IF(J39>100,"",IF(ISERROR(出力前!AH44),"",IF(AND($C$2="あり",出力前!$AK$14=1),出力前1!AI44,出力前!AH44))) -> 12
B40: 28 | C40: 16.2 | D40: 12.8 | F40: 54 | G40: 56 | J40: =出力前!J45 -> 53 | K40: 30 | M40: =IF(ISERROR(出力前!M45),"",出力前!M45) ->  | N40: =IF(J40>100,"",出力前!N45) -> 53 | O40: =IF(J40>100,"",出力前!O45) -> 22.0 | P40: =IF(J40>100,"",IF(ISERROR(出力前!P45),"",IF(AND($C$2="あり",出力前!$AK$14=1),出力前1!Q45,出力前!P45))) -> 0.60 | Q40: =IF(J40>100,"",IF(ISERROR(出力前!Q45),"",IF(AND($C$2="あり",出力前!$AK$14=1),出力前1!R45,出力前!Q45))) -> 26.7 | R40: =IF(J40>100,"",IF(ISERROR(出力前!R45),"",IF(出力前!R45=0,"",IF(AND($C$2="あり",出力前!$AK$14=1),出力前1!S45,出力前!R45)))) -> 570 | S40: =IF(J40>100,"",IF(ISERROR(出力前!S45),"",IF(出力前!R45=0,"",出力前!S45))) -> 340 | T40: =IF(J40>100,"",IF(ISERROR(出力前!T45),"",IF(AND($C$2="あり",出力前!$AK$14=1),出力前1!U45,出力前!T45))) -> 0.46 | U40: 70.7 | V40: =IF(ISERROR(出力前!U45),"",IF(AND($C$2="あり",出力前!$AK$14=1),出力前1!V45,出力前!U45)) -> 399 | W40: =IF(ISERROR(出力前!V45),"",IF(AND($C$2="あり",出力前!$AK$14=1),出力前1!W45,出力前!V45)) -> 238 | X40: =IF(ISERROR(出力前!W45),"",IF(AND($C$2="あり",出力前!$AK$14=1),出力前1!X45,出力前!W45)) -> 0.33 | Y40: =IF(ISERROR(出力前!X45),"",IF(AND($C$2="あり",出力前!$AK$14=1),出力前1!Y45,出力前!X45)) -> 171 | Z40: =IF(ISERROR(出力前!Y45),"",IF(AND($C$2="あり",出力前!$AK$14=1),出力前1!Z45,出力前!Y45)) -> 30 | AA40: =IF(ISERROR(出力前!Z45),"",IF(AND($C$2="あり",出力前!$AK$14=1),出力前1!AA45,出力前!Z45)) -> 102 | AB40: =IF(ISERROR(出力前!AA45),"",IF(AND($C$2="あり",出力前!$AK$14=1),出力前1!AB45,出力前!AA45)) -> 30 | AC40: =IF(ISERROR(出力前!AB45),"",IF(AND($C$2="あり",出力前!$AK$14=1),出力前1!AC45,出力前!AB45)) -> 26.7 | AD40: =IF(ISERROR(出力前!AC45),"",IF(AND($C$2="あり",出力前!$AK$14=1),出力前1!AD45,出力前!AC45)) -> 420 | AE40: =IF(J40>100,"",IF(ISERROR(出力前!AD45),"",IF(AND($C$2="あり",出力前!$AK$14=1),出力前1!AE45,出力前!AD45))) -> 658 | AF40: =IF(J40>100,"",IF(ISERROR(出力前!AE45),"",IF(AND($C$2="あり",出力前!$AK$14=1),出力前1!AF45,出力前!AE45))) -> 10.2 | AG40: =IF(ISERROR(出力前!AF45),"",IF(AND($C$2="あり",出力前!$AK$14=1),出力前1!AG45,出力前!AF45)) -> 4 | AH40: =IF(ISERROR(出力前!AG45),"",IF(AND($C$2="あり",出力前!$AK$14=1),出力前1!AH45,出力前!AG45)) -> 6 | AI40: =IF(J40>100,"",IF(ISERROR(出力前!AH45),"",IF(AND($C$2="あり",出力前!$AK$14=1),出力前1!AI45,出力前!AH45))) -> 12
B41: 29 | C41: 16.2 | D41: 14.3 | F41: 56 | G41: 58 | J41: =出力前!J46 -> 54 | M41: =IF(ISERROR(出力前!M46),"",出力前!M46) ->  | N41: =IF(J41>100,"",出力前!N46) -> 54 | O41: =IF(J41>100,"",出力前!O46) -> 22.2 | P41: =IF(J41>100,"",IF(ISERROR(出力前!P46),"",IF(AND($C$2="あり",出力前!$AK$14=1),出力前1!Q46,出力前!P46))) -> 0.62 | Q41: =IF(J41>100,"",IF(ISERROR(出力前!Q46),"",IF(AND($C$2="あり",出力前!$AK$14=1),出力前1!R46,出力前!Q46))) -> 27.1 | R41: =IF(J41>100,"",IF(ISERROR(出力前!R46),"",IF(出力前!R46=0,"",IF(AND($C$2="あり",出力前!$AK$14=1),出力前1!S46,出力前!R46)))) -> 399 | S41: =IF(J41>100,"",IF(ISERROR(出力前!S46),"",IF(出力前!R46=0,"",出力前!S46))) -> 248 | T41: =IF(J41>100,"",IF(ISERROR(出力前!T46),"",IF(AND($C$2="あり",出力前!$AK$14=1),出力前1!U46,出力前!T46))) -> 0.34 | U41: 70.3 | V41: =IF(ISERROR(出力前!U46),"",IF(AND($C$2="あり",出力前!$AK$14=1),出力前1!V46,出力前!U46)) ->  | W41: =IF(ISERROR(出力前!V46),"",IF(AND($C$2="あり",出力前!$AK$14=1),出力前1!W46,出力前!V46)) ->  | X41: =IF(ISERROR(出力前!W46),"",IF(AND($C$2="あり",出力前!$AK$14=1),出力前1!X46,出力前!W46)) ->  | Y41: =IF(ISERROR(出力前!X46),"",IF(AND($C$2="あり",出力前!$AK$14=1),出力前1!Y46,出力前!X46)) ->  | Z41: =IF(ISERROR(出力前!Y46),"",IF(AND($C$2="あり",出力前!$AK$14=1),出力前1!Z46,出力前!Y46)) ->  | AA41: =IF(ISERROR(出力前!Z46),"",IF(AND($C$2="あり",出力前!$AK$14=1),出力前1!AA46,出力前!Z46)) ->  | AB41: =IF(ISERROR(出力前!AA46),"",IF(AND($C$2="あり",出力前!$AK$14=1),出力前1!AB46,出力前!AA46)) ->  | AC41: =IF(ISERROR(出力前!AB46),"",IF(AND($C$2="あり",出力前!$AK$14=1),出力前1!AC46,出力前!AB46)) ->  | AD41: =IF(ISERROR(出力前!AC46),"",IF(AND($C$2="あり",出力前!$AK$14=1),出力前1!AD46,出力前!AC46)) ->  | AE41: =IF(J41>100,"",IF(ISERROR(出力前!AD46),"",IF(AND($C$2="あり",出力前!$AK$14=1),出力前1!AE46,出力前!AD46))) -> 668 | AF41: =IF(J41>100,"",IF(ISERROR(出力前!AE46),"",IF(AND($C$2="あり",出力前!$AK$14=1),出力前1!AF46,出力前!AE46))) -> 10.0 | AG41: =IF(ISERROR(出力前!AF46),"",IF(AND($C$2="あり",出力前!$AK$14=1),出力前1!AG46,出力前!AF46)) ->  | AH41: =IF(ISERROR(出力前!AG46),"",IF(AND($C$2="あり",出力前!$AK$14=1),出力前1!AH46,出力前!AG46)) ->  | AI41: =IF(J41>100,"",IF(ISERROR(出力前!AH46),"",IF(AND($C$2="あり",出力前!$AK$14=1),出力前1!AI46,出力前!AH46))) -> 12
B42: 30 | C42: 16.1 | D42: 12.6 | F42: 58 | G42: 60 | J42: =出力前!J47 -> 55 | M42: =IF(ISERROR(出力前!M47),"",出力前!M47) ->  | N42: =IF(J42>100,"",出力前!N47) -> 55 | O42: =IF(J42>100,"",出力前!O47) -> 22.4 | P42: =IF(J42>100,"",IF(ISERROR(出力前!P47),"",IF(AND($C$2="あり",出力前!$AK$14=1),出力前1!Q47,出力前!P47))) -> 0.65 | Q42: =IF(J42>100,"",IF(ISERROR(出力前!Q47),"",IF(AND($C$2="あり",出力前!$AK$14=1),出力前1!R47,出力前!Q47))) -> 27.6 | R42: =IF(J42>100,"",IF(ISERROR(出力前!R47),"",IF(出力前!R47=0,"",IF(AND($C$2="あり",出力前!$AK$14=1),出力前1!S47,出力前!R47)))) -> 396 | S42: =IF(J42>100,"",IF(ISERROR(出力前!S47),"",IF(出力前!R47=0,"",出力前!S47))) -> 258 | T42: =IF(J42>100,"",IF(ISERROR(出力前!T47),"",IF(AND($C$2="あり",出力前!$AK$14=1),出力前1!U47,出力前!T47))) -> 0.35 | U42: 69.6 | V42: =IF(ISERROR(出力前!U47),"",IF(AND($C$2="あり",出力前!$AK$14=1),出力前1!V47,出力前!U47)) ->  | W42: =IF(ISERROR(出力前!V47),"",IF(AND($C$2="あり",出力前!$AK$14=1),出力前1!W47,出力前!V47)) ->  | X42: =IF(ISERROR(出力前!W47),"",IF(AND($C$2="あり",出力前!$AK$14=1),出力前1!X47,出力前!W47)) ->  | Y42: =IF(ISERROR(出力前!X47),"",IF(AND($C$2="あり",出力前!$AK$14=1),出力前1!Y47,出力前!X47)) ->  | Z42: =IF(ISERROR(出力前!Y47),"",IF(AND($C$2="あり",出力前!$AK$14=1),出力前1!Z47,出力前!Y47)) ->  | AA42: =IF(ISERROR(出力前!Z47),"",IF(AND($C$2="あり",出力前!$AK$14=1),出力前1!AA47,出力前!Z47)) ->  | AB42: =IF(ISERROR(出力前!AA47),"",IF(AND($C$2="あり",出力前!$AK$14=1),出力前1!AB47,出力前!AA47)) ->  | AC42: =IF(ISERROR(出力前!AB47),"",IF(AND($C$2="あり",出力前!$AK$14=1),出力前1!AC47,出力前!AB47)) ->  | AD42: =IF(ISERROR(出力前!AC47),"",IF(AND($C$2="あり",出力前!$AK$14=1),出力前1!AD47,出力前!AC47)) ->  | AE42: =IF(J42>100,"",IF(ISERROR(出力前!AD47),"",IF(AND($C$2="あり",出力前!$AK$14=1),出力前1!AE47,出力前!AD47))) -> 678 | AF42: =IF(J42>100,"",IF(ISERROR(出力前!AE47),"",IF(AND($C$2="あり",出力前!$AK$14=1),出力前1!AF47,出力前!AE47))) -> 9.9 | AG42: =IF(ISERROR(出力前!AF47),"",IF(AND($C$2="あり",出力前!$AK$14=1),出力前1!AG47,出力前!AF47)) ->  | AH42: =IF(ISERROR(出力前!AG47),"",IF(AND($C$2="あり",出力前!$AK$14=1),出力前1!AH47,出力前!AG47)) ->  | AI42: =IF(J42>100,"",IF(ISERROR(出力前!AH47),"",IF(AND($C$2="あり",出力前!$AK$14=1),出力前1!AI47,出力前!AH47))) -> 12
B43: 31 | C43: 16 | D43: 14.8 | F43: 60 | G43: 62 | J43: =出力前!J48 -> 56 | M43: =IF(ISERROR(出力前!M48),"",出力前!M48) ->  | N43: =IF(J43>100,"",出力前!N48) -> 56 | O43: =IF(J43>100,"",出力前!O48) -> 22.6 | P43: =IF(J43>100,"",IF(ISERROR(出力前!P48),"",IF(AND($C$2="あり",出力前!$AK$14=1),出力前1!Q48,出力前!P48))) -> 0.68 | Q43: =IF(J43>100,"",IF(ISERROR(出力前!Q48),"",IF(AND($C$2="あり",出力前!$AK$14=1),出力前1!R48,出力前!Q48))) -> 28.2 | R43: =IF(J43>100,"",IF(ISERROR(出力前!R48),"",IF(出力前!R48=0,"",IF(AND($C$2="あり",出力前!$AK$14=1),出力前1!S48,出力前!R48)))) -> 394 | S43: =IF(J43>100,"",IF(ISERROR(出力前!S48),"",IF(出力前!R48=0,"",出力前!S48))) -> 268 | T43: =IF(J43>100,"",IF(ISERROR(出力前!T48),"",IF(AND($C$2="あり",出力前!$AK$14=1),出力前1!U48,出力前!T48))) -> 0.36 | U43: 69.0 | V43: =IF(ISERROR(出力前!U48),"",IF(AND($C$2="あり",出力前!$AK$14=1),出力前1!V48,出力前!U48)) ->  | W43: =IF(ISERROR(出力前!V48),"",IF(AND($C$2="あり",出力前!$AK$14=1),出力前1!W48,出力前!V48)) ->  | X43: =IF(ISERROR(出力前!W48),"",IF(AND($C$2="あり",出力前!$AK$14=1),出力前1!X48,出力前!W48)) ->  | Y43: =IF(ISERROR(出力前!X48),"",IF(AND($C$2="あり",出力前!$AK$14=1),出力前1!Y48,出力前!X48)) ->  | Z43: =IF(ISERROR(出力前!Y48),"",IF(AND($C$2="あり",出力前!$AK$14=1),出力前1!Z48,出力前!Y48)) ->  | AA43: =IF(ISERROR(出力前!Z48),"",IF(AND($C$2="あり",出力前!$AK$14=1),出力前1!AA48,出力前!Z48)) ->  | AB43: =IF(ISERROR(出力前!AA48),"",IF(AND($C$2="あり",出力前!$AK$14=1),出力前1!AB48,出力前!AA48)) ->  | AC43: =IF(ISERROR(出力前!AB48),"",IF(AND($C$2="あり",出力前!$AK$14=1),出力前1!AC48,出力前!AB48)) ->  | AD43: =IF(ISERROR(出力前!AC48),"",IF(AND($C$2="あり",出力前!$AK$14=1),出力前1!AD48,出力前!AC48)) ->  | AE43: =IF(J43>100,"",IF(ISERROR(出力前!AD48),"",IF(AND($C$2="あり",出力前!$AK$14=1),出力前1!AE48,出力前!AD48))) -> 688 | AF43: =IF(J43>100,"",IF(ISERROR(出力前!AE48),"",IF(AND($C$2="あり",出力前!$AK$14=1),出力前1!AF48,出力前!AE48))) -> 9.7 | AG43: =IF(ISERROR(出力前!AF48),"",IF(AND($C$2="あり",出力前!$AK$14=1),出力前1!AG48,出力前!AF48)) ->  | AH43: =IF(ISERROR(出力前!AG48),"",IF(AND($C$2="あり",出力前!$AK$14=1),出力前1!AH48,出力前!AG48)) ->  | AI43: =IF(J43>100,"",IF(ISERROR(出力前!AH48),"",IF(AND($C$2="あり",出力前!$AK$14=1),出力前1!AI48,出力前!AH48))) -> 12
B44: 32 | C44: 16 | D44: 14.5 | F44: 62 | G44: 64 | J44: =出力前!J49 -> 57 | M44: =IF(ISERROR(出力前!M49),"",出力前!M49) ->  | N44: =IF(J44>100,"",出力前!N49) -> 57 | O44: =IF(J44>100,"",出力前!O49) -> 22.8 | P44: =IF(J44>100,"",IF(ISERROR(出力前!P49),"",IF(AND($C$2="あり",出力前!$AK$14=1),出力前1!Q49,出力前!P49))) -> 0.71 | Q44: =IF(J44>100,"",IF(ISERROR(出力前!Q49),"",IF(AND($C$2="あり",出力前!$AK$14=1),出力前1!R49,出力前!Q49))) -> 28.7 | R44: =IF(J44>100,"",IF(ISERROR(出力前!R49),"",IF(出力前!R49=0,"",IF(AND($C$2="あり",出力前!$AK$14=1),出力前1!S49,出力前!R49)))) -> 391 | S44: =IF(J44>100,"",IF(ISERROR(出力前!S49),"",IF(出力前!R49=0,"",出力前!S49))) -> 278 | T44: =IF(J44>100,"",IF(ISERROR(出力前!T49),"",IF(AND($C$2="あり",出力前!$AK$14=1),出力前1!U49,出力前!T49))) -> 0.37 | U44: 68.4 | V44: =IF(ISERROR(出力前!U49),"",IF(AND($C$2="あり",出力前!$AK$14=1),出力前1!V49,出力前!U49)) ->  | W44: =IF(ISERROR(出力前!V49),"",IF(AND($C$2="あり",出力前!$AK$14=1),出力前1!W49,出力前!V49)) ->  | X44: =IF(ISERROR(出力前!W49),"",IF(AND($C$2="あり",出力前!$AK$14=1),出力前1!X49,出力前!W49)) ->  | Y44: =IF(ISERROR(出力前!X49),"",IF(AND($C$2="あり",出力前!$AK$14=1),出力前1!Y49,出力前!X49)) ->  | Z44: =IF(ISERROR(出力前!Y49),"",IF(AND($C$2="あり",出力前!$AK$14=1),出力前1!Z49,出力前!Y49)) ->  | AA44: =IF(ISERROR(出力前!Z49),"",IF(AND($C$2="あり",出力前!$AK$14=1),出力前1!AA49,出力前!Z49)) ->  | AB44: =IF(ISERROR(出力前!AA49),"",IF(AND($C$2="あり",出力前!$AK$14=1),出力前1!AB49,出力前!AA49)) ->  | AC44: =IF(ISERROR(出力前!AB49),"",IF(AND($C$2="あり",出力前!$AK$14=1),出力前1!AC49,出力前!AB49)) ->  | AD44: =IF(ISERROR(出力前!AC49),"",IF(AND($C$2="あり",出力前!$AK$14=1),出力前1!AD49,出力前!AC49)) ->  | AE44: =IF(J44>100,"",IF(ISERROR(出力前!AD49),"",IF(AND($C$2="あり",出力前!$AK$14=1),出力前1!AE49,出力前!AD49))) -> 698 | AF44: =IF(J44>100,"",IF(ISERROR(出力前!AE49),"",IF(AND($C$2="あり",出力前!$AK$14=1),出力前1!AF49,出力前!AE49))) -> 9.6 | AG44: =IF(ISERROR(出力前!AF49),"",IF(AND($C$2="あり",出力前!$AK$14=1),出力前1!AG49,出力前!AF49)) ->  | AH44: =IF(ISERROR(出力前!AG49),"",IF(AND($C$2="あり",出力前!$AK$14=1),出力前1!AH49,出力前!AG49)) ->  | AI44: =IF(J44>100,"",IF(ISERROR(出力前!AH49),"",IF(AND($C$2="あり",出力前!$AK$14=1),出力前1!AI49,出力前!AH49))) -> 12
B45: 33 | C45: 16 | D45: 14.5 | F45: 64 | G45: =F45+$C$5 -> 66 | J45: =出力前!J50 -> 58 | M45: =IF(ISERROR(出力前!M50),"",出力前!M50) ->  | N45: =IF(J45>100,"",出力前!N50) -> 58 | O45: =IF(J45>100,"",出力前!O50) -> 23.0 | P45: =IF(J45>100,"",IF(ISERROR(出力前!P50),"",IF(AND($C$2="あり",出力前!$AK$14=1),出力前1!Q50,出力前!P50))) -> 0.74 | Q45: =IF(J45>100,"",IF(ISERROR(出力前!Q50),"",IF(AND($C$2="あり",出力前!$AK$14=1),出力前1!R50,出力前!Q50))) -> 29.2 | R45: =IF(J45>100,"",IF(ISERROR(出力前!R50),"",IF(出力前!R50=0,"",IF(AND($C$2="あり",出力前!$AK$14=1),出力前1!S50,出力前!R50)))) -> 389 | S45: =IF(J45>100,"",IF(ISERROR(出力前!S50),"",IF(出力前!R50=0,"",出力前!S50))) -> 287 | T45: =IF(J45>100,"",IF(ISERROR(出力前!T50),"",IF(AND($C$2="あり",出力前!$AK$14=1),出力前1!U50,出力前!T50))) -> 0.37 | U45: 67.9 | V45: =IF(ISERROR(出力前!U50),"",IF(AND($C$2="あり",出力前!$AK$14=1),出力前1!V50,出力前!U50)) ->  | W45: =IF(ISERROR(出力前!V50),"",IF(AND($C$2="あり",出力前!$AK$14=1),出力前1!W50,出力前!V50)) ->  | X45: =IF(ISERROR(出力前!W50),"",IF(AND($C$2="あり",出力前!$AK$14=1),出力前1!X50,出力前!W50)) ->  | Y45: =IF(ISERROR(出力前!X50),"",IF(AND($C$2="あり",出力前!$AK$14=1),出力前1!Y50,出力前!X50)) ->  | Z45: =IF(ISERROR(出力前!Y50),"",IF(AND($C$2="あり",出力前!$AK$14=1),出力前1!Z50,出力前!Y50)) ->  | AA45: =IF(ISERROR(出力前!Z50),"",IF(AND($C$2="あり",出力前!$AK$14=1),出力前1!AA50,出力前!Z50)) ->  | AB45: =IF(ISERROR(出力前!AA50),"",IF(AND($C$2="あり",出力前!$AK$14=1),出力前1!AB50,出力前!AA50)) ->  | AC45: =IF(ISERROR(出力前!AB50),"",IF(AND($C$2="あり",出力前!$AK$14=1),出力前1!AC50,出力前!AB50)) ->  | AD45: =IF(ISERROR(出力前!AC50),"",IF(AND($C$2="あり",出力前!$AK$14=1),出力前1!AD50,出力前!AC50)) ->  | AE45: =IF(J45>100,"",IF(ISERROR(出力前!AD50),"",IF(AND($C$2="あり",出力前!$AK$14=1),出力前1!AE50,出力前!AD50))) -> 708 | AF45: =IF(J45>100,"",IF(ISERROR(出力前!AE50),"",IF(AND($C$2="あり",出力前!$AK$14=1),出力前1!AF50,出力前!AE50))) -> 9.4 | AG45: =IF(ISERROR(出力前!AF50),"",IF(AND($C$2="あり",出力前!$AK$14=1),出力前1!AG50,出力前!AF50)) ->  | AH45: =IF(ISERROR(出力前!AG50),"",IF(AND($C$2="あり",出力前!$AK$14=1),出力前1!AH50,出力前!AG50)) ->  | AI45: =IF(J45>100,"",IF(ISERROR(出力前!AH50),"",IF(AND($C$2="あり",出力前!$AK$14=1),出力前1!AI50,出力前!AH50))) -> 12
B46: 34 | C46: 15.9 | D46: 14.6 | F46: 66 | G46: 68 | J46: =出力前!J51 -> 59 | M46: =IF(ISERROR(出力前!M51),"",出力前!M51) ->  | N46: =IF(J46>100,"",出力前!N51) -> 59 | O46: =IF(J46>100,"",出力前!O51) -> 23.2 | P46: =IF(J46>100,"",IF(ISERROR(出力前!P51),"",IF(AND($C$2="あり",出力前!$AK$14=1),出力前1!Q51,出力前!P51))) -> 0.77 | Q46: =IF(J46>100,"",IF(ISERROR(出力前!Q51),"",IF(AND($C$2="あり",出力前!$AK$14=1),出力前1!R51,出力前!Q51))) -> 29.6 | R46: =IF(J46>100,"",IF(ISERROR(出力前!R51),"",IF(出力前!R51=0,"",IF(AND($C$2="あり",出力前!$AK$14=1),出力前1!S51,出力前!R51)))) -> 386 | S46: =IF(J46>100,"",IF(ISERROR(出力前!S51),"",IF(出力前!R51=0,"",出力前!S51))) -> 297 | T46: =IF(J46>100,"",IF(ISERROR(出力前!T51),"",IF(AND($C$2="あり",出力前!$AK$14=1),出力前1!U51,出力前!T51))) -> 0.38 | U46: 67.4 | V46: =IF(ISERROR(出力前!U51),"",IF(AND($C$2="あり",出力前!$AK$14=1),出力前1!V51,出力前!U51)) ->  | W46: =IF(ISERROR(出力前!V51),"",IF(AND($C$2="あり",出力前!$AK$14=1),出力前1!W51,出力前!V51)) ->  | X46: =IF(ISERROR(出力前!W51),"",IF(AND($C$2="あり",出力前!$AK$14=1),出力前1!X51,出力前!W51)) ->  | Y46: =IF(ISERROR(出力前!X51),"",IF(AND($C$2="あり",出力前!$AK$14=1),出力前1!Y51,出力前!X51)) ->  | Z46: =IF(ISERROR(出力前!Y51),"",IF(AND($C$2="あり",出力前!$AK$14=1),出力前1!Z51,出力前!Y51)) ->  | AA46: =IF(ISERROR(出力前!Z51),"",IF(AND($C$2="あり",出力前!$AK$14=1),出力前1!AA51,出力前!Z51)) ->  | AB46: =IF(ISERROR(出力前!AA51),"",IF(AND($C$2="あり",出力前!$AK$14=1),出力前1!AB51,出力前!AA51)) ->  | AC46: =IF(ISERROR(出力前!AB51),"",IF(AND($C$2="あり",出力前!$AK$14=1),出力前1!AC51,出力前!AB51)) ->  | AD46: =IF(ISERROR(出力前!AC51),"",IF(AND($C$2="あり",出力前!$AK$14=1),出力前1!AD51,出力前!AC51)) ->  | AE46: =IF(J46>100,"",IF(ISERROR(出力前!AD51),"",IF(AND($C$2="あり",出力前!$AK$14=1),出力前1!AE51,出力前!AD51))) -> 717 | AF46: =IF(J46>100,"",IF(ISERROR(出力前!AE51),"",IF(AND($C$2="あり",出力前!$AK$14=1),出力前1!AF51,出力前!AE51))) -> 9.3 | AG46: =IF(ISERROR(出力前!AF51),"",IF(AND($C$2="あり",出力前!$AK$14=1),出力前1!AG51,出力前!AF51)) ->  | AH46: =IF(ISERROR(出力前!AG51),"",IF(AND($C$2="あり",出力前!$AK$14=1),出力前1!AH51,出力前!AG51)) ->  | AI46: =IF(J46>100,"",IF(ISERROR(出力前!AH51),"",IF(AND($C$2="あり",出力前!$AK$14=1),出力前1!AI51,出力前!AH51))) -> 12
B47: 35 | C47: 15.8 | D47: 14.3 | F47: 68 | G47: 70 | J47: =出力前!J52 -> 60 | M47: =IF(ISERROR(出力前!M52),"",出力前!M52) ->  | N47: =IF(J47>100,"",出力前!N52) -> 60 | O47: =IF(J47>100,"",出力前!O52) -> 23.4 | P47: =IF(J47>100,"",IF(ISERROR(出力前!P52),"",IF(AND($C$2="あり",出力前!$AK$14=1),出力前1!Q52,出力前!P52))) -> 0.80 | Q47: =IF(J47>100,"",IF(ISERROR(出力前!Q52),"",IF(AND($C$2="あり",出力前!$AK$14=1),出力前1!R52,出力前!Q52))) -> 30.1 | R47: =IF(J47>100,"",IF(ISERROR(出力前!R52),"",IF(出力前!R52=0,"",IF(AND($C$2="あり",出力前!$AK$14=1),出力前1!S52,出力前!R52)))) -> 384 | S47: =IF(J47>100,"",IF(ISERROR(出力前!S52),"",IF(出力前!R52=0,"",出力前!S52))) -> 306 | T47: =IF(J47>100,"",IF(ISERROR(出力前!T52),"",IF(AND($C$2="あり",出力前!$AK$14=1),出力前1!U52,出力前!T52))) -> 0.39 | U47: 67.0 | V47: =IF(ISERROR(出力前!U52),"",IF(AND($C$2="あり",出力前!$AK$14=1),出力前1!V52,出力前!U52)) ->  | W47: =IF(ISERROR(出力前!V52),"",IF(AND($C$2="あり",出力前!$AK$14=1),出力前1!W52,出力前!V52)) ->  | X47: =IF(ISERROR(出力前!W52),"",IF(AND($C$2="あり",出力前!$AK$14=1),出力前1!X52,出力前!W52)) ->  | Y47: =IF(ISERROR(出力前!X52),"",IF(AND($C$2="あり",出力前!$AK$14=1),出力前1!Y52,出力前!X52)) ->  | Z47: =IF(ISERROR(出力前!Y52),"",IF(AND($C$2="あり",出力前!$AK$14=1),出力前1!Z52,出力前!Y52)) ->  | AA47: =IF(ISERROR(出力前!Z52),"",IF(AND($C$2="あり",出力前!$AK$14=1),出力前1!AA52,出力前!Z52)) ->  | AB47: =IF(ISERROR(出力前!AA52),"",IF(AND($C$2="あり",出力前!$AK$14=1),出力前1!AB52,出力前!AA52)) ->  | AC47: =IF(ISERROR(出力前!AB52),"",IF(AND($C$2="あり",出力前!$AK$14=1),出力前1!AC52,出力前!AB52)) ->  | AD47: =IF(ISERROR(出力前!AC52),"",IF(AND($C$2="あり",出力前!$AK$14=1),出力前1!AD52,出力前!AC52)) ->  | AE47: =IF(J47>100,"",IF(ISERROR(出力前!AD52),"",IF(AND($C$2="あり",出力前!$AK$14=1),出力前1!AE52,出力前!AD52))) -> 726 | AF47: =IF(J47>100,"",IF(ISERROR(出力前!AE52),"",IF(AND($C$2="あり",出力前!$AK$14=1),出力前1!AF52,出力前!AE52))) -> 9.1 | AG47: =IF(ISERROR(出力前!AF52),"",IF(AND($C$2="あり",出力前!$AK$14=1),出力前1!AG52,出力前!AF52)) ->  | AH47: =IF(ISERROR(出力前!AG52),"",IF(AND($C$2="あり",出力前!$AK$14=1),出力前1!AH52,出力前!AG52)) ->  | AI47: =IF(J47>100,"",IF(ISERROR(出力前!AH52),"",IF(AND($C$2="あり",出力前!$AK$14=1),出力前1!AI52,出力前!AH52))) -> 12
B48: 36 | C48: 15.8 | D48: 13 | F48: 70 | G48: 72 | J48: =出力前!J53 -> 61 | M48: =IF(ISERROR(出力前!M53),"",出力前!M53) ->  | N48: =IF(J48>100,"",出力前!N53) -> 61 | O48: =IF(J48>100,"",出力前!O53) -> 23.6 | P48: =IF(J48>100,"",IF(ISERROR(出力前!P53),"",IF(AND($C$2="あり",出力前!$AK$14=1),出力前1!Q53,出力前!P53))) -> 0.83 | Q48: =IF(J48>100,"",IF(ISERROR(出力前!Q53),"",IF(AND($C$2="あり",出力前!$AK$14=1),出力前1!R53,出力前!Q53))) -> 30.5 | R48: =IF(J48>100,"",IF(ISERROR(出力前!R53),"",IF(出力前!R53=0,"",IF(AND($C$2="あり",出力前!$AK$14=1),出力前1!S53,出力前!R53)))) -> 381 | S48: =IF(J48>100,"",IF(ISERROR(出力前!S53),"",IF(出力前!R53=0,"",出力前!S53))) -> 315 | T48: =IF(J48>100,"",IF(ISERROR(出力前!T53),"",IF(AND($C$2="あり",出力前!$AK$14=1),出力前1!U53,出力前!T53))) -> 0.39 | U48: 66.6 | V48: =IF(ISERROR(出力前!U53),"",IF(AND($C$2="あり",出力前!$AK$14=1),出力前1!V53,出力前!U53)) ->  | W48: =IF(ISERROR(出力前!V53),"",IF(AND($C$2="あり",出力前!$AK$14=1),出力前1!W53,出力前!V53)) ->  | X48: =IF(ISERROR(出力前!W53),"",IF(AND($C$2="あり",出力前!$AK$14=1),出力前1!X53,出力前!W53)) ->  | Y48: =IF(ISERROR(出力前!X53),"",IF(AND($C$2="あり",出力前!$AK$14=1),出力前1!Y53,出力前!X53)) ->  | Z48: =IF(ISERROR(出力前!Y53),"",IF(AND($C$2="あり",出力前!$AK$14=1),出力前1!Z53,出力前!Y53)) ->  | AA48: =IF(ISERROR(出力前!Z53),"",IF(AND($C$2="あり",出力前!$AK$14=1),出力前1!AA53,出力前!Z53)) ->  | AB48: =IF(ISERROR(出力前!AA53),"",IF(AND($C$2="あり",出力前!$AK$14=1),出力前1!AB53,出力前!AA53)) ->  | AC48: =IF(ISERROR(出力前!AB53),"",IF(AND($C$2="あり",出力前!$AK$14=1),出力前1!AC53,出力前!AB53)) ->  | AD48: =IF(ISERROR(出力前!AC53),"",IF(AND($C$2="あり",出力前!$AK$14=1),出力前1!AD53,出力前!AC53)) ->  | AE48: =IF(J48>100,"",IF(ISERROR(出力前!AD53),"",IF(AND($C$2="あり",出力前!$AK$14=1),出力前1!AE53,出力前!AD53))) -> 735 | AF48: =IF(J48>100,"",IF(ISERROR(出力前!AE53),"",IF(AND($C$2="あり",出力前!$AK$14=1),出力前1!AF53,出力前!AE53))) -> 9.0 | AG48: =IF(ISERROR(出力前!AF53),"",IF(AND($C$2="あり",出力前!$AK$14=1),出力前1!AG53,出力前!AF53)) ->  | AH48: =IF(ISERROR(出力前!AG53),"",IF(AND($C$2="あり",出力前!$AK$14=1),出力前1!AH53,出力前!AG53)) ->  | AI48: =IF(J48>100,"",IF(ISERROR(出力前!AH53),"",IF(AND($C$2="あり",出力前!$AK$14=1),出力前1!AI53,出力前!AH53))) -> 12
B49: 37 | C49: 15.7 | D49: 13 | F49: 72 | G49: 74 | J49: =出力前!J54 -> 62 | M49: =IF(ISERROR(出力前!M54),"",出力前!M54) ->  | N49: =IF(J49>100,"",出力前!N54) -> 62 | O49: =IF(J49>100,"",出力前!O54) -> 23.8 | P49: =IF(J49>100,"",IF(ISERROR(出力前!P54),"",IF(AND($C$2="あり",出力前!$AK$14=1),出力前1!Q54,出力前!P54))) -> 0.86 | Q49: =IF(J49>100,"",IF(ISERROR(出力前!Q54),"",IF(AND($C$2="あり",出力前!$AK$14=1),出力前1!R54,出力前!Q54))) -> 31.0 | R49: =IF(J49>100,"",IF(ISERROR(出力前!R54),"",IF(出力前!R54=0,"",IF(AND($C$2="あり",出力前!$AK$14=1),出力前1!S54,出力前!R54)))) -> 379 | S49: =IF(J49>100,"",IF(ISERROR(出力前!S54),"",IF(出力前!R54=0,"",出力前!S54))) -> 324 | T49: =IF(J49>100,"",IF(ISERROR(出力前!T54),"",IF(AND($C$2="あり",出力前!$AK$14=1),出力前1!U54,出力前!T54))) -> 0.40 | U49: 66.1 | V49: =IF(ISERROR(出力前!U54),"",IF(AND($C$2="あり",出力前!$AK$14=1),出力前1!V54,出力前!U54)) ->  | W49: =IF(ISERROR(出力前!V54),"",IF(AND($C$2="あり",出力前!$AK$14=1),出力前1!W54,出力前!V54)) ->  | X49: =IF(ISERROR(出力前!W54),"",IF(AND($C$2="あり",出力前!$AK$14=1),出力前1!X54,出力前!W54)) ->  | Y49: =IF(ISERROR(出力前!X54),"",IF(AND($C$2="あり",出力前!$AK$14=1),出力前1!Y54,出力前!X54)) ->  | Z49: =IF(ISERROR(出力前!Y54),"",IF(AND($C$2="あり",出力前!$AK$14=1),出力前1!Z54,出力前!Y54)) ->  | AA49: =IF(ISERROR(出力前!Z54),"",IF(AND($C$2="あり",出力前!$AK$14=1),出力前1!AA54,出力前!Z54)) ->  | AB49: =IF(ISERROR(出力前!AA54),"",IF(AND($C$2="あり",出力前!$AK$14=1),出力前1!AB54,出力前!AA54)) ->  | AC49: =IF(ISERROR(出力前!AB54),"",IF(AND($C$2="あり",出力前!$AK$14=1),出力前1!AC54,出力前!AB54)) ->  | AD49: =IF(ISERROR(出力前!AC54),"",IF(AND($C$2="あり",出力前!$AK$14=1),出力前1!AD54,出力前!AC54)) ->  | AE49: =IF(J49>100,"",IF(ISERROR(出力前!AD54),"",IF(AND($C$2="あり",出力前!$AK$14=1),出力前1!AE54,出力前!AD54))) -> 744 | AF49: =IF(J49>100,"",IF(ISERROR(出力前!AE54),"",IF(AND($C$2="あり",出力前!$AK$14=1),出力前1!AF54,出力前!AE54))) -> 8.8 | AG49: =IF(ISERROR(出力前!AF54),"",IF(AND($C$2="あり",出力前!$AK$14=1),出力前1!AG54,出力前!AF54)) ->  | AH49: =IF(ISERROR(出力前!AG54),"",IF(AND($C$2="あり",出力前!$AK$14=1),出力前1!AH54,出力前!AG54)) ->  | AI49: =IF(J49>100,"",IF(ISERROR(出力前!AH54),"",IF(AND($C$2="あり",出力前!$AK$14=1),出力前1!AI54,出力前!AH54))) -> 12
B50: 38 | C50: 15.7 | D50: 12.6 | F50: 74 | G50: 76 | J50: =出力前!J55 -> 63 | K50: 30 | M50: =IF(ISERROR(出力前!M55),"",出力前!M55) ->  | N50: =IF(J50>100,"",出力前!N55) -> 63 | O50: =IF(J50>100,"",出力前!O55) -> 24.0 | P50: =IF(J50>100,"",IF(ISERROR(出力前!P55),"",IF(AND($C$2="あり",出力前!$AK$14=1),出力前1!Q55,出力前!P55))) -> 0.88 | Q50: =IF(J50>100,"",IF(ISERROR(出力前!Q55),"",IF(AND($C$2="あり",出力前!$AK$14=1),出力前1!R55,出力前!Q55))) -> 31.4 | R50: =IF(J50>100,"",IF(ISERROR(出力前!R55),"",IF(出力前!R55=0,"",IF(AND($C$2="あり",出力前!$AK$14=1),出力前1!S55,出力前!R55)))) -> 376 | S50: =IF(J50>100,"",IF(ISERROR(出力前!S55),"",IF(出力前!R55=0,"",出力前!S55))) -> 333 | T50: =IF(J50>100,"",IF(ISERROR(出力前!T55),"",IF(AND($C$2="あり",出力前!$AK$14=1),出力前1!U55,出力前!T55))) -> 0.41 | U50: 65.7 | V50: =IF(ISERROR(出力前!U55),"",IF(AND($C$2="あり",出力前!$AK$14=1),出力前1!V55,出力前!U55)) -> 264 | W50: =IF(ISERROR(出力前!V55),"",IF(AND($C$2="あり",出力前!$AK$14=1),出力前1!W55,出力前!V55)) -> 233 | X50: =IF(ISERROR(出力前!W55),"",IF(AND($C$2="あり",出力前!$AK$14=1),出力前1!X55,出力前!W55)) -> 0.29 | Y50: =IF(ISERROR(出力前!X55),"",IF(AND($C$2="あり",出力前!$AK$14=1),出力前1!Y55,出力前!X55)) -> 113 | Z50: =IF(ISERROR(出力前!Y55),"",IF(AND($C$2="あり",出力前!$AK$14=1),出力前1!Z55,出力前!Y55)) -> 30 | AA50: =IF(ISERROR(出力前!Z55),"",IF(AND($C$2="あり",出力前!$AK$14=1),出力前1!AA55,出力前!Z55)) -> 100 | AB50: =IF(ISERROR(出力前!AA55),"",IF(AND($C$2="あり",出力前!$AK$14=1),出力前1!AB55,出力前!AA55)) -> 30 | AC50: =IF(ISERROR(出力前!AB55),"",IF(AND($C$2="あり",出力前!$AK$14=1),出力前1!AC55,出力前!AB55)) -> 31.4 | AD50: =IF(ISERROR(出力前!AC55),"",IF(AND($C$2="あり",出力前!$AK$14=1),出力前1!AD55,出力前!AC55)) -> 520 | AE50: =IF(J50>100,"",IF(ISERROR(出力前!AD55),"",IF(AND($C$2="あり",出力前!$AK$14=1),出力前1!AE55,出力前!AD55))) -> 753 | AF50: =IF(J50>100,"",IF(ISERROR(出力前!AE55),"",IF(AND($C$2="あり",出力前!$AK$14=1),出力前1!AF55,出力前!AE55))) -> 8.7 | AG50: =IF(ISERROR(出力前!AF55),"",IF(AND($C$2="あり",出力前!$AK$14=1),出力前1!AG55,出力前!AF55)) -> 4 | AH50: =IF(ISERROR(出力前!AG55),"",IF(AND($C$2="あり",出力前!$AK$14=1),出力前1!AH55,出力前!AG55)) -> 5 | AI50: =IF(J50>100,"",IF(ISERROR(出力前!AH55),"",IF(AND($C$2="あり",出力前!$AK$14=1),出力前1!AI55,出力前!AH55))) -> 12
B51: 39 | C51: 15.7 | D51: 14.5 | F51: 76 | G51: 78 | J51: =出力前!J56 -> 64 | M51: =IF(ISERROR(出力前!M56),"",出力前!M56) -> 5 | N51: =IF(J51>100,"",出力前!N56) -> 64 | O51: =IF(J51>100,"",出力前!O56) -> 24.1 | P51: =IF(J51>100,"",IF(ISERROR(出力前!P56),"",IF(AND($C$2="あり",出力前!$AK$14=1),出力前1!Q56,出力前!P56))) -> 0.92 | Q51: =IF(J51>100,"",IF(ISERROR(出力前!Q56),"",IF(AND($C$2="あり",出力前!$AK$14=1),出力前1!R56,出力前!Q56))) -> 31.8 | R51: =IF(J51>100,"",IF(ISERROR(出力前!R56),"",IF(出力前!R56=0,"",IF(AND($C$2="あり",出力前!$AK$14=1),出力前1!S56,出力前!R56)))) -> 264 | S51: =IF(J51>100,"",IF(ISERROR(出力前!S56),"",IF(出力前!R56=0,"",出力前!S56))) -> 242 | T51: =IF(J51>100,"",IF(ISERROR(出力前!T56),"",IF(AND($C$2="あり",出力前!$AK$14=1),出力前1!U56,出力前!T56))) -> 0.29 | U51: 65.4 | V51: =IF(ISERROR(出力前!U56),"",IF(AND($C$2="あり",出力前!$AK$14=1),出力前1!V56,出力前!U56)) ->  | W51: =IF(ISERROR(出力前!V56),"",IF(AND($C$2="あり",出力前!$AK$14=1),出力前1!W56,出力前!V56)) ->  | X51: =IF(ISERROR(出力前!W56),"",IF(AND($C$2="あり",出力前!$AK$14=1),出力前1!X56,出力前!W56)) ->  | Y51: =IF(ISERROR(出力前!X56),"",IF(AND($C$2="あり",出力前!$AK$14=1),出力前1!Y56,出力前!X56)) ->  | Z51: =IF(ISERROR(出力前!Y56),"",IF(AND($C$2="あり",出力前!$AK$14=1),出力前1!Z56,出力前!Y56)) ->  | AA51: =IF(ISERROR(出力前!Z56),"",IF(AND($C$2="あり",出力前!$AK$14=1),出力前1!AA56,出力前!Z56)) ->  | AB51: =IF(ISERROR(出力前!AA56),"",IF(AND($C$2="あり",出力前!$AK$14=1),出力前1!AB56,出力前!AA56)) ->  | AC51: =IF(ISERROR(出力前!AB56),"",IF(AND($C$2="あり",出力前!$AK$14=1),出力前1!AC56,出力前!AB56)) ->  | AD51: =IF(ISERROR(出力前!AC56),"",IF(AND($C$2="あり",出力前!$AK$14=1),出力前1!AD56,出力前!AC56)) ->  | AE51: =IF(J51>100,"",IF(ISERROR(出力前!AD56),"",IF(AND($C$2="あり",出力前!$AK$14=1),出力前1!AE56,出力前!AD56))) -> 762 | AF51: =IF(J51>100,"",IF(ISERROR(出力前!AE56),"",IF(AND($C$2="あり",出力前!$AK$14=1),出力前1!AF56,出力前!AE56))) -> 8.6 | AG51: =IF(ISERROR(出力前!AF56),"",IF(AND($C$2="あり",出力前!$AK$14=1),出力前1!AG56,出力前!AF56)) ->  | AH51: =IF(ISERROR(出力前!AG56),"",IF(AND($C$2="あり",出力前!$AK$14=1),出力前1!AH56,出力前!AG56)) ->  | AI51: =IF(J51>100,"",IF(ISERROR(出力前!AH56),"",IF(AND($C$2="あり",出力前!$AK$14=1),出力前1!AI56,出力前!AH56))) -> 12
B52: 40 | C52: 15.6 | D52: 12.6 | F52: 78 | G52: 80 | J52: =出力前!J57 -> 65 | M52: =IF(ISERROR(出力前!M57),"",出力前!M57) ->  | N52: =IF(J52>100,"",出力前!N57) -> 65 | O52: =IF(J52>100,"",出力前!O57) -> 24.3 | P52: =IF(J52>100,"",IF(ISERROR(出力前!P57),"",IF(AND($C$2="あり",出力前!$AK$14=1),出力前1!Q57,出力前!P57))) -> 0.96 | Q52: =IF(J52>100,"",IF(ISERROR(出力前!Q57),"",IF(AND($C$2="あり",出力前!$AK$14=1),出力前1!R57,出力前!Q57))) -> 32.4 | R52: =IF(J52>100,"",IF(ISERROR(出力前!R57),"",IF(出力前!R57=0,"",IF(AND($C$2="あり",出力前!$AK$14=1),出力前1!S57,出力前!R57)))) -> 262 | S52: =IF(J52>100,"",IF(ISERROR(出力前!S57),"",IF(出力前!R57=0,"",出力前!S57))) -> 250 | T52: =IF(J52>100,"",IF(ISERROR(出力前!T57),"",IF(AND($C$2="あり",出力前!$AK$14=1),出力前1!U57,出力前!T57))) -> 0.30 | U52: 64.8 | V52: =IF(ISERROR(出力前!U57),"",IF(AND($C$2="あり",出力前!$AK$14=1),出力前1!V57,出力前!U57)) ->  | W52: =IF(ISERROR(出力前!V57),"",IF(AND($C$2="あり",出力前!$AK$14=1),出力前1!W57,出力前!V57)) ->  | X52: =IF(ISERROR(出力前!W57),"",IF(AND($C$2="あり",出力前!$AK$14=1),出力前1!X57,出力前!W57)) ->  | Y52: =IF(ISERROR(出力前!X57),"",IF(AND($C$2="あり",出力前!$AK$14=1),出力前1!Y57,出力前!X57)) ->  | Z52: =IF(ISERROR(出力前!Y57),"",IF(AND($C$2="あり",出力前!$AK$14=1),出力前1!Z57,出力前!Y57)) ->  | AA52: =IF(ISERROR(出力前!Z57),"",IF(AND($C$2="あり",出力前!$AK$14=1),出力前1!AA57,出力前!Z57)) ->  | AB52: =IF(ISERROR(出力前!AA57),"",IF(AND($C$2="あり",出力前!$AK$14=1),出力前1!AB57,出力前!AA57)) ->  | AC52: =IF(ISERROR(出力前!AB57),"",IF(AND($C$2="あり",出力前!$AK$14=1),出力前1!AC57,出力前!AB57)) ->  | AD52: =IF(ISERROR(出力前!AC57),"",IF(AND($C$2="あり",出力前!$AK$14=1),出力前1!AD57,出力前!AC57)) ->  | AE52: =IF(J52>100,"",IF(ISERROR(出力前!AD57),"",IF(AND($C$2="あり",出力前!$AK$14=1),出力前1!AE57,出力前!AD57))) -> 771 | AF52: =IF(J52>100,"",IF(ISERROR(出力前!AE57),"",IF(AND($C$2="あり",出力前!$AK$14=1),出力前1!AF57,出力前!AE57))) -> 8.4 | AG52: =IF(ISERROR(出力前!AF57),"",IF(AND($C$2="あり",出力前!$AK$14=1),出力前1!AG57,出力前!AF57)) ->  | AH52: =IF(ISERROR(出力前!AG57),"",IF(AND($C$2="あり",出力前!$AK$14=1),出力前1!AH57,出力前!AG57)) ->  | AI52: =IF(J52>100,"",IF(ISERROR(出力前!AH57),"",IF(AND($C$2="あり",出力前!$AK$14=1),出力前1!AI57,出力前!AH57))) -> 12
B53: 41 | C53: 15.5 | D53: 13.6 | F53: 80 | G53: 82 | J53: =出力前!J58 -> 66 | M53: =IF(ISERROR(出力前!M58),"",出力前!M58) ->  | N53: =IF(J53>100,"",出力前!N58) -> 66 | O53: =IF(J53>100,"",出力前!O58) -> 24.5 | P53: =IF(J53>100,"",IF(ISERROR(出力前!P58),"",IF(AND($C$2="あり",出力前!$AK$14=1),出力前1!Q58,出力前!P58))) -> 0.99 | Q53: =IF(J53>100,"",IF(ISERROR(出力前!Q58),"",IF(AND($C$2="あり",出力前!$AK$14=1),出力前1!R58,出力前!Q58))) -> 32.9 | R53: =IF(J53>100,"",IF(ISERROR(出力前!R58),"",IF(出力前!R58=0,"",IF(AND($C$2="あり",出力前!$AK$14=1),出力前1!S58,出力前!R58)))) -> 260 | S53: =IF(J53>100,"",IF(ISERROR(出力前!S58),"",IF(出力前!R58=0,"",出力前!S58))) -> 259 | T53: =IF(J53>100,"",IF(ISERROR(出力前!T58),"",IF(AND($C$2="あり",出力前!$AK$14=1),出力前1!U58,出力前!T58))) -> 0.31 | U53: 64.2 | V53: =IF(ISERROR(出力前!U58),"",IF(AND($C$2="あり",出力前!$AK$14=1),出力前1!V58,出力前!U58)) ->  | W53: =IF(ISERROR(出力前!V58),"",IF(AND($C$2="あり",出力前!$AK$14=1),出力前1!W58,出力前!V58)) ->  | X53: =IF(ISERROR(出力前!W58),"",IF(AND($C$2="あり",出力前!$AK$14=1),出力前1!X58,出力前!W58)) ->  | Y53: =IF(ISERROR(出力前!X58),"",IF(AND($C$2="あり",出力前!$AK$14=1),出力前1!Y58,出力前!X58)) ->  | Z53: =IF(ISERROR(出力前!Y58),"",IF(AND($C$2="あり",出力前!$AK$14=1),出力前1!Z58,出力前!Y58)) ->  | AA53: =IF(ISERROR(出力前!Z58),"",IF(AND($C$2="あり",出力前!$AK$14=1),出力前1!AA58,出力前!Z58)) ->  | AB53: =IF(ISERROR(出力前!AA58),"",IF(AND($C$2="あり",出力前!$AK$14=1),出力前1!AB58,出力前!AA58)) ->  | AC53: =IF(ISERROR(出力前!AB58),"",IF(AND($C$2="あり",出力前!$AK$14=1),出力前1!AC58,出力前!AB58)) ->  | AD53: =IF(ISERROR(出力前!AC58),"",IF(AND($C$2="あり",出力前!$AK$14=1),出力前1!AD58,出力前!AC58)) ->  | AE53: =IF(J53>100,"",IF(ISERROR(出力前!AD58),"",IF(AND($C$2="あり",出力前!$AK$14=1),出力前1!AE58,出力前!AD58))) -> 779 | AF53: =IF(J53>100,"",IF(ISERROR(出力前!AE58),"",IF(AND($C$2="あり",出力前!$AK$14=1),出力前1!AF58,出力前!AE58))) -> 8.3 | AG53: =IF(ISERROR(出力前!AF58),"",IF(AND($C$2="あり",出力前!$AK$14=1),出力前1!AG58,出力前!AF58)) ->  | AH53: =IF(ISERROR(出力前!AG58),"",IF(AND($C$2="あり",出力前!$AK$14=1),出力前1!AH58,出力前!AG58)) ->  | AI53: =IF(J53>100,"",IF(ISERROR(出力前!AH58),"",IF(AND($C$2="あり",出力前!$AK$14=1),出力前1!AI58,出力前!AH58))) -> 12
B54: 42 | C54: 15.5 | D54: 12.8 | F54: 82 | G54: 84 | J54: =出力前!J59 -> 67 | M54: =IF(ISERROR(出力前!M59),"",出力前!M59) ->  | N54: =IF(J54>100,"",出力前!N59) -> 67 | O54: =IF(J54>100,"",出力前!O59) -> 24.7 | P54: =IF(J54>100,"",IF(ISERROR(出力前!P59),"",IF(AND($C$2="あり",出力前!$AK$14=1),出力前1!Q59,出力前!P59))) -> 1.03 | Q54: =IF(J54>100,"",IF(ISERROR(出力前!Q59),"",IF(AND($C$2="あり",出力前!$AK$14=1),出力前1!R59,出力前!Q59))) -> 33.5 | R54: =IF(J54>100,"",IF(ISERROR(出力前!R59),"",IF(出力前!R59=0,"",IF(AND($C$2="あり",出力前!$AK$14=1),出力前1!S59,出力前!R59)))) -> 259 | S54: =IF(J54>100,"",IF(ISERROR(出力前!S59),"",IF(出力前!R59=0,"",出力前!S59))) -> 267 | T54: =IF(J54>100,"",IF(ISERROR(出力前!T59),"",IF(AND($C$2="あり",出力前!$AK$14=1),出力前1!U59,出力前!T59))) -> 0.31 | U54: 63.6 | V54: =IF(ISERROR(出力前!U59),"",IF(AND($C$2="あり",出力前!$AK$14=1),出力前1!V59,出力前!U59)) ->  | W54: =IF(ISERROR(出力前!V59),"",IF(AND($C$2="あり",出力前!$AK$14=1),出力前1!W59,出力前!V59)) ->  | X54: =IF(ISERROR(出力前!W59),"",IF(AND($C$2="あり",出力前!$AK$14=1),出力前1!X59,出力前!W59)) ->  | Y54: =IF(ISERROR(出力前!X59),"",IF(AND($C$2="あり",出力前!$AK$14=1),出力前1!Y59,出力前!X59)) ->  | Z54: =IF(ISERROR(出力前!Y59),"",IF(AND($C$2="あり",出力前!$AK$14=1),出力前1!Z59,出力前!Y59)) ->  | AA54: =IF(ISERROR(出力前!Z59),"",IF(AND($C$2="あり",出力前!$AK$14=1),出力前1!AA59,出力前!Z59)) ->  | AB54: =IF(ISERROR(出力前!AA59),"",IF(AND($C$2="あり",出力前!$AK$14=1),出力前1!AB59,出力前!AA59)) ->  | AC54: =IF(ISERROR(出力前!AB59),"",IF(AND($C$2="あり",出力前!$AK$14=1),出力前1!AC59,出力前!AB59)) ->  | AD54: =IF(ISERROR(出力前!AC59),"",IF(AND($C$2="あり",出力前!$AK$14=1),出力前1!AD59,出力前!AC59)) ->  | AE54: =IF(J54>100,"",IF(ISERROR(出力前!AD59),"",IF(AND($C$2="あり",出力前!$AK$14=1),出力前1!AE59,出力前!AD59))) -> 787 | AF54: =IF(J54>100,"",IF(ISERROR(出力前!AE59),"",IF(AND($C$2="あり",出力前!$AK$14=1),出力前1!AF59,出力前!AE59))) -> 8.2 | AG54: =IF(ISERROR(出力前!AF59),"",IF(AND($C$2="あり",出力前!$AK$14=1),出力前1!AG59,出力前!AF59)) ->  | AH54: =IF(ISERROR(出力前!AG59),"",IF(AND($C$2="あり",出力前!$AK$14=1),出力前1!AH59,出力前!AG59)) ->  | AI54: =IF(J54>100,"",IF(ISERROR(出力前!AH59),"",IF(AND($C$2="あり",出力前!$AK$14=1),出力前1!AI59,出力前!AH59))) -> 12
B55: 43 | C55: 15.4 | D55: 14 | F55: 84 | G55: 86 | J55: =出力前!J60 -> 68 | M55: =IF(ISERROR(出力前!M60),"",出力前!M60) ->  | N55: =IF(J55>100,"",出力前!N60) -> 68 | O55: =IF(J55>100,"",出力前!O60) -> 24.8 | P55: =IF(J55>100,"",IF(ISERROR(出力前!P60),"",IF(AND($C$2="あり",出力前!$AK$14=1),出力前1!Q60,出力前!P60))) -> 1.07 | Q55: =IF(J55>100,"",IF(ISERROR(出力前!Q60),"",IF(AND($C$2="あり",出力前!$AK$14=1),出力前1!R60,出力前!Q60))) -> 34.0 | R55: =IF(J55>100,"",IF(ISERROR(出力前!R60),"",IF(出力前!R60=0,"",IF(AND($C$2="あり",出力前!$AK$14=1),出力前1!S60,出力前!R60)))) -> 257 | S55: =IF(J55>100,"",IF(ISERROR(出力前!S60),"",IF(出力前!R60=0,"",出力前!S60))) -> 275 | T55: =IF(J55>100,"",IF(ISERROR(出力前!T60),"",IF(AND($C$2="あり",出力前!$AK$14=1),出力前1!U60,出力前!T60))) -> 0.32 | U55: 63.1 | V55: =IF(ISERROR(出力前!U60),"",IF(AND($C$2="あり",出力前!$AK$14=1),出力前1!V60,出力前!U60)) ->  | W55: =IF(ISERROR(出力前!V60),"",IF(AND($C$2="あり",出力前!$AK$14=1),出力前1!W60,出力前!V60)) ->  | X55: =IF(ISERROR(出力前!W60),"",IF(AND($C$2="あり",出力前!$AK$14=1),出力前1!X60,出力前!W60)) ->  | Y55: =IF(ISERROR(出力前!X60),"",IF(AND($C$2="あり",出力前!$AK$14=1),出力前1!Y60,出力前!X60)) ->  | Z55: =IF(ISERROR(出力前!Y60),"",IF(AND($C$2="あり",出力前!$AK$14=1),出力前1!Z60,出力前!Y60)) ->  | AA55: =IF(ISERROR(出力前!Z60),"",IF(AND($C$2="あり",出力前!$AK$14=1),出力前1!AA60,出力前!Z60)) ->  | AB55: =IF(ISERROR(出力前!AA60),"",IF(AND($C$2="あり",出力前!$AK$14=1),出力前1!AB60,出力前!AA60)) ->  | AC55: =IF(ISERROR(出力前!AB60),"",IF(AND($C$2="あり",出力前!$AK$14=1),出力前1!AC60,出力前!AB60)) ->  | AD55: =IF(ISERROR(出力前!AC60),"",IF(AND($C$2="あり",出力前!$AK$14=1),出力前1!AD60,出力前!AC60)) ->  | AE55: =IF(J55>100,"",IF(ISERROR(出力前!AD60),"",IF(AND($C$2="あり",出力前!$AK$14=1),出力前1!AE60,出力前!AD60))) -> 795 | AF55: =IF(J55>100,"",IF(ISERROR(出力前!AE60),"",IF(AND($C$2="あり",出力前!$AK$14=1),出力前1!AF60,出力前!AE60))) -> 8.1 | AG55: =IF(ISERROR(出力前!AF60),"",IF(AND($C$2="あり",出力前!$AK$14=1),出力前1!AG60,出力前!AF60)) ->  | AH55: =IF(ISERROR(出力前!AG60),"",IF(AND($C$2="あり",出力前!$AK$14=1),出力前1!AH60,出力前!AG60)) ->  | AI55: =IF(J55>100,"",IF(ISERROR(出力前!AH60),"",IF(AND($C$2="あり",出力前!$AK$14=1),出力前1!AI60,出力前!AH60))) -> 12
B56: 44 | C56: 15.3 | D56: 14 | F56: 86 | G56: 88 | J56: =出力前!J61 -> 69 | M56: =IF(ISERROR(出力前!M61),"",出力前!M61) ->  | N56: =IF(J56>100,"",出力前!N61) -> 69 | O56: =IF(J56>100,"",出力前!O61) -> 25.0 | P56: =IF(J56>100,"",IF(ISERROR(出力前!P61),"",IF(AND($C$2="あり",出力前!$AK$14=1),出力前1!Q61,出力前!P61))) -> 1.11 | Q56: =IF(J56>100,"",IF(ISERROR(出力前!Q61),"",IF(AND($C$2="あり",出力前!$AK$14=1),出力前1!R61,出力前!Q61))) -> 34.5 | R56: =IF(J56>100,"",IF(ISERROR(出力前!R61),"",IF(出力前!R61=0,"",IF(AND($C$2="あり",出力前!$AK$14=1),出力前1!S61,出力前!R61)))) -> 256 | S56: =IF(J56>100,"",IF(ISERROR(出力前!S61),"",IF(出力前!R61=0,"",出力前!S61))) -> 283 | T56: =IF(J56>100,"",IF(ISERROR(出力前!T61),"",IF(AND($C$2="あり",出力前!$AK$14=1),出力前1!U61,出力前!T61))) -> 0.33 | U56: 62.7 | V56: =IF(ISERROR(出力前!U61),"",IF(AND($C$2="あり",出力前!$AK$14=1),出力前1!V61,出力前!U61)) ->  | W56: =IF(ISERROR(出力前!V61),"",IF(AND($C$2="あり",出力前!$AK$14=1),出力前1!W61,出力前!V61)) ->  | X56: =IF(ISERROR(出力前!W61),"",IF(AND($C$2="あり",出力前!$AK$14=1),出力前1!X61,出力前!W61)) ->  | Y56: =IF(ISERROR(出力前!X61),"",IF(AND($C$2="あり",出力前!$AK$14=1),出力前1!Y61,出力前!X61)) ->  | Z56: =IF(ISERROR(出力前!Y61),"",IF(AND($C$2="あり",出力前!$AK$14=1),出力前1!Z61,出力前!Y61)) ->  | AA56: =IF(ISERROR(出力前!Z61),"",IF(AND($C$2="あり",出力前!$AK$14=1),出力前1!AA61,出力前!Z61)) ->  | AB56: =IF(ISERROR(出力前!AA61),"",IF(AND($C$2="あり",出力前!$AK$14=1),出力前1!AB61,出力前!AA61)) ->  | AC56: =IF(ISERROR(出力前!AB61),"",IF(AND($C$2="あり",出力前!$AK$14=1),出力前1!AC61,出力前!AB61)) ->  | AD56: =IF(ISERROR(出力前!AC61),"",IF(AND($C$2="あり",出力前!$AK$14=1),出力前1!AD61,出力前!AC61)) ->  | AE56: =IF(J56>100,"",IF(ISERROR(出力前!AD61),"",IF(AND($C$2="あり",出力前!$AK$14=1),出力前1!AE61,出力前!AD61))) -> 804 | AF56: =IF(J56>100,"",IF(ISERROR(出力前!AE61),"",IF(AND($C$2="あり",出力前!$AK$14=1),出力前1!AF61,出力前!AE61))) -> 8.0 | AG56: =IF(ISERROR(出力前!AF61),"",IF(AND($C$2="あり",出力前!$AK$14=1),出力前1!AG61,出力前!AF61)) ->  | AH56: =IF(ISERROR(出力前!AG61),"",IF(AND($C$2="あり",出力前!$AK$14=1),出力前1!AH61,出力前!AG61)) ->  | AI56: =IF(J56>100,"",IF(ISERROR(出力前!AH61),"",IF(AND($C$2="あり",出力前!$AK$14=1),出力前1!AI61,出力前!AH61))) -> 12
B57: 45 | C57: 15.2 | D57: 13.9 | F57: 88 | G57: 90 | J57: =出力前!J62 -> 70 | M57: =IF(ISERROR(出力前!M62),"",出力前!M62) ->  | N57: =IF(J57>100,"",出力前!N62) -> 70 | O57: =IF(J57>100,"",出力前!O62) -> 25.2 | P57: =IF(J57>100,"",IF(ISERROR(出力前!P62),"",IF(AND($C$2="あり",出力前!$AK$14=1),出力前1!Q62,出力前!P62))) -> 1.15 | Q57: =IF(J57>100,"",IF(ISERROR(出力前!Q62),"",IF(AND($C$2="あり",出力前!$AK$14=1),出力前1!R62,出力前!Q62))) -> 35.0 | R57: =IF(J57>100,"",IF(ISERROR(出力前!R62),"",IF(出力前!R62=0,"",IF(AND($C$2="あり",出力前!$AK$14=1),出力前1!S62,出力前!R62)))) -> 254 | S57: =IF(J57>100,"",IF(ISERROR(出力前!S62),"",IF(出力前!R62=0,"",出力前!S62))) -> 291 | T57: =IF(J57>100,"",IF(ISERROR(出力前!T62),"",IF(AND($C$2="あり",出力前!$AK$14=1),出力前1!U62,出力前!T62))) -> 0.33 | U57: 62.2 | V57: =IF(ISERROR(出力前!U62),"",IF(AND($C$2="あり",出力前!$AK$14=1),出力前1!V62,出力前!U62)) ->  | W57: =IF(ISERROR(出力前!V62),"",IF(AND($C$2="あり",出力前!$AK$14=1),出力前1!W62,出力前!V62)) ->  | X57: =IF(ISERROR(出力前!W62),"",IF(AND($C$2="あり",出力前!$AK$14=1),出力前1!X62,出力前!W62)) ->  | Y57: =IF(ISERROR(出力前!X62),"",IF(AND($C$2="あり",出力前!$AK$14=1),出力前1!Y62,出力前!X62)) ->  | Z57: =IF(ISERROR(出力前!Y62),"",IF(AND($C$2="あり",出力前!$AK$14=1),出力前1!Z62,出力前!Y62)) ->  | AA57: =IF(ISERROR(出力前!Z62),"",IF(AND($C$2="あり",出力前!$AK$14=1),出力前1!AA62,出力前!Z62)) ->  | AB57: =IF(ISERROR(出力前!AA62),"",IF(AND($C$2="あり",出力前!$AK$14=1),出力前1!AB62,出力前!AA62)) ->  | AC57: =IF(ISERROR(出力前!AB62),"",IF(AND($C$2="あり",出力前!$AK$14=1),出力前1!AC62,出力前!AB62)) ->  | AD57: =IF(ISERROR(出力前!AC62),"",IF(AND($C$2="あり",出力前!$AK$14=1),出力前1!AD62,出力前!AC62)) ->  | AE57: =IF(J57>100,"",IF(ISERROR(出力前!AD62),"",IF(AND($C$2="あり",出力前!$AK$14=1),出力前1!AE62,出力前!AD62))) -> 812 | AF57: =IF(J57>100,"",IF(ISERROR(出力前!AE62),"",IF(AND($C$2="あり",出力前!$AK$14=1),出力前1!AF62,出力前!AE62))) -> 7.8 | AG57: =IF(ISERROR(出力前!AF62),"",IF(AND($C$2="あり",出力前!$AK$14=1),出力前1!AG62,出力前!AF62)) ->  | AH57: =IF(ISERROR(出力前!AG62),"",IF(AND($C$2="あり",出力前!$AK$14=1),出力前1!AH62,出力前!AG62)) ->  | AI57: =IF(J57>100,"",IF(ISERROR(出力前!AH62),"",IF(AND($C$2="あり",出力前!$AK$14=1),出力前1!AI62,出力前!AH62))) -> 12
B58: 46 | C58: 15.2 | D58: 11.8 | F58: 90 | G58: 92 | J58: =出力前!J63 -> 71 | M58: =IF(ISERROR(出力前!M63),"",出力前!M63) ->  | N58: =IF(J58>100,"",出力前!N63) -> 71 | O58: =IF(J58>100,"",出力前!O63) -> 25.3 | P58: =IF(J58>100,"",IF(ISERROR(出力前!P63),"",IF(AND($C$2="あり",出力前!$AK$14=1),出力前1!Q63,出力前!P63))) -> 1.18 | Q58: =IF(J58>100,"",IF(ISERROR(出力前!Q63),"",IF(AND($C$2="あり",出力前!$AK$14=1),出力前1!R63,出力前!Q63))) -> 35.5 | R58: =IF(J58>100,"",IF(ISERROR(出力前!R63),"",IF(出力前!R63=0,"",IF(AND($C$2="あり",出力前!$AK$14=1),出力前1!S63,出力前!R63)))) -> 253 | S58: =IF(J58>100,"",IF(ISERROR(出力前!S63),"",IF(出力前!R63=0,"",出力前!S63))) -> 299 | T58: =IF(J58>100,"",IF(ISERROR(出力前!T63),"",IF(AND($C$2="あり",出力前!$AK$14=1),出力前1!U63,出力前!T63))) -> 0.34 | U58: 61.8 | V58: =IF(ISERROR(出力前!U63),"",IF(AND($C$2="あり",出力前!$AK$14=1),出力前1!V63,出力前!U63)) ->  | W58: =IF(ISERROR(出力前!V63),"",IF(AND($C$2="あり",出力前!$AK$14=1),出力前1!W63,出力前!V63)) ->  | X58: =IF(ISERROR(出力前!W63),"",IF(AND($C$2="あり",出力前!$AK$14=1),出力前1!X63,出力前!W63)) ->  | Y58: =IF(ISERROR(出力前!X63),"",IF(AND($C$2="あり",出力前!$AK$14=1),出力前1!Y63,出力前!X63)) ->  | Z58: =IF(ISERROR(出力前!Y63),"",IF(AND($C$2="あり",出力前!$AK$14=1),出力前1!Z63,出力前!Y63)) ->  | AA58: =IF(ISERROR(出力前!Z63),"",IF(AND($C$2="あり",出力前!$AK$14=1),出力前1!AA63,出力前!Z63)) ->  | AB58: =IF(ISERROR(出力前!AA63),"",IF(AND($C$2="あり",出力前!$AK$14=1),出力前1!AB63,出力前!AA63)) ->  | AC58: =IF(ISERROR(出力前!AB63),"",IF(AND($C$2="あり",出力前!$AK$14=1),出力前1!AC63,出力前!AB63)) ->  | AD58: =IF(ISERROR(出力前!AC63),"",IF(AND($C$2="あり",出力前!$AK$14=1),出力前1!AD63,出力前!AC63)) ->  | AE58: =IF(J58>100,"",IF(ISERROR(出力前!AD63),"",IF(AND($C$2="あり",出力前!$AK$14=1),出力前1!AE63,出力前!AD63))) -> 819 | AF58: =IF(J58>100,"",IF(ISERROR(出力前!AE63),"",IF(AND($C$2="あり",出力前!$AK$14=1),出力前1!AF63,出力前!AE63))) -> 7.7 | AG58: =IF(ISERROR(出力前!AF63),"",IF(AND($C$2="あり",出力前!$AK$14=1),出力前1!AG63,出力前!AF63)) ->  | AH58: =IF(ISERROR(出力前!AG63),"",IF(AND($C$2="あり",出力前!$AK$14=1),出力前1!AH63,出力前!AG63)) ->  | AI58: =IF(J58>100,"",IF(ISERROR(出力前!AH63),"",IF(AND($C$2="あり",出力前!$AK$14=1),出力前1!AI63,出力前!AH63))) -> 12
B59: 47 | C59: 15.1 | D59: 14 | F59: 92 | G59: 94 | J59: =出力前!J64 -> 72 | M59: =IF(ISERROR(出力前!M64),"",出力前!M64) ->  | N59: =IF(J59>100,"",出力前!N64) -> 72 | O59: =IF(J59>100,"",出力前!O64) -> 25.5 | P59: =IF(J59>100,"",IF(ISERROR(出力前!P64),"",IF(AND($C$2="あり",出力前!$AK$14=1),出力前1!Q64,出力前!P64))) -> 1.22 | Q59: =IF(J59>100,"",IF(ISERROR(出力前!Q64),"",IF(AND($C$2="あり",出力前!$AK$14=1),出力前1!R64,出力前!Q64))) -> 35.9 | R59: =IF(J59>100,"",IF(ISERROR(出力前!R64),"",IF(出力前!R64=0,"",IF(AND($C$2="あり",出力前!$AK$14=1),出力前1!S64,出力前!R64)))) -> 251 | S59: =IF(J59>100,"",IF(ISERROR(出力前!S64),"",IF(出力前!R64=0,"",出力前!S64))) -> 307 | T59: =IF(J59>100,"",IF(ISERROR(出力前!T64),"",IF(AND($C$2="あり",出力前!$AK$14=1),出力前1!U64,出力前!T64))) -> 0.34 | U59: 61.4 | V59: =IF(ISERROR(出力前!U64),"",IF(AND($C$2="あり",出力前!$AK$14=1),出力前1!V64,出力前!U64)) ->  | W59: =IF(ISERROR(出力前!V64),"",IF(AND($C$2="あり",出力前!$AK$14=1),出力前1!W64,出力前!V64)) ->  | X59: =IF(ISERROR(出力前!W64),"",IF(AND($C$2="あり",出力前!$AK$14=1),出力前1!X64,出力前!W64)) ->  | Y59: =IF(ISERROR(出力前!X64),"",IF(AND($C$2="あり",出力前!$AK$14=1),出力前1!Y64,出力前!X64)) ->  | Z59: =IF(ISERROR(出力前!Y64),"",IF(AND($C$2="あり",出力前!$AK$14=1),出力前1!Z64,出力前!Y64)) ->  | AA59: =IF(ISERROR(出力前!Z64),"",IF(AND($C$2="あり",出力前!$AK$14=1),出力前1!AA64,出力前!Z64)) ->  | AB59: =IF(ISERROR(出力前!AA64),"",IF(AND($C$2="あり",出力前!$AK$14=1),出力前1!AB64,出力前!AA64)) ->  | AC59: =IF(ISERROR(出力前!AB64),"",IF(AND($C$2="あり",出力前!$AK$14=1),出力前1!AC64,出力前!AB64)) ->  | AD59: =IF(ISERROR(出力前!AC64),"",IF(AND($C$2="あり",出力前!$AK$14=1),出力前1!AD64,出力前!AC64)) ->  | AE59: =IF(J59>100,"",IF(ISERROR(出力前!AD64),"",IF(AND($C$2="あり",出力前!$AK$14=1),出力前1!AE64,出力前!AD64))) -> 827 | AF59: =IF(J59>100,"",IF(ISERROR(出力前!AE64),"",IF(AND($C$2="あり",出力前!$AK$14=1),出力前1!AF64,出力前!AE64))) -> 7.6 | AG59: =IF(ISERROR(出力前!AF64),"",IF(AND($C$2="あり",出力前!$AK$14=1),出力前1!AG64,出力前!AF64)) ->  | AH59: =IF(ISERROR(出力前!AG64),"",IF(AND($C$2="あり",出力前!$AK$14=1),出力前1!AH64,出力前!AG64)) ->  | AI59: =IF(J59>100,"",IF(ISERROR(出力前!AH64),"",IF(AND($C$2="あり",出力前!$AK$14=1),出力前1!AI64,出力前!AH64))) -> 11
B60: 48 | C60: 15.1 | D60: 11.8 | F60: 94 | G60: 96 | J60: =出力前!J65 -> 73 | M60: =IF(ISERROR(出力前!M65),"",出力前!M65) ->  | N60: =IF(J60>100,"",出力前!N65) -> 73 | O60: =IF(J60>100,"",出力前!O65) -> 25.7 | P60: =IF(J60>100,"",IF(ISERROR(出力前!P65),"",IF(AND($C$2="あり",出力前!$AK$14=1),出力前1!Q65,出力前!P65))) -> 1.26 | Q60: =IF(J60>100,"",IF(ISERROR(出力前!Q65),"",IF(AND($C$2="あり",出力前!$AK$14=1),出力前1!R65,出力前!Q65))) -> 36.4 | R60: =IF(J60>100,"",IF(ISERROR(出力前!R65),"",IF(出力前!R65=0,"",IF(AND($C$2="あり",出力前!$AK$14=1),出力前1!S65,出力前!R65)))) -> 250 | S60: =IF(J60>100,"",IF(ISERROR(出力前!S65),"",IF(出力前!R65=0,"",出力前!S65))) -> 314 | T60: =IF(J60>100,"",IF(ISERROR(出力前!T65),"",IF(AND($C$2="あり",出力前!$AK$14=1),出力前1!U65,出力前!T65))) -> 0.35 | U60: 61.0 | V60: =IF(ISERROR(出力前!U65),"",IF(AND($C$2="あり",出力前!$AK$14=1),出力前1!V65,出力前!U65)) ->  | W60: =IF(ISERROR(出力前!V65),"",IF(AND($C$2="あり",出力前!$AK$14=1),出力前1!W65,出力前!V65)) ->  | X60: =IF(ISERROR(出力前!W65),"",IF(AND($C$2="あり",出力前!$AK$14=1),出力前1!X65,出力前!W65)) ->  | Y60: =IF(ISERROR(出力前!X65),"",IF(AND($C$2="あり",出力前!$AK$14=1),出力前1!Y65,出力前!X65)) ->  | Z60: =IF(ISERROR(出力前!Y65),"",IF(AND($C$2="あり",出力前!$AK$14=1),出力前1!Z65,出力前!Y65)) ->  | AA60: =IF(ISERROR(出力前!Z65),"",IF(AND($C$2="あり",出力前!$AK$14=1),出力前1!AA65,出力前!Z65)) ->  | AB60: =IF(ISERROR(出力前!AA65),"",IF(AND($C$2="あり",出力前!$AK$14=1),出力前1!AB65,出力前!AA65)) ->  | AC60: =IF(ISERROR(出力前!AB65),"",IF(AND($C$2="あり",出力前!$AK$14=1),出力前1!AC65,出力前!AB65)) ->  | AD60: =IF(ISERROR(出力前!AC65),"",IF(AND($C$2="あり",出力前!$AK$14=1),出力前1!AD65,出力前!AC65)) ->  | AE60: =IF(J60>100,"",IF(ISERROR(出力前!AD65),"",IF(AND($C$2="あり",出力前!$AK$14=1),出力前1!AE65,出力前!AD65))) -> 835 | AF60: =IF(J60>100,"",IF(ISERROR(出力前!AE65),"",IF(AND($C$2="あり",出力前!$AK$14=1),出力前1!AF65,出力前!AE65))) -> 7.5 | AG60: =IF(ISERROR(出力前!AF65),"",IF(AND($C$2="あり",出力前!$AK$14=1),出力前1!AG65,出力前!AF65)) ->  | AH60: =IF(ISERROR(出力前!AG65),"",IF(AND($C$2="あり",出力前!$AK$14=1),出力前1!AH65,出力前!AG65)) ->  | AI60: =IF(J60>100,"",IF(ISERROR(出力前!AH65),"",IF(AND($C$2="あり",出力前!$AK$14=1),出力前1!AI65,出力前!AH65))) -> 11
B61: 49 | C61: 15 | D61: 13.2 | F61: 96 | G61: 98 | J61: =出力前!J66 -> 74 | M61: =IF(ISERROR(出力前!M66),"",出力前!M66) ->  | N61: =IF(J61>100,"",出力前!N66) -> 74 | O61: =IF(J61>100,"",出力前!O66) -> 25.8 | P61: =IF(J61>100,"",IF(ISERROR(出力前!P66),"",IF(AND($C$2="あり",出力前!$AK$14=1),出力前1!Q66,出力前!P66))) -> 1.30 | Q61: =IF(J61>100,"",IF(ISERROR(出力前!Q66),"",IF(AND($C$2="あり",出力前!$AK$14=1),出力前1!R66,出力前!Q66))) -> 36.8 | R61: =IF(J61>100,"",IF(ISERROR(出力前!R66),"",IF(出力前!R66=0,"",IF(AND($C$2="あり",出力前!$AK$14=1),出力前1!S66,出力前!R66)))) -> 249 | S61: =IF(J61>100,"",IF(ISERROR(出力前!S66),"",IF(出力前!R66=0,"",出力前!S66))) -> 322 | T61: =IF(J61>100,"",IF(ISERROR(出力前!T66),"",IF(AND($C$2="あり",出力前!$AK$14=1),出力前1!U66,出力前!T66))) -> 0.35 | U61: 60.6 | V61: =IF(ISERROR(出力前!U66),"",IF(AND($C$2="あり",出力前!$AK$14=1),出力前1!V66,出力前!U66)) ->  | W61: =IF(ISERROR(出力前!V66),"",IF(AND($C$2="あり",出力前!$AK$14=1),出力前1!W66,出力前!V66)) ->  | X61: =IF(ISERROR(出力前!W66),"",IF(AND($C$2="あり",出力前!$AK$14=1),出力前1!X66,出力前!W66)) ->  | Y61: =IF(ISERROR(出力前!X66),"",IF(AND($C$2="あり",出力前!$AK$14=1),出力前1!Y66,出力前!X66)) ->  | Z61: =IF(ISERROR(出力前!Y66),"",IF(AND($C$2="あり",出力前!$AK$14=1),出力前1!Z66,出力前!Y66)) ->  | AA61: =IF(ISERROR(出力前!Z66),"",IF(AND($C$2="あり",出力前!$AK$14=1),出力前1!AA66,出力前!Z66)) ->  | AB61: =IF(ISERROR(出力前!AA66),"",IF(AND($C$2="あり",出力前!$AK$14=1),出力前1!AB66,出力前!AA66)) ->  | AC61: =IF(ISERROR(出力前!AB66),"",IF(AND($C$2="あり",出力前!$AK$14=1),出力前1!AC66,出力前!AB66)) ->  | AD61: =IF(ISERROR(出力前!AC66),"",IF(AND($C$2="あり",出力前!$AK$14=1),出力前1!AD66,出力前!AC66)) ->  | AE61: =IF(J61>100,"",IF(ISERROR(出力前!AD66),"",IF(AND($C$2="あり",出力前!$AK$14=1),出力前1!AE66,出力前!AD66))) -> 842 | AF61: =IF(J61>100,"",IF(ISERROR(出力前!AE66),"",IF(AND($C$2="あり",出力前!$AK$14=1),出力前1!AF66,出力前!AE66))) -> 7.4 | AG61: =IF(ISERROR(出力前!AF66),"",IF(AND($C$2="あり",出力前!$AK$14=1),出力前1!AG66,出力前!AF66)) ->  | AH61: =IF(ISERROR(出力前!AG66),"",IF(AND($C$2="あり",出力前!$AK$14=1),出力前1!AH66,出力前!AG66)) ->  | AI61: =IF(J61>100,"",IF(ISERROR(出力前!AH66),"",IF(AND($C$2="あり",出力前!$AK$14=1),出力前1!AI66,出力前!AH66))) -> 11
B62: 50 | C62: 15 | D62: 12.3 | F62: 98 | G62: 100 | J62: =出力前!J67 -> 75 | M62: =IF(ISERROR(出力前!M67),"",出力前!M67) ->  | N62: =IF(J62>100,"",出力前!N67) -> 75 | O62: =IF(J62>100,"",出力前!O67) -> 26.0 | P62: =IF(J62>100,"",IF(ISERROR(出力前!P67),"",IF(AND($C$2="あり",出力前!$AK$14=1),出力前1!Q67,出力前!P67))) -> 1.33 | Q62: =IF(J62>100,"",IF(ISERROR(出力前!Q67),"",IF(AND($C$2="あり",出力前!$AK$14=1),出力前1!R67,出力前!Q67))) -> 37.3 | R62: =IF(J62>100,"",IF(ISERROR(出力前!R67),"",IF(出力前!R67=0,"",IF(AND($C$2="あり",出力前!$AK$14=1),出力前1!S67,出力前!R67)))) -> 247 | S62: =IF(J62>100,"",IF(ISERROR(出力前!S67),"",IF(出力前!R67=0,"",出力前!S67))) -> 329 | T62: =IF(J62>100,"",IF(ISERROR(出力前!T67),"",IF(AND($C$2="あり",出力前!$AK$14=1),出力前1!U67,出力前!T67))) -> 0.36 | U62: 60.3 | V62: =IF(ISERROR(出力前!U67),"",IF(AND($C$2="あり",出力前!$AK$14=1),出力前1!V67,出力前!U67)) ->  | W62: =IF(ISERROR(出力前!V67),"",IF(AND($C$2="あり",出力前!$AK$14=1),出力前1!W67,出力前!V67)) ->  | X62: =IF(ISERROR(出力前!W67),"",IF(AND($C$2="あり",出力前!$AK$14=1),出力前1!X67,出力前!W67)) ->  | Y62: =IF(ISERROR(出力前!X67),"",IF(AND($C$2="あり",出力前!$AK$14=1),出力前1!Y67,出力前!X67)) ->  | Z62: =IF(ISERROR(出力前!Y67),"",IF(AND($C$2="あり",出力前!$AK$14=1),出力前1!Z67,出力前!Y67)) ->  | AA62: =IF(ISERROR(出力前!Z67),"",IF(AND($C$2="あり",出力前!$AK$14=1),出力前1!AA67,出力前!Z67)) ->  | AB62: =IF(ISERROR(出力前!AA67),"",IF(AND($C$2="あり",出力前!$AK$14=1),出力前1!AB67,出力前!AA67)) ->  | AC62: =IF(ISERROR(出力前!AB67),"",IF(AND($C$2="あり",出力前!$AK$14=1),出力前1!AC67,出力前!AB67)) ->  | AD62: =IF(ISERROR(出力前!AC67),"",IF(AND($C$2="あり",出力前!$AK$14=1),出力前1!AD67,出力前!AC67)) ->  | AE62: =IF(J62>100,"",IF(ISERROR(出力前!AD67),"",IF(AND($C$2="あり",出力前!$AK$14=1),出力前1!AE67,出力前!AD67))) -> 850 | AF62: =IF(J62>100,"",IF(ISERROR(出力前!AE67),"",IF(AND($C$2="あり",出力前!$AK$14=1),出力前1!AF67,出力前!AE67))) -> 7.3 | AG62: =IF(ISERROR(出力前!AF67),"",IF(AND($C$2="あり",出力前!$AK$14=1),出力前1!AG67,出力前!AF67)) ->  | AH62: =IF(ISERROR(出力前!AG67),"",IF(AND($C$2="あり",出力前!$AK$14=1),出力前1!AH67,出力前!AG67)) ->  | AI62: =IF(J62>100,"",IF(ISERROR(出力前!AH67),"",IF(AND($C$2="あり",出力前!$AK$14=1),出力前1!AI67,出力前!AH67))) -> 11
B63: 51 | C63: 14.9 | D63: 14.5 | F63: 100 | G63: 102 | J63: =出力前!J68 -> 76 | M63: =IF(ISERROR(出力前!M68),"",出力前!M68) ->  | N63: =IF(J63>100,"",出力前!N68) -> 76 | O63: =IF(J63>100,"",出力前!O68) -> 26.1 | P63: =IF(J63>100,"",IF(ISERROR(出力前!P68),"",IF(AND($C$2="あり",出力前!$AK$14=1),出力前1!Q68,出力前!P68))) -> 1.37 | Q63: =IF(J63>100,"",IF(ISERROR(出力前!Q68),"",IF(AND($C$2="あり",出力前!$AK$14=1),出力前1!R68,出力前!Q68))) -> 37.7 | R63: =IF(J63>100,"",IF(ISERROR(出力前!R68),"",IF(出力前!R68=0,"",IF(AND($C$2="あり",出力前!$AK$14=1),出力前1!S68,出力前!R68)))) -> 246 | S63: =IF(J63>100,"",IF(ISERROR(出力前!S68),"",IF(出力前!R68=0,"",出力前!S68))) -> 337 | T63: =IF(J63>100,"",IF(ISERROR(出力前!T68),"",IF(AND($C$2="あり",出力前!$AK$14=1),出力前1!U68,出力前!T68))) -> 0.36 | U63: 59.9 | V63: =IF(ISERROR(出力前!U68),"",IF(AND($C$2="あり",出力前!$AK$14=1),出力前1!V68,出力前!U68)) ->  | W63: =IF(ISERROR(出力前!V68),"",IF(AND($C$2="あり",出力前!$AK$14=1),出力前1!W68,出力前!V68)) ->  | X63: =IF(ISERROR(出力前!W68),"",IF(AND($C$2="あり",出力前!$AK$14=1),出力前1!X68,出力前!W68)) ->  | Y63: =IF(ISERROR(出力前!X68),"",IF(AND($C$2="あり",出力前!$AK$14=1),出力前1!Y68,出力前!X68)) ->  | Z63: =IF(ISERROR(出力前!Y68),"",IF(AND($C$2="あり",出力前!$AK$14=1),出力前1!Z68,出力前!Y68)) ->  | AA63: =IF(ISERROR(出力前!Z68),"",IF(AND($C$2="あり",出力前!$AK$14=1),出力前1!AA68,出力前!Z68)) ->  | AB63: =IF(ISERROR(出力前!AA68),"",IF(AND($C$2="あり",出力前!$AK$14=1),出力前1!AB68,出力前!AA68)) ->  | AC63: =IF(ISERROR(出力前!AB68),"",IF(AND($C$2="あり",出力前!$AK$14=1),出力前1!AC68,出力前!AB68)) ->  | AD63: =IF(ISERROR(出力前!AC68),"",IF(AND($C$2="あり",出力前!$AK$14=1),出力前1!AD68,出力前!AC68)) ->  | AE63: =IF(J63>100,"",IF(ISERROR(出力前!AD68),"",IF(AND($C$2="あり",出力前!$AK$14=1),出力前1!AE68,出力前!AD68))) -> 857 | AF63: =IF(J63>100,"",IF(ISERROR(出力前!AE68),"",IF(AND($C$2="あり",出力前!$AK$14=1),出力前1!AF68,出力前!AE68))) -> 7.2 | AG63: =IF(ISERROR(出力前!AF68),"",IF(AND($C$2="あり",出力前!$AK$14=1),出力前1!AG68,出力前!AF68)) ->  | AH63: =IF(ISERROR(出力前!AG68),"",IF(AND($C$2="あり",出力前!$AK$14=1),出力前1!AH68,出力前!AG68)) ->  | AI63: =IF(J63>100,"",IF(ISERROR(出力前!AH68),"",IF(AND($C$2="あり",出力前!$AK$14=1),出力前1!AI68,出力前!AH68))) -> 11
B64: 52 | C64: 14.9 | D64: 12.3 | F64: 102 | G64: 104 | J64: =出力前!J69 -> 77 | M64: =IF(ISERROR(出力前!M69),"",出力前!M69) ->  | N64: =IF(J64>100,"",出力前!N69) -> 77 | O64: =IF(J64>100,"",出力前!O69) -> 26.3 | P64: =IF(J64>100,"",IF(ISERROR(出力前!P69),"",IF(AND($C$2="あり",出力前!$AK$14=1),出力前1!Q69,出力前!P69))) -> 1.41 | Q64: =IF(J64>100,"",IF(ISERROR(出力前!Q69),"",IF(AND($C$2="あり",出力前!$AK$14=1),出力前1!R69,出力前!Q69))) -> 38.1 | R64: =IF(J64>100,"",IF(ISERROR(出力前!R69),"",IF(出力前!R69=0,"",IF(AND($C$2="あり",出力前!$AK$14=1),出力前1!S69,出力前!R69)))) -> 244 | S64: =IF(J64>100,"",IF(ISERROR(出力前!S69),"",IF(出力前!R69=0,"",出力前!S69))) -> 344 | T64: =IF(J64>100,"",IF(ISERROR(出力前!T69),"",IF(AND($C$2="あり",出力前!$AK$14=1),出力前1!U69,出力前!T69))) -> 0.37 | U64: 59.6 | V64: =IF(ISERROR(出力前!U69),"",IF(AND($C$2="あり",出力前!$AK$14=1),出力前1!V69,出力前!U69)) ->  | W64: =IF(ISERROR(出力前!V69),"",IF(AND($C$2="あり",出力前!$AK$14=1),出力前1!W69,出力前!V69)) ->  | X64: =IF(ISERROR(出力前!W69),"",IF(AND($C$2="あり",出力前!$AK$14=1),出力前1!X69,出力前!W69)) ->  | Y64: =IF(ISERROR(出力前!X69),"",IF(AND($C$2="あり",出力前!$AK$14=1),出力前1!Y69,出力前!X69)) ->  | Z64: =IF(ISERROR(出力前!Y69),"",IF(AND($C$2="あり",出力前!$AK$14=1),出力前1!Z69,出力前!Y69)) ->  | AA64: =IF(ISERROR(出力前!Z69),"",IF(AND($C$2="あり",出力前!$AK$14=1),出力前1!AA69,出力前!Z69)) ->  | AB64: =IF(ISERROR(出力前!AA69),"",IF(AND($C$2="あり",出力前!$AK$14=1),出力前1!AB69,出力前!AA69)) ->  | AC64: =IF(ISERROR(出力前!AB69),"",IF(AND($C$2="あり",出力前!$AK$14=1),出力前1!AC69,出力前!AB69)) ->  | AD64: =IF(ISERROR(出力前!AC69),"",IF(AND($C$2="あり",出力前!$AK$14=1),出力前1!AD69,出力前!AC69)) ->  | AE64: =IF(J64>100,"",IF(ISERROR(出力前!AD69),"",IF(AND($C$2="あり",出力前!$AK$14=1),出力前1!AE69,出力前!AD69))) -> 864 | AF64: =IF(J64>100,"",IF(ISERROR(出力前!AE69),"",IF(AND($C$2="あり",出力前!$AK$14=1),出力前1!AF69,出力前!AE69))) -> 7.1 | AG64: =IF(ISERROR(出力前!AF69),"",IF(AND($C$2="あり",出力前!$AK$14=1),出力前1!AG69,出力前!AF69)) ->  | AH64: =IF(ISERROR(出力前!AG69),"",IF(AND($C$2="あり",出力前!$AK$14=1),出力前1!AH69,出力前!AG69)) ->  | AI64: =IF(J64>100,"",IF(ISERROR(出力前!AH69),"",IF(AND($C$2="あり",出力前!$AK$14=1),出力前1!AI69,出力前!AH69))) -> 11
B65: 53 | C65: 14.8 | D65: 13 | F65: 104 | G65: 106 | J65: =出力前!J70 -> 78 | M65: =IF(ISERROR(出力前!M70),"",出力前!M70) ->  | N65: =IF(J65>100,"",出力前!N70) -> 78 | O65: =IF(J65>100,"",出力前!O70) -> 26.4 | P65: =IF(J65>100,"",IF(ISERROR(出力前!P70),"",IF(AND($C$2="あり",出力前!$AK$14=1),出力前1!Q70,出力前!P70))) -> 1.44 | Q65: =IF(J65>100,"",IF(ISERROR(出力前!Q70),"",IF(AND($C$2="あり",出力前!$AK$14=1),出力前1!R70,出力前!Q70))) -> 38.6 | R65: =IF(J65>100,"",IF(ISERROR(出力前!R70),"",IF(出力前!R70=0,"",IF(AND($C$2="あり",出力前!$AK$14=1),出力前1!S70,出力前!R70)))) -> 243 | S65: =IF(J65>100,"",IF(ISERROR(出力前!S70),"",IF(出力前!R70=0,"",出力前!S70))) -> 351 | T65: =IF(J65>100,"",IF(ISERROR(出力前!T70),"",IF(AND($C$2="あり",出力前!$AK$14=1),出力前1!U70,出力前!T70))) -> 0.37 | U65: 59.4 | V65: =IF(ISERROR(出力前!U70),"",IF(AND($C$2="あり",出力前!$AK$14=1),出力前1!V70,出力前!U70)) ->  | W65: =IF(ISERROR(出力前!V70),"",IF(AND($C$2="あり",出力前!$AK$14=1),出力前1!W70,出力前!V70)) ->  | X65: =IF(ISERROR(出力前!W70),"",IF(AND($C$2="あり",出力前!$AK$14=1),出力前1!X70,出力前!W70)) ->  | Y65: =IF(ISERROR(出力前!X70),"",IF(AND($C$2="あり",出力前!$AK$14=1),出力前1!Y70,出力前!X70)) ->  | Z65: =IF(ISERROR(出力前!Y70),"",IF(AND($C$2="あり",出力前!$AK$14=1),出力前1!Z70,出力前!Y70)) ->  | AA65: =IF(ISERROR(出力前!Z70),"",IF(AND($C$2="あり",出力前!$AK$14=1),出力前1!AA70,出力前!Z70)) ->  | AB65: =IF(ISERROR(出力前!AA70),"",IF(AND($C$2="あり",出力前!$AK$14=1),出力前1!AB70,出力前!AA70)) ->  | AC65: =IF(ISERROR(出力前!AB70),"",IF(AND($C$2="あり",出力前!$AK$14=1),出力前1!AC70,出力前!AB70)) ->  | AD65: =IF(ISERROR(出力前!AC70),"",IF(AND($C$2="あり",出力前!$AK$14=1),出力前1!AD70,出力前!AC70)) ->  | AE65: =IF(J65>100,"",IF(ISERROR(出力前!AD70),"",IF(AND($C$2="あり",出力前!$AK$14=1),出力前1!AE70,出力前!AD70))) -> 871 | AF65: =IF(J65>100,"",IF(ISERROR(出力前!AE70),"",IF(AND($C$2="あり",出力前!$AK$14=1),出力前1!AF70,出力前!AE70))) -> 7.0 | AG65: =IF(ISERROR(出力前!AF70),"",IF(AND($C$2="あり",出力前!$AK$14=1),出力前1!AG70,出力前!AF70)) ->  | AH65: =IF(ISERROR(出力前!AG70),"",IF(AND($C$2="あり",出力前!$AK$14=1),出力前1!AH70,出力前!AG70)) ->  | AI65: =IF(J65>100,"",IF(ISERROR(出力前!AH70),"",IF(AND($C$2="あり",出力前!$AK$14=1),出力前1!AI70,出力前!AH70))) -> 11
B66: 54 | C66: 14.8 | D66: 13.6 | F66: 106 | G66: 108 | J66: =出力前!J71 -> 79 | M66: =IF(ISERROR(出力前!M71),"",出力前!M71) ->  | N66: =IF(J66>100,"",出力前!N71) -> 79 | O66: =IF(J66>100,"",出力前!O71) -> 26.6 | P66: =IF(J66>100,"",IF(ISERROR(出力前!P71),"",IF(AND($C$2="あり",出力前!$AK$14=1),出力前1!Q71,出力前!P71))) -> 1.48 | Q66: =IF(J66>100,"",IF(ISERROR(出力前!Q71),"",IF(AND($C$2="あり",出力前!$AK$14=1),出力前1!R71,出力前!Q71))) -> 39.0 | R66: =IF(J66>100,"",IF(ISERROR(出力前!R71),"",IF(出力前!R71=0,"",IF(AND($C$2="あり",出力前!$AK$14=1),出力前1!S71,出力前!R71)))) -> 242 | S66: =IF(J66>100,"",IF(ISERROR(出力前!S71),"",IF(出力前!R71=0,"",出力前!S71))) -> 358 | T66: =IF(J66>100,"",IF(ISERROR(出力前!T71),"",IF(AND($C$2="あり",出力前!$AK$14=1),出力前1!U71,出力前!T71))) -> 0.38 | U66: 59.1 | V66: =IF(ISERROR(出力前!U71),"",IF(AND($C$2="あり",出力前!$AK$14=1),出力前1!V71,出力前!U71)) ->  | W66: =IF(ISERROR(出力前!V71),"",IF(AND($C$2="あり",出力前!$AK$14=1),出力前1!W71,出力前!V71)) ->  | X66: =IF(ISERROR(出力前!W71),"",IF(AND($C$2="あり",出力前!$AK$14=1),出力前1!X71,出力前!W71)) ->  | Y66: =IF(ISERROR(出力前!X71),"",IF(AND($C$2="あり",出力前!$AK$14=1),出力前1!Y71,出力前!X71)) ->  | Z66: =IF(ISERROR(出力前!Y71),"",IF(AND($C$2="あり",出力前!$AK$14=1),出力前1!Z71,出力前!Y71)) ->  | AA66: =IF(ISERROR(出力前!Z71),"",IF(AND($C$2="あり",出力前!$AK$14=1),出力前1!AA71,出力前!Z71)) ->  | AB66: =IF(ISERROR(出力前!AA71),"",IF(AND($C$2="あり",出力前!$AK$14=1),出力前1!AB71,出力前!AA71)) ->  | AC66: =IF(ISERROR(出力前!AB71),"",IF(AND($C$2="あり",出力前!$AK$14=1),出力前1!AC71,出力前!AB71)) ->  | AD66: =IF(ISERROR(出力前!AC71),"",IF(AND($C$2="あり",出力前!$AK$14=1),出力前1!AD71,出力前!AC71)) ->  | AE66: =IF(J66>100,"",IF(ISERROR(出力前!AD71),"",IF(AND($C$2="あり",出力前!$AK$14=1),出力前1!AE71,出力前!AD71))) -> 878 | AF66: =IF(J66>100,"",IF(ISERROR(出力前!AE71),"",IF(AND($C$2="あり",出力前!$AK$14=1),出力前1!AF71,出力前!AE71))) -> 6.9 | AG66: =IF(ISERROR(出力前!AF71),"",IF(AND($C$2="あり",出力前!$AK$14=1),出力前1!AG71,出力前!AF71)) ->  | AH66: =IF(ISERROR(出力前!AG71),"",IF(AND($C$2="あり",出力前!$AK$14=1),出力前1!AH71,出力前!AG71)) ->  | AI66: =IF(J66>100,"",IF(ISERROR(出力前!AH71),"",IF(AND($C$2="あり",出力前!$AK$14=1),出力前1!AI71,出力前!AH71))) -> 11
B67: 55 | C67: 14.7 | D67: 12.4 | F67: 108 | G67: 110 | J67: =出力前!J72 -> 80 | M67: =IF(ISERROR(出力前!M72),"",出力前!M72) ->  | N67: =IF(J67>100,"",出力前!N72) -> 80 | O67: =IF(J67>100,"",出力前!O72) -> 26.7 | P67: =IF(J67>100,"",IF(ISERROR(出力前!P72),"",IF(AND($C$2="あり",出力前!$AK$14=1),出力前1!Q72,出力前!P72))) -> 1.52 | Q67: =IF(J67>100,"",IF(ISERROR(出力前!Q72),"",IF(AND($C$2="あり",出力前!$AK$14=1),出力前1!R72,出力前!Q72))) -> 39.4 | R67: =IF(J67>100,"",IF(ISERROR(出力前!R72),"",IF(出力前!R72=0,"",IF(AND($C$2="あり",出力前!$AK$14=1),出力前1!S72,出力前!R72)))) -> 241 | S67: =IF(J67>100,"",IF(ISERROR(出力前!S72),"",IF(出力前!R72=0,"",出力前!S72))) -> 365 | T67: =IF(J67>100,"",IF(ISERROR(出力前!T72),"",IF(AND($C$2="あり",出力前!$AK$14=1),出力前1!U72,出力前!T72))) -> 0.38 | U67: 58.8 | V67: =IF(ISERROR(出力前!U72),"",IF(AND($C$2="あり",出力前!$AK$14=1),出力前1!V72,出力前!U72)) ->  | W67: =IF(ISERROR(出力前!V72),"",IF(AND($C$2="あり",出力前!$AK$14=1),出力前1!W72,出力前!V72)) ->  | X67: =IF(ISERROR(出力前!W72),"",IF(AND($C$2="あり",出力前!$AK$14=1),出力前1!X72,出力前!W72)) ->  | Y67: =IF(ISERROR(出力前!X72),"",IF(AND($C$2="あり",出力前!$AK$14=1),出力前1!Y72,出力前!X72)) ->  | Z67: =IF(ISERROR(出力前!Y72),"",IF(AND($C$2="あり",出力前!$AK$14=1),出力前1!Z72,出力前!Y72)) ->  | AA67: =IF(ISERROR(出力前!Z72),"",IF(AND($C$2="あり",出力前!$AK$14=1),出力前1!AA72,出力前!Z72)) ->  | AB67: =IF(ISERROR(出力前!AA72),"",IF(AND($C$2="あり",出力前!$AK$14=1),出力前1!AB72,出力前!AA72)) ->  | AC67: =IF(ISERROR(出力前!AB72),"",IF(AND($C$2="あり",出力前!$AK$14=1),出力前1!AC72,出力前!AB72)) ->  | AD67: =IF(ISERROR(出力前!AC72),"",IF(AND($C$2="あり",出力前!$AK$14=1),出力前1!AD72,出力前!AC72)) ->  | AE67: =IF(J67>100,"",IF(ISERROR(出力前!AD72),"",IF(AND($C$2="あり",出力前!$AK$14=1),出力前1!AE72,出力前!AD72))) -> 885 | AF67: =IF(J67>100,"",IF(ISERROR(出力前!AE72),"",IF(AND($C$2="あり",出力前!$AK$14=1),出力前1!AF72,出力前!AE72))) -> 6.8 | AG67: =IF(ISERROR(出力前!AF72),"",IF(AND($C$2="あり",出力前!$AK$14=1),出力前1!AG72,出力前!AF72)) ->  | AH67: =IF(ISERROR(出力前!AG72),"",IF(AND($C$2="あり",出力前!$AK$14=1),出力前1!AH72,出力前!AG72)) ->  | AI67: =IF(J67>100,"",IF(ISERROR(出力前!AH72),"",IF(AND($C$2="あり",出力前!$AK$14=1),出力前1!AI72,出力前!AH72))) -> 11
B68: 56 | C68: 14.7 | D68: 12.8 | F68: 110 | G68: 112 | J68: =出力前!J73 -> 81 | M68: =IF(ISERROR(出力前!M73),"",出力前!M73) ->  | N68: =IF(J68>100,"",出力前!N73) -> 81 | O68: =IF(J68>100,"",出力前!O73) -> 26.8 | P68: =IF(J68>100,"",IF(ISERROR(出力前!P73),"",IF(AND($C$2="あり",出力前!$AK$14=1),出力前1!Q73,出力前!P73))) -> 1.55 | Q68: =IF(J68>100,"",IF(ISERROR(出力前!Q73),"",IF(AND($C$2="あり",出力前!$AK$14=1),出力前1!R73,出力前!Q73))) -> 39.8 | R68: =IF(J68>100,"",IF(ISERROR(出力前!R73),"",IF(出力前!R73=0,"",IF(AND($C$2="あり",出力前!$AK$14=1),出力前1!S73,出力前!R73)))) -> 239 | S68: =IF(J68>100,"",IF(ISERROR(出力前!S73),"",IF(出力前!R73=0,"",出力前!S73))) -> 372 | T68: =IF(J68>100,"",IF(ISERROR(出力前!T73),"",IF(AND($C$2="あり",出力前!$AK$14=1),出力前1!U73,出力前!T73))) -> 0.39 | U68: 58.5 | V68: =IF(ISERROR(出力前!U73),"",IF(AND($C$2="あり",出力前!$AK$14=1),出力前1!V73,出力前!U73)) ->  | W68: =IF(ISERROR(出力前!V73),"",IF(AND($C$2="あり",出力前!$AK$14=1),出力前1!W73,出力前!V73)) ->  | X68: =IF(ISERROR(出力前!W73),"",IF(AND($C$2="あり",出力前!$AK$14=1),出力前1!X73,出力前!W73)) ->  | Y68: =IF(ISERROR(出力前!X73),"",IF(AND($C$2="あり",出力前!$AK$14=1),出力前1!Y73,出力前!X73)) ->  | Z68: =IF(ISERROR(出力前!Y73),"",IF(AND($C$2="あり",出力前!$AK$14=1),出力前1!Z73,出力前!Y73)) ->  | AA68: =IF(ISERROR(出力前!Z73),"",IF(AND($C$2="あり",出力前!$AK$14=1),出力前1!AA73,出力前!Z73)) ->  | AB68: =IF(ISERROR(出力前!AA73),"",IF(AND($C$2="あり",出力前!$AK$14=1),出力前1!AB73,出力前!AA73)) ->  | AC68: =IF(ISERROR(出力前!AB73),"",IF(AND($C$2="あり",出力前!$AK$14=1),出力前1!AC73,出力前!AB73)) ->  | AD68: =IF(ISERROR(出力前!AC73),"",IF(AND($C$2="あり",出力前!$AK$14=1),出力前1!AD73,出力前!AC73)) ->  | AE68: =IF(J68>100,"",IF(ISERROR(出力前!AD73),"",IF(AND($C$2="あり",出力前!$AK$14=1),出力前1!AE73,出力前!AD73))) -> 892 | AF68: =IF(J68>100,"",IF(ISERROR(出力前!AE73),"",IF(AND($C$2="あり",出力前!$AK$14=1),出力前1!AF73,出力前!AE73))) -> 6.7 | AG68: =IF(ISERROR(出力前!AF73),"",IF(AND($C$2="あり",出力前!$AK$14=1),出力前1!AG73,出力前!AF73)) ->  | AH68: =IF(ISERROR(出力前!AG73),"",IF(AND($C$2="あり",出力前!$AK$14=1),出力前1!AH73,出力前!AG73)) ->  | AI68: =IF(J68>100,"",IF(ISERROR(出力前!AH73),"",IF(AND($C$2="あり",出力前!$AK$14=1),出力前1!AI73,出力前!AH73))) -> 11
B69: 57 | C69: 14.7 | D69: 13.5 | F69: 112 | G69: 114 | J69: =出力前!J74 -> 82 | M69: =IF(ISERROR(出力前!M74),"",出力前!M74) ->  | N69: =IF(J69>100,"",出力前!N74) -> 82 | O69: =IF(J69>100,"",出力前!O74) -> 27.0 | P69: =IF(J69>100,"",IF(ISERROR(出力前!P74),"",IF(AND($C$2="あり",出力前!$AK$14=1),出力前1!Q74,出力前!P74))) -> 1.59 | Q69: =IF(J69>100,"",IF(ISERROR(出力前!Q74),"",IF(AND($C$2="あり",出力前!$AK$14=1),出力前1!R74,出力前!Q74))) -> 40.2 | R69: =IF(J69>100,"",IF(ISERROR(出力前!R74),"",IF(出力前!R74=0,"",IF(AND($C$2="あり",出力前!$AK$14=1),出力前1!S74,出力前!R74)))) -> 238 | S69: =IF(J69>100,"",IF(ISERROR(出力前!S74),"",IF(出力前!R74=0,"",出力前!S74))) -> 378 | T69: =IF(J69>100,"",IF(ISERROR(出力前!T74),"",IF(AND($C$2="あり",出力前!$AK$14=1),出力前1!U74,出力前!T74))) -> 0.39 | U69: 58.3 | V69: =IF(ISERROR(出力前!U74),"",IF(AND($C$2="あり",出力前!$AK$14=1),出力前1!V74,出力前!U74)) ->  | W69: =IF(ISERROR(出力前!V74),"",IF(AND($C$2="あり",出力前!$AK$14=1),出力前1!W74,出力前!V74)) ->  | X69: =IF(ISERROR(出力前!W74),"",IF(AND($C$2="あり",出力前!$AK$14=1),出力前1!X74,出力前!W74)) ->  | Y69: =IF(ISERROR(出力前!X74),"",IF(AND($C$2="あり",出力前!$AK$14=1),出力前1!Y74,出力前!X74)) ->  | Z69: =IF(ISERROR(出力前!Y74),"",IF(AND($C$2="あり",出力前!$AK$14=1),出力前1!Z74,出力前!Y74)) ->  | AA69: =IF(ISERROR(出力前!Z74),"",IF(AND($C$2="あり",出力前!$AK$14=1),出力前1!AA74,出力前!Z74)) ->  | AB69: =IF(ISERROR(出力前!AA74),"",IF(AND($C$2="あり",出力前!$AK$14=1),出力前1!AB74,出力前!AA74)) ->  | AC69: =IF(ISERROR(出力前!AB74),"",IF(AND($C$2="あり",出力前!$AK$14=1),出力前1!AC74,出力前!AB74)) ->  | AD69: =IF(ISERROR(出力前!AC74),"",IF(AND($C$2="あり",出力前!$AK$14=1),出力前1!AD74,出力前!AC74)) ->  | AE69: =IF(J69>100,"",IF(ISERROR(出力前!AD74),"",IF(AND($C$2="あり",出力前!$AK$14=1),出力前1!AE74,出力前!AD74))) -> 898 | AF69: =IF(J69>100,"",IF(ISERROR(出力前!AE74),"",IF(AND($C$2="あり",出力前!$AK$14=1),出力前1!AF74,出力前!AE74))) -> 6.6 | AG69: =IF(ISERROR(出力前!AF74),"",IF(AND($C$2="あり",出力前!$AK$14=1),出力前1!AG74,出力前!AF74)) ->  | AH69: =IF(ISERROR(出力前!AG74),"",IF(AND($C$2="あり",出力前!$AK$14=1),出力前1!AH74,出力前!AG74)) ->  | AI69: =IF(J69>100,"",IF(ISERROR(出力前!AH74),"",IF(AND($C$2="あり",出力前!$AK$14=1),出力前1!AI74,出力前!AH74))) -> 11
B70: 58 | C70: 14.6 | D70: 13 | F70: 114 | G70: 116 | J70: =出力前!J75 -> 83 | M70: =IF(ISERROR(出力前!M75),"",出力前!M75) -> 6 | N70: =IF(J70>100,"",出力前!N75) -> 83 | O70: =IF(J70>100,"",出力前!O75) -> 27.1 | P70: =IF(J70>100,"",IF(ISERROR(出力前!P75),"",IF(AND($C$2="あり",出力前!$AK$14=1),出力前1!Q75,出力前!P75))) -> 1.62 | Q70: =IF(J70>100,"",IF(ISERROR(出力前!Q75),"",IF(AND($C$2="あり",出力前!$AK$14=1),出力前1!R75,出力前!Q75))) -> 40.6 | R70: =IF(J70>100,"",IF(ISERROR(出力前!R75),"",IF(出力前!R75=0,"",IF(AND($C$2="あり",出力前!$AK$14=1),出力前1!S75,出力前!R75)))) -> 237 | S70: =IF(J70>100,"",IF(ISERROR(出力前!S75),"",IF(出力前!R75=0,"",出力前!S75))) -> 385 | T70: =IF(J70>100,"",IF(ISERROR(出力前!T75),"",IF(AND($C$2="あり",出力前!$AK$14=1),出力前1!U75,出力前!T75))) -> 0.39 | U70: 58.0 | V70: =IF(ISERROR(出力前!U75),"",IF(AND($C$2="あり",出力前!$AK$14=1),出力前1!V75,出力前!U75)) ->  | W70: =IF(ISERROR(出力前!V75),"",IF(AND($C$2="あり",出力前!$AK$14=1),出力前1!W75,出力前!V75)) ->  | X70: =IF(ISERROR(出力前!W75),"",IF(AND($C$2="あり",出力前!$AK$14=1),出力前1!X75,出力前!W75)) ->  | Y70: =IF(ISERROR(出力前!X75),"",IF(AND($C$2="あり",出力前!$AK$14=1),出力前1!Y75,出力前!X75)) ->  | Z70: =IF(ISERROR(出力前!Y75),"",IF(AND($C$2="あり",出力前!$AK$14=1),出力前1!Z75,出力前!Y75)) ->  | AA70: =IF(ISERROR(出力前!Z75),"",IF(AND($C$2="あり",出力前!$AK$14=1),出力前1!AA75,出力前!Z75)) ->  | AB70: =IF(ISERROR(出力前!AA75),"",IF(AND($C$2="あり",出力前!$AK$14=1),出力前1!AB75,出力前!AA75)) ->  | AC70: =IF(ISERROR(出力前!AB75),"",IF(AND($C$2="あり",出力前!$AK$14=1),出力前1!AC75,出力前!AB75)) ->  | AD70: =IF(ISERROR(出力前!AC75),"",IF(AND($C$2="あり",出力前!$AK$14=1),出力前1!AD75,出力前!AC75)) ->  | AE70: =IF(J70>100,"",IF(ISERROR(出力前!AD75),"",IF(AND($C$2="あり",出力前!$AK$14=1),出力前1!AE75,出力前!AD75))) -> 905 | AF70: =IF(J70>100,"",IF(ISERROR(出力前!AE75),"",IF(AND($C$2="あり",出力前!$AK$14=1),出力前1!AF75,出力前!AE75))) -> 6.5 | AG70: =IF(ISERROR(出力前!AF75),"",IF(AND($C$2="あり",出力前!$AK$14=1),出力前1!AG75,出力前!AF75)) ->  | AH70: =IF(ISERROR(出力前!AG75),"",IF(AND($C$2="あり",出力前!$AK$14=1),出力前1!AH75,出力前!AG75)) ->  | AI70: =IF(J70>100,"",IF(ISERROR(出力前!AH75),"",IF(AND($C$2="あり",出力前!$AK$14=1),出力前1!AI75,出力前!AH75))) -> 11
B71: 59 | C71: 14.5 | D71: 12.3 | F71: 116 | G71: 118 | J71: =出力前!J76 -> 84 | M71: =IF(ISERROR(出力前!M76),"",出力前!M76) ->  | N71: =IF(J71>100,"",出力前!N76) -> 84 | O71: =IF(J71>100,"",出力前!O76) -> 27.3 | P71: =IF(J71>100,"",IF(ISERROR(出力前!P76),"",IF(AND($C$2="あり",出力前!$AK$14=1),出力前1!Q76,出力前!P76))) -> 1.66 | Q71: =IF(J71>100,"",IF(ISERROR(出力前!Q76),"",IF(AND($C$2="あり",出力前!$AK$14=1),出力前1!R76,出力前!Q76))) -> 40.9 | R71: =IF(J71>100,"",IF(ISERROR(出力前!R76),"",IF(出力前!R76=0,"",IF(AND($C$2="あり",出力前!$AK$14=1),出力前1!S76,出力前!R76)))) -> 236 | S71: =IF(J71>100,"",IF(ISERROR(出力前!S76),"",IF(出力前!R76=0,"",出力前!S76))) -> 391 | T71: =IF(J71>100,"",IF(ISERROR(出力前!T76),"",IF(AND($C$2="あり",出力前!$AK$14=1),出力前1!U76,出力前!T76))) -> 0.40 | U71: 57.8 | V71: =IF(ISERROR(出力前!U76),"",IF(AND($C$2="あり",出力前!$AK$14=1),出力前1!V76,出力前!U76)) ->  | W71: =IF(ISERROR(出力前!V76),"",IF(AND($C$2="あり",出力前!$AK$14=1),出力前1!W76,出力前!V76)) ->  | X71: =IF(ISERROR(出力前!W76),"",IF(AND($C$2="あり",出力前!$AK$14=1),出力前1!X76,出力前!W76)) ->  | Y71: =IF(ISERROR(出力前!X76),"",IF(AND($C$2="あり",出力前!$AK$14=1),出力前1!Y76,出力前!X76)) ->  | Z71: =IF(ISERROR(出力前!Y76),"",IF(AND($C$2="あり",出力前!$AK$14=1),出力前1!Z76,出力前!Y76)) ->  | AA71: =IF(ISERROR(出力前!Z76),"",IF(AND($C$2="あり",出力前!$AK$14=1),出力前1!AA76,出力前!Z76)) ->  | AB71: =IF(ISERROR(出力前!AA76),"",IF(AND($C$2="あり",出力前!$AK$14=1),出力前1!AB76,出力前!AA76)) ->  | AC71: =IF(ISERROR(出力前!AB76),"",IF(AND($C$2="あり",出力前!$AK$14=1),出力前1!AC76,出力前!AB76)) ->  | AD71: =IF(ISERROR(出力前!AC76),"",IF(AND($C$2="あり",出力前!$AK$14=1),出力前1!AD76,出力前!AC76)) ->  | AE71: =IF(J71>100,"",IF(ISERROR(出力前!AD76),"",IF(AND($C$2="あり",出力前!$AK$14=1),出力前1!AE76,出力前!AD76))) -> 912 | AF71: =IF(J71>100,"",IF(ISERROR(出力前!AE76),"",IF(AND($C$2="あり",出力前!$AK$14=1),出力前1!AF76,出力前!AE76))) -> 6.4 | AG71: =IF(ISERROR(出力前!AF76),"",IF(AND($C$2="あり",出力前!$AK$14=1),出力前1!AG76,出力前!AF76)) ->  | AH71: =IF(ISERROR(出力前!AG76),"",IF(AND($C$2="あり",出力前!$AK$14=1),出力前1!AH76,出力前!AG76)) ->  | AI71: =IF(J71>100,"",IF(ISERROR(出力前!AH76),"",IF(AND($C$2="あり",出力前!$AK$14=1),出力前1!AI76,出力前!AH76))) -> 11
B72: 60 | C72: 14.5 | D72: 13 | F72: 118 | G72: 120 | J72: =出力前!J77 -> 85 | M72: =IF(ISERROR(出力前!M77),"",出力前!M77) ->  | N72: =IF(J72>100,"",出力前!N77) -> 85 | O72: =IF(J72>100,"",出力前!O77) -> 27.4 | P72: =IF(J72>100,"",IF(ISERROR(出力前!P77),"",IF(AND($C$2="あり",出力前!$AK$14=1),出力前1!Q77,出力前!P77))) -> 1.70 | Q72: =IF(J72>100,"",IF(ISERROR(出力前!Q77),"",IF(AND($C$2="あり",出力前!$AK$14=1),出力前1!R77,出力前!Q77))) -> 41.3 | R72: =IF(J72>100,"",IF(ISERROR(出力前!R77),"",IF(出力前!R77=0,"",IF(AND($C$2="あり",出力前!$AK$14=1),出力前1!S77,出力前!R77)))) -> 234 | S72: =IF(J72>100,"",IF(ISERROR(出力前!S77),"",IF(出力前!R77=0,"",出力前!S77))) -> 398 | T72: =IF(J72>100,"",IF(ISERROR(出力前!T77),"",IF(AND($C$2="あり",出力前!$AK$14=1),出力前1!U77,出力前!T77))) -> 0.40 | U72: =IF(N72>100,"",100*(0.9127*O72- 1.2251)/Q72) -> 57.6 | V72: =IF(ISERROR(出力前!U77),"",IF(AND($C$2="あり",出力前!$AK$14=1),出力前1!V77,出力前!U77)) ->  | W72: =IF(ISERROR(出力前!V77),"",IF(AND($C$2="あり",出力前!$AK$14=1),出力前1!W77,出力前!V77)) ->  | X72: =IF(ISERROR(出力前!W77),"",IF(AND($C$2="あり",出力前!$AK$14=1),出力前1!X77,出力前!W77)) ->  | Y72: =IF(ISERROR(出力前!X77),"",IF(AND($C$2="あり",出力前!$AK$14=1),出力前1!Y77,出力前!X77)) ->  | Z72: =IF(ISERROR(出力前!Y77),"",IF(AND($C$2="あり",出力前!$AK$14=1),出力前1!Z77,出力前!Y77)) ->  | AA72: =IF(ISERROR(出力前!Z77),"",IF(AND($C$2="あり",出力前!$AK$14=1),出力前1!AA77,出力前!Z77)) ->  | AB72: =IF(ISERROR(出力前!AA77),"",IF(AND($C$2="あり",出力前!$AK$14=1),出力前1!AB77,出力前!AA77)) ->  | AC72: =IF(ISERROR(出力前!AB77),"",IF(AND($C$2="あり",出力前!$AK$14=1),出力前1!AC77,出力前!AB77)) ->  | AD72: =IF(ISERROR(出力前!AC77),"",IF(AND($C$2="あり",出力前!$AK$14=1),出力前1!AD77,出力前!AC77)) ->  | AE72: =IF(J72>100,"",IF(ISERROR(出力前!AD77),"",IF(AND($C$2="あり",出力前!$AK$14=1),出力前1!AE77,出力前!AD77))) -> 918 | AF72: =IF(J72>100,"",IF(ISERROR(出力前!AE77),"",IF(AND($C$2="あり",出力前!$AK$14=1),出力前1!AF77,出力前!AE77))) -> 6.3 | AG72: =IF(ISERROR(出力前!AF77),"",IF(AND($C$2="あり",出力前!$AK$14=1),出力前1!AG77,出力前!AF77)) ->  | AH72: =IF(ISERROR(出力前!AG77),"",IF(AND($C$2="あり",出力前!$AK$14=1),出力前1!AH77,出力前!AG77)) ->  | AI72: =IF(J72>100,"",IF(ISERROR(出力前!AH77),"",IF(AND($C$2="あり",出力前!$AK$14=1),出力前1!AI77,出力前!AH77))) -> 11
B73: 61 | C73: 14.5 | D73: 13.5 | F73: 120 | G73: 122 | J73: =出力前!J78 -> 86 | M73: =IF(ISERROR(出力前!M78),"",出力前!M78) ->  | N73: =IF(J73>100,"",出力前!N78) -> 86 | O73: =IF(J73>100,"",出力前!O78) -> 27.5 | P73: =IF(J73>100,"",IF(ISERROR(出力前!P78),"",IF(AND($C$2="あり",出力前!$AK$14=1),出力前1!Q78,出力前!P78))) -> 1.73 | Q73: =IF(J73>100,"",IF(ISERROR(出力前!Q78),"",IF(AND($C$2="あり",出力前!$AK$14=1),出力前1!R78,出力前!Q78))) -> 41.7 | R73: =IF(J73>100,"",IF(ISERROR(出力前!R78),"",IF(出力前!R78=0,"",IF(AND($C$2="あり",出力前!$AK$14=1),出力前1!S78,出力前!R78)))) -> 233 | S73: =IF(J73>100,"",IF(ISERROR(出力前!S78),"",IF(出力前!R78=0,"",出力前!S78))) -> 404 | T73: =IF(J73>100,"",IF(ISERROR(出力前!T78),"",IF(AND($C$2="あり",出力前!$AK$14=1),出力前1!U78,出力前!T78))) -> 0.41 | U73: 57.3 | V73: =IF(ISERROR(出力前!U78),"",IF(AND($C$2="あり",出力前!$AK$14=1),出力前1!V78,出力前!U78)) ->  | W73: =IF(ISERROR(出力前!V78),"",IF(AND($C$2="あり",出力前!$AK$14=1),出力前1!W78,出力前!V78)) ->  | X73: =IF(ISERROR(出力前!W78),"",IF(AND($C$2="あり",出力前!$AK$14=1),出力前1!X78,出力前!W78)) ->  | Y73: =IF(ISERROR(出力前!X78),"",IF(AND($C$2="あり",出力前!$AK$14=1),出力前1!Y78,出力前!X78)) ->  | Z73: =IF(ISERROR(出力前!Y78),"",IF(AND($C$2="あり",出力前!$AK$14=1),出力前1!Z78,出力前!Y78)) ->  | AA73: =IF(ISERROR(出力前!Z78),"",IF(AND($C$2="あり",出力前!$AK$14=1),出力前1!AA78,出力前!Z78)) ->  | AB73: =IF(ISERROR(出力前!AA78),"",IF(AND($C$2="あり",出力前!$AK$14=1),出力前1!AB78,出力前!AA78)) ->  | AC73: =IF(ISERROR(出力前!AB78),"",IF(AND($C$2="あり",出力前!$AK$14=1),出力前1!AC78,出力前!AB78)) ->  | AD73: =IF(ISERROR(出力前!AC78),"",IF(AND($C$2="あり",出力前!$AK$14=1),出力前1!AD78,出力前!AC78)) ->  | AE73: =IF(J73>100,"",IF(ISERROR(出力前!AD78),"",IF(AND($C$2="あり",出力前!$AK$14=1),出力前1!AE78,出力前!AD78))) -> 924 | AF73: =IF(J73>100,"",IF(ISERROR(出力前!AE78),"",IF(AND($C$2="あり",出力前!$AK$14=1),出力前1!AF78,出力前!AE78))) -> 6.2 | AG73: =IF(ISERROR(出力前!AF78),"",IF(AND($C$2="あり",出力前!$AK$14=1),出力前1!AG78,出力前!AF78)) ->  | AH73: =IF(ISERROR(出力前!AG78),"",IF(AND($C$2="あり",出力前!$AK$14=1),出力前1!AH78,出力前!AG78)) ->  | AI73: =IF(J73>100,"",IF(ISERROR(出力前!AH78),"",IF(AND($C$2="あり",出力前!$AK$14=1),出力前1!AI78,出力前!AH78))) -> 11
B74: 62 | C74: 14.5 | D74: 13.2 | F74: 122 | G74: 124 | J74: =出力前!J79 -> 87 | M74: =IF(ISERROR(出力前!M79),"",出力前!M79) ->  | N74: =IF(J74>100,"",出力前!N79) -> 87 | O74: =IF(J74>100,"",出力前!O79) -> 27.7 | P74: =IF(J74>100,"",IF(ISERROR(出力前!P79),"",IF(AND($C$2="あり",出力前!$AK$14=1),出力前1!Q79,出力前!P79))) -> 1.77 | Q74: =IF(J74>100,"",IF(ISERROR(出力前!Q79),"",IF(AND($C$2="あり",出力前!$AK$14=1),出力前1!R79,出力前!Q79))) -> 42.1 | R74: =IF(J74>100,"",IF(ISERROR(出力前!R79),"",IF(出力前!R79=0,"",IF(AND($C$2="あり",出力前!$AK$14=1),出力前1!S79,出力前!R79)))) -> 232 | S74: =IF(J74>100,"",IF(ISERROR(出力前!S79),"",IF(出力前!R79=0,"",出力前!S79))) -> 410 | T74: =IF(J74>100,"",IF(ISERROR(出力前!T79),"",IF(AND($C$2="あり",出力前!$AK$14=1),出力前1!U79,出力前!T79))) -> 0.41 | U74: 57.1 | V74: =IF(ISERROR(出力前!U79),"",IF(AND($C$2="あり",出力前!$AK$14=1),出力前1!V79,出力前!U79)) ->  | W74: =IF(ISERROR(出力前!V79),"",IF(AND($C$2="あり",出力前!$AK$14=1),出力前1!W79,出力前!V79)) ->  | X74: =IF(ISERROR(出力前!W79),"",IF(AND($C$2="あり",出力前!$AK$14=1),出力前1!X79,出力前!W79)) ->  | Y74: =IF(ISERROR(出力前!X79),"",IF(AND($C$2="あり",出力前!$AK$14=1),出力前1!Y79,出力前!X79)) ->  | Z74: =IF(ISERROR(出力前!Y79),"",IF(AND($C$2="あり",出力前!$AK$14=1),出力前1!Z79,出力前!Y79)) ->  | AA74: =IF(ISERROR(出力前!Z79),"",IF(AND($C$2="あり",出力前!$AK$14=1),出力前1!AA79,出力前!Z79)) ->  | AB74: =IF(ISERROR(出力前!AA79),"",IF(AND($C$2="あり",出力前!$AK$14=1),出力前1!AB79,出力前!AA79)) ->  | AC74: =IF(ISERROR(出力前!AB79),"",IF(AND($C$2="あり",出力前!$AK$14=1),出力前1!AC79,出力前!AB79)) ->  | AD74: =IF(ISERROR(出力前!AC79),"",IF(AND($C$2="あり",出力前!$AK$14=1),出力前1!AD79,出力前!AC79)) ->  | AE74: =IF(J74>100,"",IF(ISERROR(出力前!AD79),"",IF(AND($C$2="あり",出力前!$AK$14=1),出力前1!AE79,出力前!AD79))) -> 931 | AF74: =IF(J74>100,"",IF(ISERROR(出力前!AE79),"",IF(AND($C$2="あり",出力前!$AK$14=1),出力前1!AF79,出力前!AE79))) -> 6.1 | AG74: =IF(ISERROR(出力前!AF79),"",IF(AND($C$2="あり",出力前!$AK$14=1),出力前1!AG79,出力前!AF79)) ->  | AH74: =IF(ISERROR(出力前!AG79),"",IF(AND($C$2="あり",出力前!$AK$14=1),出力前1!AH79,出力前!AG79)) ->  | AI74: =IF(J74>100,"",IF(ISERROR(出力前!AH79),"",IF(AND($C$2="あり",出力前!$AK$14=1),出力前1!AI79,出力前!AH79))) -> 11
B75: 63 | C75: 14.5 | D75: 13.3 | F75: 124 | G75: 126 | J75: =出力前!J80 -> 88 | M75: =IF(ISERROR(出力前!M80),"",出力前!M80) ->  | N75: =IF(J75>100,"",出力前!N80) -> 88 | O75: =IF(J75>100,"",出力前!O80) -> 27.8 | P75: =IF(J75>100,"",IF(ISERROR(出力前!P80),"",IF(AND($C$2="あり",出力前!$AK$14=1),出力前1!Q80,出力前!P80))) -> 1.80 | Q75: =IF(J75>100,"",IF(ISERROR(出力前!Q80),"",IF(AND($C$2="あり",出力前!$AK$14=1),出力前1!R80,出力前!Q80))) -> 42.4 | R75: =IF(J75>100,"",IF(ISERROR(出力前!R80),"",IF(出力前!R80=0,"",IF(AND($C$2="あり",出力前!$AK$14=1),出力前1!S80,出力前!R80)))) -> 231 | S75: =IF(J75>100,"",IF(ISERROR(出力前!S80),"",IF(出力前!R80=0,"",出力前!S80))) -> 416 | T75: =IF(J75>100,"",IF(ISERROR(出力前!T80),"",IF(AND($C$2="あり",出力前!$AK$14=1),出力前1!U80,出力前!T80))) -> 0.41 | U75: 56.9 | V75: =IF(ISERROR(出力前!U80),"",IF(AND($C$2="あり",出力前!$AK$14=1),出力前1!V80,出力前!U80)) ->  | W75: =IF(ISERROR(出力前!V80),"",IF(AND($C$2="あり",出力前!$AK$14=1),出力前1!W80,出力前!V80)) ->  | X75: =IF(ISERROR(出力前!W80),"",IF(AND($C$2="あり",出力前!$AK$14=1),出力前1!X80,出力前!W80)) ->  | Y75: =IF(ISERROR(出力前!X80),"",IF(AND($C$2="あり",出力前!$AK$14=1),出力前1!Y80,出力前!X80)) ->  | Z75: =IF(ISERROR(出力前!Y80),"",IF(AND($C$2="あり",出力前!$AK$14=1),出力前1!Z80,出力前!Y80)) ->  | AA75: =IF(ISERROR(出力前!Z80),"",IF(AND($C$2="あり",出力前!$AK$14=1),出力前1!AA80,出力前!Z80)) ->  | AB75: =IF(ISERROR(出力前!AA80),"",IF(AND($C$2="あり",出力前!$AK$14=1),出力前1!AB80,出力前!AA80)) ->  | AC75: =IF(ISERROR(出力前!AB80),"",IF(AND($C$2="あり",出力前!$AK$14=1),出力前1!AC80,出力前!AB80)) ->  | AD75: =IF(ISERROR(出力前!AC80),"",IF(AND($C$2="あり",出力前!$AK$14=1),出力前1!AD80,出力前!AC80)) ->  | AE75: =IF(J75>100,"",IF(ISERROR(出力前!AD80),"",IF(AND($C$2="あり",出力前!$AK$14=1),出力前1!AE80,出力前!AD80))) -> 937 | AF75: =IF(J75>100,"",IF(ISERROR(出力前!AE80),"",IF(AND($C$2="あり",出力前!$AK$14=1),出力前1!AF80,出力前!AE80))) -> 6.1 | AG75: =IF(ISERROR(出力前!AF80),"",IF(AND($C$2="あり",出力前!$AK$14=1),出力前1!AG80,出力前!AF80)) ->  | AH75: =IF(ISERROR(出力前!AG80),"",IF(AND($C$2="あり",出力前!$AK$14=1),出力前1!AH80,出力前!AG80)) ->  | AI75: =IF(J75>100,"",IF(ISERROR(出力前!AH80),"",IF(AND($C$2="あり",出力前!$AK$14=1),出力前1!AI80,出力前!AH80))) -> 11
B76: 64 | C76: 14.5 | D76: 14 | F76: 126 | G76: 128 | J76: =出力前!J81 -> 89 | M76: =IF(ISERROR(出力前!M81),"",出力前!M81) ->  | N76: =IF(J76>100,"",出力前!N81) -> 89 | O76: =IF(J76>100,"",出力前!O81) -> 27.9 | P76: =IF(J76>100,"",IF(ISERROR(出力前!P81),"",IF(AND($C$2="あり",出力前!$AK$14=1),出力前1!Q81,出力前!P81))) -> 1.84 | Q76: =IF(J76>100,"",IF(ISERROR(出力前!Q81),"",IF(AND($C$2="あり",出力前!$AK$14=1),出力前1!R81,出力前!Q81))) -> 42.8 | R76: =IF(J76>100,"",IF(ISERROR(出力前!R81),"",IF(出力前!R81=0,"",IF(AND($C$2="あり",出力前!$AK$14=1),出力前1!S81,出力前!R81)))) -> 230 | S76: =IF(J76>100,"",IF(ISERROR(出力前!S81),"",IF(出力前!R81=0,"",出力前!S81))) -> 422 | T76: =IF(J76>100,"",IF(ISERROR(出力前!T81),"",IF(AND($C$2="あり",出力前!$AK$14=1),出力前1!U81,出力前!T81))) -> 0.42 | U76: 56.7 | V76: =IF(ISERROR(出力前!U81),"",IF(AND($C$2="あり",出力前!$AK$14=1),出力前1!V81,出力前!U81)) ->  | W76: =IF(ISERROR(出力前!V81),"",IF(AND($C$2="あり",出力前!$AK$14=1),出力前1!W81,出力前!V81)) ->  | X76: =IF(ISERROR(出力前!W81),"",IF(AND($C$2="あり",出力前!$AK$14=1),出力前1!X81,出力前!W81)) ->  | Y76: =IF(ISERROR(出力前!X81),"",IF(AND($C$2="あり",出力前!$AK$14=1),出力前1!Y81,出力前!X81)) ->  | Z76: =IF(ISERROR(出力前!Y81),"",IF(AND($C$2="あり",出力前!$AK$14=1),出力前1!Z81,出力前!Y81)) ->  | AA76: =IF(ISERROR(出力前!Z81),"",IF(AND($C$2="あり",出力前!$AK$14=1),出力前1!AA81,出力前!Z81)) ->  | AB76: =IF(ISERROR(出力前!AA81),"",IF(AND($C$2="あり",出力前!$AK$14=1),出力前1!AB81,出力前!AA81)) ->  | AC76: =IF(ISERROR(出力前!AB81),"",IF(AND($C$2="あり",出力前!$AK$14=1),出力前1!AC81,出力前!AB81)) ->  | AD76: =IF(ISERROR(出力前!AC81),"",IF(AND($C$2="あり",出力前!$AK$14=1),出力前1!AD81,出力前!AC81)) ->  | AE76: =IF(J76>100,"",IF(ISERROR(出力前!AD81),"",IF(AND($C$2="あり",出力前!$AK$14=1),出力前1!AE81,出力前!AD81))) -> 943 | AF76: =IF(J76>100,"",IF(ISERROR(出力前!AE81),"",IF(AND($C$2="あり",出力前!$AK$14=1),出力前1!AF81,出力前!AE81))) -> 6.0 | AG76: =IF(ISERROR(出力前!AF81),"",IF(AND($C$2="あり",出力前!$AK$14=1),出力前1!AG81,出力前!AF81)) ->  | AH76: =IF(ISERROR(出力前!AG81),"",IF(AND($C$2="あり",出力前!$AK$14=1),出力前1!AH81,出力前!AG81)) ->  | AI76: =IF(J76>100,"",IF(ISERROR(出力前!AH81),"",IF(AND($C$2="あり",出力前!$AK$14=1),出力前1!AI81,出力前!AH81))) -> 11
B77: 65 | C77: 14.4 | D77: 14.5 | F77: 128 | G77: =F77+$C$5 -> 130 | J77: =出力前!J82 -> 90 | M77: =IF(ISERROR(出力前!M82),"",出力前!M82) ->  | N77: =IF(J77>100,"",出力前!N82) -> 90 | O77: =IF(J77>100,"",出力前!O82) -> 28.1 | P77: =IF(J77>100,"",IF(ISERROR(出力前!P82),"",IF(AND($C$2="あり",出力前!$AK$14=1),出力前1!Q82,出力前!P82))) -> 1.87 | Q77: =IF(J77>100,"",IF(ISERROR(出力前!Q82),"",IF(AND($C$2="あり",出力前!$AK$14=1),出力前1!R82,出力前!Q82))) -> 43.1 | R77: =IF(J77>100,"",IF(ISERROR(出力前!R82),"",IF(出力前!R82=0,"",IF(AND($C$2="あり",出力前!$AK$14=1),出力前1!S82,出力前!R82)))) -> 229 | S77: =IF(J77>100,"",IF(ISERROR(出力前!S82),"",IF(出力前!R82=0,"",出力前!S82))) -> 428 | T77: =IF(J77>100,"",IF(ISERROR(出力前!T82),"",IF(AND($C$2="あり",出力前!$AK$14=1),出力前1!U82,出力前!T82))) -> 0.42 | U77: 56.5 | V77: =IF(ISERROR(出力前!U82),"",IF(AND($C$2="あり",出力前!$AK$14=1),出力前1!V82,出力前!U82)) ->  | W77: =IF(ISERROR(出力前!V82),"",IF(AND($C$2="あり",出力前!$AK$14=1),出力前1!W82,出力前!V82)) ->  | X77: =IF(ISERROR(出力前!W82),"",IF(AND($C$2="あり",出力前!$AK$14=1),出力前1!X82,出力前!W82)) ->  | Y77: =IF(ISERROR(出力前!X82),"",IF(AND($C$2="あり",出力前!$AK$14=1),出力前1!Y82,出力前!X82)) ->  | Z77: =IF(ISERROR(出力前!Y82),"",IF(AND($C$2="あり",出力前!$AK$14=1),出力前1!Z82,出力前!Y82)) ->  | AA77: =IF(ISERROR(出力前!Z82),"",IF(AND($C$2="あり",出力前!$AK$14=1),出力前1!AA82,出力前!Z82)) ->  | AB77: =IF(ISERROR(出力前!AA82),"",IF(AND($C$2="あり",出力前!$AK$14=1),出力前1!AB82,出力前!AA82)) ->  | AC77: =IF(ISERROR(出力前!AB82),"",IF(AND($C$2="あり",出力前!$AK$14=1),出力前1!AC82,出力前!AB82)) ->  | AD77: =IF(ISERROR(出力前!AC82),"",IF(AND($C$2="あり",出力前!$AK$14=1),出力前1!AD82,出力前!AC82)) ->  | AE77: =IF(J77>100,"",IF(ISERROR(出力前!AD82),"",IF(AND($C$2="あり",出力前!$AK$14=1),出力前1!AE82,出力前!AD82))) -> 949 | AF77: =IF(J77>100,"",IF(ISERROR(出力前!AE82),"",IF(AND($C$2="あり",出力前!$AK$14=1),出力前1!AF82,出力前!AE82))) -> 5.9 | AG77: =IF(ISERROR(出力前!AF82),"",IF(AND($C$2="あり",出力前!$AK$14=1),出力前1!AG82,出力前!AF82)) ->  | AH77: =IF(ISERROR(出力前!AG82),"",IF(AND($C$2="あり",出力前!$AK$14=1),出力前1!AH82,出力前!AG82)) ->  | AI77: =IF(J77>100,"",IF(ISERROR(出力前!AH82),"",IF(AND($C$2="あり",出力前!$AK$14=1),出力前1!AI82,出力前!AH82))) -> 11
B78: 66 | C78: 14.4 | D78: 11.6 | F78: 130 | G78: 132 | J78: =出力前!J83 -> 91 | M78: =IF(ISERROR(出力前!M83),"",出力前!M83) ->  | N78: =IF(J78>100,"",出力前!N83) -> 91 | O78: =IF(J78>100,"",出力前!O83) -> 28.2 | P78: =IF(J78>100,"",IF(ISERROR(出力前!P83),"",IF(AND($C$2="あり",出力前!$AK$14=1),出力前1!Q83,出力前!P83))) -> 1.91 | Q78: =IF(J78>100,"",IF(ISERROR(出力前!Q83),"",IF(AND($C$2="あり",出力前!$AK$14=1),出力前1!R83,出力前!Q83))) -> 43.5 | R78: =IF(J78>100,"",IF(ISERROR(出力前!R83),"",IF(出力前!R83=0,"",IF(AND($C$2="あり",出力前!$AK$14=1),出力前1!S83,出力前!R83)))) -> 228 | S78: =IF(J78>100,"",IF(ISERROR(出力前!S83),"",IF(出力前!R83=0,"",出力前!S83))) -> 434 | T78: =IF(J78>100,"",IF(ISERROR(出力前!T83),"",IF(AND($C$2="あり",出力前!$AK$14=1),出力前1!U83,出力前!T83))) -> 0.42 | U78: 56.4 | V78: =IF(ISERROR(出力前!U83),"",IF(AND($C$2="あり",出力前!$AK$14=1),出力前1!V83,出力前!U83)) ->  | W78: =IF(ISERROR(出力前!V83),"",IF(AND($C$2="あり",出力前!$AK$14=1),出力前1!W83,出力前!V83)) ->  | X78: =IF(ISERROR(出力前!W83),"",IF(AND($C$2="あり",出力前!$AK$14=1),出力前1!X83,出力前!W83)) ->  | Y78: =IF(ISERROR(出力前!X83),"",IF(AND($C$2="あり",出力前!$AK$14=1),出力前1!Y83,出力前!X83)) ->  | Z78: =IF(ISERROR(出力前!Y83),"",IF(AND($C$2="あり",出力前!$AK$14=1),出力前1!Z83,出力前!Y83)) ->  | AA78: =IF(ISERROR(出力前!Z83),"",IF(AND($C$2="あり",出力前!$AK$14=1),出力前1!AA83,出力前!Z83)) ->  | AB78: =IF(ISERROR(出力前!AA83),"",IF(AND($C$2="あり",出力前!$AK$14=1),出力前1!AB83,出力前!AA83)) ->  | AC78: =IF(ISERROR(出力前!AB83),"",IF(AND($C$2="あり",出力前!$AK$14=1),出力前1!AC83,出力前!AB83)) ->  | AD78: =IF(ISERROR(出力前!AC83),"",IF(AND($C$2="あり",出力前!$AK$14=1),出力前1!AD83,出力前!AC83)) ->  | AE78: =IF(J78>100,"",IF(ISERROR(出力前!AD83),"",IF(AND($C$2="あり",出力前!$AK$14=1),出力前1!AE83,出力前!AD83))) -> 955 | AF78: =IF(J78>100,"",IF(ISERROR(出力前!AE83),"",IF(AND($C$2="あり",出力前!$AK$14=1),出力前1!AF83,出力前!AE83))) -> 5.8 | AG78: =IF(ISERROR(出力前!AF83),"",IF(AND($C$2="あり",出力前!$AK$14=1),出力前1!AG83,出力前!AF83)) ->  | AH78: =IF(ISERROR(出力前!AG83),"",IF(AND($C$2="あり",出力前!$AK$14=1),出力前1!AH83,出力前!AG83)) ->  | AI78: =IF(J78>100,"",IF(ISERROR(出力前!AH83),"",IF(AND($C$2="あり",出力前!$AK$14=1),出力前1!AI83,出力前!AH83))) -> 10
B79: 67 | C79: 14.4 | D79: 14.4 | F79: =G78 -> 132 | G79: 134 | J79: =出力前!J84 -> 92 | M79: =IF(ISERROR(出力前!M84),"",出力前!M84) ->  | N79: =IF(J79>100,"",出力前!N84) -> 92 | O79: =IF(J79>100,"",出力前!O84) -> 28.3 | P79: =IF(J79>100,"",IF(ISERROR(出力前!P84),"",IF(AND($C$2="あり",出力前!$AK$14=1),出力前1!Q84,出力前!P84))) -> 1.94 | Q79: =IF(J79>100,"",IF(ISERROR(出力前!Q84),"",IF(AND($C$2="あり",出力前!$AK$14=1),出力前1!R84,出力前!Q84))) -> 43.8 | R79: =IF(J79>100,"",IF(ISERROR(出力前!R84),"",IF(出力前!R84=0,"",IF(AND($C$2="あり",出力前!$AK$14=1),出力前1!S84,出力前!R84)))) -> 226 | S79: =IF(J79>100,"",IF(ISERROR(出力前!S84),"",IF(出力前!R84=0,"",出力前!S84))) -> 440 | T79: =IF(J79>100,"",IF(ISERROR(出力前!T84),"",IF(AND($C$2="あり",出力前!$AK$14=1),出力前1!U84,出力前!T84))) -> 0.43 | U79: 56.2 | V79: =IF(ISERROR(出力前!U84),"",IF(AND($C$2="あり",出力前!$AK$14=1),出力前1!V84,出力前!U84)) ->  | W79: =IF(ISERROR(出力前!V84),"",IF(AND($C$2="あり",出力前!$AK$14=1),出力前1!W84,出力前!V84)) ->  | X79: =IF(ISERROR(出力前!W84),"",IF(AND($C$2="あり",出力前!$AK$14=1),出力前1!X84,出力前!W84)) ->  | Y79: =IF(ISERROR(出力前!X84),"",IF(AND($C$2="あり",出力前!$AK$14=1),出力前1!Y84,出力前!X84)) ->  | Z79: =IF(ISERROR(出力前!Y84),"",IF(AND($C$2="あり",出力前!$AK$14=1),出力前1!Z84,出力前!Y84)) ->  | AA79: =IF(ISERROR(出力前!Z84),"",IF(AND($C$2="あり",出力前!$AK$14=1),出力前1!AA84,出力前!Z84)) ->  | AB79: =IF(ISERROR(出力前!AA84),"",IF(AND($C$2="あり",出力前!$AK$14=1),出力前1!AB84,出力前!AA84)) ->  | AC79: =IF(ISERROR(出力前!AB84),"",IF(AND($C$2="あり",出力前!$AK$14=1),出力前1!AC84,出力前!AB84)) ->  | AD79: =IF(ISERROR(出力前!AC84),"",IF(AND($C$2="あり",出力前!$AK$14=1),出力前1!AD84,出力前!AC84)) ->  | AE79: =IF(J79>100,"",IF(ISERROR(出力前!AD84),"",IF(AND($C$2="あり",出力前!$AK$14=1),出力前1!AE84,出力前!AD84))) -> 960 | AF79: =IF(J79>100,"",IF(ISERROR(出力前!AE84),"",IF(AND($C$2="あり",出力前!$AK$14=1),出力前1!AF84,出力前!AE84))) -> 5.7 | AG79: =IF(ISERROR(出力前!AF84),"",IF(AND($C$2="あり",出力前!$AK$14=1),出力前1!AG84,出力前!AF84)) ->  | AH79: =IF(ISERROR(出力前!AG84),"",IF(AND($C$2="あり",出力前!$AK$14=1),出力前1!AH84,出力前!AG84)) ->  | AI79: =IF(J79>100,"",IF(ISERROR(出力前!AH84),"",IF(AND($C$2="あり",出力前!$AK$14=1),出力前1!AI84,出力前!AH84))) -> 10
B80: 68 | C80: 14.4 | D80: 12.3 | F80: 134 | G80: 136 | J80: =出力前!J85 -> 93 | M80: =IF(ISERROR(出力前!M85),"",出力前!M85) ->  | N80: =IF(J80>100,"",出力前!N85) -> 93 | O80: =IF(J80>100,"",出力前!O85) -> 28.4 | P80: =IF(J80>100,"",IF(ISERROR(出力前!P85),"",IF(AND($C$2="あり",出力前!$AK$14=1),出力前1!Q85,出力前!P85))) -> 1.98 | Q80: =IF(J80>100,"",IF(ISERROR(出力前!Q85),"",IF(AND($C$2="あり",出力前!$AK$14=1),出力前1!R85,出力前!Q85))) -> 44.1 | R80: =IF(J80>100,"",IF(ISERROR(出力前!R85),"",IF(出力前!R85=0,"",IF(AND($C$2="あり",出力前!$AK$14=1),出力前1!S85,出力前!R85)))) -> 225 | S80: =IF(J80>100,"",IF(ISERROR(出力前!S85),"",IF(出力前!R85=0,"",出力前!S85))) -> 446 | T80: =IF(J80>100,"",IF(ISERROR(出力前!T85),"",IF(AND($C$2="あり",出力前!$AK$14=1),出力前1!U85,出力前!T85))) -> 0.43 | U80: 56.0 | V80: =IF(ISERROR(出力前!U85),"",IF(AND($C$2="あり",出力前!$AK$14=1),出力前1!V85,出力前!U85)) ->  | W80: =IF(ISERROR(出力前!V85),"",IF(AND($C$2="あり",出力前!$AK$14=1),出力前1!W85,出力前!V85)) ->  | X80: =IF(ISERROR(出力前!W85),"",IF(AND($C$2="あり",出力前!$AK$14=1),出力前1!X85,出力前!W85)) ->  | Y80: =IF(ISERROR(出力前!X85),"",IF(AND($C$2="あり",出力前!$AK$14=1),出力前1!Y85,出力前!X85)) ->  | Z80: =IF(ISERROR(出力前!Y85),"",IF(AND($C$2="あり",出力前!$AK$14=1),出力前1!Z85,出力前!Y85)) ->  | AA80: =IF(ISERROR(出力前!Z85),"",IF(AND($C$2="あり",出力前!$AK$14=1),出力前1!AA85,出力前!Z85)) ->  | AB80: =IF(ISERROR(出力前!AA85),"",IF(AND($C$2="あり",出力前!$AK$14=1),出力前1!AB85,出力前!AA85)) ->  | AC80: =IF(ISERROR(出力前!AB85),"",IF(AND($C$2="あり",出力前!$AK$14=1),出力前1!AC85,出力前!AB85)) ->  | AD80: =IF(ISERROR(出力前!AC85),"",IF(AND($C$2="あり",出力前!$AK$14=1),出力前1!AD85,出力前!AC85)) ->  | AE80: =IF(J80>100,"",IF(ISERROR(出力前!AD85),"",IF(AND($C$2="あり",出力前!$AK$14=1),出力前1!AE85,出力前!AD85))) -> 966 | AF80: =IF(J80>100,"",IF(ISERROR(出力前!AE85),"",IF(AND($C$2="あり",出力前!$AK$14=1),出力前1!AF85,出力前!AE85))) -> 5.7 | AG80: =IF(ISERROR(出力前!AF85),"",IF(AND($C$2="あり",出力前!$AK$14=1),出力前1!AG85,出力前!AF85)) ->  | AH80: =IF(ISERROR(出力前!AG85),"",IF(AND($C$2="あり",出力前!$AK$14=1),出力前1!AH85,出力前!AG85)) ->  | AI80: =IF(J80>100,"",IF(ISERROR(出力前!AH85),"",IF(AND($C$2="あり",出力前!$AK$14=1),出力前1!AI85,出力前!AH85))) -> 10
B81: 69 | C81: 14.4 | D81: 14.2 | F81: 136 | G81: 138 | J81: =出力前!J86 -> 94 | M81: =IF(ISERROR(出力前!M86),"",出力前!M86) ->  | N81: =IF(J81>100,"",出力前!N86) -> 94 | O81: =IF(J81>100,"",出力前!O86) -> 28.5 | P81: =IF(J81>100,"",IF(ISERROR(出力前!P86),"",IF(AND($C$2="あり",出力前!$AK$14=1),出力前1!Q86,出力前!P86))) -> 2.01 | Q81: =IF(J81>100,"",IF(ISERROR(出力前!Q86),"",IF(AND($C$2="あり",出力前!$AK$14=1),出力前1!R86,出力前!Q86))) -> 44.5 | R81: =IF(J81>100,"",IF(ISERROR(出力前!R86),"",IF(出力前!R86=0,"",IF(AND($C$2="あり",出力前!$AK$14=1),出力前1!S86,出力前!R86)))) -> 224 | S81: =IF(J81>100,"",IF(ISERROR(出力前!S86),"",IF(出力前!R86=0,"",出力前!S86))) -> 452 | T81: =IF(J81>100,"",IF(ISERROR(出力前!T86),"",IF(AND($C$2="あり",出力前!$AK$14=1),出力前1!U86,出力前!T86))) -> 0.43 | U81: 55.8 | V81: =IF(ISERROR(出力前!U86),"",IF(AND($C$2="あり",出力前!$AK$14=1),出力前1!V86,出力前!U86)) ->  | W81: =IF(ISERROR(出力前!V86),"",IF(AND($C$2="あり",出力前!$AK$14=1),出力前1!W86,出力前!V86)) ->  | X81: =IF(ISERROR(出力前!W86),"",IF(AND($C$2="あり",出力前!$AK$14=1),出力前1!X86,出力前!W86)) ->  | Y81: =IF(ISERROR(出力前!X86),"",IF(AND($C$2="あり",出力前!$AK$14=1),出力前1!Y86,出力前!X86)) ->  | Z81: =IF(ISERROR(出力前!Y86),"",IF(AND($C$2="あり",出力前!$AK$14=1),出力前1!Z86,出力前!Y86)) ->  | AA81: =IF(ISERROR(出力前!Z86),"",IF(AND($C$2="あり",出力前!$AK$14=1),出力前1!AA86,出力前!Z86)) ->  | AB81: =IF(ISERROR(出力前!AA86),"",IF(AND($C$2="あり",出力前!$AK$14=1),出力前1!AB86,出力前!AA86)) ->  | AC81: =IF(ISERROR(出力前!AB86),"",IF(AND($C$2="あり",出力前!$AK$14=1),出力前1!AC86,出力前!AB86)) ->  | AD81: =IF(ISERROR(出力前!AC86),"",IF(AND($C$2="あり",出力前!$AK$14=1),出力前1!AD86,出力前!AC86)) ->  | AE81: =IF(J81>100,"",IF(ISERROR(出力前!AD86),"",IF(AND($C$2="あり",出力前!$AK$14=1),出力前1!AE86,出力前!AD86))) -> 972 | AF81: =IF(J81>100,"",IF(ISERROR(出力前!AE86),"",IF(AND($C$2="あり",出力前!$AK$14=1),出力前1!AF86,出力前!AE86))) -> 5.6 | AG81: =IF(ISERROR(出力前!AF86),"",IF(AND($C$2="あり",出力前!$AK$14=1),出力前1!AG86,出力前!AF86)) ->  | AH81: =IF(ISERROR(出力前!AG86),"",IF(AND($C$2="あり",出力前!$AK$14=1),出力前1!AH86,出力前!AG86)) ->  | AI81: =IF(J81>100,"",IF(ISERROR(出力前!AH86),"",IF(AND($C$2="あり",出力前!$AK$14=1),出力前1!AI86,出力前!AH86))) -> 10
B82: 70 | C82: 14.4 | D82: 13.8 | F82: 138 | G82: 140 | J82: =出力前!J87 -> 95 | M82: =IF(ISERROR(出力前!M87),"",出力前!M87) ->  | N82: =IF(J82>100,"",出力前!N87) -> 95 | O82: =IF(J82>100,"",出力前!O87) -> 28.7 | P82: =IF(J82>100,"",IF(ISERROR(出力前!P87),"",IF(AND($C$2="あり",出力前!$AK$14=1),出力前1!Q87,出力前!P87))) -> 2.05 | Q82: =IF(J82>100,"",IF(ISERROR(出力前!Q87),"",IF(AND($C$2="あり",出力前!$AK$14=1),出力前1!R87,出力前!Q87))) -> 44.8 | R82: =IF(J82>100,"",IF(ISERROR(出力前!R87),"",IF(出力前!R87=0,"",IF(AND($C$2="あり",出力前!$AK$14=1),出力前1!S87,出力前!R87)))) -> 223 | S82: =IF(J82>100,"",IF(ISERROR(出力前!S87),"",IF(出力前!R87=0,"",出力前!S87))) -> 457 | T82: =IF(J82>100,"",IF(ISERROR(出力前!T87),"",IF(AND($C$2="あり",出力前!$AK$14=1),出力前1!U87,出力前!T87))) -> 0.43 | U82: 55.7 | V82: =IF(ISERROR(出力前!U87),"",IF(AND($C$2="あり",出力前!$AK$14=1),出力前1!V87,出力前!U87)) ->  | W82: =IF(ISERROR(出力前!V87),"",IF(AND($C$2="あり",出力前!$AK$14=1),出力前1!W87,出力前!V87)) ->  | X82: =IF(ISERROR(出力前!W87),"",IF(AND($C$2="あり",出力前!$AK$14=1),出力前1!X87,出力前!W87)) ->  | Y82: =IF(ISERROR(出力前!X87),"",IF(AND($C$2="あり",出力前!$AK$14=1),出力前1!Y87,出力前!X87)) ->  | Z82: =IF(ISERROR(出力前!Y87),"",IF(AND($C$2="あり",出力前!$AK$14=1),出力前1!Z87,出力前!Y87)) ->  | AA82: =IF(ISERROR(出力前!Z87),"",IF(AND($C$2="あり",出力前!$AK$14=1),出力前1!AA87,出力前!Z87)) ->  | AB82: =IF(ISERROR(出力前!AA87),"",IF(AND($C$2="あり",出力前!$AK$14=1),出力前1!AB87,出力前!AA87)) ->  | AC82: =IF(ISERROR(出力前!AB87),"",IF(AND($C$2="あり",出力前!$AK$14=1),出力前1!AC87,出力前!AB87)) ->  | AD82: =IF(ISERROR(出力前!AC87),"",IF(AND($C$2="あり",出力前!$AK$14=1),出力前1!AD87,出力前!AC87)) ->  | AE82: =IF(J82>100,"",IF(ISERROR(出力前!AD87),"",IF(AND($C$2="あり",出力前!$AK$14=1),出力前1!AE87,出力前!AD87))) -> 977 | AF82: =IF(J82>100,"",IF(ISERROR(出力前!AE87),"",IF(AND($C$2="あり",出力前!$AK$14=1),出力前1!AF87,出力前!AE87))) -> 5.5 | AG82: =IF(ISERROR(出力前!AF87),"",IF(AND($C$2="あり",出力前!$AK$14=1),出力前1!AG87,出力前!AF87)) ->  | AH82: =IF(ISERROR(出力前!AG87),"",IF(AND($C$2="あり",出力前!$AK$14=1),出力前1!AH87,出力前!AG87)) ->  | AI82: =IF(J82>100,"",IF(ISERROR(出力前!AH87),"",IF(AND($C$2="あり",出力前!$AK$14=1),出力前1!AI87,出力前!AH87))) -> 10
B83: 71 | C83: 14.4 | D83: 13.6 | F83: 140 | G83: 142 | J83: =出力前!J88 -> 96 | M83: =IF(ISERROR(出力前!M88),"",出力前!M88) ->  | N83: =IF(J83>100,"",出力前!N88) -> 96 | O83: =IF(J83>100,"",出力前!O88) -> 28.8 | P83: =IF(J83>100,"",IF(ISERROR(出力前!P88),"",IF(AND($C$2="あり",出力前!$AK$14=1),出力前1!Q88,出力前!P88))) -> 2.08 | Q83: =IF(J83>100,"",IF(ISERROR(出力前!Q88),"",IF(AND($C$2="あり",出力前!$AK$14=1),出力前1!R88,出力前!Q88))) -> 45.1 | R83: =IF(J83>100,"",IF(ISERROR(出力前!R88),"",IF(出力前!R88=0,"",IF(AND($C$2="あり",出力前!$AK$14=1),出力前1!S88,出力前!R88)))) -> 222 | S83: =IF(J83>100,"",IF(ISERROR(出力前!S88),"",IF(出力前!R88=0,"",出力前!S88))) -> 463 | T83: =IF(J83>100,"",IF(ISERROR(出力前!T88),"",IF(AND($C$2="あり",出力前!$AK$14=1),出力前1!U88,出力前!T88))) -> 0.44 | U83: 55.5 | V83: =IF(ISERROR(出力前!U88),"",IF(AND($C$2="あり",出力前!$AK$14=1),出力前1!V88,出力前!U88)) ->  | W83: =IF(ISERROR(出力前!V88),"",IF(AND($C$2="あり",出力前!$AK$14=1),出力前1!W88,出力前!V88)) ->  | X83: =IF(ISERROR(出力前!W88),"",IF(AND($C$2="あり",出力前!$AK$14=1),出力前1!X88,出力前!W88)) ->  | Y83: =IF(ISERROR(出力前!X88),"",IF(AND($C$2="あり",出力前!$AK$14=1),出力前1!Y88,出力前!X88)) ->  | Z83: =IF(ISERROR(出力前!Y88),"",IF(AND($C$2="あり",出力前!$AK$14=1),出力前1!Z88,出力前!Y88)) ->  | AA83: =IF(ISERROR(出力前!Z88),"",IF(AND($C$2="あり",出力前!$AK$14=1),出力前1!AA88,出力前!Z88)) ->  | AB83: =IF(ISERROR(出力前!AA88),"",IF(AND($C$2="あり",出力前!$AK$14=1),出力前1!AB88,出力前!AA88)) ->  | AC83: =IF(ISERROR(出力前!AB88),"",IF(AND($C$2="あり",出力前!$AK$14=1),出力前1!AC88,出力前!AB88)) ->  | AD83: =IF(ISERROR(出力前!AC88),"",IF(AND($C$2="あり",出力前!$AK$14=1),出力前1!AD88,出力前!AC88)) ->  | AE83: =IF(J83>100,"",IF(ISERROR(出力前!AD88),"",IF(AND($C$2="あり",出力前!$AK$14=1),出力前1!AE88,出力前!AD88))) -> 983 | AF83: =IF(J83>100,"",IF(ISERROR(出力前!AE88),"",IF(AND($C$2="あり",出力前!$AK$14=1),出力前1!AF88,出力前!AE88))) -> 5.4 | AG83: =IF(ISERROR(出力前!AF88),"",IF(AND($C$2="あり",出力前!$AK$14=1),出力前1!AG88,出力前!AF88)) ->  | AH83: =IF(ISERROR(出力前!AG88),"",IF(AND($C$2="あり",出力前!$AK$14=1),出力前1!AH88,出力前!AG88)) ->  | AI83: =IF(J83>100,"",IF(ISERROR(出力前!AH88),"",IF(AND($C$2="あり",出力前!$AK$14=1),出力前1!AI88,出力前!AH88))) -> 10
B84: 72 | C84: 14.3 | D84: 13.3 | F84: 142 | G84: 144 | J84: =出力前!J89 -> 97 | M84: =IF(ISERROR(出力前!M89),"",出力前!M89) ->  | N84: =IF(J84>100,"",出力前!N89) -> 97 | O84: =IF(J84>100,"",出力前!O89) -> 28.9 | P84: =IF(J84>100,"",IF(ISERROR(出力前!P89),"",IF(AND($C$2="あり",出力前!$AK$14=1),出力前1!Q89,出力前!P89))) -> 2.12 | Q84: =IF(J84>100,"",IF(ISERROR(出力前!Q89),"",IF(AND($C$2="あり",出力前!$AK$14=1),出力前1!R89,出力前!Q89))) -> 45.4 | R84: =IF(J84>100,"",IF(ISERROR(出力前!R89),"",IF(出力前!R89=0,"",IF(AND($C$2="あり",出力前!$AK$14=1),出力前1!S89,出力前!R89)))) -> 221 | S84: =IF(J84>100,"",IF(ISERROR(出力前!S89),"",IF(出力前!R89=0,"",出力前!S89))) -> 468 | T84: =IF(J84>100,"",IF(ISERROR(出力前!T89),"",IF(AND($C$2="あり",出力前!$AK$14=1),出力前1!U89,出力前!T89))) -> 0.44 | U84: 55.4 | V84: =IF(ISERROR(出力前!U89),"",IF(AND($C$2="あり",出力前!$AK$14=1),出力前1!V89,出力前!U89)) ->  | W84: =IF(ISERROR(出力前!V89),"",IF(AND($C$2="あり",出力前!$AK$14=1),出力前1!W89,出力前!V89)) ->  | X84: =IF(ISERROR(出力前!W89),"",IF(AND($C$2="あり",出力前!$AK$14=1),出力前1!X89,出力前!W89)) ->  | Y84: =IF(ISERROR(出力前!X89),"",IF(AND($C$2="あり",出力前!$AK$14=1),出力前1!Y89,出力前!X89)) ->  | Z84: =IF(ISERROR(出力前!Y89),"",IF(AND($C$2="あり",出力前!$AK$14=1),出力前1!Z89,出力前!Y89)) ->  | AA84: =IF(ISERROR(出力前!Z89),"",IF(AND($C$2="あり",出力前!$AK$14=1),出力前1!AA89,出力前!Z89)) ->  | AB84: =IF(ISERROR(出力前!AA89),"",IF(AND($C$2="あり",出力前!$AK$14=1),出力前1!AB89,出力前!AA89)) ->  | AC84: =IF(ISERROR(出力前!AB89),"",IF(AND($C$2="あり",出力前!$AK$14=1),出力前1!AC89,出力前!AB89)) ->  | AD84: =IF(ISERROR(出力前!AC89),"",IF(AND($C$2="あり",出力前!$AK$14=1),出力前1!AD89,出力前!AC89)) ->  | AE84: =IF(J84>100,"",IF(ISERROR(出力前!AD89),"",IF(AND($C$2="あり",出力前!$AK$14=1),出力前1!AE89,出力前!AD89))) -> 988 | AF84: =IF(J84>100,"",IF(ISERROR(出力前!AE89),"",IF(AND($C$2="あり",出力前!$AK$14=1),出力前1!AF89,出力前!AE89))) -> 5.4 | AG84: =IF(ISERROR(出力前!AF89),"",IF(AND($C$2="あり",出力前!$AK$14=1),出力前1!AG89,出力前!AF89)) ->  | AH84: =IF(ISERROR(出力前!AG89),"",IF(AND($C$2="あり",出力前!$AK$14=1),出力前1!AH89,出力前!AG89)) ->  | AI84: =IF(J84>100,"",IF(ISERROR(出力前!AH89),"",IF(AND($C$2="あり",出力前!$AK$14=1),出力前1!AI89,出力前!AH89))) -> 10
B85: 73 | C85: 14.3 | D85: 12.5 | F85: 144 | G85: 146 | J85: =出力前!J90 -> 98 | M85: =IF(ISERROR(出力前!M90),"",出力前!M90) ->  | N85: =IF(J85>100,"",出力前!N90) -> 98 | O85: =IF(J85>100,"",出力前!O90) -> 29.0 | P85: =IF(J85>100,"",IF(ISERROR(出力前!P90),"",IF(AND($C$2="あり",出力前!$AK$14=1),出力前1!Q90,出力前!P90))) -> 2.15 | Q85: =IF(J85>100,"",IF(ISERROR(出力前!Q90),"",IF(AND($C$2="あり",出力前!$AK$14=1),出力前1!R90,出力前!Q90))) -> 45.8 | R85: =IF(J85>100,"",IF(ISERROR(出力前!R90),"",IF(出力前!R90=0,"",IF(AND($C$2="あり",出力前!$AK$14=1),出力前1!S90,出力前!R90)))) -> 220 | S85: =IF(J85>100,"",IF(ISERROR(出力前!S90),"",IF(出力前!R90=0,"",出力前!S90))) -> 473 | T85: =IF(J85>100,"",IF(ISERROR(出力前!T90),"",IF(AND($C$2="あり",出力前!$AK$14=1),出力前1!U90,出力前!T90))) -> 0.44 | U85: 55.2 | V85: =IF(ISERROR(出力前!U90),"",IF(AND($C$2="あり",出力前!$AK$14=1),出力前1!V90,出力前!U90)) ->  | W85: =IF(ISERROR(出力前!V90),"",IF(AND($C$2="あり",出力前!$AK$14=1),出力前1!W90,出力前!V90)) ->  | X85: =IF(ISERROR(出力前!W90),"",IF(AND($C$2="あり",出力前!$AK$14=1),出力前1!X90,出力前!W90)) ->  | Y85: =IF(ISERROR(出力前!X90),"",IF(AND($C$2="あり",出力前!$AK$14=1),出力前1!Y90,出力前!X90)) ->  | Z85: =IF(ISERROR(出力前!Y90),"",IF(AND($C$2="あり",出力前!$AK$14=1),出力前1!Z90,出力前!Y90)) ->  | AA85: =IF(ISERROR(出力前!Z90),"",IF(AND($C$2="あり",出力前!$AK$14=1),出力前1!AA90,出力前!Z90)) ->  | AB85: =IF(ISERROR(出力前!AA90),"",IF(AND($C$2="あり",出力前!$AK$14=1),出力前1!AB90,出力前!AA90)) ->  | AC85: =IF(ISERROR(出力前!AB90),"",IF(AND($C$2="あり",出力前!$AK$14=1),出力前1!AC90,出力前!AB90)) ->  | AD85: =IF(ISERROR(出力前!AC90),"",IF(AND($C$2="あり",出力前!$AK$14=1),出力前1!AD90,出力前!AC90)) ->  | AE85: =IF(J85>100,"",IF(ISERROR(出力前!AD90),"",IF(AND($C$2="あり",出力前!$AK$14=1),出力前1!AE90,出力前!AD90))) -> 994 | AF85: =IF(J85>100,"",IF(ISERROR(出力前!AE90),"",IF(AND($C$2="あり",出力前!$AK$14=1),出力前1!AF90,出力前!AE90))) -> 5.3 | AG85: =IF(ISERROR(出力前!AF90),"",IF(AND($C$2="あり",出力前!$AK$14=1),出力前1!AG90,出力前!AF90)) ->  | AH85: =IF(ISERROR(出力前!AG90),"",IF(AND($C$2="あり",出力前!$AK$14=1),出力前1!AH90,出力前!AG90)) ->  | AI85: =IF(J85>100,"",IF(ISERROR(出力前!AH90),"",IF(AND($C$2="あり",出力前!$AK$14=1),出力前1!AI90,出力前!AH90))) -> 10
B86: 74 | C86: 14.3 | D86: 13.3 | F86: 146 | G86: 148 | J86: =出力前!J91 -> 99 | M86: =IF(ISERROR(出力前!M91),"",出力前!M91) ->  | N86: =IF(J86>100,"",出力前!N91) -> 99 | O86: =IF(J86>100,"",出力前!O91) -> 29.1 | P86: =IF(J86>100,"",IF(ISERROR(出力前!P91),"",IF(AND($C$2="あり",出力前!$AK$14=1),出力前1!Q91,出力前!P91))) -> 2.18 | Q86: =IF(J86>100,"",IF(ISERROR(出力前!Q91),"",IF(AND($C$2="あり",出力前!$AK$14=1),出力前1!R91,出力前!Q91))) -> 46.1 | R86: =IF(J86>100,"",IF(ISERROR(出力前!R91),"",IF(出力前!R91=0,"",IF(AND($C$2="あり",出力前!$AK$14=1),出力前1!S91,出力前!R91)))) -> 219 | S86: =IF(J86>100,"",IF(ISERROR(出力前!S91),"",IF(出力前!R91=0,"",出力前!S91))) -> 479 | T86: =IF(J86>100,"",IF(ISERROR(出力前!T91),"",IF(AND($C$2="あり",出力前!$AK$14=1),出力前1!U91,出力前!T91))) -> 0.44 | U86: 55.1 | V86: =IF(ISERROR(出力前!U91),"",IF(AND($C$2="あり",出力前!$AK$14=1),出力前1!V91,出力前!U91)) ->  | W86: =IF(ISERROR(出力前!V91),"",IF(AND($C$2="あり",出力前!$AK$14=1),出力前1!W91,出力前!V91)) ->  | X86: =IF(ISERROR(出力前!W91),"",IF(AND($C$2="あり",出力前!$AK$14=1),出力前1!X91,出力前!W91)) ->  | Y86: =IF(ISERROR(出力前!X91),"",IF(AND($C$2="あり",出力前!$AK$14=1),出力前1!Y91,出力前!X91)) ->  | Z86: =IF(ISERROR(出力前!Y91),"",IF(AND($C$2="あり",出力前!$AK$14=1),出力前1!Z91,出力前!Y91)) ->  | AA86: =IF(ISERROR(出力前!Z91),"",IF(AND($C$2="あり",出力前!$AK$14=1),出力前1!AA91,出力前!Z91)) ->  | AB86: =IF(ISERROR(出力前!AA91),"",IF(AND($C$2="あり",出力前!$AK$14=1),出力前1!AB91,出力前!AA91)) ->  | AC86: =IF(ISERROR(出力前!AB91),"",IF(AND($C$2="あり",出力前!$AK$14=1),出力前1!AC91,出力前!AB91)) ->  | AD86: =IF(ISERROR(出力前!AC91),"",IF(AND($C$2="あり",出力前!$AK$14=1),出力前1!AD91,出力前!AC91)) ->  | AE86: =IF(J86>100,"",IF(ISERROR(出力前!AD91),"",IF(AND($C$2="あり",出力前!$AK$14=1),出力前1!AE91,出力前!AD91))) -> 999 | AF86: =IF(J86>100,"",IF(ISERROR(出力前!AE91),"",IF(AND($C$2="あり",出力前!$AK$14=1),出力前1!AF91,出力前!AE91))) -> 5.2 | AG86: =IF(ISERROR(出力前!AF91),"",IF(AND($C$2="あり",出力前!$AK$14=1),出力前1!AG91,出力前!AF91)) ->  | AH86: =IF(ISERROR(出力前!AG91),"",IF(AND($C$2="あり",出力前!$AK$14=1),出力前1!AH91,出力前!AG91)) ->  | AI86: =IF(J86>100,"",IF(ISERROR(出力前!AH91),"",IF(AND($C$2="あり",出力前!$AK$14=1),出力前1!AI91,出力前!AH91))) -> 10
B87: 75 | C87: 14.3 | D87: 12.8 | F87: 148 | G87: 150 | J87: =出力前!J92 -> 100 | M87: =IF(ISERROR(出力前!M92),"",出力前!M92) ->  | N87: =IF(J87>100,"",出力前!N92) -> 100 | O87: =IF(J87>100,"",出力前!O92) -> 29.2 | P87: =IF(J87>100,"",IF(ISERROR(出力前!P92),"",IF(AND($C$2="あり",出力前!$AK$14=1),出力前1!Q92,出力前!P92))) -> 2.22 | Q87: =IF(J87>100,"",IF(ISERROR(出力前!Q92),"",IF(AND($C$2="あり",出力前!$AK$14=1),出力前1!R92,出力前!Q92))) -> 46.3 | R87: =IF(J87>100,"",IF(ISERROR(出力前!R92),"",IF(出力前!R92=0,"",IF(AND($C$2="あり",出力前!$AK$14=1),出力前1!S92,出力前!R92)))) -> 218 | S87: =IF(J87>100,"",IF(ISERROR(出力前!S92),"",IF(出力前!R92=0,"",出力前!S92))) -> 484 | T87: =IF(J87>100,"",IF(ISERROR(出力前!T92),"",IF(AND($C$2="あり",出力前!$AK$14=1),出力前1!U92,出力前!T92))) -> 0.45 | U87: 54.9 | V87: =IF(ISERROR(出力前!U92),"",IF(AND($C$2="あり",出力前!$AK$14=1),出力前1!V92,出力前!U92)) ->  | W87: =IF(ISERROR(出力前!V92),"",IF(AND($C$2="あり",出力前!$AK$14=1),出力前1!W92,出力前!V92)) ->  | X87: =IF(ISERROR(出力前!W92),"",IF(AND($C$2="あり",出力前!$AK$14=1),出力前1!X92,出力前!W92)) ->  | Y87: =IF(ISERROR(出力前!X92),"",IF(AND($C$2="あり",出力前!$AK$14=1),出力前1!Y92,出力前!X92)) ->  | Z87: =IF(ISERROR(出力前!Y92),"",IF(AND($C$2="あり",出力前!$AK$14=1),出力前1!Z92,出力前!Y92)) ->  | AA87: =IF(ISERROR(出力前!Z92),"",IF(AND($C$2="あり",出力前!$AK$14=1),出力前1!AA92,出力前!Z92)) ->  | AB87: =IF(ISERROR(出力前!AA92),"",IF(AND($C$2="あり",出力前!$AK$14=1),出力前1!AB92,出力前!AA92)) ->  | AC87: =IF(ISERROR(出力前!AB92),"",IF(AND($C$2="あり",出力前!$AK$14=1),出力前1!AC92,出力前!AB92)) ->  | AD87: =IF(ISERROR(出力前!AC92),"",IF(AND($C$2="あり",出力前!$AK$14=1),出力前1!AD92,出力前!AC92)) ->  | AE87: =IF(J87>100,"",IF(ISERROR(出力前!AD92),"",IF(AND($C$2="あり",出力前!$AK$14=1),出力前1!AE92,出力前!AD92))) -> 1004 | AF87: =IF(J87>100,"",IF(ISERROR(出力前!AE92),"",IF(AND($C$2="あり",出力前!$AK$14=1),出力前1!AF92,出力前!AE92))) -> 5.1 | AG87: =IF(ISERROR(出力前!AF92),"",IF(AND($C$2="あり",出力前!$AK$14=1),出力前1!AG92,出力前!AF92)) ->  | AH87: =IF(ISERROR(出力前!AG92),"",IF(AND($C$2="あり",出力前!$AK$14=1),出力前1!AH92,出力前!AG92)) ->  | AI87: =IF(J87>100,"",IF(ISERROR(出力前!AH92),"",IF(AND($C$2="あり",出力前!$AK$14=1),出力前1!AI92,出力前!AH92))) -> 10
B88: 76 | C88: 14.3 | D88: 12.5 | F88: 150 | G88: 152 | J88: =出力前!J93 -> 101 | M88: =IF(ISERROR(出力前!M93),"",出力前!M93) ->  | N88: =IF(J88>100,"",出力前!N93) ->  | O88: =IF(J88>100,"",出力前!O93) ->  | P88: =IF(J88>100,"",IF(ISERROR(出力前!P93),"",IF(AND($C$2="あり",出力前!$AK$14=1),出力前1!Q93,出力前!P93))) ->  | Q88: =IF(J88>100,"",IF(ISERROR(出力前!Q93),"",IF(AND($C$2="あり",出力前!$AK$14=1),出力前1!R93,出力前!Q93))) ->  | R88: =IF(J88>100,"",IF(ISERROR(出力前!R93),"",IF(出力前!R93=0,"",IF(AND($C$2="あり",出力前!$AK$14=1),出力前1!S93,出力前!R93)))) ->  | S88: =IF(J88>100,"",IF(ISERROR(出力前!S93),"",IF(出力前!R93=0,"",出力前!S93))) ->  | T88: =IF(J88>100,"",IF(ISERROR(出力前!T93),"",IF(AND($C$2="あり",出力前!$AK$14=1),出力前1!U93,出力前!T93))) ->  | V88: =IF(ISERROR(出力前!U93),"",IF(AND($C$2="あり",出力前!$AK$14=1),出力前1!V93,出力前!U93)) ->  | W88: =IF(ISERROR(出力前!V93),"",IF(AND($C$2="あり",出力前!$AK$14=1),出力前1!W93,出力前!V93)) ->  | X88: =IF(ISERROR(出力前!W93),"",IF(AND($C$2="あり",出力前!$AK$14=1),出力前1!X93,出力前!W93)) ->  | Y88: =IF(ISERROR(出力前!X93),"",IF(AND($C$2="あり",出力前!$AK$14=1),出力前1!Y93,出力前!X93)) ->  | Z88: =IF(ISERROR(出力前!Y93),"",IF(AND($C$2="あり",出力前!$AK$14=1),出力前1!Z93,出力前!Y93)) ->  | AA88: =IF(ISERROR(出力前!Z93),"",IF(AND($C$2="あり",出力前!$AK$14=1),出力前1!AA93,出力前!Z93)) ->  | AB88: =IF(ISERROR(出力前!AA93),"",IF(AND($C$2="あり",出力前!$AK$14=1),出力前1!AB93,出力前!AA93)) ->  | AC88: =IF(ISERROR(出力前!AB93),"",IF(AND($C$2="あり",出力前!$AK$14=1),出力前1!AC93,出力前!AB93)) ->  | AD88: =IF(ISERROR(出力前!AC93),"",IF(AND($C$2="あり",出力前!$AK$14=1),出力前1!AD93,出力前!AC93)) ->  | AE88: =IF(J88>100,"",IF(ISERROR(出力前!AD93),"",IF(AND($C$2="あり",出力前!$AK$14=1),出力前1!AE93,出力前!AD93))) ->  | AF88: =IF(J88>100,"",IF(ISERROR(出力前!AE93),"",IF(AND($C$2="あり",出力前!$AK$14=1),出力前1!AF93,出力前!AE93))) ->  | AG88: =IF(ISERROR(出力前!AF93),"",IF(AND($C$2="あり",出力前!$AK$14=1),出力前1!AG93,出力前!AF93)) ->  | AH88: =IF(ISERROR(出力前!AG93),"",IF(AND($C$2="あり",出力前!$AK$14=1),出力前1!AH93,出力前!AG93)) ->  | AI88: =IF(J88>100,"",IF(ISERROR(出力前!AH93),"",IF(AND($C$2="あり",出力前!$AK$14=1),出力前1!AI93,出力前!AH93))) -> 
B89: 77 | C89: 14.2 | D89: 13 | F89: 152 | G89: 154 | J89: =出力前!J94 -> 102 | M89: =IF(ISERROR(出力前!M94),"",出力前!M94) ->  | N89: =IF(J89>100,"",出力前!N94) ->  | O89: =IF(J89>100,"",出力前!O94) ->  | P89: =IF(J89>100,"",IF(ISERROR(出力前!P94),"",IF(AND($C$2="あり",出力前!$AK$14=1),出力前1!Q94,出力前!P94))) ->  | Q89: =IF(J89>100,"",IF(ISERROR(出力前!Q94),"",IF(AND($C$2="あり",出力前!$AK$14=1),出力前1!R94,出力前!Q94))) ->  | R89: =IF(J89>100,"",IF(ISERROR(出力前!R94),"",IF(出力前!R94=0,"",IF(AND($C$2="あり",出力前!$AK$14=1),出力前1!S94,出力前!R94)))) ->  | S89: =IF(J89>100,"",IF(ISERROR(出力前!S94),"",IF(出力前!R94=0,"",出力前!S94))) ->  | T89: =IF(J89>100,"",IF(ISERROR(出力前!T94),"",IF(AND($C$2="あり",出力前!$AK$14=1),出力前1!U94,出力前!T94))) ->  | V89: =IF(ISERROR(出力前!U94),"",IF(AND($C$2="あり",出力前!$AK$14=1),出力前1!V94,出力前!U94)) ->  | W89: =IF(ISERROR(出力前!V94),"",IF(AND($C$2="あり",出力前!$AK$14=1),出力前1!W94,出力前!V94)) ->  | X89: =IF(ISERROR(出力前!W94),"",IF(AND($C$2="あり",出力前!$AK$14=1),出力前1!X94,出力前!W94)) ->  | Y89: =IF(ISERROR(出力前!X94),"",IF(AND($C$2="あり",出力前!$AK$14=1),出力前1!Y94,出力前!X94)) ->  | Z89: =IF(ISERROR(出力前!Y94),"",IF(AND($C$2="あり",出力前!$AK$14=1),出力前1!Z94,出力前!Y94)) ->  | AA89: =IF(ISERROR(出力前!Z94),"",IF(AND($C$2="あり",出力前!$AK$14=1),出力前1!AA94,出力前!Z94)) ->  | AB89: =IF(ISERROR(出力前!AA94),"",IF(AND($C$2="あり",出力前!$AK$14=1),出力前1!AB94,出力前!AA94)) ->  | AC89: =IF(ISERROR(出力前!AB94),"",IF(AND($C$2="あり",出力前!$AK$14=1),出力前1!AC94,出力前!AB94)) ->  | AD89: =IF(ISERROR(出力前!AC94),"",IF(AND($C$2="あり",出力前!$AK$14=1),出力前1!AD94,出力前!AC94)) ->  | AE89: =IF(J89>100,"",IF(ISERROR(出力前!AD94),"",IF(AND($C$2="あり",出力前!$AK$14=1),出力前1!AE94,出力前!AD94))) ->  | AF89: =IF(J89>100,"",IF(ISERROR(出力前!AE94),"",IF(AND($C$2="あり",出力前!$AK$14=1),出力前1!AF94,出力前!AE94))) ->  | AG89: =IF(ISERROR(出力前!AF94),"",IF(AND($C$2="あり",出力前!$AK$14=1),出力前1!AG94,出力前!AF94)) ->  | AH89: =IF(ISERROR(出力前!AG94),"",IF(AND($C$2="あり",出力前!$AK$14=1),出力前1!AH94,出力前!AG94)) ->  | AI89: =IF(J89>100,"",IF(ISERROR(出力前!AH94),"",IF(AND($C$2="あり",出力前!$AK$14=1),出力前1!AI94,出力前!AH94))) -> 
B90: 78 | C90: 14.2 | D90: 14 | F90: 154 | G90: 156 | J90: =出力前!J95 -> 103 | M90: =IF(ISERROR(出力前!M95),"",出力前!M95) ->  | N90: =IF(J90>100,"",出力前!N95) ->  | O90: =IF(J90>100,"",出力前!O95) ->  | P90: =IF(J90>100,"",IF(ISERROR(出力前!P95),"",IF(AND($C$2="あり",出力前!$AK$14=1),出力前1!Q95,出力前!P95))) ->  | Q90: =IF(J90>100,"",IF(ISERROR(出力前!Q95),"",IF(AND($C$2="あり",出力前!$AK$14=1),出力前1!R95,出力前!Q95))) ->  | R90: =IF(J90>100,"",IF(ISERROR(出力前!R95),"",IF(出力前!R95=0,"",IF(AND($C$2="あり",出力前!$AK$14=1),出力前1!S95,出力前!R95)))) ->  | S90: =IF(J90>100,"",IF(ISERROR(出力前!S95),"",IF(出力前!R95=0,"",出力前!S95))) ->  | T90: =IF(J90>100,"",IF(ISERROR(出力前!T95),"",IF(AND($C$2="あり",出力前!$AK$14=1),出力前1!U95,出力前!T95))) ->  | V90: =IF(ISERROR(出力前!U95),"",IF(AND($C$2="あり",出力前!$AK$14=1),出力前1!V95,出力前!U95)) ->  | W90: =IF(ISERROR(出力前!V95),"",IF(AND($C$2="あり",出力前!$AK$14=1),出力前1!W95,出力前!V95)) ->  | X90: =IF(ISERROR(出力前!W95),"",IF(AND($C$2="あり",出力前!$AK$14=1),出力前1!X95,出力前!W95)) ->  | Y90: =IF(ISERROR(出力前!X95),"",IF(AND($C$2="あり",出力前!$AK$14=1),出力前1!Y95,出力前!X95)) ->  | Z90: =IF(ISERROR(出力前!Y95),"",IF(AND($C$2="あり",出力前!$AK$14=1),出力前1!Z95,出力前!Y95)) ->  | AA90: =IF(ISERROR(出力前!Z95),"",IF(AND($C$2="あり",出力前!$AK$14=1),出力前1!AA95,出力前!Z95)) ->  | AB90: =IF(ISERROR(出力前!AA95),"",IF(AND($C$2="あり",出力前!$AK$14=1),出力前1!AB95,出力前!AA95)) ->  | AC90: =IF(ISERROR(出力前!AB95),"",IF(AND($C$2="あり",出力前!$AK$14=1),出力前1!AC95,出力前!AB95)) ->  | AD90: =IF(ISERROR(出力前!AC95),"",IF(AND($C$2="あり",出力前!$AK$14=1),出力前1!AD95,出力前!AC95)) ->  | AE90: =IF(J90>100,"",IF(ISERROR(出力前!AD95),"",IF(AND($C$2="あり",出力前!$AK$14=1),出力前1!AE95,出力前!AD95))) ->  | AF90: =IF(J90>100,"",IF(ISERROR(出力前!AE95),"",IF(AND($C$2="あり",出力前!$AK$14=1),出力前1!AF95,出力前!AE95))) ->  | AG90: =IF(ISERROR(出力前!AF95),"",IF(AND($C$2="あり",出力前!$AK$14=1),出力前1!AG95,出力前!AF95)) ->  | AH90: =IF(ISERROR(出力前!AG95),"",IF(AND($C$2="あり",出力前!$AK$14=1),出力前1!AH95,出力前!AG95)) ->  | AI90: =IF(J90>100,"",IF(ISERROR(出力前!AH95),"",IF(AND($C$2="あり",出力前!$AK$14=1),出力前1!AI95,出力前!AH95))) -> 
B91: 79 | C91: 14.1 | D91: 13.8 | F91: 156 | G91: 158 | J91: =出力前!J96 -> 104 | M91: =IF(ISERROR(出力前!M96),"",出力前!M96) ->  | N91: =IF(J91>100,"",出力前!N96) ->  | O91: =IF(J91>100,"",出力前!O96) ->  | P91: =IF(J91>100,"",IF(ISERROR(出力前!P96),"",IF(AND($C$2="あり",出力前!$AK$14=1),出力前1!Q96,出力前!P96))) ->  | Q91: =IF(J91>100,"",IF(ISERROR(出力前!Q96),"",IF(AND($C$2="あり",出力前!$AK$14=1),出力前1!R96,出力前!Q96))) ->  | R91: =IF(J91>100,"",IF(ISERROR(出力前!R96),"",IF(出力前!R96=0,"",IF(AND($C$2="あり",出力前!$AK$14=1),出力前1!S96,出力前!R96)))) ->  | S91: =IF(J91>100,"",IF(ISERROR(出力前!S96),"",IF(出力前!R96=0,"",出力前!S96))) ->  | T91: =IF(J91>100,"",IF(ISERROR(出力前!T96),"",IF(AND($C$2="あり",出力前!$AK$14=1),出力前1!U96,出力前!T96))) ->  | V91: =IF(ISERROR(出力前!U96),"",IF(AND($C$2="あり",出力前!$AK$14=1),出力前1!V96,出力前!U96)) ->  | W91: =IF(ISERROR(出力前!V96),"",IF(AND($C$2="あり",出力前!$AK$14=1),出力前1!W96,出力前!V96)) ->  | X91: =IF(ISERROR(出力前!W96),"",IF(AND($C$2="あり",出力前!$AK$14=1),出力前1!X96,出力前!W96)) ->  | Y91: =IF(ISERROR(出力前!X96),"",IF(AND($C$2="あり",出力前!$AK$14=1),出力前1!Y96,出力前!X96)) ->  | Z91: =IF(ISERROR(出力前!Y96),"",IF(AND($C$2="あり",出力前!$AK$14=1),出力前1!Z96,出力前!Y96)) ->  | AA91: =IF(ISERROR(出力前!Z96),"",IF(AND($C$2="あり",出力前!$AK$14=1),出力前1!AA96,出力前!Z96)) ->  | AB91: =IF(ISERROR(出力前!AA96),"",IF(AND($C$2="あり",出力前!$AK$14=1),出力前1!AB96,出力前!AA96)) ->  | AC91: =IF(ISERROR(出力前!AB96),"",IF(AND($C$2="あり",出力前!$AK$14=1),出力前1!AC96,出力前!AB96)) ->  | AD91: =IF(ISERROR(出力前!AC96),"",IF(AND($C$2="あり",出力前!$AK$14=1),出力前1!AD96,出力前!AC96)) ->  | AE91: =IF(J91>100,"",IF(ISERROR(出力前!AD96),"",IF(AND($C$2="あり",出力前!$AK$14=1),出力前1!AE96,出力前!AD96))) ->  | AF91: =IF(J91>100,"",IF(ISERROR(出力前!AE96),"",IF(AND($C$2="あり",出力前!$AK$14=1),出力前1!AF96,出力前!AE96))) ->  | AG91: =IF(ISERROR(出力前!AF96),"",IF(AND($C$2="あり",出力前!$AK$14=1),出力前1!AG96,出力前!AF96)) ->  | AH91: =IF(ISERROR(出力前!AG96),"",IF(AND($C$2="あり",出力前!$AK$14=1),出力前1!AH96,出力前!AG96)) ->  | AI91: =IF(J91>100,"",IF(ISERROR(出力前!AH96),"",IF(AND($C$2="あり",出力前!$AK$14=1),出力前1!AI96,出力前!AH96))) -> 
B92: 80 | C92: 14.1 | D92: 13.9 | F92: 158 | G92: 160 | J92: =出力前!J97 -> 105 | M92: =IF(ISERROR(出力前!M97),"",出力前!M97) ->  | N92: =IF(J92>100,"",出力前!N97) ->  | O92: =IF(J92>100,"",出力前!O97) ->  | P92: =IF(J92>100,"",IF(ISERROR(出力前!P97),"",IF(AND($C$2="あり",出力前!$AK$14=1),出力前1!Q97,出力前!P97))) ->  | Q92: =IF(J92>100,"",IF(ISERROR(出力前!Q97),"",IF(AND($C$2="あり",出力前!$AK$14=1),出力前1!R97,出力前!Q97))) ->  | R92: =IF(J92>100,"",IF(ISERROR(出力前!R97),"",IF(出力前!R97=0,"",IF(AND($C$2="あり",出力前!$AK$14=1),出力前1!S97,出力前!R97)))) ->  | S92: =IF(J92>100,"",IF(ISERROR(出力前!S97),"",IF(出力前!R97=0,"",出力前!S97))) ->  | T92: =IF(J92>100,"",IF(ISERROR(出力前!T97),"",IF(AND($C$2="あり",出力前!$AK$14=1),出力前1!U97,出力前!T97))) ->  | V92: =IF(ISERROR(出力前!U97),"",IF(AND($C$2="あり",出力前!$AK$14=1),出力前1!V97,出力前!U97)) ->  | W92: =IF(ISERROR(出力前!V97),"",IF(AND($C$2="あり",出力前!$AK$14=1),出力前1!W97,出力前!V97)) ->  | X92: =IF(ISERROR(出力前!W97),"",IF(AND($C$2="あり",出力前!$AK$14=1),出力前1!X97,出力前!W97)) ->  | Y92: =IF(ISERROR(出力前!X97),"",IF(AND($C$2="あり",出力前!$AK$14=1),出力前1!Y97,出力前!X97)) ->  | Z92: =IF(ISERROR(出力前!Y97),"",IF(AND($C$2="あり",出力前!$AK$14=1),出力前1!Z97,出力前!Y97)) ->  | AA92: =IF(ISERROR(出力前!Z97),"",IF(AND($C$2="あり",出力前!$AK$14=1),出力前1!AA97,出力前!Z97)) ->  | AB92: =IF(ISERROR(出力前!AA97),"",IF(AND($C$2="あり",出力前!$AK$14=1),出力前1!AB97,出力前!AA97)) ->  | AC92: =IF(ISERROR(出力前!AB97),"",IF(AND($C$2="あり",出力前!$AK$14=1),出力前1!AC97,出力前!AB97)) ->  | AD92: =IF(ISERROR(出力前!AC97),"",IF(AND($C$2="あり",出力前!$AK$14=1),出力前1!AD97,出力前!AC97)) ->  | AE92: =IF(J92>100,"",IF(ISERROR(出力前!AD97),"",IF(AND($C$2="あり",出力前!$AK$14=1),出力前1!AE97,出力前!AD97))) ->  | AF92: =IF(J92>100,"",IF(ISERROR(出力前!AE97),"",IF(AND($C$2="あり",出力前!$AK$14=1),出力前1!AF97,出力前!AE97))) ->  | AG92: =IF(ISERROR(出力前!AF97),"",IF(AND($C$2="あり",出力前!$AK$14=1),出力前1!AG97,出力前!AF97)) ->  | AH92: =IF(ISERROR(出力前!AG97),"",IF(AND($C$2="あり",出力前!$AK$14=1),出力前1!AH97,出力前!AG97)) ->  | AI92: =IF(J92>100,"",IF(ISERROR(出力前!AH97),"",IF(AND($C$2="あり",出力前!$AK$14=1),出力前1!AI97,出力前!AH97))) -> 
B93: 81 | C93: 14 | D93: 13.5 | F93: 160 | G93: 162 | J93: =出力前!J98 -> 106 | M93: =IF(ISERROR(出力前!M98),"",出力前!M98) ->  | N93: =IF(J93>100,"",出力前!N98) ->  | O93: =IF(J93>100,"",出力前!O98) ->  | P93: =IF(J93>100,"",IF(ISERROR(出力前!P98),"",IF(AND($C$2="あり",出力前!$AK$14=1),出力前1!Q98,出力前!P98))) ->  | Q93: =IF(J93>100,"",IF(ISERROR(出力前!Q98),"",IF(AND($C$2="あり",出力前!$AK$14=1),出力前1!R98,出力前!Q98))) ->  | R93: =IF(J93>100,"",IF(ISERROR(出力前!R98),"",IF(出力前!R98=0,"",IF(AND($C$2="あり",出力前!$AK$14=1),出力前1!S98,出力前!R98)))) ->  | S93: =IF(J93>100,"",IF(ISERROR(出力前!S98),"",IF(出力前!R98=0,"",出力前!S98))) ->  | T93: =IF(J93>100,"",IF(ISERROR(出力前!T98),"",IF(AND($C$2="あり",出力前!$AK$14=1),出力前1!U98,出力前!T98))) ->  | V93: =IF(ISERROR(出力前!U98),"",IF(AND($C$2="あり",出力前!$AK$14=1),出力前1!V98,出力前!U98)) ->  | W93: =IF(ISERROR(出力前!V98),"",IF(AND($C$2="あり",出力前!$AK$14=1),出力前1!W98,出力前!V98)) ->  | X93: =IF(ISERROR(出力前!W98),"",IF(AND($C$2="あり",出力前!$AK$14=1),出力前1!X98,出力前!W98)) ->  | Y93: =IF(ISERROR(出力前!X98),"",IF(AND($C$2="あり",出力前!$AK$14=1),出力前1!Y98,出力前!X98)) ->  | Z93: =IF(ISERROR(出力前!Y98),"",IF(AND($C$2="あり",出力前!$AK$14=1),出力前1!Z98,出力前!Y98)) ->  | AA93: =IF(ISERROR(出力前!Z98),"",IF(AND($C$2="あり",出力前!$AK$14=1),出力前1!AA98,出力前!Z98)) ->  | AB93: =IF(ISERROR(出力前!AA98),"",IF(AND($C$2="あり",出力前!$AK$14=1),出力前1!AB98,出力前!AA98)) ->  | AC93: =IF(ISERROR(出力前!AB98),"",IF(AND($C$2="あり",出力前!$AK$14=1),出力前1!AC98,出力前!AB98)) ->  | AD93: =IF(ISERROR(出力前!AC98),"",IF(AND($C$2="あり",出力前!$AK$14=1),出力前1!AD98,出力前!AC98)) ->  | AE93: =IF(J93>100,"",IF(ISERROR(出力前!AD98),"",IF(AND($C$2="あり",出力前!$AK$14=1),出力前1!AE98,出力前!AD98))) ->  | AF93: =IF(J93>100,"",IF(ISERROR(出力前!AE98),"",IF(AND($C$2="あり",出力前!$AK$14=1),出力前1!AF98,出力前!AE98))) ->  | AG93: =IF(ISERROR(出力前!AF98),"",IF(AND($C$2="あり",出力前!$AK$14=1),出力前1!AG98,出力前!AF98)) ->  | AH93: =IF(ISERROR(出力前!AG98),"",IF(AND($C$2="あり",出力前!$AK$14=1),出力前1!AH98,出力前!AG98)) ->  | AI93: =IF(J93>100,"",IF(ISERROR(出力前!AH98),"",IF(AND($C$2="あり",出力前!$AK$14=1),出力前1!AI98,出力前!AH98))) -> 
B94: 82 | C94: 14 | D94: 14 | F94: 162 | G94: 164 | J94: =出力前!J99 -> 107 | M94: =IF(ISERROR(出力前!M99),"",出力前!M99) ->  | N94: =IF(J94>100,"",出力前!N99) ->  | O94: =IF(J94>100,"",出力前!O99) ->  | P94: =IF(J94>100,"",IF(ISERROR(出力前!P99),"",IF(AND($C$2="あり",出力前!$AK$14=1),出力前1!Q99,出力前!P99))) ->  | Q94: =IF(J94>100,"",IF(ISERROR(出力前!Q99),"",IF(AND($C$2="あり",出力前!$AK$14=1),出力前1!R99,出力前!Q99))) ->  | R94: =IF(J94>100,"",IF(ISERROR(出力前!R99),"",IF(出力前!R99=0,"",IF(AND($C$2="あり",出力前!$AK$14=1),出力前1!S99,出力前!R99)))) ->  | S94: =IF(J94>100,"",IF(ISERROR(出力前!S99),"",IF(出力前!R99=0,"",出力前!S99))) ->  | T94: =IF(J94>100,"",IF(ISERROR(出力前!T99),"",IF(AND($C$2="あり",出力前!$AK$14=1),出力前1!U99,出力前!T99))) ->  | V94: =IF(ISERROR(出力前!U99),"",IF(AND($C$2="あり",出力前!$AK$14=1),出力前1!V99,出力前!U99)) ->  | W94: =IF(ISERROR(出力前!V99),"",IF(AND($C$2="あり",出力前!$AK$14=1),出力前1!W99,出力前!V99)) ->  | X94: =IF(ISERROR(出力前!W99),"",IF(AND($C$2="あり",出力前!$AK$14=1),出力前1!X99,出力前!W99)) ->  | Y94: =IF(ISERROR(出力前!X99),"",IF(AND($C$2="あり",出力前!$AK$14=1),出力前1!Y99,出力前!X99)) ->  | Z94: =IF(ISERROR(出力前!Y99),"",IF(AND($C$2="あり",出力前!$AK$14=1),出力前1!Z99,出力前!Y99)) ->  | AA94: =IF(ISERROR(出力前!Z99),"",IF(AND($C$2="あり",出力前!$AK$14=1),出力前1!AA99,出力前!Z99)) ->  | AB94: =IF(ISERROR(出力前!AA99),"",IF(AND($C$2="あり",出力前!$AK$14=1),出力前1!AB99,出力前!AA99)) ->  | AC94: =IF(ISERROR(出力前!AB99),"",IF(AND($C$2="あり",出力前!$AK$14=1),出力前1!AC99,出力前!AB99)) ->  | AD94: =IF(ISERROR(出力前!AC99),"",IF(AND($C$2="あり",出力前!$AK$14=1),出力前1!AD99,出力前!AC99)) ->  | AE94: =IF(J94>100,"",IF(ISERROR(出力前!AD99),"",IF(AND($C$2="あり",出力前!$AK$14=1),出力前1!AE99,出力前!AD99))) ->  | AF94: =IF(J94>100,"",IF(ISERROR(出力前!AE99),"",IF(AND($C$2="あり",出力前!$AK$14=1),出力前1!AF99,出力前!AE99))) ->  | AG94: =IF(ISERROR(出力前!AF99),"",IF(AND($C$2="あり",出力前!$AK$14=1),出力前1!AG99,出力前!AF99)) ->  | AH94: =IF(ISERROR(出力前!AG99),"",IF(AND($C$2="あり",出力前!$AK$14=1),出力前1!AH99,出力前!AG99)) ->  | AI94: =IF(J94>100,"",IF(ISERROR(出力前!AH99),"",IF(AND($C$2="あり",出力前!$AK$14=1),出力前1!AI99,出力前!AH99))) -> 
B95: 83 | C95: 14 | D95: 13.1 | F95: 164 | G95: 166 | J95: =出力前!J100 -> 108 | M95: =IF(ISERROR(出力前!M100),"",出力前!M100) ->  | N95: =IF(J95>100,"",出力前!N100) ->  | O95: =IF(J95>100,"",出力前!O100) ->  | P95: =IF(J95>100,"",IF(ISERROR(出力前!P100),"",IF(AND($C$2="あり",出力前!$AK$14=1),出力前1!Q100,出力前!P100))) ->  | Q95: =IF(J95>100,"",IF(ISERROR(出力前!Q100),"",IF(AND($C$2="あり",出力前!$AK$14=1),出力前1!R100,出力前!Q100))) ->  | R95: =IF(J95>100,"",IF(ISERROR(出力前!R100),"",IF(出力前!R100=0,"",IF(AND($C$2="あり",出力前!$AK$14=1),出力前1!S100,出力前!R100)))) ->  | S95: =IF(J95>100,"",IF(ISERROR(出力前!S100),"",IF(出力前!R100=0,"",出力前!S100))) ->  | T95: =IF(J95>100,"",IF(ISERROR(出力前!T100),"",IF(AND($C$2="あり",出力前!$AK$14=1),出力前1!U100,出力前!T100))) ->  | V95: =IF(ISERROR(出力前!U100),"",IF(AND($C$2="あり",出力前!$AK$14=1),出力前1!V100,出力前!U100)) ->  | W95: =IF(ISERROR(出力前!V100),"",IF(AND($C$2="あり",出力前!$AK$14=1),出力前1!W100,出力前!V100)) ->  | X95: =IF(ISERROR(出力前!W100),"",IF(AND($C$2="あり",出力前!$AK$14=1),出力前1!X100,出力前!W100)) ->  | Y95: =IF(ISERROR(出力前!X100),"",IF(AND($C$2="あり",出力前!$AK$14=1),出力前1!Y100,出力前!X100)) ->  | Z95: =IF(ISERROR(出力前!Y100),"",IF(AND($C$2="あり",出力前!$AK$14=1),出力前1!Z100,出力前!Y100)) ->  | AA95: =IF(ISERROR(出力前!Z100),"",IF(AND($C$2="あり",出力前!$AK$14=1),出力前1!AA100,出力前!Z100)) ->  | AB95: =IF(ISERROR(出力前!AA100),"",IF(AND($C$2="あり",出力前!$AK$14=1),出力前1!AB100,出力前!AA100)) ->  | AC95: =IF(ISERROR(出力前!AB100),"",IF(AND($C$2="あり",出力前!$AK$14=1),出力前1!AC100,出力前!AB100)) ->  | AD95: =IF(ISERROR(出力前!AC100),"",IF(AND($C$2="あり",出力前!$AK$14=1),出力前1!AD100,出力前!AC100)) ->  | AE95: =IF(J95>100,"",IF(ISERROR(出力前!AD100),"",IF(AND($C$2="あり",出力前!$AK$14=1),出力前1!AE100,出力前!AD100))) ->  | AF95: =IF(J95>100,"",IF(ISERROR(出力前!AE100),"",IF(AND($C$2="あり",出力前!$AK$14=1),出力前1!AF100,出力前!AE100))) ->  | AG95: =IF(ISERROR(出力前!AF100),"",IF(AND($C$2="あり",出力前!$AK$14=1),出力前1!AG100,出力前!AF100)) ->  | AH95: =IF(ISERROR(出力前!AG100),"",IF(AND($C$2="あり",出力前!$AK$14=1),出力前1!AH100,出力前!AG100)) ->  | AI95: =IF(J95>100,"",IF(ISERROR(出力前!AH100),"",IF(AND($C$2="あり",出力前!$AK$14=1),出力前1!AI100,出力前!AH100))) -> 
B96: 84 | C96: 14 | D96: 12.6 | F96: 166 | G96: 168 | J96: =出力前!J101 -> 109 | M96: =IF(ISERROR(出力前!M101),"",出力前!M101) ->  | N96: =IF(J96>100,"",出力前!N101) ->  | O96: =IF(J96>100,"",出力前!O101) ->  | P96: =IF(J96>100,"",IF(ISERROR(出力前!P101),"",IF(AND($C$2="あり",出力前!$AK$14=1),出力前1!Q101,出力前!P101))) ->  | Q96: =IF(J96>100,"",IF(ISERROR(出力前!Q101),"",IF(AND($C$2="あり",出力前!$AK$14=1),出力前1!R101,出力前!Q101))) ->  | R96: =IF(J96>100,"",IF(ISERROR(出力前!R101),"",IF(出力前!R101=0,"",IF(AND($C$2="あり",出力前!$AK$14=1),出力前1!S101,出力前!R101)))) ->  | S96: =IF(J96>100,"",IF(ISERROR(出力前!S101),"",IF(出力前!R101=0,"",出力前!S101))) ->  | T96: =IF(J96>100,"",IF(ISERROR(出力前!T101),"",IF(AND($C$2="あり",出力前!$AK$14=1),出力前1!U101,出力前!T101))) ->  | V96: =IF(ISERROR(出力前!U101),"",IF(AND($C$2="あり",出力前!$AK$14=1),出力前1!V101,出力前!U101)) ->  | W96: =IF(ISERROR(出力前!V101),"",IF(AND($C$2="あり",出力前!$AK$14=1),出力前1!W101,出力前!V101)) ->  | X96: =IF(ISERROR(出力前!W101),"",IF(AND($C$2="あり",出力前!$AK$14=1),出力前1!X101,出力前!W101)) ->  | Y96: =IF(ISERROR(出力前!X101),"",IF(AND($C$2="あり",出力前!$AK$14=1),出力前1!Y101,出力前!X101)) ->  | Z96: =IF(ISERROR(出力前!Y101),"",IF(AND($C$2="あり",出力前!$AK$14=1),出力前1!Z101,出力前!Y101)) ->  | AA96: =IF(ISERROR(出力前!Z101),"",IF(AND($C$2="あり",出力前!$AK$14=1),出力前1!AA101,出力前!Z101)) ->  | AB96: =IF(ISERROR(出力前!AA101),"",IF(AND($C$2="あり",出力前!$AK$14=1),出力前1!AB101,出力前!AA101)) ->  | AC96: =IF(ISERROR(出力前!AB101),"",IF(AND($C$2="あり",出力前!$AK$14=1),出力前1!AC101,出力前!AB101)) ->  | AD96: =IF(ISERROR(出力前!AC101),"",IF(AND($C$2="あり",出力前!$AK$14=1),出力前1!AD101,出力前!AC101)) ->  | AE96: =IF(J96>100,"",IF(ISERROR(出力前!AD101),"",IF(AND($C$2="あり",出力前!$AK$14=1),出力前1!AE101,出力前!AD101))) ->  | AF96: =IF(J96>100,"",IF(ISERROR(出力前!AE101),"",IF(AND($C$2="あり",出力前!$AK$14=1),出力前1!AF101,出力前!AE101))) ->  | AG96: =IF(ISERROR(出力前!AF101),"",IF(AND($C$2="あり",出力前!$AK$14=1),出力前1!AG101,出力前!AF101)) ->  | AH96: =IF(ISERROR(出力前!AG101),"",IF(AND($C$2="あり",出力前!$AK$14=1),出力前1!AH101,出力前!AG101)) ->  | AI96: =IF(J96>100,"",IF(ISERROR(出力前!AH101),"",IF(AND($C$2="あり",出力前!$AK$14=1),出力前1!AI101,出力前!AH101))) -> 
B97: 85 | C97: 13.9 | D97: 13.5 | F97: 168 | G97: 170 | J97: =出力前!J102 -> 110 | M97: =IF(ISERROR(出力前!M102),"",出力前!M102) ->  | N97: =IF(J97>100,"",出力前!N102) ->  | O97: =IF(J97>100,"",出力前!O102) ->  | P97: =IF(J97>100,"",IF(ISERROR(出力前!P102),"",IF(AND($C$2="あり",出力前!$AK$14=1),出力前1!Q102,出力前!P102))) ->  | Q97: =IF(J97>100,"",IF(ISERROR(出力前!Q102),"",IF(AND($C$2="あり",出力前!$AK$14=1),出力前1!R102,出力前!Q102))) ->  | R97: =IF(J97>100,"",IF(ISERROR(出力前!R102),"",IF(出力前!R102=0,"",IF(AND($C$2="あり",出力前!$AK$14=1),出力前1!S102,出力前!R102)))) ->  | S97: =IF(J97>100,"",IF(ISERROR(出力前!S102),"",IF(出力前!R102=0,"",出力前!S102))) ->  | T97: =IF(J97>100,"",IF(ISERROR(出力前!T102),"",IF(AND($C$2="あり",出力前!$AK$14=1),出力前1!U102,出力前!T102))) ->  | V97: =IF(ISERROR(出力前!U102),"",IF(AND($C$2="あり",出力前!$AK$14=1),出力前1!V102,出力前!U102)) ->  | W97: =IF(ISERROR(出力前!V102),"",IF(AND($C$2="あり",出力前!$AK$14=1),出力前1!W102,出力前!V102)) ->  | X97: =IF(ISERROR(出力前!W102),"",IF(AND($C$2="あり",出力前!$AK$14=1),出力前1!X102,出力前!W102)) ->  | Y97: =IF(ISERROR(出力前!X102),"",IF(AND($C$2="あり",出力前!$AK$14=1),出力前1!Y102,出力前!X102)) ->  | Z97: =IF(ISERROR(出力前!Y102),"",IF(AND($C$2="あり",出力前!$AK$14=1),出力前1!Z102,出力前!Y102)) ->  | AA97: =IF(ISERROR(出力前!Z102),"",IF(AND($C$2="あり",出力前!$AK$14=1),出力前1!AA102,出力前!Z102)) ->  | AB97: =IF(ISERROR(出力前!AA102),"",IF(AND($C$2="あり",出力前!$AK$14=1),出力前1!AB102,出力前!AA102)) ->  | AC97: =IF(ISERROR(出力前!AB102),"",IF(AND($C$2="あり",出力前!$AK$14=1),出力前1!AC102,出力前!AB102)) ->  | AD97: =IF(ISERROR(出力前!AC102),"",IF(AND($C$2="あり",出力前!$AK$14=1),出力前1!AD102,出力前!AC102)) ->  | AE97: =IF(J97>100,"",IF(ISERROR(出力前!AD102),"",IF(AND($C$2="あり",出力前!$AK$14=1),出力前1!AE102,出力前!AD102))) ->  | AF97: =IF(J97>100,"",IF(ISERROR(出力前!AE102),"",IF(AND($C$2="あり",出力前!$AK$14=1),出力前1!AF102,出力前!AE102))) ->  | AG97: =IF(ISERROR(出力前!AF102),"",IF(AND($C$2="あり",出力前!$AK$14=1),出力前1!AG102,出力前!AF102)) ->  | AH97: =IF(ISERROR(出力前!AG102),"",IF(AND($C$2="あり",出力前!$AK$14=1),出力前1!AH102,出力前!AG102)) ->  | AI97: =IF(J97>100,"",IF(ISERROR(出力前!AH102),"",IF(AND($C$2="あり",出力前!$AK$14=1),出力前1!AI102,出力前!AH102))) -> 
B98: 86 | C98: 13.9 | D98: 14 | F98: 170 | G98: 172 | J98: =出力前!J103 -> 111 | M98: =IF(ISERROR(出力前!M103),"",出力前!M103) ->  | N98: =IF(J98>100,"",出力前!N103) ->  | O98: =IF(J98>100,"",出力前!O103) ->  | P98: =IF(J98>100,"",IF(ISERROR(出力前!P103),"",IF(AND($C$2="あり",出力前!$AK$14=1),出力前1!Q103,出力前!P103))) ->  | Q98: =IF(J98>100,"",IF(ISERROR(出力前!Q103),"",IF(AND($C$2="あり",出力前!$AK$14=1),出力前1!R103,出力前!Q103))) ->  | R98: =IF(J98>100,"",IF(ISERROR(出力前!R103),"",IF(出力前!R103=0,"",IF(AND($C$2="あり",出力前!$AK$14=1),出力前1!S103,出力前!R103)))) ->  | S98: =IF(J98>100,"",IF(ISERROR(出力前!S103),"",IF(出力前!R103=0,"",出力前!S103))) ->  | T98: =IF(J98>100,"",IF(ISERROR(出力前!T103),"",IF(AND($C$2="あり",出力前!$AK$14=1),出力前1!U103,出力前!T103))) ->  | V98: =IF(ISERROR(出力前!U103),"",IF(AND($C$2="あり",出力前!$AK$14=1),出力前1!V103,出力前!U103)) ->  | W98: =IF(ISERROR(出力前!V103),"",IF(AND($C$2="あり",出力前!$AK$14=1),出力前1!W103,出力前!V103)) ->  | X98: =IF(ISERROR(出力前!W103),"",IF(AND($C$2="あり",出力前!$AK$14=1),出力前1!X103,出力前!W103)) ->  | Y98: =IF(ISERROR(出力前!X103),"",IF(AND($C$2="あり",出力前!$AK$14=1),出力前1!Y103,出力前!X103)) ->  | Z98: =IF(ISERROR(出力前!Y103),"",IF(AND($C$2="あり",出力前!$AK$14=1),出力前1!Z103,出力前!Y103)) ->  | AA98: =IF(ISERROR(出力前!Z103),"",IF(AND($C$2="あり",出力前!$AK$14=1),出力前1!AA103,出力前!Z103)) ->  | AB98: =IF(ISERROR(出力前!AA103),"",IF(AND($C$2="あり",出力前!$AK$14=1),出力前1!AB103,出力前!AA103)) ->  | AC98: =IF(ISERROR(出力前!AB103),"",IF(AND($C$2="あり",出力前!$AK$14=1),出力前1!AC103,出力前!AB103)) ->  | AD98: =IF(ISERROR(出力前!AC103),"",IF(AND($C$2="あり",出力前!$AK$14=1),出力前1!AD103,出力前!AC103)) ->  | AE98: =IF(J98>100,"",IF(ISERROR(出力前!AD103),"",IF(AND($C$2="あり",出力前!$AK$14=1),出力前1!AE103,出力前!AD103))) ->  | AF98: =IF(J98>100,"",IF(ISERROR(出力前!AE103),"",IF(AND($C$2="あり",出力前!$AK$14=1),出力前1!AF103,出力前!AE103))) ->  | AG98: =IF(ISERROR(出力前!AF103),"",IF(AND($C$2="あり",出力前!$AK$14=1),出力前1!AG103,出力前!AF103)) ->  | AH98: =IF(ISERROR(出力前!AG103),"",IF(AND($C$2="あり",出力前!$AK$14=1),出力前1!AH103,出力前!AG103)) ->  | AI98: =IF(J98>100,"",IF(ISERROR(出力前!AH103),"",IF(AND($C$2="あり",出力前!$AK$14=1),出力前1!AI103,出力前!AH103))) -> 
B99: 87 | C99: 13.8 | D99: 12 | F99: 172 | G99: 174 | J99: =出力前!J104 -> 112 | M99: =IF(ISERROR(出力前!M104),"",出力前!M104) ->  | N99: =IF(J99>100,"",出力前!N104) ->  | O99: =IF(J99>100,"",出力前!O104) ->  | P99: =IF(J99>100,"",IF(ISERROR(出力前!P104),"",IF(AND($C$2="あり",出力前!$AK$14=1),出力前1!Q104,出力前!P104))) ->  | Q99: =IF(J99>100,"",IF(ISERROR(出力前!Q104),"",IF(AND($C$2="あり",出力前!$AK$14=1),出力前1!R104,出力前!Q104))) ->  | R99: =IF(J99>100,"",IF(ISERROR(出力前!R104),"",IF(出力前!R104=0,"",IF(AND($C$2="あり",出力前!$AK$14=1),出力前1!S104,出力前!R104)))) ->  | S99: =IF(J99>100,"",IF(ISERROR(出力前!S104),"",IF(出力前!R104=0,"",出力前!S104))) ->  | T99: =IF(J99>100,"",IF(ISERROR(出力前!T104),"",IF(AND($C$2="あり",出力前!$AK$14=1),出力前1!U104,出力前!T104))) ->  | V99: =IF(ISERROR(出力前!U104),"",IF(AND($C$2="あり",出力前!$AK$14=1),出力前1!V104,出力前!U104)) ->  | W99: =IF(ISERROR(出力前!V104),"",IF(AND($C$2="あり",出力前!$AK$14=1),出力前1!W104,出力前!V104)) ->  | X99: =IF(ISERROR(出力前!W104),"",IF(AND($C$2="あり",出力前!$AK$14=1),出力前1!X104,出力前!W104)) ->  | Y99: =IF(ISERROR(出力前!X104),"",IF(AND($C$2="あり",出力前!$AK$14=1),出力前1!Y104,出力前!X104)) ->  | Z99: =IF(ISERROR(出力前!Y104),"",IF(AND($C$2="あり",出力前!$AK$14=1),出力前1!Z104,出力前!Y104)) ->  | AA99: =IF(ISERROR(出力前!Z104),"",IF(AND($C$2="あり",出力前!$AK$14=1),出力前1!AA104,出力前!Z104)) ->  | AB99: =IF(ISERROR(出力前!AA104),"",IF(AND($C$2="あり",出力前!$AK$14=1),出力前1!AB104,出力前!AA104)) ->  | AC99: =IF(ISERROR(出力前!AB104),"",IF(AND($C$2="あり",出力前!$AK$14=1),出力前1!AC104,出力前!AB104)) ->  | AD99: =IF(ISERROR(出力前!AC104),"",IF(AND($C$2="あり",出力前!$AK$14=1),出力前1!AD104,出力前!AC104)) ->  | AE99: =IF(J99>100,"",IF(ISERROR(出力前!AD104),"",IF(AND($C$2="あり",出力前!$AK$14=1),出力前1!AE104,出力前!AD104))) ->  | AF99: =IF(J99>100,"",IF(ISERROR(出力前!AE104),"",IF(AND($C$2="あり",出力前!$AK$14=1),出力前1!AF104,出力前!AE104))) ->  | AG99: =IF(ISERROR(出力前!AF104),"",IF(AND($C$2="あり",出力前!$AK$14=1),出力前1!AG104,出力前!AF104)) ->  | AH99: =IF(ISERROR(出力前!AG104),"",IF(AND($C$2="あり",出力前!$AK$14=1),出力前1!AH104,出力前!AG104)) ->  | AI99: =IF(J99>100,"",IF(ISERROR(出力前!AH104),"",IF(AND($C$2="あり",出力前!$AK$14=1),出力前1!AI104,出力前!AH104))) -> 
B100: 88 | C100: 13.8 | D100: 14 | F100: 174 | G100: 176 | J100: =出力前!J105 -> 113 | M100: =IF(ISERROR(出力前!M105),"",出力前!M105) ->  | N100: =IF(J100>100,"",出力前!N105) ->  | O100: =IF(J100>100,"",出力前!O105) ->  | P100: =IF(J100>100,"",IF(ISERROR(出力前!P105),"",IF(AND($C$2="あり",出力前!$AK$14=1),出力前1!Q105,出力前!P105))) ->  | Q100: =IF(J100>100,"",IF(ISERROR(出力前!Q105),"",IF(AND($C$2="あり",出力前!$AK$14=1),出力前1!R105,出力前!Q105))) ->  | R100: =IF(J100>100,"",IF(ISERROR(出力前!R105),"",IF(出力前!R105=0,"",IF(AND($C$2="あり",出力前!$AK$14=1),出力前1!S105,出力前!R105)))) ->  | S100: =IF(J100>100,"",IF(ISERROR(出力前!S105),"",IF(出力前!R105=0,"",出力前!S105))) ->  | T100: =IF(J100>100,"",IF(ISERROR(出力前!T105),"",IF(AND($C$2="あり",出力前!$AK$14=1),出力前1!U105,出力前!T105))) ->  | V100: =IF(ISERROR(出力前!U105),"",IF(AND($C$2="あり",出力前!$AK$14=1),出力前1!V105,出力前!U105)) ->  | W100: =IF(ISERROR(出力前!V105),"",IF(AND($C$2="あり",出力前!$AK$14=1),出力前1!W105,出力前!V105)) ->  | X100: =IF(ISERROR(出力前!W105),"",IF(AND($C$2="あり",出力前!$AK$14=1),出力前1!X105,出力前!W105)) ->  | Y100: =IF(ISERROR(出力前!X105),"",IF(AND($C$2="あり",出力前!$AK$14=1),出力前1!Y105,出力前!X105)) ->  | Z100: =IF(ISERROR(出力前!Y105),"",IF(AND($C$2="あり",出力前!$AK$14=1),出力前1!Z105,出力前!Y105)) ->  | AA100: =IF(ISERROR(出力前!Z105),"",IF(AND($C$2="あり",出力前!$AK$14=1),出力前1!AA105,出力前!Z105)) ->  | AB100: =IF(ISERROR(出力前!AA105),"",IF(AND($C$2="あり",出力前!$AK$14=1),出力前1!AB105,出力前!AA105)) ->  | AC100: =IF(ISERROR(出力前!AB105),"",IF(AND($C$2="あり",出力前!$AK$14=1),出力前1!AC105,出力前!AB105)) ->  | AD100: =IF(ISERROR(出力前!AC105),"",IF(AND($C$2="あり",出力前!$AK$14=1),出力前1!AD105,出力前!AC105)) ->  | AE100: =IF(J100>100,"",IF(ISERROR(出力前!AD105),"",IF(AND($C$2="あり",出力前!$AK$14=1),出力前1!AE105,出力前!AD105))) ->  | AF100: =IF(J100>100,"",IF(ISERROR(出力前!AE105),"",IF(AND($C$2="あり",出力前!$AK$14=1),出力前1!AF105,出力前!AE105))) ->  | AG100: =IF(ISERROR(出力前!AF105),"",IF(AND($C$2="あり",出力前!$AK$14=1),出力前1!AG105,出力前!AF105)) ->  | AH100: =IF(ISERROR(出力前!AG105),"",IF(AND($C$2="あり",出力前!$AK$14=1),出力前1!AH105,出力前!AG105)) ->  | AI100: =IF(J100>100,"",IF(ISERROR(出力前!AH105),"",IF(AND($C$2="あり",出力前!$AK$14=1),出力前1!AI105,出力前!AH105))) -> 
B101: 89 | C101: 13.8 | D101: 12.8 | F101: 176 | G101: 178 | J101: =出力前!J106 -> 114 | M101: =IF(ISERROR(出力前!M106),"",出力前!M106) ->  | N101: =IF(J101>100,"",出力前!N106) ->  | O101: =IF(J101>100,"",出力前!O106) ->  | P101: =IF(J101>100,"",IF(ISERROR(出力前!P106),"",IF(AND($C$2="あり",出力前!$AK$14=1),出力前1!Q106,出力前!P106))) ->  | Q101: =IF(J101>100,"",IF(ISERROR(出力前!Q106),"",IF(AND($C$2="あり",出力前!$AK$14=1),出力前1!R106,出力前!Q106))) ->  | R101: =IF(J101>100,"",IF(ISERROR(出力前!R106),"",IF(出力前!R106=0,"",IF(AND($C$2="あり",出力前!$AK$14=1),出力前1!S106,出力前!R106)))) ->  | S101: =IF(J101>100,"",IF(ISERROR(出力前!S106),"",IF(出力前!R106=0,"",出力前!S106))) ->  | T101: =IF(J101>100,"",IF(ISERROR(出力前!T106),"",IF(AND($C$2="あり",出力前!$AK$14=1),出力前1!U106,出力前!T106))) ->  | V101: =IF(ISERROR(出力前!U106),"",IF(AND($C$2="あり",出力前!$AK$14=1),出力前1!V106,出力前!U106)) ->  | W101: =IF(ISERROR(出力前!V106),"",IF(AND($C$2="あり",出力前!$AK$14=1),出力前1!W106,出力前!V106)) ->  | X101: =IF(ISERROR(出力前!W106),"",IF(AND($C$2="あり",出力前!$AK$14=1),出力前1!X106,出力前!W106)) ->  | Y101: =IF(ISERROR(出力前!X106),"",IF(AND($C$2="あり",出力前!$AK$14=1),出力前1!Y106,出力前!X106)) ->  | Z101: =IF(ISERROR(出力前!Y106),"",IF(AND($C$2="あり",出力前!$AK$14=1),出力前1!Z106,出力前!Y106)) ->  | AA101: =IF(ISERROR(出力前!Z106),"",IF(AND($C$2="あり",出力前!$AK$14=1),出力前1!AA106,出力前!Z106)) ->  | AB101: =IF(ISERROR(出力前!AA106),"",IF(AND($C$2="あり",出力前!$AK$14=1),出力前1!AB106,出力前!AA106)) ->  | AC101: =IF(ISERROR(出力前!AB106),"",IF(AND($C$2="あり",出力前!$AK$14=1),出力前1!AC106,出力前!AB106)) ->  | AD101: =IF(ISERROR(出力前!AC106),"",IF(AND($C$2="あり",出力前!$AK$14=1),出力前1!AD106,出力前!AC106)) ->  | AE101: =IF(J101>100,"",IF(ISERROR(出力前!AD106),"",IF(AND($C$2="あり",出力前!$AK$14=1),出力前1!AE106,出力前!AD106))) ->  | AF101: =IF(J101>100,"",IF(ISERROR(出力前!AE106),"",IF(AND($C$2="あり",出力前!$AK$14=1),出力前1!AF106,出力前!AE106))) ->  | AG101: =IF(ISERROR(出力前!AF106),"",IF(AND($C$2="あり",出力前!$AK$14=1),出力前1!AG106,出力前!AF106)) ->  | AH101: =IF(ISERROR(出力前!AG106),"",IF(AND($C$2="あり",出力前!$AK$14=1),出力前1!AH106,出力前!AG106)) ->  | AI101: =IF(J101>100,"",IF(ISERROR(出力前!AH106),"",IF(AND($C$2="あり",出力前!$AK$14=1),出力前1!AI106,出力前!AH106))) -> 
B102: 90 | C102: 13.8 | D102: 12.9 | F102: 178 | G102: 180 | J102: =出力前!J107 -> 115 | M102: =IF(ISERROR(出力前!M107),"",出力前!M107) ->  | N102: =IF(J102>100,"",出力前!N107) ->  | O102: =IF(J102>100,"",出力前!O107) ->  | P102: =IF(J102>100,"",IF(ISERROR(出力前!P107),"",IF(AND($C$2="あり",出力前!$AK$14=1),出力前1!Q107,出力前!P107))) ->  | Q102: =IF(J102>100,"",IF(ISERROR(出力前!Q107),"",IF(AND($C$2="あり",出力前!$AK$14=1),出力前1!R107,出力前!Q107))) ->  | R102: =IF(J102>100,"",IF(ISERROR(出力前!R107),"",IF(出力前!R107=0,"",IF(AND($C$2="あり",出力前!$AK$14=1),出力前1!S107,出力前!R107)))) ->  | S102: =IF(J102>100,"",IF(ISERROR(出力前!S107),"",IF(出力前!R107=0,"",出力前!S107))) ->  | T102: =IF(J102>100,"",IF(ISERROR(出力前!T107),"",IF(AND($C$2="あり",出力前!$AK$14=1),出力前1!U107,出力前!T107))) ->  | V102: =IF(ISERROR(出力前!U107),"",IF(AND($C$2="あり",出力前!$AK$14=1),出力前1!V107,出力前!U107)) ->  | W102: =IF(ISERROR(出力前!V107),"",IF(AND($C$2="あり",出力前!$AK$14=1),出力前1!W107,出力前!V107)) ->  | X102: =IF(ISERROR(出力前!W107),"",IF(AND($C$2="あり",出力前!$AK$14=1),出力前1!X107,出力前!W107)) ->  | Y102: =IF(ISERROR(出力前!X107),"",IF(AND($C$2="あり",出力前!$AK$14=1),出力前1!Y107,出力前!X107)) ->  | Z102: =IF(ISERROR(出力前!Y107),"",IF(AND($C$2="あり",出力前!$AK$14=1),出力前1!Z107,出力前!Y107)) ->  | AA102: =IF(ISERROR(出力前!Z107),"",IF(AND($C$2="あり",出力前!$AK$14=1),出力前1!AA107,出力前!Z107)) ->  | AB102: =IF(ISERROR(出力前!AA107),"",IF(AND($C$2="あり",出力前!$AK$14=1),出力前1!AB107,出力前!AA107)) ->  | AC102: =IF(ISERROR(出力前!AB107),"",IF(AND($C$2="あり",出力前!$AK$14=1),出力前1!AC107,出力前!AB107)) ->  | AD102: =IF(ISERROR(出力前!AC107),"",IF(AND($C$2="あり",出力前!$AK$14=1),出力前1!AD107,出力前!AC107)) ->  | AE102: =IF(J102>100,"",IF(ISERROR(出力前!AD107),"",IF(AND($C$2="あり",出力前!$AK$14=1),出力前1!AE107,出力前!AD107))) ->  | AF102: =IF(J102>100,"",IF(ISERROR(出力前!AE107),"",IF(AND($C$2="あり",出力前!$AK$14=1),出力前1!AF107,出力前!AE107))) ->  | AG102: =IF(ISERROR(出力前!AF107),"",IF(AND($C$2="あり",出力前!$AK$14=1),出力前1!AG107,出力前!AF107)) ->  | AH102: =IF(ISERROR(出力前!AG107),"",IF(AND($C$2="あり",出力前!$AK$14=1),出力前1!AH107,出力前!AG107)) ->  | AI102: =IF(J102>100,"",IF(ISERROR(出力前!AH107),"",IF(AND($C$2="あり",出力前!$AK$14=1),出力前1!AI107,出力前!AH107))) -> 
B103: 91 | C103: 13.8 | D103: 14.5 | F103: 180 | G103: 182 | J103: =出力前!J108 -> 116 | M103: =IF(ISERROR(出力前!M108),"",出力前!M108) ->  | N103: =IF(J103>100,"",出力前!N108) ->  | O103: =IF(J103>100,"",出力前!O108) ->  | P103: =IF(J103>100,"",IF(ISERROR(出力前!P108),"",IF(AND($C$2="あり",出力前!$AK$14=1),出力前1!Q108,出力前!P108))) ->  | Q103: =IF(J103>100,"",IF(ISERROR(出力前!Q108),"",IF(AND($C$2="あり",出力前!$AK$14=1),出力前1!R108,出力前!Q108))) ->  | R103: =IF(J103>100,"",IF(ISERROR(出力前!R108),"",IF(出力前!R108=0,"",IF(AND($C$2="あり",出力前!$AK$14=1),出力前1!S108,出力前!R108)))) ->  | S103: =IF(J103>100,"",IF(ISERROR(出力前!S108),"",IF(出力前!R108=0,"",出力前!S108))) ->  | T103: =IF(J103>100,"",IF(ISERROR(出力前!T108),"",IF(AND($C$2="あり",出力前!$AK$14=1),出力前1!U108,出力前!T108))) ->  | V103: =IF(ISERROR(出力前!U108),"",IF(AND($C$2="あり",出力前!$AK$14=1),出力前1!V108,出力前!U108)) ->  | W103: =IF(ISERROR(出力前!V108),"",IF(AND($C$2="あり",出力前!$AK$14=1),出力前1!W108,出力前!V108)) ->  | X103: =IF(ISERROR(出力前!W108),"",IF(AND($C$2="あり",出力前!$AK$14=1),出力前1!X108,出力前!W108)) ->  | Y103: =IF(ISERROR(出力前!X108),"",IF(AND($C$2="あり",出力前!$AK$14=1),出力前1!Y108,出力前!X108)) ->  | Z103: =IF(ISERROR(出力前!Y108),"",IF(AND($C$2="あり",出力前!$AK$14=1),出力前1!Z108,出力前!Y108)) ->  | AA103: =IF(ISERROR(出力前!Z108),"",IF(AND($C$2="あり",出力前!$AK$14=1),出力前1!AA108,出力前!Z108)) ->  | AB103: =IF(ISERROR(出力前!AA108),"",IF(AND($C$2="あり",出力前!$AK$14=1),出力前1!AB108,出力前!AA108)) ->  | AC103: =IF(ISERROR(出力前!AB108),"",IF(AND($C$2="あり",出力前!$AK$14=1),出力前1!AC108,出力前!AB108)) ->  | AD103: =IF(ISERROR(出力前!AC108),"",IF(AND($C$2="あり",出力前!$AK$14=1),出力前1!AD108,出力前!AC108)) ->  | AE103: =IF(J103>100,"",IF(ISERROR(出力前!AD108),"",IF(AND($C$2="あり",出力前!$AK$14=1),出力前1!AE108,出力前!AD108))) ->  | AF103: =IF(J103>100,"",IF(ISERROR(出力前!AE108),"",IF(AND($C$2="あり",出力前!$AK$14=1),出力前1!AF108,出力前!AE108))) ->  | AG103: =IF(ISERROR(出力前!AF108),"",IF(AND($C$2="あり",出力前!$AK$14=1),出力前1!AG108,出力前!AF108)) ->  | AH103: =IF(ISERROR(出力前!AG108),"",IF(AND($C$2="あり",出力前!$AK$14=1),出力前1!AH108,出力前!AG108)) ->  | AI103: =IF(J103>100,"",IF(ISERROR(出力前!AH108),"",IF(AND($C$2="あり",出力前!$AK$14=1),出力前1!AI108,出力前!AH108))) -> 
B104: 92 | C104: 13.7 | D104: 14.3 | F104: 182 | G104: 184 | J104: =出力前!J109 -> 117 | M104: =IF(ISERROR(出力前!M109),"",出力前!M109) ->  | N104: =IF(J104>100,"",出力前!N109) ->  | O104: =IF(J104>100,"",出力前!O109) ->  | P104: =IF(J104>100,"",IF(ISERROR(出力前!P109),"",IF(AND($C$2="あり",出力前!$AK$14=1),出力前1!Q109,出力前!P109))) ->  | Q104: =IF(J104>100,"",IF(ISERROR(出力前!Q109),"",IF(AND($C$2="あり",出力前!$AK$14=1),出力前1!R109,出力前!Q109))) ->  | R104: =IF(J104>100,"",IF(ISERROR(出力前!R109),"",IF(出力前!R109=0,"",IF(AND($C$2="あり",出力前!$AK$14=1),出力前1!S109,出力前!R109)))) ->  | S104: =IF(J104>100,"",IF(ISERROR(出力前!S109),"",IF(出力前!R109=0,"",出力前!S109))) ->  | T104: =IF(J104>100,"",IF(ISERROR(出力前!T109),"",IF(AND($C$2="あり",出力前!$AK$14=1),出力前1!U109,出力前!T109))) ->  | V104: =IF(ISERROR(出力前!U109),"",IF(AND($C$2="あり",出力前!$AK$14=1),出力前1!V109,出力前!U109)) ->  | W104: =IF(ISERROR(出力前!V109),"",IF(AND($C$2="あり",出力前!$AK$14=1),出力前1!W109,出力前!V109)) ->  | X104: =IF(ISERROR(出力前!W109),"",IF(AND($C$2="あり",出力前!$AK$14=1),出力前1!X109,出力前!W109)) ->  | Y104: =IF(ISERROR(出力前!X109),"",IF(AND($C$2="あり",出力前!$AK$14=1),出力前1!Y109,出力前!X109)) ->  | Z104: =IF(ISERROR(出力前!Y109),"",IF(AND($C$2="あり",出力前!$AK$14=1),出力前1!Z109,出力前!Y109)) ->  | AA104: =IF(ISERROR(出力前!Z109),"",IF(AND($C$2="あり",出力前!$AK$14=1),出力前1!AA109,出力前!Z109)) ->  | AB104: =IF(ISERROR(出力前!AA109),"",IF(AND($C$2="あり",出力前!$AK$14=1),出力前1!AB109,出力前!AA109)) ->  | AC104: =IF(ISERROR(出力前!AB109),"",IF(AND($C$2="あり",出力前!$AK$14=1),出力前1!AC109,出力前!AB109)) ->  | AD104: =IF(ISERROR(出力前!AC109),"",IF(AND($C$2="あり",出力前!$AK$14=1),出力前1!AD109,出力前!AC109)) ->  | AE104: =IF(J104>100,"",IF(ISERROR(出力前!AD109),"",IF(AND($C$2="あり",出力前!$AK$14=1),出力前1!AE109,出力前!AD109))) ->  | AF104: =IF(J104>100,"",IF(ISERROR(出力前!AE109),"",IF(AND($C$2="あり",出力前!$AK$14=1),出力前1!AF109,出力前!AE109))) ->  | AG104: =IF(ISERROR(出力前!AF109),"",IF(AND($C$2="あり",出力前!$AK$14=1),出力前1!AG109,出力前!AF109)) ->  | AH104: =IF(ISERROR(出力前!AG109),"",IF(AND($C$2="あり",出力前!$AK$14=1),出力前1!AH109,出力前!AG109)) ->  | AI104: =IF(J104>100,"",IF(ISERROR(出力前!AH109),"",IF(AND($C$2="あり",出力前!$AK$14=1),出力前1!AI109,出力前!AH109))) -> 
B105: 93 | C105: 13.7 | D105: 13.3 | F105: 184 | G105: 186 | J105: =出力前!J110 -> 118 | M105: =IF(ISERROR(出力前!M110),"",出力前!M110) ->  | N105: =IF(J105>100,"",出力前!N110) ->  | O105: =IF(J105>100,"",出力前!O110) ->  | P105: =IF(J105>100,"",IF(ISERROR(出力前!P110),"",IF(AND($C$2="あり",出力前!$AK$14=1),出力前1!Q110,出力前!P110))) ->  | Q105: =IF(J105>100,"",IF(ISERROR(出力前!Q110),"",IF(AND($C$2="あり",出力前!$AK$14=1),出力前1!R110,出力前!Q110))) ->  | R105: =IF(J105>100,"",IF(ISERROR(出力前!R110),"",IF(出力前!R110=0,"",IF(AND($C$2="あり",出力前!$AK$14=1),出力前1!S110,出力前!R110)))) ->  | S105: =IF(J105>100,"",IF(ISERROR(出力前!S110),"",IF(出力前!R110=0,"",出力前!S110))) ->  | T105: =IF(J105>100,"",IF(ISERROR(出力前!T110),"",IF(AND($C$2="あり",出力前!$AK$14=1),出力前1!U110,出力前!T110))) ->  | V105: =IF(ISERROR(出力前!U110),"",IF(AND($C$2="あり",出力前!$AK$14=1),出力前1!V110,出力前!U110)) ->  | W105: =IF(ISERROR(出力前!V110),"",IF(AND($C$2="あり",出力前!$AK$14=1),出力前1!W110,出力前!V110)) ->  | X105: =IF(ISERROR(出力前!W110),"",IF(AND($C$2="あり",出力前!$AK$14=1),出力前1!X110,出力前!W110)) ->  | Y105: =IF(ISERROR(出力前!X110),"",IF(AND($C$2="あり",出力前!$AK$14=1),出力前1!Y110,出力前!X110)) ->  | Z105: =IF(ISERROR(出力前!Y110),"",IF(AND($C$2="あり",出力前!$AK$14=1),出力前1!Z110,出力前!Y110)) ->  | AA105: =IF(ISERROR(出力前!Z110),"",IF(AND($C$2="あり",出力前!$AK$14=1),出力前1!AA110,出力前!Z110)) ->  | AB105: =IF(ISERROR(出力前!AA110),"",IF(AND($C$2="あり",出力前!$AK$14=1),出力前1!AB110,出力前!AA110)) ->  | AC105: =IF(ISERROR(出力前!AB110),"",IF(AND($C$2="あり",出力前!$AK$14=1),出力前1!AC110,出力前!AB110)) ->  | AD105: =IF(ISERROR(出力前!AC110),"",IF(AND($C$2="あり",出力前!$AK$14=1),出力前1!AD110,出力前!AC110)) ->  | AE105: =IF(J105>100,"",IF(ISERROR(出力前!AD110),"",IF(AND($C$2="あり",出力前!$AK$14=1),出力前1!AE110,出力前!AD110))) ->  | AF105: =IF(J105>100,"",IF(ISERROR(出力前!AE110),"",IF(AND($C$2="あり",出力前!$AK$14=1),出力前1!AF110,出力前!AE110))) ->  | AG105: =IF(ISERROR(出力前!AF110),"",IF(AND($C$2="あり",出力前!$AK$14=1),出力前1!AG110,出力前!AF110)) ->  | AH105: =IF(ISERROR(出力前!AG110),"",IF(AND($C$2="あり",出力前!$AK$14=1),出力前1!AH110,出力前!AG110)) ->  | AI105: =IF(J105>100,"",IF(ISERROR(出力前!AH110),"",IF(AND($C$2="あり",出力前!$AK$14=1),出力前1!AI110,出力前!AH110))) -> 
B106: 94 | C106: 13.6 | D106: 14.5 | F106: 186 | G106: 188 | J106: =出力前!J111 -> 119 | M106: =IF(ISERROR(出力前!M111),"",出力前!M111) ->  | N106: =IF(J106>100,"",出力前!N111) ->  | O106: =IF(J106>100,"",出力前!O111) ->  | P106: =IF(J106>100,"",IF(ISERROR(出力前!P111),"",IF(AND($C$2="あり",出力前!$AK$14=1),出力前1!Q111,出力前!P111))) ->  | Q106: =IF(J106>100,"",IF(ISERROR(出力前!Q111),"",IF(AND($C$2="あり",出力前!$AK$14=1),出力前1!R111,出力前!Q111))) ->  | R106: =IF(J106>100,"",IF(ISERROR(出力前!R111),"",IF(出力前!R111=0,"",IF(AND($C$2="あり",出力前!$AK$14=1),出力前1!S111,出力前!R111)))) ->  | S106: =IF(J106>100,"",IF(ISERROR(出力前!S111),"",IF(出力前!R111=0,"",出力前!S111))) ->  | T106: =IF(J106>100,"",IF(ISERROR(出力前!T111),"",IF(AND($C$2="あり",出力前!$AK$14=1),出力前1!U111,出力前!T111))) ->  | V106: =IF(ISERROR(出力前!U111),"",IF(AND($C$2="あり",出力前!$AK$14=1),出力前1!V111,出力前!U111)) ->  | W106: =IF(ISERROR(出力前!V111),"",IF(AND($C$2="あり",出力前!$AK$14=1),出力前1!W111,出力前!V111)) ->  | X106: =IF(ISERROR(出力前!W111),"",IF(AND($C$2="あり",出力前!$AK$14=1),出力前1!X111,出力前!W111)) ->  | Y106: =IF(ISERROR(出力前!X111),"",IF(AND($C$2="あり",出力前!$AK$14=1),出力前1!Y111,出力前!X111)) ->  | Z106: =IF(ISERROR(出力前!Y111),"",IF(AND($C$2="あり",出力前!$AK$14=1),出力前1!Z111,出力前!Y111)) ->  | AA106: =IF(ISERROR(出力前!Z111),"",IF(AND($C$2="あり",出力前!$AK$14=1),出力前1!AA111,出力前!Z111)) ->  | AB106: =IF(ISERROR(出力前!AA111),"",IF(AND($C$2="あり",出力前!$AK$14=1),出力前1!AB111,出力前!AA111)) ->  | AC106: =IF(ISERROR(出力前!AB111),"",IF(AND($C$2="あり",出力前!$AK$14=1),出力前1!AC111,出力前!AB111)) ->  | AD106: =IF(ISERROR(出力前!AC111),"",IF(AND($C$2="あり",出力前!$AK$14=1),出力前1!AD111,出力前!AC111)) ->  | AE106: =IF(J106>100,"",IF(ISERROR(出力前!AD111),"",IF(AND($C$2="あり",出力前!$AK$14=1),出力前1!AE111,出力前!AD111))) ->  | AF106: =IF(J106>100,"",IF(ISERROR(出力前!AE111),"",IF(AND($C$2="あり",出力前!$AK$14=1),出力前1!AF111,出力前!AE111))) ->  | AG106: =IF(ISERROR(出力前!AF111),"",IF(AND($C$2="あり",出力前!$AK$14=1),出力前1!AG111,出力前!AF111)) ->  | AH106: =IF(ISERROR(出力前!AG111),"",IF(AND($C$2="あり",出力前!$AK$14=1),出力前1!AH111,出力前!AG111)) ->  | AI106: =IF(J106>100,"",IF(ISERROR(出力前!AH111),"",IF(AND($C$2="あり",出力前!$AK$14=1),出力前1!AI111,出力前!AH111))) -> 
B107: 95 | C107: 13.6 | D107: 13.7 | F107: 188 | G107: 190
B108: 96 | C108: 13.6 | D108: 13.3 | F108: 190 | G108: 192
B109: 97 | C109: 13.6 | D109: 12.5 | F109: 192 | G109: =F109+$C$5 -> 194
B110: 98 | C110: 13.6 | D110: 13.3 | F110: 194 | G110: =F110+$C$5 -> 196
B111: 99 | C111: 13.5 | D111: 13 | F111: 196 | G111: =F111+$C$5 -> 198
B112: 100 | C112: 13.5 | D112: 11.3 | F112: 198 | G112: =F112+$C$5 -> 200
B113: 101 | C113: 13.4 | D113: 12.5
B114: 102 | C114: 13.4 | D114: 12.3
B115: 103 | C115: 13.2 | D115: 12.3
B116: 104 | C116: 13.2 | D116: 13.5
B117: 105 | C117: 13.2 | D117: 12.8
B118: 106 | C118: 13.2 | D118: 14
B119: 107 | C119: 13.1 | D119: 12
B120: 108 | C120: 13.1 | D120: 12.8
B121: 109 | C121: 13.1 | D121: 13.3
B122: 110 | C122: 13 | D122: 14.3
B123: 111 | C123: 12.8 | D123: 12.3
B124: 112 | C124: 12.8 | D124: 12.7
B125: 113 | C125: 12.8 | D125: 12.5
B126: 114 | C126: 12.7 | D126: 13.1
B127: 115 | C127: 12.7 | D127: 12.3
B128: 116 | C128: 12.6 | D128: 12
B129: 117 | C129: 12.6 | D129: 12
B130: 118 | C130: 12.5 | D130: 12.8
B131: 119 | C131: 12.5 | D131: 14.1
B132: 120 | C132: 12.5 | D132: 12.3
B133: 121 | C133: 12.4 | D133: 14.7
B134: 122 | C134: 12.4 | D134: 13.6
B135: 123 | C135: 12.4 | D135: 7.3
B136: 124 | C136: 12.3 | D136: 13
B137: 125 | C137: 12.3 | D137: 12.3
B138: 126 | C138: 12.3 | D138: 11.8
B139: 127 | C139: 12.3 | D139: 12.3
B140: 128 | C140: 12.2 | D140: 12.7
B141: 129 | C141: 12.1 | D141: 12.6
B142: 130 | C142: 12.1 | D142: 13.7
B143: 131 | C143: 12 | D143: 12.6
B144: 132 | C144: 12 | D144: 12.5
B145: 133 | C145: 11.9 | D145: 13
B146: 134 | C146: 11.9 | D146: 12.5
B147: 135 | C147: 11.9 | D147: 10.2
B148: 136 | C148: 11.8 | D148: 9.8
B149: 137 | C149: 11.8 | D149: 11.1
B150: 138 | C150: 11.7 | D150: 12.1
B151: 139 | C151: 11.7 | D151: 10.6
B152: 140 | C152: 11.7 | D152: 12.3
B153: 141 | C153: 11.6 | D153: 12.3
B154: 142 | C154: 11.6 | D154: 13.4
B155: 143 | C155: 11.6 | D155: 12.8
B156: 144 | C156: 11.6 | D156: 11.9
B157: 145 | C157: 11.6 | D157: 13
B158: 146 | C158: 11.5 | D158: 11.3
B159: 147 | C159: 11.5 | D159: 13.7
B160: 148 | C160: 11.5 | D160: 11.9
B161: 149 | C161: 11.5 | D161: 8.5
B162: 150 | C162: 11.4 | D162: 12.5
B163: 151 | C163: 11.3 | D163: 13.3
B164: 152 | C164: 11.2 | D164: 13
B165: 153 | C165: 11.2 | D165: 12.7
B166: 154 | C166: 11.2 | D166: 12.8
B167: 155 | C167: 11.1 | D167: 12.3
B168: 156 | C168: 11 | D168: 11.5
B169: 157 | C169: 11 | D169: 12
B170: 158 | C170: 11 | D170: 11.8
B171: 159 | C171: 10.9 | D171: 11.8
B172: 160 | C172: 10.9 | D172: 13.3
B173: 161 | C173: 10.8 | D173: 12
B174: 162 | C174: 10.8 | D174: 12.3
B175: 163 | C175: 10.8 | D175: 11.8
B176: 164 | C176: 10.7 | D176: 12.2
B177: 165 | C177: 10.7 | D177: 11.3
B178: 166 | C178: 10.7 | D178: 10.3
B179: 167 | C179: 10.6 | D179: 12
B180: 168 | C180: 10.6 | D180: 12.3
B181: 169 | C181: 10.6 | D181: 11.8
B182: 170 | C182: 10.6 | D182: 12.3
B183: 171 | C183: 10.6 | D183: 10.9
B184: 172 | C184: 10.4 | D184: 11.9
B185: 173 | C185: 10.4 | D185: 11.3
B186: 174 | C186: 10.4 | D186: 11.1
B187: 175 | C187: 10.3 | D187: 12.3
B188: 176 | C188: 10.3 | D188: 12.6
B189: 177 | C189: 10.3 | D189: 11.8
B190: 178 | C190: 10.2 | D190: 7.2
B191: 179 | C191: 10.2 | D191: 13.3
B192: 180 | C192: 10.2 | D192: 10.5
B193: 181 | C193: 10.1 | D193: 12
B194: 182 | C194: 10.1 | D194: 11.3
B195: 183 | C195: 10 | D195: 12.5
B196: 184 | C196: 10 | D196: 11
B197: 185 | C197: 10 | D197: 12
B198: 186 | C198: 9.9 | D198: 10.3
B199: 187 | C199: 9.9 | D199: 11
B200: 188 | C200: 9.9 | D200: 11.5
... 112 more rows

Sheet 出力前1 (hidden)
C1: 立木データ | G1: 林分データ | K1: 間伐データ | GZ1: parmRy.fr5
C2: 胸高直径 | D2: ='1.収穫を予測する'!C2 -> あり | G2: 調査地名 | H2: ='1.収穫を予測する'!G2:H2 -> 0 | K2: 最初の間伐年 | L2: ='inv2.計算シート'!B4 -> 30 | M2: 年 | P2: ※ 地位指数（林齢40年生時の平均上層樹高）は，特等地・I等地 ，II等地 ，III等地 を目安として選択してください | AC2: (Intercept) -1.660e+00 2.032e-02 -81.72 <2e-16 *** | AD2: -0.164 | AL2: 入力１ | AM2: 入力２ | GZ2: p | HA2: 0.6403232
C3: 樹高 | D3: ='1.収穫を予測する'!C3 -> あり | G3: 地位指数 | H3: ='1.収穫を予測する'!G3 -> 19 | K3: 間伐回数 | L3: ='inv2.計算シート'!BZ23 -> 5 | M3: 回 | P3: ※ 対象林分の地位指数，植栽本数が不明の場合は，地域の標準的な値を選択してください | AC3: SI 8.088e-02 9.834e-04 82.25 <2e-16 *** | AD3: 0.050 | AK3: 平均 | AL3: =AVERAGE(D12:D311) -> 9.189666667 | AM3: =+SUM(B12:B111)/SUM(I12:I111) -> 8.944664032 | GZ3: q | HA3: 3131.6816
C4: 入力方法 | D4: ='1.収穫を予測する'!C4 -> 入力方法1 | G4: 植栽本数 | H4: ='1.収穫を予測する'!G4 -> 2500 | I4: 本/ha | K4: 主伐年 | L4: ='inv2.計算シート'!BY1 ->  | M4: 年 | AC4: DBH -1.272e-02 2.788e-04 -45.64 <2e-16 *** | AD4: -0.009 | AK4: STD | AL4: =+STDEV(D12:D311) -> 6.411240643 | AM4: =+IF(SQRT(SUM(A12:A111)/SUM(I12:I111))=0,0.001,SQRT(SUM(A12:A111)/SUM(I12:I111))) -> 2.863995728 | GZ4: r | HA4: -0.8946705
C5: 直径階cm | D5: ='1.収穫を予測する'!C5 -> 2 | G5: 林齢 | H5: ='1.収穫を予測する'!G5 -> 20 | I5: 年 | AC5: BA -3.504e-02 8.045e-04 -43.55 <2e-16 *** | AD5: -0.003 | GZ5: K1.fr5 | HA5: -1.425829
G6: 調査面積 | H6: ='1.収穫を予測する'!G6 -> 0.1 | I6: ha | U6: 地位指数 | V6: =H3 -> 19 | Y6: 植栽本数 | Z6: =H4 -> 2500 | AA6: 本/ha | AC6: SIBA 8.446e-04 3.606e-05 23.42 <2e-16 *** | AD6: -0.0001109 | DN6: =+DN12 -> 11 | DO6: =+DO12 -> 27 | DP6: 69 | DQ6: 144 | DR6: 245 | DS6: 339 | DT6: 381 | DU6: 348 | DV6: 259 | DW6: 156 | DX6: 77 | DY6: 31 | DZ6: 10 | EA6: 3 | EB6: 1 | EC6: 0 | ED6: 0 | EE6: 0 | EF6: 0 | EG6: 0 | EH6: 0 | EI6: 0 | EJ6: 0 | EK6: 0 | EL6: 0 | EM6: 0 | EN6: 0 | EO6: 0 | EP6: 0 | EQ6: 0 | ER6: 0 | ES6: 0 | ET6: 0 | EU6: 0 | EV6: 0
Q7: 1.2 収穫予測
Q8: 主副林木（間伐前） | V8: 主林木（間伐後） | Y8: 副林木 | AD8: 総収穫 | AF8: 幹材積連年成長量 | AG8: 幹材積年平均成長量 | DN8: 4 | DO8: 5 | DP8: 6 | DQ8: 7 | DR8: 8 | DS8: 9 | DT8: 10 | DU8: 11 | DV8: 12 | DW8: 13 | DX8: 14 | DY8: 15 | DZ8: 16 | EA8: 17 | EB8: 18 | EC8: 19 | ED8: 20 | EE8: 21 | EF8: 22 | EG8: 23 | EH8: 24 | EI8: 25 | EJ8: 26 | EK8: 27 | EL8: 28 | EM8: 29 | EN8: 30 | EO8: 31 | EP8: 32 | EQ8: 33 | ER8: 34 | ES8: 35 | ET8: 36 | EU8: 37 | EV8: 38
C9: 入力方法1 | G9: 入力方法2 | K9: 1.1 間伐スケジュール | Q9: 平均 | S9: /ha | V9: /ha | Y9: /ha | AD9: /ha | AF9: /ha | AG9: /ha | AQ9: =+'2.径級分布'!L2 -> 0 | AR9: =+'2.径級分布'!N2 -> 2 | FH9: =+FH11-$AR$9 -> 0 | FI9: =+FI11-$AR$9 -> 2 | FJ9: 4 | FK9: 6 | FL9: 8 | FM9: 10 | FN9: 12 | FO9: 14 | FP9: 16 | FQ9: 18 | FR9: 20 | FS9: 22 | FT9: 24 | FU9: 26 | FV9: 28 | FW9: 30 | FX9: 32 | FY9: 34 | FZ9: 36 | GA9: 38 | GB9: 40 | GC9: 42 | GD9: 44 | GE9: 46 | GF9: 48 | GG9: 50 | GH9: 52 | GI9: 54 | GJ9: 56 | GK9: 58 | GL9: 60 | GM9: 62 | GN9: 64 | GO9: 66 | GP9: 68
C10: 立木 | D10: 胸高直径 | E10: 樹高 | G10: 胸高直径階 | I10: 立木 | K10: 林齢 | L10: 本数 間伐率 | N10: 推奨 間伐回 | O10: 林齢 | P10: 上層高 | Q10: 幹材積 | R10: 胸高 直径 | S10: 立木 本数 | T10: 幹材積 | U10: 収量 比数 | V10: 立木 本数 | W10: 幹材積 | X10: 収量 比数 | Y10: 立木 本数 | Z10: 本数 比率 | AA10: 幹材積 | AB10: 材積 比率 | AC10: 胸高 直径 | AD10: 副林木 材積 | AE10: 主副林木 材積 | AF10: 主副合計 | AG10: 主林木 | AH10: 主副 合計 | AI10: 総収量 | AJ10: GLM | AQ10: 1 | AR10: 2 | AS10: 3 | AT10: 4 | AU10: 5 | AV10: 6 | AW10: 7 | AX10: 8 | AY10: 9 | AZ10: 10 | BA10: 11 | BB10: 12 | BC10: 13 | BD10: 14 | BE10: 15 | BF10: 16 | BG10: 17 | BH10: 18 | BI10: 19 | BJ10: 20 | BK10: 21 | BL10: 22 | BM10: 23 | BN10: 24 | BO10: 25 | BP10: 26 | BQ10: 27 | BR10: 28 | BS10: 29 | BT10: 30 | BU10: 31 | BV10: 32 | BW10: 33 | BX10: 34 | BY10: 35 | EY10: 死亡本数 | EZ10: 死亡本数 | FC10: =+'1.収穫を予測する'!G4 -> 2500 | FH10: =AVERAGE(FH9,FH11) -> 1 | FI10: =AVERAGE(FI9,FI11) -> 3 | FJ10: 5 | FK10: 7 | FL10: 9 | FM10: 11 | FN10: 13 | FO10: 15 | FP10: 17 | FQ10: 19 | FR10: 21 | FS10: 23 | FT10: 25 | FU10: 27 | FV10: 29 | FW10: 31 | FX10: 33 | FY10: 35 | FZ10: 37 | GA10: 39 | GB10: 41 | GC10: 43 | GD10: 45 | GE10: 47 | GF10: 49 | GG10: 51 | GH10: 53 | GI10: 55 | GJ10: 57 | GK10: 59 | GL10: 61 | GM10: 63 | GN10: 65 | GO10: 67 | GP10: 69
C11: No. | D11: cm | E11: m | G11: cm以上 | H11: cm未満 | I11: 本数 | K11: 年 | L11: 全層 | O11: 年 | P11: m | Q11: m3 | R11: cm | S11: 本 | T11: m3 | V11: 本 | W11: m3 | Y11: 本 | Z11: % | AA11: m3 | AB11: % | AC11: cm | AD11: m3 | AE11: m3 | AF11: m3 | AG11: m3 | AH11: m3 | AI11: m3 | AJ11: 直径成長 | AK11: BA | AL11: BA*SI | AM11: 調整済STD | AN11: STD係数 | AO11: STD変化 | AP11: 使用STD | AQ11: =+AQ10*$AR$9+$AQ$9 -> 2 | AR11: =+AR10*$AR$9+$AQ$9 -> 4 | AS11: =+AS10*$AR$9+$AQ$9 -> 6 | AT11: 8 | AU11: 10 | AV11: 12 | AW11: 14 | AX11: 16 | AY11: 18 | AZ11: 20 | BA11: 22 | BB11: 24 | BC11: 26 | BD11: 28 | BE11: 30 | BF11: 32 | BG11: 34 | BH11: 36 | BI11: 38 | BJ11: 40 | BK11: 42 | BL11: 44 | BM11: 46 | BN11: 48 | BO11: 50 | BP11: 52 | BQ11: 54 | BR11: 56 | BS11: 58 | BT11: 60 | BU11: 62 | BV11: 64 | BW11: 66 | BX11: 68 | BY11: 70 | CA11: =+AQ11 -> 2 | CB11: 4 | CC11: 6 | CD11: 8 | CE11: 10 | CF11: 12 | CG11: 14 | CH11: 16 | CI11: 18 | CJ11: 20 | CK11: 22 | CL11: 24 | CM11: 26 | CN11: 28 | CO11: 30 | CP11: 32 | CQ11: 34 | CR11: 36 | CS11: 38 | CT11: 40 | CU11: 42 | CV11: 44 | CW11: 46 | CX11: 48 | CY11: 50 | CZ11: 52 | DA11: 54 | DB11: 56 | DC11: 58 | DD11: 60 | DE11: 62 | DF11: 64 | DG11: 66 | DH11: 68 | DI11: 70 | DN11: =+CA11 -> 2 | DO11: 4 | DP11: 6 | DQ11: 8 | DR11: 10 | DS11: 12 | DT11: 14 | DU11: 16 | DV11: 18 | DW11: 20 | DX11: 22 | DY11: 24 | DZ11: 26 | EA11: 28 | EB11: 30 | EC11: 32 | ED11: 34 | EE11: 36 | EF11: 38 | EG11: 40 | EH11: 42 | EI11: 44 | EJ11: 46 | EK11: 48 | EL11: 50 | EM11: 52 | EN11: 54 | EO11: 56 | EP11: 58 | EQ11: 60 | ER11: 62 | ES11: 64 | ET11: 66 | EU11: 68 | EV11: 70 | EW11: 密度 | EZ11: 2.00 | FC11: 自然枯死線 | FE11: DBH実際 | FF11: DBH確かめ | FH11: =+DN11 -> 2 | FI11: 4 | FJ11: 6 | FK11: 8 | FL11: 10 | FM11: 12 | FN11: 14 | FO11: 16 | FP11: 18 | FQ11: 20 | FR11: 22 | FS11: 24 | FT11: 26 | FU11: 28 | FV11: 30 | FW11: 32 | FX11: 34 | FY11: 36 | FZ11: 38 | GA11: 40 | GB11: 42 | GC11: 44 | GD11: 46 | GE11: 48 | GF11: 50 | GG11: 52 | GH11: 54 | GI11: 56 | GJ11: 58 | GK11: 60 | GL11: 62 | GM11: 64 | GN11: 66 | GO11: 68 | GP11: 70 | GQ11: 最少 | GR11: 最大 | GS11: 範囲正規分布 | GT11: 範囲β型 | GV11: 範囲β型 | GW11: STDβ型 | GX11: STD正規 | GZ11: Ry間伐前 | HA11: Ry間伐後
A12: =+(AVERAGE(G12:H12)-$AM$3)^2*I12 -> 0 | B12: =+I12*AVERAGE(G12:H12) -> 0 | C12: 1 | D12: ='1.収穫を予測する'!C13 -> 21.6 | E12: ='1.収穫を予測する'!D13 -> 14.5 | G12: 0 | H12: =G12+$D$5 -> 2 | I12: =+'1.収穫を予測する'!H13 -> 0 | K12: =IF(OR($D$2="あり",$D$3="あり"),入力方法別計算!W2,'inv2.計算シート'!E2) -> 20 | L12: =IF('1.収穫を予測する'!K7="","",'1.収穫を予測する'!K7) ->  | N12: =IF(K12>105,"",IF(OR($D$2="あり",$D$3="あり"),IF(入力方法別計算!AQ2=0,"",入力方法別計算!AQ2),IF('inv2.計算シート'!BV2=0,"",'inv2.計算シート'!BV2))) -> 1 | O12: =K12 -> 20 | P12: =IF(OR(ISERROR(Q12),K12>105),"",IF(OR($D$2="あり",$D$3="あり"),入力方法別計算!X2,'inv2.計算シート'!AC2)) -> 12.7 | Q12: =+IF(O12>105,"",T12/S12) -> 0.101 | R12: =IF('1.収穫を予測する'!C2="あり",入力方法別計算!U7,'inv3.直径階分布'!HK7) -> 13.1 | S12: =IF(K12>105,"",IF(OR($D$2="あり",$D$3="あり"),入力方法別計算!Y2,'inv2.計算シート'!AE2)) -> 2100 | T12: =IF(K12>105,"",IF(OR($D$2="あり",$D$3="あり"),入力方法別計算!Z2,'inv2.計算シート'!AD2)) -> 212.6 | U12: =IF(K12>105,"",GZ12) -> 0.489 | V12: =IF(L12="","",S12*(1-L12/100)) ->  | W12: =IF(L12="","",T12*(1-L12/100)) ->  | X12: =IF(L12="","",HA12) ->  | Y12: =IF(L12="","",S12-V12) ->  | Z12: =IF(L12="","",L12) ->  | AA12: =IF(L12="","",T12-W12) ->  | AB12: =IF(L12="","",L12) ->  | AC12: =IF(L12="","",FF119) ->  | AD12: =IF(L12="","",SUM(AA$12:AA12)) ->  | AE12: =IF(O12>105,"",T12) -> 212.6 | AF12: =IF(OR($D$2="あり",$D$3="あり"),入力方法別計算!AX2,'inv2.計算シート'!AY2) -> 16.7 | AG12: =+IF(V12="","",W12/O12) ->  | AH12: =+IF(OR(O12>105,L12=""),"",T12/O12) ->  | AI12: =+IF(O12>105,"",AE12/O12) -> 10.6 | AJ12: =+$AD$2+$AD$3*$H$3+$AD$4*R12+$AD$5*AK12+$AD$6*AL12 -> 0.53 | AK12: =+(R12/100/2)^2*PI()*S12 -> 28.4 | AL12: =+AK12*H$3 -> 540.1 | AM12: =+(-0.0035*R12^2+0.295*R12+0.3661)*AN12 -> 2.5 | AN12: =+IFERROR(VLOOKUP(GT12,$GV$13:$GY$62,4,FALSE),1) -> 0.6800760607 | AO12: =+AM12-AM$12 -> 0.00 | AP12: =+IF((IF('1.収穫を予測する'!C$4="入力方法2",出力前1!AM$4,出力前1!AL$4)*AN12+出力前1!AO12)<0,0.001,IF('1.収穫を予測する'!C$4="入力方法2",出力前1!AM$4,出力前1!AL$4)*AN12+出力前1!AO12) -> 4.36 | AQ12: =+NORMDIST(AQ$11,$R12,$AP12,TRUE) -> 0.01 | AR12: =+NORMDIST(AR$11,$R12,$AP12,TRUE) -> 0.02 | AS12: 0.05 | AT12: 0.12 | AU12: 0.24 | AV12: 0.40 | AW12: 0.58 | AX12: 0.74 | AY12: 0.87 | AZ12: 0.94 | BA12: 0.98 | BB12: 0.99 | BC12: 1.00 | BD12: 1.00 | BE12: 1.00 | BF12: 1.00 | BG12: 1.00 | BH12: 1.00 | BI12: 1.00 | BJ12: 1.00 | BK12: 1.00 | BL12: 1.00 | BM12: 1.00 | BN12: 1.00 | BO12: 1.00 | BP12: 1.00 | BQ12: 1.00 | BR12: 1.00 | BS12: 1.00 | BT12: 1.00 | BU12: 1.00 | BV12: 1.00 | BW12: 1.00 | BX12: 1.00 | BY12: 1.00 | CA12: =1-SUM(CB12:DI12) -> 0.01 | CB12: =+AR12-AQ12 -> 0.01 | CC12: 0.03 | CD12: 0.07 | CE12: 0.12 | CF12: 0.16 | CG12: 0.18 | CH12: 0.17 | CI12: 0.12 | CJ12: 0.07 | CK12: 0.04 | CL12: 0.01 | CM12: 0.00 | CN12: 0.00 | CO12: 0.00 | CP12: 0.00 | CQ12: 0.00 | CR12: 0.00 | CS12: 0.00 | CT12: 0.00 | CU12: 0.00 | CV12: 0.00 | CW12: 0.00 | CX12: 0.00 | CY12: 0.00 | CZ12: 0.00 | DA12: 0.00 | DB12: 0.00 | DC12: 0.00 | DD12: 0.00 | DE12: 0.00 | DF12: 0.00 | DG12: 0.00 | DH12: 0.00 | DI12: 0.00 | DJ12: =SUM(CA12:DH12) -> 1.00 | DK12: =+O12 -> 20 | DL12: =+S12 -> 2100 | DM12: =+S12 -> 2100 | DN12: =$S12*CA12 -> 11 | DO12: 27 | DP12: 69 | DQ12: 144 | DR12: 245 | DS12: 339 | DT12: 381 | DU12: 348 | DV12: 259 | DW12: 156 | DX12: 77 | DY12: 31 | DZ12: 10 | EA12: 3 | EB12: 1 | EC12: 0 | ED12: 0 | EE12: 0 | EF12: 0 | EG12: 0 | EH12: 0 | EI12: 0 | EJ12: 0 | EK12: 0 | EL12: 0 | EM12: 0 | EN12: 0 | EO12: 0 | EP12: 0 | EQ12: 0 | ER12: 0 | ES12: 0 | ET12: 0 | EU12: 0 | EV12: 0 | EW12: =ROUNDUP(SUM(DN12:EU12),1) -> 2100 | EX12: =+VLOOKUP(DK12,$FB$12:$FD$116,3,FALSE) -> 0.01 | EY12: =+EW12*EX12 -> 18.04 | EZ12: =+EY12/$EZ$11 -> 9.02 | FA12: =+(EW12-EW13)/EW12 -> 0.01 | FB12: =+'inv2.計算シート'!E2 -> 1 | FC12: =+'inv2.計算シート'!K2 -> 2499 | FD12: =+(FC12-FC13)/FC12 -> 0.00 | FE12: =+R12 -> 13.1 | FF12: =SUM(FH12:GP12)/EW12 -> 13.1 | FH12: =+DN12*FH$10 -> 11 | FI12: 81 | FJ12: 345 | FK12: 1010 | FL12: 2207 | FM12: 3728 | FN12: 4950 | FO12: 5220 | FP12: 4396 | FQ12: 2969 | FR12: 1613 | FS12: 706 | FT12: 249 | FU12: 71 | FV12: 16 | FW12: 3 | FX12: 0 | FY12: 0 | FZ12: 0 | GA12: 0 | GB12: 0 | GC12: 0 | GD12: 0 | GE12: 0 | GF12: 0 | GG12: 0 | GH12: 0 | GI12: 0 | GJ12: 0 | GK12: 0 | GL12: 0 | GM12: 0 | GN12: 0 | GO12: 0 | GP12: 0 | GQ12: =+MIN(FG12:GO12) -> 0 | GR12: =+MAX(FG12:GO12) -> 5219.505744 | GS12: =+GR12-GQ12 -> 5219.505744 | GT12: =+'inv3.直径階分布'!LP7 -> 16 | GZ12: =($HA$2+$HA$3*(T12/(S12^(1+$HA$5)))^($HA$4))^(-1) -> 0.4888444962 | HA12: =($HA$2+$HA$3*(W12/(V12^(1+$HA$5)))^($HA$4))^(-1) -> 
A13: =+(AVERAGE(G13:H13)-$AM$3)^2*I13 -> 70.6780609 | B13: =+I13*AVERAGE(G13:H13) -> 6 | C13: 2 | D13: ='1.収穫を予測する'!C14 -> 18.8 | E13: ='1.収穫を予測する'!D14 -> 14.6 | G13: =H12 -> 2 | H13: 4 | I13: =+'1.収穫を予測する'!H14 -> 2 | K13: =IF(OR($D$2="あり",$D$3="あり"),入力方法別計算!W3,'inv2.計算シート'!E3) -> 21 | L13: =IF('1.収穫を予測する'!K8="","",'1.収穫を予測する'!K8) ->  | N13: =IF(K13>105,"",IF(OR($D$2="あり",$D$3="あり"),IF(入力方法別計算!AQ3=0,"",入力方法別計算!AQ3),IF('inv2.計算シート'!BV3=0,"",'inv2.計算シート'!BV3))) ->  | O13: =K13 -> 21 | P13: =IF(OR(ISERROR(Q13),K13>105),"",IF(OR($D$2="あり",$D$3="あり"),入力方法別計算!X3,'inv2.計算シート'!AC3)) -> 13.1 | Q13: =+IF(O13>105,"",T13/S13) -> 0.110 | R13: =+IF(O13>105,"",出力前1!R12+出力前!AI12) -> 13.6 | S13: =IF(K13>105,"",IF(OR($D$2="あり",$D$3="あり"),入力方法別計算!Y3,'inv2.計算シート'!AE3)) -> 2082 | T13: =IF(K13>105,"",IF(OR($D$2="あり",$D$3="あり"),入力方法別計算!Z3,'inv2.計算シート'!AD3)) -> 229.3 | U13: 0.511 | V13: =IF(L13="","",IF(OR($D$2="あり",$D$3="あり"),入力方法別計算!AD3,'inv2.計算シート'!AK3)) ->  | W13: =IF(L13="","",IF(OR($D$2="あり",$D$3="あり"),入力方法別計算!AE3,'inv2.計算シート'!AJ3)) ->  | X13: =IF(L13="","",IF(OR($D$2="あり",$D$3="あり"),入力方法別計算!AL3,'inv2.計算シート'!AN3)) ->  | Y13: =IF(L13="","",IF(OR($D$2="あり",$D$3="あり"),入力方法別計算!AF3,'inv2.計算シート'!AM3)) ->  | Z13: =IF(L13="","",IF(OR($D$2="あり",$D$3="あり"),入力方法別計算!AA3/0.01,'inv2.計算シート'!AF3/0.01)) ->  | AA13: =IF(L13="","",IF(OR($D$2="あり",$D$3="あり"),入力方法別計算!AG3,'inv2.計算シート'!AL3)) ->  | AB13: =IF(L13="","",IF(OR($D$2="あり",$D$3="あり"),入力方法別計算!AG3/入力方法別計算!Z3*100,'inv2.計算シート'!AL3/'inv2.計算シート'!AD3*100)) ->  | AD13: =IF(L13="","",SUM(AA$12:AA13)) ->  | AE13: =+IF(O13>105,"",T13+SUM(AA$12:AA12)) -> 229.3 | AF13: =IF(OR($D$2="あり",$D$3="あり"),入力方法別計算!AX3,'inv2.計算シート'!AY3) -> 16.6 | AG13: =+IF(V13="","",W13/O13) ->  | AH13: =+IF(OR(O13>105,L13=""),"",T13/O13) ->  | AI13: =+IF(O13>105,"",AE13/O13) -> 10.9 | AJ13: 0.51 | AK13: 30.1 | AL13: 571.5 | AM13: =+(-0.0035*R13^2+0.295*R13+0.3661)*AN13 -> 2.5 | AN13: =+IFERROR(VLOOKUP(GT13,$GV$13:$GY$62,4,FALSE),1) -> 0.6800760607 | AO13: =+AM13-AM$12 -> 0.06 | AP13: =+IF((IF('1.収穫を予測する'!C$4="入力方法2",出力前1!AM$4,出力前1!AL$4)*AN13+出力前1!AO13)<0,0.001,IF('1.収穫を予測する'!C$4="入力方法2",出力前1!AM$4,出力前1!AL$4)*AN13+出力前1!AO13) -> 4.42 | AQ13: =+NORMDIST(AQ$11,$R13,$AP13,TRUE) -> 0.00 | AR13: 0.02 | AS13: 0.04 | AT13: 0.10 | AU13: 0.21 | AV13: 0.36 | AW13: 0.54 | AX13: 0.71 | AY13: 0.84 | AZ13: 0.93 | BA13: 0.97 | BB13: 0.99 | BC13: 1.00 | BD13: 1.00 | BE13: 1.00 | BF13: 1.00 | BG13: 1.00 | BH13: 1.00 | BI13: 1.00 | BJ13: 1.00 | BK13: 1.00 | BL13: 1.00 | BM13: 1.00 | BN13: 1.00 | BO13: 1.00 | BP13: 1.00 | BQ13: 1.00 | BR13: 1.00 | BS13: 1.00 | BT13: 1.00 | BU13: 1.00 | BV13: 1.00 | BW13: 1.00 | BX13: 1.00 | BY13: 1.00 | CA13: =1-SUM(CB13:DI13) -> 0.00 | CB13: =+AR13-AQ13 -> 0.01 | CC13: =+AS13-AR13 -> 0.03 | CD13: =+AT13-AS13 -> 0.06 | CE13: =+AU13-AT13 -> 0.11 | CF13: =+AV13-AU13 -> 0.15 | CG13: =+AW13-AV13 -> 0.18 | CH13: =+AX13-AW13 -> 0.17 | CI13: =+AY13-AX13 -> 0.13 | CJ13: =+AZ13-AY13 -> 0.09 | CK13: =+BA13-AZ13 -> 0.04 | CL13: =+BB13-BA13 -> 0.02 | CM13: =+BC13-BB13 -> 0.01 | CN13: =+BD13-BC13 -> 0.00 | CO13: =+BE13-BD13 -> 0.00 | CP13: =+BF13-BE13 -> 0.00 | CQ13: =+BG13-BF13 -> 0.00 | CR13: =+BH13-BG13 -> 0.00 | CS13: =+BI13-BH13 -> 0.00 | CT13: =+BJ13-BI13 -> 0.00 | CU13: =+BK13-BJ13 -> 0.00 | CV13: =+BL13-BK13 -> 0.00 | CW13: =+BM13-BL13 -> 0.00 | CX13: =+BN13-BM13 -> 0.00 | CY13: =+BO13-BN13 -> 0.00 | CZ13: =+BP13-BO13 -> 0.00 | DA13: =+BQ13-BP13 -> 0.00 | DB13: =+BR13-BQ13 -> 0.00 | DC13: =+BS13-BR13 -> 0.00 | DD13: =+BT13-BS13 -> 0.00 | DE13: =+BU13-BT13 -> 0.00 | DF13: =+BV13-BU13 -> 0.00 | DG13: =+BW13-BV13 -> 0.00 | DH13: =+BX13-BW13 -> 0.00 | DI13: =+BY13-BX13 -> 0.00 | DJ13: =SUM(CA13:DH13) -> 1.00 | DK13: =+O13 -> 21 | DL13: =+DM12*(1-EX12) -> 2082 | DM13: =+DM12*(1-EX12)*IF(L13="",1,(100-L13)/100) -> 2082 | DN13: =IF($DK13>100,"",$DM13*CA13) -> 9 | DO13: =IF($DK13>100,"",$DM13*CB13) -> 22 | DP13: =IF($DK13>100,"",$DM13*CC13) -> 59 | DQ13: =IF($DK13>100,"",$DM13*CD13) -> 126 | DR13: =IF($DK13>100,"",$DM13*CE13) -> 221 | DS13: =IF($DK13>100,"",$DM13*CF13) -> 316 | DT13: =IF($DK13>100,"",$DM13*CG13) -> 370 | DU13: =IF($DK13>100,"",$DM13*CH13) -> 354 | DV13: =IF($DK13>100,"",$DM13*CI13) -> 277 | DW13: =IF($DK13>100,"",$DM13*CJ13) -> 177 | DX13: =IF($DK13>100,"",$DM13*CK13) -> 93 | DY13: =IF($DK13>100,"",$DM13*CL13) -> 40 | DZ13: =IF($DK13>100,"",$DM13*CM13) -> 14 | EA13: =IF($DK13>100,"",$DM13*CN13) -> 4 | EB13: =IF($DK13>100,"",$DM13*CO13) -> 1 | EC13: =IF($DK13>100,"",$DM13*CP13) -> 0 | ED13: =IF($DK13>100,"",$DM13*CQ13) -> 0 | EE13: =IF($DK13>100,"",$DM13*CR13) -> 0 | EF13: =IF($DK13>100,"",$DM13*CS13) -> 0 | EG13: =IF($DK13>100,"",$DM13*CT13) -> 0 | EH13: =IF($DK13>100,"",$DM13*CU13) -> 0 | EI13: =IF($DK13>100,"",$DM13*CV13) -> 0 | EJ13: =IF($DK13>100,"",$DM13*CW13) -> 0 | EK13: =IF($DK13>100,"",$DM13*CX13) -> 0 | EL13: =IF($DK13>100,"",$DM13*CY13) -> 0 | EM13: =IF($DK13>100,"",$DM13*CZ13) -> 0 | EN13: =IF($DK13>100,"",$DM13*DA13) -> 0 | EO13: =IF($DK13>100,"",$DM13*DB13) -> 0 | EP13: =IF($DK13>100,"",$DM13*DC13) -> 0 | EQ13: =IF($DK13>100,"",$DM13*DD13) -> 0 | ER13: =IF($DK13>100,"",$DM13*DE13) -> 0 | ES13: =IF($DK13>100,"",$DM13*DF13) -> 0 | ET13: =IF($DK13>100,"",$DM13*DG13) -> 0 | EU13: =IF($DK13>100,"",$DM13*DH13) -> 0 | EV13: =IF($DK13>100,"",$DM13*DI13) -> 0 | EW13: =SUM(DN13:EU13) -> 2082 | EX13: 0.01 | EY13: =+EW12*EX13 -> 18.04 | EZ13: 9.02 | FA13: =+(EW13-EW14)/EW13 -> 0.01 | FB13: =+'inv2.計算シート'!E3 -> 2 | FC13: =+'inv2.計算シート'!K3 -> 2497 | FD13: =+(FC13-FC14)/FC13 -> 0.00 | FE13: 13.6 | FF13: =SUM(FH13:GP13)/EW13 -> 13.6 | FH13: =+DN13*FH$10 -> 9.257719796 | FI13: =+DO13*FI$10 -> 67.45911495 | FJ13: =+DP13*FJ$10 -> 294.4447657 | FK13: =+DQ13*FK$10 -> 882.6013902 | FL13: =+DR13*FL$10 -> 1986.472519 | FM13: =+DS13*FM$10 -> 3475.072388 | FN13: =+DT13*FN$10 -> 4806.337336 | FO13: =+DU13*FO$10 -> 5306.832043 | FP13: =+DV13*FP$10 -> 4705.852296 | FQ13: =+DW13*FQ$10 -> 3364.750041 | FR13: =+DX13*FR$10 -> 1945.267334 | FS13: =+DY13*FS$10 -> 911.1297213 | FT13: =+DZ13*FT$10 -> 346.2514203 | FU13: =+EA13*FU$10 -> 106.8787943 | FV13: =+EB13*FV$10 -> 26.81914138 | FW13: =+EC13*FW$10 -> 5.47434885 | FX13: =+ED13*FX$10 -> 0.9094359684 | FY13: =+EE13*FY$10 -> 0.1230079575 | FZ13: =+EF13*FZ$10 -> 0.01355025473 | GA13: =+EG13*GA$10 -> 0.001215953897 | GB13: =+EH13*GB$10 -> 8.89039508e-05 | GC13: =+EI13*GC$10 -> 5.296871564e-06 | GD13: =+EJ13*GD$10 -> 2.571864075e-07 | GE13: =+EK13*GE$10 -> 1.017932738e-08 | GF13: =+EL13*GF$10 -> 3.284548743e-10 | GG13: =+EM13*GG$10 -> 0 | GH13: =+EN13*GH$10 -> 0 | GI13: =+EO13*GI$10 -> 0 | GJ13: =+EP13*GJ$10 -> 0 | GK13: =+EQ13*GK$10 -> 0 | GL13: =+ER13*GL$10 -> 0 | GM13: =+ES13*GM$10 -> 0 | GN13: =+ET13*GN$10 -> 0 | GO13: =+EU13*GO$10 -> 0 | GP13: 0 | GQ13: =+MIN(FG13:GO13) -> 0 | GR13: =+MAX(FG13:GO13) -> 5306.832043 | GS13: =+GR13-GQ13 -> 5306.832043 | GT13: =+'inv3.直径階分布'!LP8 -> 16 | GV13: 1 | GW13: =0.1619*GV13+0.1635 -> 0.3254 | GX13: =0.2475*GV13+0.0894 -> 0.3369 | GY13: =+GW13/GX13 -> 0.97 | GZ13: 0.510771072
A14: 637.9753472 | B14: 205 | C14: 3 | D14: ='1.収穫を予測する'!C15 -> 18.5 | E14: ='1.収穫を予測する'!D15 -> 14 | G14: =H13 -> 4 | H14: 6 | I14: =+'1.収穫を予測する'!H15 -> 41 | K14: =IF(OR($D$2="あり",$D$3="あり"),入力方法別計算!W4,'inv2.計算シート'!E4) -> 22 | L14: =IF('1.収穫を予測する'!K9="","",'1.収穫を予測する'!K9) ->  | N14: =IF(K14>105,"",IF(OR($D$2="あり",$D$3="あり"),IF(入力方法別計算!AQ4=0,"",入力方法別計算!AQ4),IF('inv2.計算シート'!BV4=0,"",'inv2.計算シート'!BV4))) ->  | O14: 22 | P14: =IF(OR(ISERROR(Q14),K14>105),"",IF(OR($D$2="あり",$D$3="あり"),入力方法別計算!X4,'inv2.計算シート'!AC4)) -> 13.5 | Q14: 0.119 | R14: =+IF(O14>105,"",出力前1!R13+出力前!AI13) -> 14.0 | S14: =IF(K14>105,"",IF(OR($D$2="あり",$D$3="あり"),入力方法別計算!Y4,'inv2.計算シート'!AE4)) -> 2064 | T14: =IF(K14>105,"",IF(OR($D$2="あり",$D$3="あり"),入力方法別計算!Z4,'inv2.計算シート'!AD4)) -> 245.9 | U14: 0.531 | V14: =IF(L14="","",IF(OR($D$2="あり",$D$3="あり"),入力方法別計算!AD4,'inv2.計算シート'!AK4)) ->  | W14: =IF(L14="","",IF(OR($D$2="あり",$D$3="あり"),入力方法別計算!AE4,'inv2.計算シート'!AJ4)) ->  | X14: =IF(L14="","",IF(OR($D$2="あり",$D$3="あり"),入力方法別計算!AL4,'inv2.計算シート'!AN4)) ->  | Y14: =IF(L14="","",IF(OR($D$2="あり",$D$3="あり"),入力方法別計算!AF4,'inv2.計算シート'!AM4)) ->  | Z14: =IF(L14="","",IF(OR($D$2="あり",$D$3="あり"),入力方法別計算!AA4/0.01,'inv2.計算シート'!AF4/0.01)) ->  | AA14: =IF(L14="","",IF(OR($D$2="あり",$D$3="あり"),入力方法別計算!AG4,'inv2.計算シート'!AL4)) ->  | AB14: =IF(L14="","",IF(OR($D$2="あり",$D$3="あり"),入力方法別計算!AG4/入力方法別計算!Z4*100,'inv2.計算シート'!AL4/'inv2.計算シート'!AD4*100)) ->  | AD14: =IF(L14="","",SUM(AA$12:AA14)) ->  | AE14: =+IF(O14>105,"",T14+SUM(AA$12:AA13)) -> 245.9 | AF14: =IF(OR($D$2="あり",$D$3="あり"),入力方法別計算!AX4,'inv2.計算シート'!AY4) -> 16.5 | AI14: 11.2 | AJ14: 0.50 | AK14: 31.7 | AL14: 602.4 | AM14: 2.6 | AN14: 0.6800760607 | AO14: 0.12 | AP14: =+IF((IF('1.収穫を予測する'!C$4="入力方法2",出力前1!AM$4,出力前1!AL$4)*AN14+出力前1!AO14)<0,0.001,IF('1.収穫を予測する'!C$4="入力方法2",出力前1!AM$4,出力前1!AL$4)*AN14+出力前1!AO14) -> 4.48 | AQ14: 0.00 | AR14: 0.01 | AS14: 0.04 | AT14: 0.09 | AU14: 0.19 | AV14: 0.33 | AW14: 0.50 | AX14: 0.67 | AY14: 0.82 | AZ14: 0.91 | BA14: 0.96 | BB14: 0.99 | BC14: 1.00 | BD14: 1.00 | BE14: 1.00 | BF14: 1.00 | BG14: 1.00 | BH14: 1.00 | BI14: 1.00 | BJ14: 1.00 | BK14: 1.00 | BL14: 1.00 | BM14: 1.00 | BN14: 1.00 | BO14: 1.00 | BP14: 1.00 | BQ14: 1.00 | BR14: 1.00 | BS14: 1.00 | BT14: 1.00 | BU14: 1.00 | BV14: 1.00 | BW14: 1.00 | BX14: 1.00 | BY14: 1.00 | CA14: 0.00 | CB14: 0.01 | CC14: 0.02 | CD14: 0.05 | CE14: 0.10 | CF14: 0.14 | CG14: 0.17 | CH14: 0.17 | CI14: 0.14 | CJ14: 0.10 | CK14: 0.05 | CL14: 0.02 | CM14: 0.01 | CN14: 0.00 | CO14: 0.00 | CP14: 0.00 | CQ14: 0.00 | CR14: 0.00 | CS14: 0.00 | CT14: 0.00 | CU14: 0.00 | CV14: 0.00 | CW14: 0.00 | CX14: 0.00 | CY14: 0.00 | CZ14: 0.00 | DA14: 0.00 | DB14: 0.00 | DC14: 0.00 | DD14: 0.00 | DE14: 0.00 | DF14: 0.00 | DG14: 0.00 | DH14: 0.00 | DI14: 0.00 | DJ14: 1.00 | DK14: 22 | DL14: =+DM13*(1-EX13) -> 2064 | DM14: 2064 | DN14: 8 | DO14: 19 | DP14: 50 | DQ14: 110 | DR14: 198 | DS14: 293 | DT14: 356 | DU14: 356 | DV14: 292 | DW14: 197 | DX14: 109 | DY14: 50 | DZ14: 19 | EA14: 6 | EB14: 1 | EC14: 0 | ED14: 0 | EE14: 0 | EF14: 0 | EG14: 0 | EH14: 0 | EI14: 0 | EJ14: 0 | EK14: 0 | EL14: 0 | EM14: 0 | EN14: 0 | EO14: 0 | EP14: 0 | EQ14: 0 | ER14: 0 | ES14: 0 | ET14: 0 | EU14: 0 | EV14: 0 | EW14: 2064 | EX14: 0.01 | EY14: =+EW13*EX14 -> 17.85 | EZ14: 8.92 | FA14: 0.01 | FB14: =+'inv2.計算シート'!E4 -> 3 | FC14: =+'inv2.計算シート'!K4 -> 2492 | FD14: 0.00 | FE14: 14.0 | FF14: 14.0 | FH14: 7.663762426 | FI14: 56.65181718 | FJ14: 251.635802 | FK14: 771.4449745 | FL14: 1784.719325 | FM14: 3225.32128 | FN14: 4631.481884 | FO14: 5335.967788 | FP14: 4962.095786 | FQ14: 3739.447298 | FR14: 2290.038954 | FS14: 1141.923195 | FT14: 464.3322366 | FU14: 154.1347578 | FV14: 41.80428453 | FW14: 9.269888793 | FX14: 1.681449275 | FY14: 0.2495870987 | FZ14: 0.03032672713 | GA14: 0.003017173619 | GB14: 0.0002458267757 | GC14: 1.640500086e-05 | GD14: 8.967937562e-07 | GE14: 4.016296827e-08 | GF14: 1.470967023e-09 | GG14: 0 | GH14: 0 | GI14: 0 | GJ14: 0 | GK14: 0 | GL14: 0 | GM14: 0 | GN14: 0 | GO14: 0 | GP14: 0 | GQ14: 0 | GR14: 5335.967788 | GS14: 5335.967788 | GT14: =+'inv3.直径階分布'!LP9 -> 16 | GV14: 2 | GW14: 0.4873 | GX14: 0.5844 | GY14: 0.83 | GZ14: 0.5313566937
A15: 223.1213736 | B15: 413 | C15: 4 | D15: ='1.収穫を予測する'!C16 -> 18.3 | E15: ='1.収穫を予測する'!D16 -> 14.6 | G15: 6 | H15: 8 | I15: =+'1.収穫を予測する'!H16 -> 59 | K15: =IF(OR($D$2="あり",$D$3="あり"),入力方法別計算!W5,'inv2.計算シート'!E5) -> 23 | L15: =IF('1.収穫を予測する'!K10="","",'1.収穫を予測する'!K10) ->  | N15: =IF(K15>105,"",IF(OR($D$2="あり",$D$3="あり"),IF(入力方法別計算!AQ5=0,"",入力方法別計算!AQ5),IF('inv2.計算シート'!BV5=0,"",'inv2.計算シート'!BV5))) ->  | O15: 23 | P15: =IF(OR(ISERROR(Q15),K15>105),"",IF(OR($D$2="あり",$D$3="あり"),入力方法別計算!X5,'inv2.計算シート'!AC5)) -> 13.8 | Q15: 0.128 | R15: =+IF(O15>105,"",出力前1!R14+出力前!AI14) -> 14.4 | S15: =IF(K15>105,"",IF(OR($D$2="あり",$D$3="あり"),入力方法別計算!Y5,'inv2.計算シート'!AE5)) -> 2046 | T15: =IF(K15>105,"",IF(OR($D$2="あり",$D$3="あり"),入力方法別計算!Z5,'inv2.計算シート'!AD5)) -> 262.4 | U15: 0.551 | V15: =IF(L15="","",IF(OR($D$2="あり",$D$3="あり"),入力方法別計算!AD5,'inv2.計算シート'!AK5)) ->  | W15: =IF(L15="","",IF(OR($D$2="あり",$D$3="あり"),入力方法別計算!AE5,'inv2.計算シート'!AJ5)) ->  | X15: =IF(L15="","",IF(OR($D$2="あり",$D$3="あり"),入力方法別計算!AL5,'inv2.計算シート'!AN5)) ->  | Y15: =IF(L15="","",IF(OR($D$2="あり",$D$3="あり"),入力方法別計算!AF5,'inv2.計算シート'!AM5)) ->  | Z15: =IF(L15="","",IF(OR($D$2="あり",$D$3="あり"),入力方法別計算!AA5/0.01,'inv2.計算シート'!AF5/0.01)) ->  | AA15: =IF(L15="","",IF(OR($D$2="あり",$D$3="あり"),入力方法別計算!AG5,'inv2.計算シート'!AL5)) ->  | AB15: =IF(L15="","",IF(OR($D$2="あり",$D$3="あり"),入力方法別計算!AG5/入力方法別計算!Z5*100,'inv2.計算シート'!AL5/'inv2.計算シート'!AD5*100)) ->  | AD15: =IF(L15="","",SUM(AA$12:AA15)) ->  | AE15: =+IF(O15>105,"",T15+SUM(AA$12:AA14)) -> 262.4 | AF15: =IF(OR($D$2="あり",$D$3="あり"),入力方法別計算!AX5,'inv2.計算シート'!AY5) -> 16.3 | AI15: 11.4 | AJ15: 0.49 | AK15: 33.3 | AL15: 632.7 | AM15: 2.6 | AN15: 0.6772511223 | AO15: 0.16 | AP15: =+IF((IF('1.収穫を予測する'!C$4="入力方法2",出力前1!AM$4,出力前1!AL$4)*AN15+出力前1!AO15)<0,0.001,IF('1.収穫を予測する'!C$4="入力方法2",出力前1!AM$4,出力前1!AL$4)*AN15+出力前1!AO15) -> 4.50 | AQ15: 0.00 | AR15: 0.01 | AS15: 0.03 | AT15: 0.08 | AU15: 0.16 | AV15: 0.30 | AW15: 0.47 | AX15: 0.64 | AY15: 0.79 | AZ15: 0.89 | BA15: 0.95 | BB15: 0.98 | BC15: 1.00 | BD15: 1.00 | BE15: 1.00 | BF15: 1.00 | BG15: 1.00 | BH15: 1.00 | BI15: 1.00 | BJ15: 1.00 | BK15: 1.00 | BL15: 1.00 | BM15: 1.00 | BN15: 1.00 | BO15: 1.00 | BP15: 1.00 | BQ15: 1.00 | BR15: 1.00 | BS15: 1.00 | BT15: 1.00 | BU15: 1.00 | BV15: 1.00 | BW15: 1.00 | BX15: 1.00 | BY15: 1.00 | CA15: 0.00 | CB15: 0.01 | CC15: 0.02 | CD15: 0.05 | CE15: 0.09 | CF15: 0.13 | CG15: 0.17 | CH15: 0.17 | CI15: 0.15 | CJ15: 0.11 | CK15: 0.06 | CL15: 0.03 | CM15: 0.01 | CN15: 0.00 | CO15: 0.00 | CP15: 0.00 | CQ15: 0.00 | CR15: 0.00 | CS15: 0.00 | CT15: 0.00 | CU15: 0.00 | CV15: 0.00 | CW15: 0.00 | CX15: 0.00 | CY15: 0.00 | CZ15: 0.00 | DA15: 0.00 | DB15: 0.00 | DC15: 0.00 | DD15: 0.00 | DE15: 0.00 | DF15: 0.00 | DG15: 0.00 | DH15: 0.00 | DI15: 0.00 | DJ15: 1.00 | DK15: 23 | DL15: 2046 | DM15: 2046 | DN15: 6 | DO15: 15 | DP15: 42 | DQ15: 95 | DR15: 178 | DS15: 272 | DT15: 343 | DU15: 357 | DV15: 305 | DW15: 215 | DX15: 125 | DY15: 60 | DZ15: 23 | EA15: 8 | EB15: 2 | EC15: 0 | ED15: 0 | EE15: 0 | EF15: 0 | EG15: 0 | EH15: 0 | EI15: 0 | EJ15: 0 | EK15: 0 | EL15: 0 | EM15: 0 | EN15: 0 | EO15: 0 | EP15: 0 | EQ15: 0 | ER15: 0 | ES15: 0 | ET15: 0 | EU15: 0 | EV15: 0 | EW15: 2046 | EX15: 0.01 | EY15: 17.64 | EZ15: 8.82 | FA15: 0.01 | FB15: =+'inv2.計算シート'!E5 -> 4 | FC15: =+'inv2.計算シート'!K5 -> 2485 | FD15: 0.00 | FE15: 14.4 | FF15: 14.4 | FH15: 6.042755424 | FI15: 46.20581115 | FJ15: 211.2590277 | FK15: 668.1113062 | FL15: 1597.922706 | FM15: 2991.86538 | FN15: 4460.813676 | FO15: 5347.798407 | FP15: 5186.070967 | FQ15: 4084.485151 | FR15: 2619.847598 | FS15: 1371.265971 | FT15: 586.5642007 | FU15: 205.2775537 | FV15: 58.82611019 | FW15: 13.81302164 | FX15: 2.659017601 | FY15: 0.4198008575 | FZ15: 0.05437420418 | GA15: 0.005779338824 | GB15: 0.0005041776701 | GC15: 3.610562583e-05 | GD15: 2.12277143e-06 | GE15: 1.0246712e-07 | GF15: 4.063360713e-09 | GG15: 0 | GH15: 0 | GI15: 0 | GJ15: 0 | GK15: 0 | GL15: 0 | GM15: 0 | GN15: 0 | GO15: 0 | GP15: 0 | GQ15: 0 | GR15: 5347.798407 | GS15: 5347.798407 | GT15: =+'inv3.直径階分布'!LP10 -> 18 | GV15: 3 | GW15: 0.6492 | GX15: 0.8319 | GY15: 0.78 | GZ15: 0.5506947768
A16: 0.1959724414 | B16: 576 | C16: 5 | D16: ='1.収穫を予測する'!C17 -> 18.1 | E16: ='1.収穫を予測する'!D17 -> 14.5 | G16: 8 | H16: 10 | I16: =+'1.収穫を予測する'!H17 -> 64 | K16: =IF(OR($D$2="あり",$D$3="あり"),入力方法別計算!W6,'inv2.計算シート'!E6) -> 24 | L16: =IF('1.収穫を予測する'!K11="","",'1.収穫を予測する'!K11) ->  | N16: =IF(K16>105,"",IF(OR($D$2="あり",$D$3="あり"),IF(入力方法別計算!AQ6=0,"",入力方法別計算!AQ6),IF('inv2.計算シート'!BV6=0,"",'inv2.計算シート'!BV6))) ->  | O16: 24 | P16: =IF(OR(ISERROR(Q16),K16>105),"",IF(OR($D$2="あり",$D$3="あり"),入力方法別計算!X6,'inv2.計算シート'!AC6)) -> 14.2 | Q16: 0.137 | R16: =+IF(O16>105,"",出力前1!R15+出力前!AI15) -> 14.8 | S16: =IF(K16>105,"",IF(OR($D$2="あり",$D$3="あり"),入力方法別計算!Y6,'inv2.計算シート'!AE6)) -> 2029 | T16: =IF(K16>105,"",IF(OR($D$2="あり",$D$3="あり"),入力方法別計算!Z6,'inv2.計算シート'!AD6)) -> 278.7 | U16: 0.569 | V16: =IF(L16="","",IF(OR($D$2="あり",$D$3="あり"),入力方法別計算!AD6,'inv2.計算シート'!AK6)) ->  | W16: =IF(L16="","",IF(OR($D$2="あり",$D$3="あり"),入力方法別計算!AE6,'inv2.計算シート'!AJ6)) ->  | X16: =IF(L16="","",IF(OR($D$2="あり",$D$3="あり"),入力方法別計算!AL6,'inv2.計算シート'!AN6)) ->  | Y16: =IF(L16="","",IF(OR($D$2="あり",$D$3="あり"),入力方法別計算!AF6,'inv2.計算シート'!AM6)) ->  | Z16: =IF(L16="","",IF(OR($D$2="あり",$D$3="あり"),入力方法別計算!AA6/0.01,'inv2.計算シート'!AF6/0.01)) ->  | AA16: =IF(L16="","",IF(OR($D$2="あり",$D$3="あり"),入力方法別計算!AG6,'inv2.計算シート'!AL6)) ->  | AB16: =IF(L16="","",IF(OR($D$2="あり",$D$3="あり"),入力方法別計算!AG6/入力方法別計算!Z6*100,'inv2.計算シート'!AL6/'inv2.計算シート'!AD6*100)) ->  | AD16: =IF(L16="","",SUM(AA$12:AA16)) ->  | AE16: =+IF(O16>105,"",T16+SUM(AA$12:AA15)) -> 278.7 | AF16: =IF(OR($D$2="あり",$D$3="あり"),入力方法別計算!AX6,'inv2.計算シート'!AY6) -> 16.1 | AI16: 11.6 | AJ16: 0.48 | AK16: 34.9 | AL16: 662.4 | AM16: 2.7 | AN16: 0.6772511223 | AO16: 0.21 | AP16: =+IF((IF('1.収穫を予測する'!C$4="入力方法2",出力前1!AM$4,出力前1!AL$4)*AN16+出力前1!AO16)<0,0.001,IF('1.収穫を予測する'!C$4="入力方法2",出力前1!AM$4,出力前1!AL$4)*AN16+出力前1!AO16) -> 4.55 | AQ16: 0.00 | AR16: 0.01 | AS16: 0.03 | AT16: 0.07 | AU16: 0.15 | AV16: 0.27 | AW16: 0.43 | AX16: 0.60 | AY16: 0.76 | AZ16: 0.87 | BA16: 0.94 | BB16: 0.98 | BC16: 0.99 | BD16: 1.00 | BE16: 1.00 | BF16: 1.00 | BG16: 1.00 | BH16: 1.00 | BI16: 1.00 | BJ16: 1.00 | BK16: 1.00 | BL16: 1.00 | BM16: 1.00 | BN16: 1.00 | BO16: 1.00 | BP16: 1.00 | BQ16: 1.00 | BR16: 1.00 | BS16: 1.00 | BT16: 1.00 | BU16: 1.00 | BV16: 1.00 | BW16: 1.00 | BX16: 1.00 | BY16: 1.00 | CA16: 0.00 | CB16: 0.01 | CC16: 0.02 | CD16: 0.04 | CE16: 0.08 | CF16: 0.12 | CG16: 0.16 | CH16: 0.17 | CI16: 0.15 | CJ16: 0.11 | CK16: 0.07 | CL16: 0.04 | CM16: 0.01 | CN16: 0.01 | CO16: 0.00 | CP16: 0.00 | CQ16: 0.00 | CR16: 0.00 | CS16: 0.00 | CT16: 0.00 | CU16: 0.00 | CV16: 0.00 | CW16: 0.00 | CX16: 0.00 | CY16: 0.00 | CZ16: 0.00 | DA16: 0.00 | DB16: 0.00 | DC16: 0.00 | DD16: 0.00 | DE16: 0.00 | DF16: 0.00 | DG16: 0.00 | DH16: 0.00 | DI16: 0.00 | DJ16: 1.00 | DK16: 24 | DL16: 2029 | DM16: 2029 | DN16: 5 | DO16: 13 | DP16: 36 | DQ16: 84 | DR16: 159 | DS16: 251 | DT16: 327 | DU16: 352 | DV16: 314 | DW16: 232 | DX16: 141 | DY16: 71 | DZ16: 30 | EA16: 10 | EB16: 3 | EC16: 1 | ED16: 0 | EE16: 0 | EF16: 0 | EG16: 0 | EH16: 0 | EI16: 0 | EJ16: 0 | EK16: 0 | EL16: 0 | EM16: 0 | EN16: 0 | EO16: 0 | EP16: 0 | EQ16: 0 | ER16: 0 | ES16: 0 | ET16: 0 | EU16: 0 | EV16: 0 | EW16: 2029 | EX16: 0.01 | EY16: 17.42 | EZ16: 8.71 | FA16: 0.01 | FB16: =+'inv2.計算シート'!E6 -> 5 | FC16: =+'inv2.計算シート'!K6 -> 2476 | FD16: 0.00 | FE16: 14.8 | FF16: 14.8 | FH16: 5.042924414 | FI16: 39.0460349 | FJ16: 181.2638781 | FK16: 584.5781078 | FL16: 1431.951541 | FM16: 2757.871169 | FN16: 4248.013154 | FO16: 5284.057237 | FP16: 5339.903557 | FQ16: 4401.673799 | FR16: 2967.748012 | FS16: 1639.948556 | FT16: 743.8257623 | FU16: 277.2277498 | FV16: 84.97681501 | FW16: 21.43644887 | FX16: 4.452678159 | FY16: 0.761877028 | FZ16: 0.1074199303 | GA16: 0.01248339722 | GB16: 0.001195959474 | GC16: 9.447234451e-05 | GD16: 6.153912228e-06 | GE16: 3.305952865e-07 | GF16: 1.464655676e-08 | GG16: 5.399288953e-10 | GH16: 0 | GI16: 0 | GJ16: 0 | GK16: 0 | GL16: 0 | GM16: 0 | GN16: 0 | GO16: 0 | GP16: 0 | GQ16: 0 | GR16: 5339.903557 | GS16: 5339.903557 | GT16: =+'inv3.直径階分布'!LP11 -> 18 | GV16: 4 | GW16: 0.8111 | GX16: 1.0794 | GY16: 0.75 | GZ16: 0.5688744031
A17: 211.2202971 | B17: 550 | C17: 6 | D17: ='1.収穫を予測する'!C18 -> 18 | E17: ='1.収穫を予測する'!D18 -> 14 | G17: 10 | H17: 12 | I17: =+'1.収穫を予測する'!H18 -> 50 | K17: =IF(OR($D$2="あり",$D$3="あり"),入力方法別計算!W7,'inv2.計算シート'!E7) -> 25 | L17: =IF('1.収穫を予測する'!K12="","",'1.収穫を予測する'!K12) ->  | N17: =IF(K17>105,"",IF(OR($D$2="あり",$D$3="あり"),IF(入力方法別計算!AQ7=0,"",入力方法別計算!AQ7),IF('inv2.計算シート'!BV7=0,"",'inv2.計算シート'!BV7))) ->  | O17: 25 | P17: =IF(OR(ISERROR(Q17),K17>105),"",IF(OR($D$2="あり",$D$3="あり"),入力方法別計算!X7,'inv2.計算シート'!AC7)) -> 14.5 | Q17: 0.147 | R17: =+IF(O17>105,"",出力前1!R16+出力前!AI16) -> 15.2 | S17: =IF(K17>105,"",IF(OR($D$2="あり",$D$3="あり"),入力方法別計算!Y7,'inv2.計算シート'!AE7)) -> 2012 | T17: =IF(K17>105,"",IF(OR($D$2="あり",$D$3="あり"),入力方法別計算!Z7,'inv2.計算シート'!AD7)) -> 294.8 | U17: 0.586 | V17: =IF(L17="","",IF(OR($D$2="あり",$D$3="あり"),入力方法別計算!AD7,'inv2.計算シート'!AK7)) ->  | W17: =IF(L17="","",IF(OR($D$2="あり",$D$3="あり"),入力方法別計算!AE7,'inv2.計算シート'!AJ7)) ->  | X17: =IF(L17="","",IF(OR($D$2="あり",$D$3="あり"),入力方法別計算!AL7,'inv2.計算シート'!AN7)) ->  | Y17: =IF(L17="","",IF(OR($D$2="あり",$D$3="あり"),入力方法別計算!AF7,'inv2.計算シート'!AM7)) ->  | Z17: =IF(L17="","",IF(OR($D$2="あり",$D$3="あり"),入力方法別計算!AA7/0.01,'inv2.計算シート'!AF7/0.01)) ->  | AA17: =IF(L17="","",IF(OR($D$2="あり",$D$3="あり"),入力方法別計算!AG7,'inv2.計算シート'!AL7)) ->  | AB17: =IF(L17="","",IF(OR($D$2="あり",$D$3="あり"),入力方法別計算!AG7/入力方法別計算!Z7*100,'inv2.計算シート'!AL7/'inv2.計算シート'!AD7*100)) ->  | AD17: =IF(L17="","",SUM(AA$12:AA17)) ->  | AE17: =+IF(O17>105,"",T17+SUM(AA$12:AA16)) -> 294.8 | AF17: =IF(OR($D$2="あり",$D$3="あり"),入力方法別計算!AX7,'inv2.計算シート'!AY7) -> 15.9 | AI17: 11.8 | AJ17: 0.47 | AK17: 36.4 | AL17: 691.7 | AM17: 2.7 | AN17: 0.6772511223 | AO17: 0.26 | AP17: =+IF((IF('1.収穫を予測する'!C$4="入力方法2",出力前1!AM$4,出力前1!AL$4)*AN17+出力前1!AO17)<0,0.001,IF('1.収穫を予測する'!C$4="入力方法2",出力前1!AM$4,出力前1!AL$4)*AN17+出力前1!AO17) -> 4.60 | AQ17: 0.00 | AR17: 0.01 | AS17: 0.02 | AT17: 0.06 | AU17: 0.13 | AV17: 0.24 | AW17: 0.40 | AX17: 0.57 | AY17: 0.73 | AZ17: 0.85 | BA17: 0.93 | BB17: 0.97 | BC17: 0.99 | BD17: 1.00 | BE17: 1.00 | BF17: 1.00 | BG17: 1.00 | BH17: 1.00 | BI17: 1.00 | BJ17: 1.00 | BK17: 1.00 | BL17: 1.00 | BM17: 1.00 | BN17: 1.00 | BO17: 1.00 | BP17: 1.00 | BQ17: 1.00 | BR17: 1.00 | BS17: 1.00 | BT17: 1.00 | BU17: 1.00 | BV17: 1.00 | BW17: 1.00 | BX17: 1.00 | BY17: 1.00 | CA17: 0.00 | CB17: 0.01 | CC17: 0.02 | CD17: 0.04 | CE17: 0.07 | CF17: 0.11 | CG17: 0.15 | CH17: 0.17 | CI17: 0.16 | CJ17: 0.12 | CK17: 0.08 | CL17: 0.04 | CM17: 0.02 | CN17: 0.01 | CO17: 0.00 | CP17: 0.00 | CQ17: 0.00 | CR17: 0.00 | CS17: 0.00 | CT17: 0.00 | CU17: 0.00 | CV17: 0.00 | CW17: 0.00 | CX17: 0.00 | CY17: 0.00 | CZ17: 0.00 | DA17: 0.00 | DB17: 0.00 | DC17: 0.00 | DD17: 0.00 | DE17: 0.00 | DF17: 0.00 | DG17: 0.00 | DH17: 0.00 | DI17: 0.00 | DJ17: 1.00 | DK17: 25 | DL17: 2012 | DM17: 2012 | DN17: 4 | DO17: 11 | DP17: 31 | DQ17: 73 | DR17: 143 | DS17: 231 | DT17: 310 | DU17: 346 | DV17: 320 | DW17: 246 | DX17: 158 | DY17: 84 | DZ17: 37 | EA17: 13 | EB17: 4 | EC17: 1 | ED17: 0 | EE17: 0 | EF17: 0 | EG17: 0 | EH17: 0 | EI17: 0 | EJ17: 0 | EK17: 0 | EL17: 0 | EM17: 0 | EN17: 0 | EO17: 0 | EP17: 0 | EQ17: 0 | ER17: 0 | ES17: 0 | ET17: 0 | EU17: 0 | EV17: 0 | EW17: 2012 | EX17: 0.01 | EY17: 17.19 | EZ17: 8.60 | FA17: 0.01 | FB17: =+'inv2.計算シート'!E7 -> 6 | FC17: =+'inv2.計算シート'!K7 -> 2465 | FD17: 0.01 | FE17: 15.2 | FF17: 15.2 | FH17: 4.225314725 | FI17: 33.10293208 | FJ17: 155.8845277 | FK17: 512.0200827 | FL17: 1282.552174 | FM17: 2536.132869 | FN17: 4027.022904 | FO17: 5184.599118 | FP17: 5444.780987 | FQ17: 4682.903601 | FR17: 3307.708869 | FS17: 1922.594786 | FT17: 920.9638766 | FU17: 363.9828631 | FV17: 118.7898204 | FW17: 32.03543913 | FX17: 7.142753908 | FY17: 1.317244237 | FZ17: 0.2009911254 | GA17: 0.02538118796 | GB17: 0.002653152729 | GC17: 0.0002296145722 | GD17: 1.645431385e-05 | GE17: 9.7644619e-07 | GF17: 4.798672651e-08 | GG17: 1.947698517e-09 | GH17: 0 | GI17: 0 | GJ17: 0 | GK17: 0 | GL17: 0 | GM17: 0 | GN17: 0 | GO17: 0 | GP17: 0 | GQ17: 0 | GR17: 5444.780987 | GS17: 5444.780987 | GT17: =+'inv3.直径階分布'!LP12 -> 18 | GV17: 5 | GW17: 0.973 | GX17: 1.3269 | GY17: 0.73 | GZ17: 0.5859795366
A18: 345.3607461 | B18: 273 | C18: 7 | D18: ='1.収穫を予測する'!C19 -> 17.9 | E18: ='1.収穫を予測する'!D19 -> 15 | G18: 12 | H18: 14 | I18: =+'1.収穫を予測する'!H19 -> 21 | K18: =IF(OR($D$2="あり",$D$3="あり"),入力方法別計算!W8,'inv2.計算シート'!E8) -> 26 | L18: =IF('1.収穫を予測する'!K13="","",'1.収穫を予測する'!K13) ->  | N18: =IF(K18>105,"",IF(OR($D$2="あり",$D$3="あり"),IF(入力方法別計算!AQ8=0,"",入力方法別計算!AQ8),IF('inv2.計算シート'!BV8=0,"",'inv2.計算シート'!BV8))) ->  | O18: 26 | P18: =IF(OR(ISERROR(Q18),K18>105),"",IF(OR($D$2="あり",$D$3="あり"),入力方法別計算!X8,'inv2.計算シート'!AC8)) -> 14.9 | Q18: 0.156 | R18: =+IF(O18>105,"",出力前1!R17+出力前!AI17) -> 15.6 | S18: =IF(K18>105,"",IF(OR($D$2="あり",$D$3="あり"),入力方法別計算!Y8,'inv2.計算シート'!AE8)) -> 1995 | T18: =IF(K18>105,"",IF(OR($D$2="あり",$D$3="あり"),入力方法別計算!Z8,'inv2.計算シート'!AD8)) -> 310.7 | U18: 0.602 | V18: =IF(L18="","",IF(OR($D$2="あり",$D$3="あり"),入力方法別計算!AD8,'inv2.計算シート'!AK8)) ->  | W18: =IF(L18="","",IF(OR($D$2="あり",$D$3="あり"),入力方法別計算!AE8,'inv2.計算シート'!AJ8)) ->  | X18: =IF(L18="","",IF(OR($D$2="あり",$D$3="あり"),入力方法別計算!AL8,'inv2.計算シート'!AN8)) ->  | Y18: =IF(L18="","",IF(OR($D$2="あり",$D$3="あり"),入力方法別計算!AF8,'inv2.計算シート'!AM8)) ->  | Z18: =IF(L18="","",IF(OR($D$2="あり",$D$3="あり"),入力方法別計算!AA8/0.01,'inv2.計算シート'!AF8/0.01)) ->  | AA18: =IF(L18="","",IF(OR($D$2="あり",$D$3="あり"),入力方法別計算!AG8,'inv2.計算シート'!AL8)) ->  | AB18: =IF(L18="","",IF(OR($D$2="あり",$D$3="あり"),入力方法別計算!AG8/入力方法別計算!Z8*100,'inv2.計算シート'!AL8/'inv2.計算シート'!AD8*100)) ->  | AD18: =IF(L18="","",SUM(AA$12:AA18)) ->  | AE18: =+IF(O18>105,"",T18+SUM(AA$12:AA17)) -> 310.7 | AF18: =IF(OR($D$2="あり",$D$3="あり"),入力方法別計算!AX8,'inv2.計算シート'!AY8) -> 15.7 | AI18: 11.9 | AJ18: =+$AD$2+$AD$3*$H$3+$AD$4*R18+$AD$5*AK18+$AD$6*AL18 -> 0.46 | AK18: =+(R18/100/2)^2*PI()*S18 -> 37.9 | AL18: =+AK18*H$3 -> 720.4 | AM18: 2.8 | AN18: 0.6772511223 | AO18: 0.31 | AP18: =+IF((IF('1.収穫を予測する'!C$4="入力方法2",出力前1!AM$4,出力前1!AL$4)*AN18+出力前1!AO18)<0,0.001,IF('1.収穫を予測する'!C$4="入力方法2",出力前1!AM$4,出力前1!AL$4)*AN18+出力前1!AO18) -> 4.65 | AQ18: 0.00 | AR18: 0.01 | AS18: 0.02 | AT18: 0.05 | AU18: 0.12 | AV18: 0.22 | AW18: 0.37 | AX18: 0.54 | AY18: 0.70 | AZ18: 0.83 | BA18: 0.92 | BB18: 0.97 | BC18: 0.99 | BD18: 1.00 | BE18: 1.00 | BF18: 1.00 | BG18: 1.00 | BH18: 1.00 | BI18: 1.00 | BJ18: 1.00 | BK18: 1.00 | BL18: 1.00 | BM18: 1.00 | BN18: 1.00 | BO18: 1.00 | BP18: 1.00 | BQ18: 1.00 | BR18: 1.00 | BS18: 1.00 | BT18: 1.00 | BU18: 1.00 | BV18: 1.00 | BW18: 1.00 | BX18: 1.00 | BY18: 1.00 | CA18: 0.00 | CB18: 0.00 | CC18: 0.01 | CD18: 0.03 | CE18: 0.06 | CF18: 0.11 | CG18: 0.15 | CH18: 0.17 | CI18: 0.16 | CJ18: 0.13 | CK18: 0.09 | CL18: 0.05 | CM18: 0.02 | CN18: 0.01 | CO18: 0.00 | CP18: 0.00 | CQ18: 0.00 | CR18: 0.00 | CS18: 0.00 | CT18: 0.00 | CU18: 0.00 | CV18: 0.00 | CW18: 0.00 | CX18: 0.00 | CY18: 0.00 | CZ18: 0.00 | DA18: 0.00 | DB18: 0.00 | DC18: 0.00 | DD18: 0.00 | DE18: 0.00 | DF18: 0.00 | DG18: 0.00 | DH18: 0.00 | DI18: 0.00 | DJ18: 1.00 | DK18: 26 | DL18: 1995 | DM18: 1995 | DN18: 4 | DO18: 9 | DP18: 27 | DQ18: 64 | DR18: 128 | DS18: 212 | DT18: 293 | DU18: 337 | DV18: 324 | DW18: 259 | DX18: 173 | DY18: 96 | DZ18: 45 | EA18: 17 | EB18: 6 | EC18: 1 | ED18: 0 | EE18: 0 | EF18: 0 | EG18: 0 | EH18: 0 | EI18: 0 | EJ18: 0 | EK18: 0 | EL18: 0 | EM18: 0 | EN18: 0 | EO18: 0 | EP18: 0 | EQ18: 0 | ER18: 0 | ES18: 0 | ET18: 0 | EU18: 0 | EV18: 0 | EW18: 1995 | EX18: 0.01 | EY18: 16.95 | EZ18: 8.48 | FA18: 0.01 | FB18: =+'inv2.計算シート'!E8 -> 7 | FC18: =+'inv2.計算シート'!K8 -> 2452 | FD18: 0.01 | FE18: 15.6 | FF18: 15.6 | FH18: 3.554151993 | FI18: 28.15596914 | FJ18: 134.380618 | FK18: 449.0354546 | FL18: 1148.572085 | FM18: 2327.951069 | FN18: 3803.062527 | FO18: 5056.397009 | FP18: 5504.434197 | FQ18: 4925.886114 | FR18: 3633.834733 | FS18: 2214.256111 | FT18: 1116.143957 | FU18: 465.9437896 | FV18: 161.230266 | FW18: 46.27591905 | FX18: 11.02280103 | FY18: 2.179927565 | FZ18: 0.3580571832 | GA18: 0.04885850645 | GB18: 0.005539860921 | GC18: 0.0005220386308 | GD18: 4.088934541e-05 | GE18: 2.662371926e-06 | GF18: 1.441076371e-07 | GG18: 6.493788822e-09 | GH18: 2.347285985e-10 | GI18: 0 | GJ18: 0 | GK18: 0 | GL18: 0 | GM18: 0 | GN18: 0 | GO18: 0 | GP18: 0 | GQ18: 0 | GR18: 5504.434197 | GS18: 5504.434197 | GT18: =+'inv3.直径階分布'!LP13 -> 18 | GV18: 6 | GW18: 1.1349 | GX18: 1.5744 | GY18: 0.72 | GZ18: 0.6020886563
A19: 586.673499 | B19: 240 | C19: 8 | D19: ='1.収穫を予測する'!C20 -> 17.9 | E19: ='1.収穫を予測する'!D20 -> 12.5 | G19: 14 | H19: 16 | I19: =+'1.収穫を予測する'!H20 -> 16 | K19: =IF(OR($D$2="あり",$D$3="あり"),入力方法別計算!W9,'inv2.計算シート'!E9) -> 27 | L19: =IF('1.収穫を予測する'!K14="","",'1.収穫を予測する'!K14) ->  | N19: =IF(K19>105,"",IF(OR($D$2="あり",$D$3="あり"),IF(入力方法別計算!AQ9=0,"",入力方法別計算!AQ9),IF('inv2.計算シート'!BV9=0,"",'inv2.計算シート'!BV9))) -> 2 | O19: 27 | P19: =IF(OR(ISERROR(Q19),K19>105),"",IF(OR($D$2="あり",$D$3="あり"),入力方法別計算!X9,'inv2.計算シート'!AC9)) -> 15.2 | Q19: 0.165 | R19: =+IF(O19>105,"",出力前1!R18+出力前!AI18) -> 15.9 | S19: =IF(K19>105,"",IF(OR($D$2="あり",$D$3="あり"),入力方法別計算!Y9,'inv2.計算シート'!AE9)) -> 1978 | T19: =IF(K19>105,"",IF(OR($D$2="あり",$D$3="あり"),入力方法別計算!Z9,'inv2.計算シート'!AD9)) -> 326.3 | U19: 0.617 | V19: =IF(L19="","",IF(OR($D$2="あり",$D$3="あり"),入力方法別計算!AD9,'inv2.計算シート'!AK9)) ->  | W19: =IF(L19="","",IF(OR($D$2="あり",$D$3="あり"),入力方法別計算!AE9,'inv2.計算シート'!AJ9)) ->  | X19: =IF(L19="","",IF(OR($D$2="あり",$D$3="あり"),入力方法別計算!AL9,'inv2.計算シート'!AN9)) ->  | Y19: =IF(L19="","",IF(OR($D$2="あり",$D$3="あり"),入力方法別計算!AF9,'inv2.計算シート'!AM9)) ->  | Z19: =IF(L19="","",IF(OR($D$2="あり",$D$3="あり"),入力方法別計算!AA9/0.01,'inv2.計算シート'!AF9/0.01)) ->  | AA19: =IF(L19="","",IF(OR($D$2="あり",$D$3="あり"),入力方法別計算!AG9,'inv2.計算シート'!AL9)) ->  | AB19: =IF(L19="","",IF(OR($D$2="あり",$D$3="あり"),入力方法別計算!AG9/入力方法別計算!Z9*100,'inv2.計算シート'!AL9/'inv2.計算シート'!AD9*100)) ->  | AD19: =IF(L19="","",SUM(AA$12:AA19)) ->  | AE19: =+IF(O19>105,"",T19+SUM(AA$12:AA18)) -> 326.3 | AF19: =IF(OR($D$2="あり",$D$3="あり"),入力方法別計算!AX9,'inv2.計算シート'!AY9) -> 15.5 | AI19: 12.1 | AJ19: 0.44 | AK19: 39.4 | AL19: 748.4 | AM19: 2.8 | AN19: 0.6772511223 | AO19: 0.36 | AP19: =+IF((IF('1.収穫を予測する'!C$4="入力方法2",出力前1!AM$4,出力前1!AL$4)*AN19+出力前1!AO19)<0,0.001,IF('1.収穫を予測する'!C$4="入力方法2",出力前1!AM$4,出力前1!AL$4)*AN19+出力前1!AO19) -> 4.70 | AQ19: 0.00 | AR19: 0.01 | AS19: 0.02 | AT19: 0.05 | AU19: 0.10 | AV19: 0.20 | AW19: 0.34 | AX19: 0.51 | AY19: 0.67 | AZ19: 0.81 | BA19: 0.90 | BB19: 0.96 | BC19: 0.98 | BD19: 0.99 | BE19: 1.00 | BF19: 1.00 | BG19: 1.00 | BH19: 1.00 | BI19: =+NORMDIST(BI$11,$R19,$AP19,TRUE) -> 1.00 | BJ19: 1.00 | BK19: 1.00 | BL19: 1.00 | BM19: 1.00 | BN19: 1.00 | BO19: 1.00 | BP19: 1.00 | BQ19: 1.00 | BR19: 1.00 | BS19: 1.00 | BT19: 1.00 | BU19: 1.00 | BV19: 1.00 | BW19: 1.00 | BX19: 1.00 | BY19: =+NORMDIST(BY$11,$R19,$AP19,TRUE) -> 1.00 | CA19: 0.00 | CB19: 0.00 | CC19: 0.01 | CD19: 0.03 | CE19: 0.06 | CF19: 0.10 | CG19: 0.14 | CH19: 0.17 | CI19: 0.16 | CJ19: 0.14 | CK19: 0.09 | CL19: 0.06 | CM19: 0.03 | CN19: 0.01 | CO19: 0.00 | CP19: 0.00 | CQ19: 0.00 | CR19: 0.00 | CS19: 0.00 | CT19: 0.00 | CU19: 0.00 | CV19: 0.00 | CW19: 0.00 | CX19: 0.00 | CY19: 0.00 | CZ19: 0.00 | DA19: 0.00 | DB19: 0.00 | DC19: 0.00 | DD19: 0.00 | DE19: 0.00 | DF19: 0.00 | DG19: 0.00 | DH19: 0.00 | DI19: 0.00 | DJ19: 1.00 | DK19: 27 | DL19: 1978 | DM19: 1978 | DN19: 3 | DO19: 8 | DP19: 23 | DQ19: 56 | DR19: 114 | DS19: 194 | DT19: 275 | DU19: 327 | DV19: 325 | DW19: 270 | DX19: 188 | DY19: 109 | DZ19: 53 | EA19: 22 | EB19: 7 | EC19: 2 | ED19: 0 | EE19: 0 | EF19: 0 | EG19: 0 | EH19: 0 | EI19: 0 | EJ19: 0 | EK19: 0 | EL19: 0 | EM19: 0 | EN19: 0 | EO19: 0 | EP19: 0 | EQ19: 0 | ER19: 0 | ES19: 0 | ET19: 0 | EU19: 0 | EV19: 0 | EW19: 1978 | EX19: 0.01 | EY19: 16.71 | EZ19: 8.35 | FA19: 0.01 | FB19: =+'inv2.計算シート'!E9 -> 8 | FC19: =+'inv2.計算シート'!K9 -> 2438 | FD19: 0.01 | FE19: 15.9 | FF19: 15.9 | FH19: 3.003844292 | FI19: 24.04679645 | FJ19: 116.2212788 | FK19: 394.6427935 | FL19: 1029.361236 | FM19: 2134.914088 | FN19: 3581.358838 | FO19: 4906.52826 | FP19: 5523.012118 | FQ19: 5128.49608 | FR19: 3939.366891 | FS19: 2508.183527 | FT19: 1325.678113 | FU19: 582.3121705 | FV19: 212.7617019 | FW19: 64.70662453 | FX19: 16.38917251 | FY19: 3.458640471 | FZ19: 0.6083358176 | GA19: 0.08920528457 | GB19: 0.01090794155 | GC19: 0.001112440007 | GD19: 9.463523937e-05 | GE19: 6.716141021e-06 | GF19: 3.976718728e-07 | GG19: 1.964196111e-08 | GH19: 8.146273584e-10 | GI19: 0 | GJ19: 0 | GK19: 0 | GL19: 0 | GM19: 0 | GN19: 0 | GO19: 0 | GP19: 0 | GQ19: 0 | GR19: 5523.012118 | GS19: 5523.012118 | GT19: =+'inv3.直径階分布'!LP14 -> 18 | GV19: 7 | GW19: 1.2968 | GX19: 1.8219 | GY19: 0.71 | GZ19: 0.6172746716
A20: 0 | B20: 0 | C20: 9 | D20: ='1.収穫を予測する'!C21 -> 17.8 | E20: ='1.収穫を予測する'!D21 -> 13.8 | G20: 16 | H20: 18 | I20: =+'1.収穫を予測する'!H21 -> 0 | K20: =IF(OR($D$2="あり",$D$3="あり"),入力方法別計算!W10,'inv2.計算シート'!E10) -> 28 | L20: =IF('1.収穫を予測する'!K15="","",'1.収穫を予測する'!K15) ->  | N20: =IF(K20>105,"",IF(OR($D$2="あり",$D$3="あり"),IF(入力方法別計算!AQ10=0,"",入力方法別計算!AQ10),IF('inv2.計算シート'!BV10=0,"",'inv2.計算シート'!BV10))) ->  | O20: 28 | P20: =IF(OR(ISERROR(Q20),K20>105),"",IF(OR($D$2="あり",$D$3="あり"),入力方法別計算!X10,'inv2.計算シート'!AC10)) -> 15.5 | Q20: 0.174 | R20: =+IF(O20>105,"",出力前1!R19+出力前!AI19) -> 16.3 | S20: =IF(K20>105,"",IF(OR($D$2="あり",$D$3="あり"),入力方法別計算!Y10,'inv2.計算シート'!AE10)) -> 1961 | T20: =IF(K20>105,"",IF(OR($D$2="あり",$D$3="あり"),入力方法別計算!Z10,'inv2.計算シート'!AD10)) -> 341.8 | U20: 0.632 | V20: =IF(L20="","",IF(OR($D$2="あり",$D$3="あり"),入力方法別計算!AD10,'inv2.計算シート'!AK10)) ->  | W20: =IF(L20="","",IF(OR($D$2="あり",$D$3="あり"),入力方法別計算!AE10,'inv2.計算シート'!AJ10)) ->  | X20: =IF(L20="","",IF(OR($D$2="あり",$D$3="あり"),入力方法別計算!AL10,'inv2.計算シート'!AN10)) ->  | Y20: =IF(L20="","",IF(OR($D$2="あり",$D$3="あり"),入力方法別計算!AF10,'inv2.計算シート'!AM10)) ->  | Z20: =IF(L20="","",IF(OR($D$2="あり",$D$3="あり"),入力方法別計算!AA10/0.01,'inv2.計算シート'!AF10/0.01)) ->  | AA20: =IF(L20="","",IF(OR($D$2="あり",$D$3="あり"),入力方法別計算!AG10,'inv2.計算シート'!AL10)) ->  | AB20: =IF(L20="","",IF(OR($D$2="あり",$D$3="あり"),入力方法別計算!AG10/入力方法別計算!Z10*100,'inv2.計算シート'!AL10/'inv2.計算シート'!AD10*100)) ->  | AD20: =IF(L20="","",SUM(AA$12:AA20)) ->  | AE20: =+IF(O20>105,"",T20+SUM(AA$12:AA19)) -> 341.8 | AF20: =IF(OR($D$2="あり",$D$3="あり"),入力方法別計算!AX10,'inv2.計算シート'!AY10) -> 15.3 | AI20: 12.2 | AJ20: 0.43 | AK20: 40.7 | AL20: 774.2 | AM20: 2.9 | AN20: 0.6772511223 | AO20: 0.40 | AP20: =+IF((IF('1.収穫を予測する'!C$4="入力方法2",出力前1!AM$4,出力前1!AL$4)*AN20+出力前1!AO20)<0,0.001,IF('1.収穫を予測する'!C$4="入力方法2",出力前1!AM$4,出力前1!AL$4)*AN20+出力前1!AO20) -> 4.74 | AQ20: 0.00 | AR20: 0.00 | AS20: 0.02 | AT20: 0.04 | AU20: 0.09 | AV20: 0.18 | AW20: 0.32 | AX20: 0.48 | AY20: 0.64 | AZ20: 0.78 | BA20: 0.89 | BB20: 0.95 | BC20: 0.98 | BD20: 0.99 | BE20: 1.00 | BF20: 1.00 | BG20: 1.00 | BH20: 1.00 | BI20: 1.00 | BJ20: 1.00 | BK20: 1.00 | BL20: 1.00 | BM20: 1.00 | BN20: 1.00 | BO20: 1.00 | BP20: 1.00 | BQ20: 1.00 | BR20: 1.00 | BS20: 1.00 | BT20: 1.00 | BU20: 1.00 | BV20: 1.00 | BW20: 1.00 | BX20: 1.00 | BY20: 1.00 | CA20: 0.00 | CB20: 0.00 | CC20: 0.01 | CD20: 0.03 | CE20: 0.05 | CF20: 0.09 | CG20: 0.13 | CH20: 0.16 | CI20: 0.17 | CJ20: 0.14 | CK20: 0.10 | CL20: 0.06 | CM20: 0.03 | CN20: 0.01 | CO20: 0.00 | CP20: 0.00 | CQ20: 0.00 | CR20: 0.00 | CS20: 0.00 | CT20: 0.00 | CU20: 0.00 | CV20: 0.00 | CW20: 0.00 | CX20: 0.00 | CY20: 0.00 | CZ20: 0.00 | DA20: 0.00 | DB20: 0.00 | DC20: 0.00 | DD20: 0.00 | DE20: 0.00 | DF20: 0.00 | DG20: 0.00 | DH20: 0.00 | DI20: 0.00 | DJ20: 1.00 | DK20: 28 | DL20: 1961 | DM20: 1961 | DN20: 3 | DO20: 7 | DP20: 20 | DQ20: 50 | DR20: 103 | DS20: 178 | DT20: 259 | DU20: 316 | DV20: 324 | DW20: 278 | DX20: 200 | DY20: 121 | DZ20: 61 | EA20: 26 | EB20: 9 | EC20: 3 | ED20: 1 | EE20: 0 | EF20: 0 | EG20: 0 | EH20: 0 | EI20: 0 | EJ20: 0 | EK20: 0 | EL20: 0 | EM20: 0 | EN20: 0 | EO20: 0 | EP20: 0 | EQ20: 0 | ER20: 0 | ES20: 0 | ET20: 0 | EU20: 0 | EV20: 0 | EW20: 1961 | EX20: 0.01 | EY20: 16.46 | EZ20: 8.23 | FA20: 0.01 | FB20: =+'inv2.計算シート'!E10 -> 9 | FC20: =+'inv2.計算シート'!K10 -> 2422 | FD20: 0.01 | FE20: 16.3 | FF20: 16.3 | FH20: 2.565513325 | FI20: 20.73417088 | FJ20: 101.3573694 | FK20: 349.1942412 | FL20: 926.9924869 | FM20: 1962.845721 | FN20: 3372.116902 | FO20: 4746.023195 | FP20: 5505.343395 | FQ20: 5284.50152 | FR20: 4209.200423 | FS20: 2787.702179 | FT20: 1537.429084 | FU20: 706.8713994 | FV20: 271.1844842 | FW20: 86.86965886 | FX20: 23.24810134 | FY20: 5.200104932 | FZ20: 0.9725087196 | GA20: 0.152108476 | GB20: 0.01990167852 | GC20: 0.002178617376 | GD20: 0.0001995676267 | GE20: 1.529914953e-05 | GF20: 9.816332398e-07 | GG20: 5.272458767e-08 | GH20: 2.365712891e-09 | GI20: 0 | GJ20: 0 | GK20: 0 | GL20: 0 | GM20: 0 | GN20: 0 | GO20: 0 | GP20: 0 | GQ20: 0 | GR20: 5505.343395 | GS20: 5505.343395 | GT20: =+'inv3.直径階分布'!LP15 -> 18 | GV20: 8 | GW20: 1.4587 | GX20: 2.0694 | GY20: 0.70 | GZ20: 0.6316050227
A21: 0 | B21: 0 | C21: 10 | D21: ='1.収穫を予測する'!C22 -> 17.7 | E21: ='1.収穫を予測する'!D22 -> 14.3 | G21: 18 | H21: 20 | I21: =+'1.収穫を予測する'!H22 -> 0 | K21: =IF(OR($D$2="あり",$D$3="あり"),入力方法別計算!W11,'inv2.計算シート'!E11) -> 29 | L21: =IF('1.収穫を予測する'!K16="","",'1.収穫を予測する'!K16) ->  | N21: =IF(K21>105,"",IF(OR($D$2="あり",$D$3="あり"),IF(入力方法別計算!AQ11=0,"",入力方法別計算!AQ11),IF('inv2.計算シート'!BV11=0,"",'inv2.計算シート'!BV11))) ->  | O21: 29 | P21: =IF(OR(ISERROR(Q21),K21>105),"",IF(OR($D$2="あり",$D$3="あり"),入力方法別計算!X11,'inv2.計算シート'!AC11)) -> 15.9 | Q21: 0.184 | R21: =+IF(O21>105,"",出力前1!R20+出力前!AI20) -> 16.6 | S21: =IF(K21>105,"",IF(OR($D$2="あり",$D$3="あり"),入力方法別計算!Y11,'inv2.計算シート'!AE11)) -> 1945 | T21: =IF(K21>105,"",IF(OR($D$2="あり",$D$3="あり"),入力方法別計算!Z11,'inv2.計算シート'!AD11)) -> 357.1 | U21: 0.645 | V21: =IF(L21="","",IF(OR($D$2="あり",$D$3="あり"),入力方法別計算!AD11,'inv2.計算シート'!AK11)) ->  | W21: =IF(L21="","",IF(OR($D$2="あり",$D$3="あり"),入力方法別計算!AE11,'inv2.計算シート'!AJ11)) ->  | X21: =IF(L21="","",IF(OR($D$2="あり",$D$3="あり"),入力方法別計算!AL11,'inv2.計算シート'!AN11)) ->  | Y21: =IF(L21="","",IF(OR($D$2="あり",$D$3="あり"),入力方法別計算!AF11,'inv2.計算シート'!AM11)) ->  | Z21: =IF(L21="","",IF(OR($D$2="あり",$D$3="あり"),入力方法別計算!AA11/0.01,'inv2.計算シート'!AF11/0.01)) ->  | AA21: =IF(L21="","",IF(OR($D$2="あり",$D$3="あり"),入力方法別計算!AG11,'inv2.計算シート'!AL11)) ->  | AB21: =IF(L21="","",IF(OR($D$2="あり",$D$3="あり"),入力方法別計算!AG11/入力方法別計算!Z11*100,'inv2.計算シート'!AL11/'inv2.計算シート'!AD11*100)) ->  | AD21: =IF(L21="","",SUM(AA$12:AA21)) ->  | AE21: =+IF(O21>105,"",T21+SUM(AA$12:AA20)) -> 357.1 | AF21: =IF(OR($D$2="あり",$D$3="あり"),入力方法別計算!AX11,'inv2.計算シート'!AY11) -> 15.0 | AI21: 12.3 | AJ21: 0.42 | AK21: 42.1 | AL21: 799.7 | AM21: 2.9 | AN21: 0.6772511223 | AO21: 0.44 | AP21: =+IF((IF('1.収穫を予測する'!C$4="入力方法2",出力前1!AM$4,出力前1!AL$4)*AN21+出力前1!AO21)<0,0.001,IF('1.収穫を予測する'!C$4="入力方法2",出力前1!AM$4,出力前1!AL$4)*AN21+出力前1!AO21) -> 4.78 | AQ21: 0.00 | AR21: 0.00 | AS21: 0.01 | AT21: 0.04 | AU21: 0.08 | AV21: 0.17 | AW21: 0.29 | AX21: 0.45 | AY21: 0.62 | AZ21: 0.76 | BA21: 0.87 | BB21: 0.94 | BC21: 0.98 | BD21: 0.99 | BE21: 1.00 | BF21: 1.00 | BG21: 1.00 | BH21: 1.00 | BI21: 1.00 | BJ21: 1.00 | BK21: 1.00 | BL21: 1.00 | BM21: 1.00 | BN21: 1.00 | BO21: 1.00 | BP21: 1.00 | BQ21: 1.00 | BR21: 1.00 | BS21: 1.00 | BT21: 1.00 | BU21: 1.00 | BV21: 1.00 | BW21: 1.00 | BX21: 1.00 | BY21: 1.00 | CA21: 0.00 | CB21: 0.00 | CC21: 0.01 | CD21: 0.02 | CE21: 0.05 | CF21: 0.08 | CG21: 0.13 | CH21: 0.16 | CI21: 0.17 | CJ21: 0.15 | CK21: 0.11 | CL21: 0.07 | CM21: 0.04 | CN21: 0.02 | CO21: 0.01 | CP21: 0.00 | CQ21: 0.00 | CR21: 0.00 | CS21: 0.00 | CT21: 0.00 | CU21: 0.00 | CV21: 0.00 | CW21: 0.00 | CX21: 0.00 | CY21: 0.00 | CZ21: 0.00 | DA21: 0.00 | DB21: 0.00 | DC21: 0.00 | DD21: 0.00 | DE21: 0.00 | DF21: 0.00 | DG21: 0.00 | DH21: 0.00 | DI21: 0.00 | DJ21: 1.00 | DK21: 29 | DL21: 1945 | DM21: 1945 | DN21: 2 | DO21: 6 | DP21: 18 | DQ21: 44 | DR21: 93 | DS21: 164 | DT21: 244 | DU21: 305 | DV21: 321 | DW21: 285 | DX21: 212 | DY21: 133 | DZ21: 70 | EA21: 31 | EB21: 12 | EC21: 4 | ED21: 1 | EE21: 0 | EF21: 0 | EG21: 0 | EH21: 0 | EI21: 0 | EJ21: 0 | EK21: 0 | EL21: 0 | EM21: 0 | EN21: 0 | EO21: 0 | EP21: 0 | EQ21: 0 | ER21: 0 | ES21: 0 | ET21: 0 | EU21: 0 | EV21: 0 | EW21: 1945 | EX21: 0.01 | EY21: 16.21 | EZ21: 8.10 | FA21: 0.31 | FB21: =+'inv2.計算シート'!E11 -> 10 | FC21: =+'inv2.計算シート'!K11 -> 2406 | FD21: 0.01 | FE21: 16.6 | FF21: 16.6 | FH21: 2.196570585 | FI21: 17.91530642 | FJ21: 88.53372817 | FK21: 309.2524526 | FL21: 834.8166695 | FM21: 1802.791985 | FN21: 3167.978116 | FO21: 4574.094076 | FP21: 5459.227705 | FQ21: 5407.528086 | FR21: 4457.788741 | FS21: 3064.569766 | FT21: 1759.546761 | FU21: 844.7134312 | FV21: 339.3745767 | FW21: 114.1857541 | FX21: 32.191874 | FY21: 7.608048792 | FZ21: 1.507809341 | GA21: 0.2506624695 | GB21: 0.03496243744 | GC21: 0.004092267791 | GD21: 0.0004020139017 | GE21: 3.31500765e-05 | GF21: 2.294759039e-06 | GG21: 1.333576095e-07 | GH21: 6.511658538e-09 | GI21: 2.612695836e-10 | GJ21: 0 | GK21: 0 | GL21: 0 | GM21: 0 | GN21: 0 | GO21: 0 | GP21: 0 | GQ21: 0 | GR21: 5459.227705 | GS21: 5459.227705 | GT21: =+'inv3.直径階分布'!LP16 -> 18 | GV21: 9 | GW21: 1.6206 | GX21: 2.3169 | GY21: 0.70 | GZ21: 0.6451418983
